Workbook

Sheet Prognózy výkazů
A3: Výsledovka
C4: Rok | D4: 2015 | E4: 2016 | F4: 2017 | G4: 2018 | H4: 2019 | I4: 2020 | J4: 2021 | K4: 2022 | L4: 2023 | M4: 2024 | N4: 2025 | O4: 2026 | P4: 2027 | Q4: 2028 | R4: 2029 | S4: 2030 | T4: 2031 | U4: 2032 | V4: 2033 | W4: 2034 | Y4: Predikce
B5: Prodej silové elektřiny koncovým zákazníkům -lze rozšířit ještě | C5: mil. Kč | D5: =výsledovka!B3 -> 54742 | E5: =výsledovka!C3 -> 50159 | F5: =výsledovka!D3 -> 48504 | G5: =výsledovka!E3 -> 45941 | H5: ='instalovaný výkon 2'!G84 -> 44482.80967 | I5: ='instalovaný výkon 2'!H84 -> 46701.95613 | J5: ='instalovaný výkon 2'!I84 -> 51131.61297 | K5: ='instalovaný výkon 2'!J84 -> 54741.17262 | L5: ='instalovaný výkon 2'!K84 -> 59454.07695 | M5: ='instalovaný výkon 2'!L84 -> 62050.77545 | N5: ='instalovaný výkon 2'!M84 -> 65982.97752 | O5: ='instalovaný výkon 2'!N84 -> 68986.29891 | P5: ='instalovaný výkon 2'!O84 -> 73492.07672 | Q5: ='instalovaný výkon 2'!P84 -> 77075.3927 | R5: ='instalovaný výkon 2'!Q84 -> 80798.13866 | S5: ='instalovaný výkon 2'!R84 -> 82985.00923 | T5: ='instalovaný výkon 2'!S84 -> 86823.65729 | U5: ='instalovaný výkon 2'!T84 -> 90547.40119 | V5: ='instalovaný výkon 2'!U84 -> 93175.39847 | W5: ='instalovaný výkon 2'!V84 -> 96341.21999 | Y5: sešit - instalovaný výkon 2
B6: Prodej prostřednictvím energetické burzy | C6: mil. Kč | D6: =výsledovka!B4 -> 4920 | E6: =výsledovka!C4 -> 4766 | F6: =výsledovka!D4 -> 3669 | G6: =výsledovka!E4 -> 4134 | H6: ='instalovaný výkon 2'!G85 -> 3866.758091 | I6: ='instalovaný výkon 2'!H85 -> 3880.949159 | J6: ='instalovaný výkon 2'!I85 -> 3871.003153 | K6: ='instalovaný výkon 2'!J85 -> 4037.653515 | L6: ='instalovaný výkon 2'!K85 -> 4270.838474 | M6: ='instalovaný výkon 2'!L85 -> 4348.037817 | N6: ='instalovaný výkon 2'!M85 -> 4495.385202 | O6: ='instalovaný výkon 2'!N85 -> 4674.403871 | P6: ='instalovaný výkon 2'!O85 -> 4940.621556 | Q6: ='instalovaný výkon 2'!P85 -> 5142.968775 | R6: ='instalovaný výkon 2'!Q85 -> 5342.957802 | S6: ='instalovaný výkon 2'!R85 -> 5468.553671 | T6: ='instalovaný výkon 2'!S85 -> 5638.642676 | U6: ='instalovaný výkon 2'!T85 -> 5817.080512 | V6: ='instalovaný výkon 2'!U85 -> 5908.862063 | W6: ='instalovaný výkon 2'!V85 -> 6027.909953 | Y6: sešit - instalovaný výkon 2
B7: Prodej obchodníkům | C7: mil. Kč | D7: =výsledovka!B5 -> 35672 | E7: =výsledovka!C5 -> 37138 | F7: =výsledovka!D5 -> 35524 | G7: =výsledovka!E5 -> 36830 | H7: ='instalovaný výkon 2'!G86 -> 34449.12929 | I7: ='instalovaný výkon 2'!H86 -> 34575.55818 | J7: ='instalovaný výkon 2'!I86 -> 34486.94875 | K7: ='instalovaný výkon 2'!J86 -> 35971.64464 | L7: ='instalovaný výkon 2'!K86 -> 38049.10039 | M7: ='instalovaný výkon 2'!L86 -> 38736.87296 | N7: ='instalovaný výkon 2'!M86 -> 40049.59772 | O7: ='instalovaný výkon 2'!N86 -> 41644.48345 | P7: ='instalovaný výkon 2'!O86 -> 44016.2293 | Q7: ='instalovaný výkon 2'!P86 -> 45818.95017 | R7: ='instalovaný výkon 2'!Q86 -> 47600.66179 | S7: ='instalovaný výkon 2'!R86 -> 48719.60128 | T7: ='instalovaný výkon 2'!S86 -> 50234.93221 | U7: ='instalovaný výkon 2'!T86 -> 51824.64327 | V7: ='instalovaný výkon 2'!U86 -> 52642.32941 | W7: ='instalovaný výkon 2'!V86 -> 53702.93265 | Y7: sešit - instalovaný výkon 2
B8: Prodej distribučním a přenosovým společnostem | C8: mil. Kč | D8: =výsledovka!B6 -> 344 | E8: =výsledovka!C6 -> 324 | F8: =výsledovka!D6 -> 239 | G8: =výsledovka!E6 -> 177 | H8: ='instalovaný výkon 2'!G87 -> 165.5578573 | I8: ='instalovaný výkon 2'!H87 -> 166.1654574 | J8: ='instalovaný výkon 2'!I87 -> 165.7396125 | K8: ='instalovaný výkon 2'!J87 -> 172.8748602 | L8: ='instalovaný výkon 2'!K87 -> 182.8588316 | M8: ='instalovaný výkon 2'!L87 -> 186.1641736 | N8: ='instalovaný výkon 2'!M87 -> 192.4729513 | O8: ='instalovaný výkon 2'!N87 -> 200.1377564 | P8: ='instalovaný výkon 2'!O87 -> 211.5360463 | Q8: ='instalovaný výkon 2'!P87 -> 220.1996791 | R8: ='instalovaný výkon 2'!Q87 -> 228.7623442 | S8: ='instalovaný výkon 2'!R87 -> 234.1398161 | T8: ='instalovaný výkon 2'!S87 -> 241.4222916 | U8: ='instalovaný výkon 2'!T87 -> 249.062228 | V8: ='instalovaný výkon 2'!U87 -> 252.9919171 | W8: ='instalovaný výkon 2'!V87 -> 258.0890328 | Y8: sešit - instalovaný výkon 2
B9: Ostatní prodej elektřiny | C9: mil. Kč | D9: =výsledovka!B7+výsledovka!B8+výsledovka!B9 -> 16969 | E9: =výsledovka!C7+výsledovka!C8+výsledovka!C9 -> 16685 | F9: =výsledovka!D7+výsledovka!D8+výsledovka!D9 -> 16137 | G9: =výsledovka!E7+výsledovka!E8+výsledovka!E9 -> 16015 | H9: ='instalovaný výkon 2'!G88 -> 15377.45359 | I9: ='instalovaný výkon 2'!H88 -> 16010.06153 | J9: ='instalovaný výkon 2'!I88 -> 17382.53601 | K9: ='instalovaný výkon 2'!J88 -> 18454.54986 | L9: ='instalovaný výkon 2'!K88 -> 19876.3537 | M9: ='instalovaný výkon 2'!L88 -> 20571.59682 | N9: ='instalovaný výkon 2'!M88 -> 21692.94003 | O9: ='instalovaný výkon 2'!N88 -> 22491.32635 | P9: ='instalovaný výkon 2'!O88 -> 23760.65763 | Q9: ='instalovaný výkon 2'!P88 -> 24711.51651 | R9: ='instalovaný výkon 2'!Q88 -> 25689.2085 | S9: ='instalovaný výkon 2'!R88 -> 26164.63794 | T9: ='instalovaný výkon 2'!S88 -> 27146.81442 | U9: ='instalovaný výkon 2'!T88 -> 28075.17705 | V9: ='instalovaný výkon 2'!U88 -> 28649.2652 | W9: ='instalovaný výkon 2'!V88 -> 29375.82591 | Y9: sešit - instalovaný výkon 2
B10: Prodej plynu | C10: mil. Kč | D10: =výsledovka!B12 -> 8294 | E10: =výsledovka!C12 -> 9214 | F10: =výsledovka!D12 -> 7345 | G10: =výsledovka!E12 -> 7072 | H10: ='instalovaný výkon 2'!G89 -> 6373.905579 | I10: ='instalovaný výkon 2'!H89 -> 5463.347639 | J10: ='instalovaný výkon 2'!I89 -> 6070.386266 | K10: ='instalovaný výkon 2'!J89 -> 6373.905579 | L10: ='instalovaný výkon 2'!K89 -> 6980.944206 | M10: ='instalovaný výkon 2'!L89 -> 6677.424893 | N10: ='instalovaný výkon 2'!M89 -> 6980.944206 | O10: ='instalovaný výkon 2'!N89 -> 6980.944206 | P10: ='instalovaný výkon 2'!O89 -> 7284.463519 | Q10: ='instalovaný výkon 2'!P89 -> 7587.982833 | R10: ='instalovaný výkon 2'!Q89 -> 7891.502146 | S10: ='instalovaný výkon 2'!R89 -> 7587.982833 | T10: ='instalovaný výkon 2'!S89 -> 8195.021459 | U10: ='instalovaný výkon 2'!T89 -> 8498.540773 | V10: ='instalovaný výkon 2'!U89 -> 8195.021459 | W10: ='instalovaný výkon 2'!V89 -> 8195.021459 | Y10: sešit - instalovaný výkon 2
B11: Prodej uhlí | C11: mil. Kč | D11: =výsledovka!B13 -> 4331 | E11: =výsledovka!C13 -> 4518 | F11: =výsledovka!D13 -> 4593 | G11: =výsledovka!E13 -> 4489 | H11: ='instalovaný výkon 2'!G90 -> 3232.08 | I11: ='instalovaný výkon 2'!H90 -> 3049.770487 | J11: ='instalovaný výkon 2'!I90 -> 3019.272783 | K11: ='instalovaný výkon 2'!J90 -> 2842.076118 | L11: ='instalovaný výkon 2'!K90 -> 2862.166656 | M11: ='instalovaný výkon 2'!L90 -> 2785.518803 | N11: ='instalovaný výkon 2'!M90 -> 2662.571766 | O11: ='instalovaný výkon 2'!N90 -> 2541.805118 | P11: ='instalovaný výkon 2'!O90 -> 2562.986827 | Q11: ='instalovaný výkon 2'!P90 -> 2445.089433 | R11: ='instalovaný výkon 2'!Q90 -> 2511.98339 | S11: ='instalovaný výkon 2'!R90 -> 2396.432154 | T11: ='instalovaný výkon 2'!S90 -> 2327.704288 | U11: ='instalovaný výkon 2'!T90 -> 2348.743154 | V11: ='instalovaný výkon 2'!U90 -> 2325.255722 | W11: ='instalovaný výkon 2'!V90 -> 2302.003165 | Y11: sešit - instalovaný výkon 2
B12: Prodej tepla | C12: mil. Kč | D12: =výsledovka!B14 -> 6443 | E12: =výsledovka!C14 -> 6877 | F12: =výsledovka!D14 -> 6727 | G12: =výsledovka!E14 -> 6792 | H12: ='instalovaný výkon 2'!G91 -> 6085.412903 | I12: ='instalovaný výkon 2'!H91 -> 5364.014865 | J12: ='instalovaný výkon 2'!I91 -> 5079.051575 | K12: ='instalovaný výkon 2'!J91 -> 4787.852618 | L12: ='instalovaný výkon 2'!K91 -> 4490.321777 | M12: ='instalovaný výkon 2'!L91 -> 4186.361533 | N12: ='instalovaný výkon 2'!M91 -> 3875.873053 | O12: ='instalovaný výkon 2'!N91 -> 3890.906742 | P12: ='instalovaný výkon 2'!O91 -> 3905.853518 | Q12: ='instalovaný výkon 2'!P91 -> 3920.710139 | R12: ='instalovaný výkon 2'!Q91 -> 3935.473307 | S12: ='instalovaný výkon 2'!R91 -> 3950.139667 | T12: ='instalovaný výkon 2'!S91 -> 3815.094267 | U12: ='instalovaný výkon 2'!T91 -> 3676.952945 | V12: ='instalovaný výkon 2'!U91 -> 3535.667288 | W12: ='instalovaný výkon 2'!V91 -> 3391.188221 | Y12: sešit - instalovaný výkon 2
B13: Distribuční služby | C13: mil. Kč | D13: =výsledovka!B19 -> 69458 | E13: =výsledovka!C19 -> 65872 | F13: =výsledovka!D19 -> 62243 | G13: =výsledovka!E19 -> 39356 | H13: ='instalovaný výkon 2'!G92 -> 71325 | I13: ='instalovaný výkon 2'!H92 -> 71396.325 | J13: ='instalovaný výkon 2'!I92 -> 71467.72132 | K13: ='instalovaný výkon 2'!J92 -> 71539.18905 | L13: ='instalovaný výkon 2'!K92 -> 71610.72824 | M13: ='instalovaný výkon 2'!L92 -> 71682.33896 | N13: ='instalovaný výkon 2'!M92 -> 71754.0213 | O13: ='instalovaný výkon 2'!N92 -> 71825.77532 | P13: ='instalovaný výkon 2'!O92 -> 71897.6011 | Q13: ='instalovaný výkon 2'!P92 -> 71969.4987 | R13: ='instalovaný výkon 2'!Q92 -> 72041.4682 | S13: ='instalovaný výkon 2'!R92 -> 72113.50967 | T13: ='instalovaný výkon 2'!S92 -> 72185.62318 | U13: ='instalovaný výkon 2'!T92 -> 72257.8088 | V13: ='instalovaný výkon 2'!U92 -> 72330.06661 | W13: ='instalovaný výkon 2'!V92 -> 72402.39668 | Y13: sešit - instalovaný výkon 2
B14: Ostatní služby | C14: mil. Kč | F14: =výsledovka!D20+výsledovka!D21+výsledovka!D22 -> 14019 | G14: =výsledovka!E20+výsledovka!E21+výsledovka!E22 -> 20512
B15: Ostatní provozní výnosy | C15: mil. Kč | D15: =výsledovka!B28+výsledovka!B29+výsledovka!B84 -> 8075 | E15: =výsledovka!C28+výsledovka!C29+výsledovka!C84 -> 7601 | F15: =výsledovka!D28+výsledovka!D29+výsledovka!D76+výsledovka!D77 -> 7390 | G15: =výsledovka!E28+výsledovka!E29+výsledovka!E76+výsledovka!E77 -> 6143 | H15: =AVERAGE(D15:G15)*(1+$Y$15) -> 7397.17925 | I15: =H15*(1+$Y$15) -> 7493.34258 | J15: 7590.756034 | K15: 7689.435862 | L15: 7789.398528 | M15: 7890.660709 | N15: 7993.239299 | O15: =N15*(1+$Y$15) -> 8097.151409 | P15: 8202.414378 | Q15: 8309.045765 | R15: 8417.06336 | S15: 8526.485183 | T15: 8637.329491 | U15: 8749.614774 | V15: 8863.359766 | W15: 8978.583443 | Y15: 0.013
A16: Provozní náklady | B16: Nákup elektřiny | C16: mil. Kč | D16: =výsledovka!B65 -> -90905 | E16: =výsledovka!C65 -> -88294 | F16: =výsledovka!D54 -> -48128 | G16: =výsledovka!E54 -> -44611 | H16: ='instalovaný výkon 2'!G93 -> -43195.02453 | I16: ='instalovaný výkon 2'!H93 -> -45349.92632 | J16: ='instalovaný výkon 2'!I93 -> -49651.34381 | K16: ='instalovaný výkon 2'!J93 -> -53156.40608 | L16: ='instalovaný výkon 2'!K93 -> -57732.871 | M16: ='instalovaný výkon 2'!L93 -> -60254.39463 | N16: ='instalovaný výkon 2'!M93 -> -64072.75876 | O16: ='instalovaný výkon 2'!N93 -> -66989.13346 | P16: ='instalovaný výkon 2'!O93 -> -71364.46823 | Q16: ='instalovaný výkon 2'!P93 -> -74844.04658 | R16: ='instalovaný výkon 2'!Q93 -> -78459.01839 | S16: ='instalovaný výkon 2'!R93 -> -80582.57867 | T16: ='instalovaný výkon 2'!S93 -> -84310.0972 | U16: ='instalovaný výkon 2'!T93 -> -87926.03806 | V16: ='instalovaný výkon 2'!U93 -> -90477.95436 | W16: ='instalovaný výkon 2'!V93 -> -93552.12479 | Y16: sešit - instalovaný výkon 2
B17: Nákup plynu | C17: mil. Kč | F17: =výsledovka!D55 -> -5409 | G17: =výsledovka!E55 -> -5211 | H17: ='instalovaný výkon 2'!G94 -> -4696.609442 | I17: ='instalovaný výkon 2'!H94 -> -4025.665236 | J17: ='instalovaný výkon 2'!I94 -> -4472.961373 | K17: ='instalovaný výkon 2'!J94 -> -4696.609442 | L17: ='instalovaný výkon 2'!K94 -> -5143.905579 | M17: ='instalovaný výkon 2'!L94 -> -4920.257511 | N17: ='instalovaný výkon 2'!M94 -> -5143.905579 | O17: ='instalovaný výkon 2'!N94 -> -5143.905579 | P17: ='instalovaný výkon 2'!O94 -> -5367.553648 | Q17: ='instalovaný výkon 2'!P94 -> -5591.201717 | R17: ='instalovaný výkon 2'!Q94 -> -5814.849785 | S17: ='instalovaný výkon 2'!R94 -> -5591.201717 | T17: ='instalovaný výkon 2'!S94 -> -6038.497854 | U17: ='instalovaný výkon 2'!T94 -> -6262.145923 | V17: ='instalovaný výkon 2'!U94 -> -6038.497854 | W17: ='instalovaný výkon 2'!V94 -> -6038.497854 | Y17: sešit - instalovaný výkon 2
B18: Nákup ostatních energií | C18: mil. Kč | F18: =výsledovka!D56 -> -3816 | G18: =výsledovka!E56 -> -2346 | H18: =G18*(1+$Y$18) -> -2369.46 | I18: -2393.1546 | J18: -2417.086146 | K18: -2441.257007 | L18: -2465.669578 | M18: -2490.326273 | N18: -2515.229536 | O18: =N18*(1+$Y$18) -> -2540.381831 | P18: -2565.78565 | Q18: -2591.443506 | R18: -2617.357941 | S18: -2643.531521 | T18: -2669.966836 | U18: -2696.666504 | V18: -2723.633169 | W18: -2750.869501 | Y18: 0.01
B19: Nákup služeb přenosové soustavy a distribučních služeb | C19: mil. Kč | F19: =výsledovka!D60+výsledovka!D61 -> -29517 | G19: =výsledovka!E60+výsledovka!E61 -> -5219 | H19: ='instalovaný výkon 2'!G96 -> -11824 | I19: ='instalovaný výkon 2'!H96 -> -11883.12 | J19: ='instalovaný výkon 2'!I96 -> -12001.9512 | K19: ='instalovaný výkon 2'!J96 -> -12121.97071 | L19: ='instalovaný výkon 2'!K96 -> -12243.19042 | M19: ='instalovaný výkon 2'!L96 -> -12365.62232 | N19: ='instalovaný výkon 2'!M96 -> -12489.27855 | O19: ='instalovaný výkon 2'!N96 -> -12614.17133 | P19: ='instalovaný výkon 2'!O96 -> -12740.31305 | Q19: ='instalovaný výkon 2'!P96 -> -12867.71618 | R19: ='instalovaný výkon 2'!Q96 -> -12996.39334 | S19: ='instalovaný výkon 2'!R96 -> -13126.35727 | T19: ='instalovaný výkon 2'!S96 -> -13257.62084 | U19: ='instalovaný výkon 2'!T96 -> -13390.19705 | V19: ='instalovaný výkon 2'!U96 -> -13524.09902 | W19: ='instalovaný výkon 2'!V96 -> -13659.34001 | Y19: sešit - instalovaný výkon 2
B20: Nákup ostatních služeb | C20: mil. Kč | F20: =výsledovka!D62+výsledovka!D63 -> -18295 | G20: =výsledovka!E62+výsledovka!E63 -> -20873 | H20: =G20*(1+$Y$20) -> -21081.73 | I20: =H20*(1+$Y$20) -> -21292.5473 | J20: =I20*(1+$Y$20) -> -21505.47277 | K20: -21720.5275 | L20: -21937.73278 | M20: -22157.1101 | N20: -22378.6812 | O20: -22602.46802 | P20: -22828.4927 | Q20: -23056.77762 | R20: -23287.3454 | S20: -23520.21885 | T20: -23755.42104 | U20: -23992.97525 | V20: -24232.90501 | W20: -24475.23406 | Y20: 0.01
B21: Mzdy | C21: mil. Kč | D21: =výsledovka!B72 -> -17758 | E21: =výsledovka!C72 -> -19158 | F21: =výsledovka!D72 -> -22086 | G21: =výsledovka!E72 -> -25620 | H21: =G21*(1+$Y$21) -> -25927.44 | I21: =H21*(1+$Y$21) -> -26238.56928 | J21: =I21*(1+$Y$21) -> -26553.43211 | K21: =J21*(1+$Y$21) -> -26872.0733 | L21: =K21*(1+$Y$21) -> -27194.53818 | M21: -27520.87263 | N21: -27851.12311 | O21: -28185.33658 | P21: -28523.56062 | Q21: -28865.84335 | R21: -29212.23347 | S21: -29562.78027 | T21: -29917.53363 | U21: -30276.54404 | V21: -30639.86257 | W21: -31007.54092 | Y21: 0.012
B22: Odpisy | C22: mil. Kč | D22: =výsledovka!B121 -> -28619 | E22: =výsledovka!C121 -> -28978 | F22: =výsledovka!D121 -> -29305 | G22: =výsledovka!E121 -> -28139 | H22: ='instalovaný výkon 2'!G97 -> -27355.30715 | I22: ='instalovaný výkon 2'!H97 -> -26575.16391 | J22: ='instalovaný výkon 2'!I97 -> -23509.41442 | K22: ='instalovaný výkon 2'!J97 -> -23224.98734 | L22: ='instalovaný výkon 2'!K97 -> -22946.47628 | M22: ='instalovaný výkon 2'!L97 -> -22691.62934 | N22: ='instalovaný výkon 2'!M97 -> -22409.17426 | O22: ='instalovaný výkon 2'!N97 -> -22514.18613 | P22: ='instalovaný výkon 2'!O97 -> -22599.4779 | Q22: ='instalovaný výkon 2'!P97 -> -22704.48977 | R22: ='instalovaný výkon 2'!Q97 -> -22770.06144 | S22: ='instalovaný výkon 2'!R97 -> -23168.70555 | T22: ='instalovaný výkon 2'!S97 -> -23144.5649 | U22: ='instalovaný výkon 2'!T97 -> -23347.20537 | V22: ='instalovaný výkon 2'!U97 -> -23411.80516 | W22: ='instalovaný výkon 2'!V97 -> -23397.52457 | Y22: sešit - instalovaný výkon 2
B23: Opravné položky k DHM | C23: mil. Kč | D23: =výsledovka!H121 -> -7685 | E23: =výsledovka!I121 -> -3114 | F23: =výsledovka!J121 -> -230 | G23: =výsledovka!K121 -> -1766 | H23: =AVERAGE(D23:G23) -> -3198.75 | I23: =AVERAGE(F23:H23) -> -1731.583333 | J23: -2232.111111 | K23: -2387.481481 | L23: -2117.058642 | M23: -2245.550412 | N23: -2250.030178 | O23: -2204.213077 | P23: -2233.264556 | Q23: -2229.16927 | R23: -2222.215634 | S23: -2228.216487 | T23: -2226.533797 | U23: -2225.655306 | V23: -2226.801863 | W23: -2226.330322 | Y23: průměr (poslední 4 roky)
B24: Spotřeba fosilního paliva a biomasy | C24: mil. Kč | D24: =výsledovka!B47 -> -9637 | E24: =výsledovka!C47 -> -9992 | F24: =výsledovka!D47 -> -7178 | G24: =výsledovka!E47 -> -7236 | H24: ='instalovaný výkon 2'!G98 -> -4724.712419 | I24: ='instalovaný výkon 2'!H98 -> -3990.619413 | J24: ='instalovaný výkon 2'!I98 -> -3295.427862 | K24: ='instalovaný výkon 2'!J98 -> -2924.46713 | L24: ='instalovaný výkon 2'!K98 -> -2762.396907 | M24: ='instalovaný výkon 2'!L98 -> -2506.686111 | N24: ='instalovaný výkon 2'!M98 -> -2218.561271 | O24: ='instalovaný výkon 2'!N98 -> -2126.361322 | P24: ='instalovaný výkon 2'!O98 -> -2152.532662 | Q24: ='instalovaný výkon 2'!P98 -> -2061.533233 | R24: ='instalovaný výkon 2'!Q98 -> -2126.121218 | S24: ='instalovaný výkon 2'!R98 -> -2036.082205 | T24: ='instalovaný výkon 2'!S98 -> -1910.267692 | U24: ='instalovaný výkon 2'!T98 -> -1857.925012 | V24: ='instalovaný výkon 2'!U98 -> -1768.846416 | W24: ='instalovaný výkon 2'!V98 -> -1679.767819 | Y24: sešit - instalovaný výkon 2
B25: Spotřeba plynu | C25: mil. Kč | F25: =výsledovka!D48 -> -1799 | G25: =výsledovka!E48 -> -2712 | H25: ='instalovaný výkon 2'!G99 -> -3508.793944 | I25: ='instalovaný výkon 2'!H99 -> -3605.701942 | J25: ='instalovaný výkon 2'!I99 -> -4291.175622 | K25: ='instalovaný výkon 2'!J99 -> -4804.816541 | L25: ='instalovaný výkon 2'!K99 -> -5589.984268 | M25: ='instalovaný výkon 2'!L99 -> -5660.265618 | N25: ='instalovaný výkon 2'!M99 -> -6245.11657 | O25: ='instalovaný výkon 2'!N99 -> -6266.954313 | P25: ='instalovaný výkon 2'!O99 -> -6562.217798 | Q25: ='instalovaný výkon 2'!P99 -> -6859.380217 | R25: ='instalovaný výkon 2'!Q99 -> -7158.441571 | S25: ='instalovaný výkon 2'!R99 -> -6906.853573 | T25: ='instalovaný výkon 2'!S99 -> -7638.851141 | U25: ='instalovaný výkon 2'!T99 -> -8107.867106 | V25: ='instalovaný výkon 2'!U99 -> -7997.749707 | W25: ='instalovaný výkon 2'!V99 -> -8177.198989 | Y25: sešit - instalovaný výkon 2
B26: Amortizace jaderného paliva | C26: mil. Kč | D26: =výsledovka!B49 -> -3416 | E26: =výsledovka!C49 -> -3158 | F26: =výsledovka!D49 -> -3725 | G26: =výsledovka!E49 -> -4027 | H26: =G26*(1+$Y$26) -> -4067.27 | I26: =H26*(1+$Y$26) -> -4107.9427 | J26: -4149.022127 | K26: -4190.512348 | L26: -4232.417472 | M26: -4274.741646 | N26: -4317.489063 | O26: -4360.663954 | P26: -4404.270593 | Q26: -4448.313299 | R26: -4492.796432 | S26: -4537.724396 | T26: -4583.10164 | U26: -4628.932657 | V26: -4675.221983 | W26: -4721.974203 | Y26: 0.01
B27: Emisní povolenky | C27: mil. Kč | D27: =výsledovka!B50 -> -1711 | E27: =výsledovka!C50 -> -520 | F27: =výsledovka!D50 -> -3337 | G27: =výsledovka!E50 -> -5089 | H27: ='instalovaný výkon 2'!G100 -> -6662.815073 | I27: ='instalovaný výkon 2'!H100 -> -8871.025704 | J27: ='instalovaný výkon 2'!I100 -> -9960.367911 | K27: ='instalovaný výkon 2'!J100 -> -11690.23058 | L27: ='instalovaný výkon 2'!K100 -> -12565.89486 | M27: ='instalovaný výkon 2'!L100 -> -13107.20771 | N27: ='instalovaný výkon 2'!M100 -> -13935.4085 | O27: ='instalovaný výkon 2'!N100 -> -15967.2575 | P27: ='instalovaný výkon 2'!O100 -> -16985.69647 | Q27: ='instalovaný výkon 2'!P100 -> -17664.33723 | R27: ='instalovaný výkon 2'!Q100 -> -18003.22391 | S27: ='instalovaný výkon 2'!R100 -> -18342.0697 | T27: ='instalovaný výkon 2'!S100 -> -17862.18096 | U27: ='instalovaný výkon 2'!T100 -> -18143.35538 | V27: ='instalovaný výkon 2'!U100 -> -18418.82496 | W27: ='instalovaný výkon 2'!V100 -> -18687.75095 | Y27: sešit - instalovaný výkon 2
B28: Materiál | C28: mil. Kč | D28: =výsledovka!B75 -> -4062 | E28: =výsledovka!C75 -> -4362 | F28: =výsledovka!D75 -> -5922 | G28: =výsledovka!E75 -> -8240 | H28: =AVERAGE(D28:G28)*(1+$Y$28) -> -5702.965 | I28: =H28*(1+$Y$28) -> -5759.99465 | J28: -5817.594597 | K28: -5875.770542 | L28: -5934.528248 | M28: -5993.87353 | N28: -6053.812266 | O28: =N28*(1+$Y$28) -> -6114.350388 | P28: -6175.493892 | Q28: -6237.248831 | R28: -6299.621319 | S28: -6362.617533 | T28: -6426.243708 | U28: -6490.506145 | V28: -6555.411206 | W28: -6620.965319 | Y28: 0.01
B29: Ostatní provozní náklady | C29: mil. Kč | D29: =SUM(výsledovka!B80:B82) -> -16949 | E29: =SUM(výsledovka!C80:C82) -> -19713 | F29: =výsledovka!D110+výsledovka!D78 -> -4689 | G29: =výsledovka!E110+výsledovka!E78 -> -7659 | H29: =G29*(1+$Y$29) -> -7735.59 | I29: =H29*(1+$Y$29) -> -7812.9459 | J29: -7891.075359 | K29: -7969.986113 | L29: -8049.685974 | M29: -8130.182833 | N29: -8211.484662 | O29: =N29*(1+$Y$29) -> -8293.599508 | P29: -8376.535503 | Q29: -8460.300859 | R29: -8544.903867 | S29: -8630.352906 | T29: -8716.656435 | U29: -8803.822999 | V29: -8891.861229 | W29: -8980.779841 | Y29: 0.01
B30: Smluvní pokuty a úroky z prodlení | C30: mil. Kč | D30: =výsledovka!B26 -> 735 | E30: =výsledovka!C26 -> 442 | F30: =výsledovka!D26 -> 210 | G30: =výsledovka!E26 -> 334 | H30: =AVERAGE(D30:G30) -> 430.25 | I30: =AVERAGE(E30:H30) -> 354.0625 | J30: 332.078125 | K30: 362.5976562 | L30: 369.7470703 | M30: 354.6213379 | N30: 354.7610474 | O30: 360.431778 | P30: 359.8903084 | Q30: 357.4261179 | R30: 358.1273129 | S30: 358.9688793 | T30: 358.6031546 | U30: 358.2813662 | V30: 358.4951782 | W30: =AVERAGE(S30:V30) -> 358.5871446 | Y30: průměr (poslední 4 roky)
B31: Zisk z prodeje dlouhodobého hmotného majetku | C31: mil. Kč | D31: =výsledovka!B27 -> 184 | E31: =výsledovka!C27 -> 148 | F31: =výsledovka!D27 -> 1243 | G31: =výsledovka!E27 -> 137 | H31: =AVERAGE(D31:G31) -> 428 | I31: =AVERAGE(E31:H31) -> 489 | J31: 574.25 | K31: 407.0625 | L31: 474.578125 | M31: 486.2226562 | N31: 485.5283203 | O31: 463.3479004 | P31: 477.4192505 | Q31: 478.1295319 | R31: 476.1062508 | S31: 473.7507334 | T31: 476.3514416 | U31: 476.0844894 | V31: 475.5732288 | W31: 475.4399733 | Y31: průměr (poslední 4 roky)
A32: Provozní zisky a ztráty | B32: Derivátové obchody s komoditami | C32: mil. Kč | D32: =výsledovka!B44 -> -464 | E32: =výsledovka!C44 -> -341 | F32: =výsledovka!D44 -> 1213 | G32: =výsledovka!E44 -> 575 | H32: =AVERAGE(D32:G32) -> 245.75 | I32: =AVERAGE(E32:H32) -> 423.1875 | J32: 614.234375 | K32: 464.5429688 | L32: 436.9287109 | M32: 484.7233887 | N32: 500.1073608 | O32: 471.5756073 | P32: 473.3337669 | Q32: 482.4350309 | R32: 481.8629415 | S32: 477.3018367 | T32: 478.733394 | U32: 480.0833008 | V32: 479.4953682 | W32: 478.9034749 | Y32: průměr (poslední 4 roky)
B33: EBIT | C33: mil. Kč | D33: =SUM(D5:D32) -> 28961 | E33: 26114 | F33: 25620 | G33: 19759 | H33: 21808.81867 | I33: 21729.78074 | J33: 24037.15454 | K33: 23767.46173 | L33: 25931.69147 | M33: 26122.59883 | N33: 26928.36627 | O33: =SUM(O5:O32) -> 26705.60541 | P33: 28705.42066 | Q33: 30037.54373 | R33: 31768.73229 | S33: 32217.22224 | T33: 34102.39187 | U33: 35209.63703 | V33: 35608.30718 | W33: 36312.20195
B34: Nákladové úroky z dluhů a rezerv | C34: mil. Kč | D34: =výsledovka!B133 -> -4534 | E34: =výsledovka!C133 -> -4256 | F34: =výsledovka!D133 -> -5379 | G34: =výsledovka!E133 -> -6977 | H34: =AVERAGE(D34:G34) -> -5286.5 | I34: =AVERAGE(E34:H34) -> -5474.625 | J34: -5779.28125 | K34: -5879.351562 | L34: -5604.939453 | M34: -5684.549316 | N34: -5737.030396 | O34: -5726.467682 | P34: -5688.246712 | Q34: -5709.073526 | R34: -5715.204579 | S34: -5709.748125 | T34: -5705.568235 | U34: -5709.898616 | V34: -5710.104889 | W34: -5708.829966 | Y34: průměr (poslední 4 roky)
B35: Výnosové úroky | C35: mil. Kč | D35: =výsledovka!B139 -> 388 | E35: =výsledovka!C139 -> 303 | F35: =výsledovka!D139 -> 235 | G35: =výsledovka!E139 -> 315 | H35: =AVERAGE(D35:G35) -> 310.25 | I35: =AVERAGE(E35:H35) -> 290.8125 | J35: 287.765625 | K35: 300.9570312 | L35: 297.4462891 | M35: 294.2453613 | N35: 295.1035767 | O35: 296.9380646 | P35: 295.9333229 | Q35: 295.5550814 | R35: 295.8825114 | S35: 296.0772451 | T35: 295.8620402 | U35: 295.8442195 | V35: 295.916504 | W35: 295.9250022 | Y35: průměr (poslední 4 roky)
B36: Zisky a ztráty z přidružených a společných podniků | C36: mil. Kč | D36: =výsledovka!B145 -> -1655 | E36: =výsledovka!C145 -> -2733 | F36: =výsledovka!D145 -> -2387 | G36: =výsledovka!E145 -> -308 | H36: =AVERAGE(D36:F36) -> -2258.333333 | I36: =AVERAGE(E36:H36) -> -1921.583333 | J36: -1718.729167 | K36: -1551.661458 | L36: -1862.576823 | M36: -1763.637695 | N36: -1724.151286 | O36: -1725.506816 | P36: -1768.968155 | Q36: -1745.565988 | R36: -1741.048061 | S36: -1745.272255 | T36: -1750.213615 | U36: -1745.52498 | V36: -1745.514728 | W36: -1746.631394 | Y36: průměr (poslední 4 roky)
B37: Ostatní finanční náklady | C37: mil. Kč | D37: =výsledovka!B156 -> -1921 | E37: =výsledovka!C156 -> -1603 | F37: =výsledovka!D156 -> -1978 | G37: =výsledovka!E156 -> -1559 | H37: =AVERAGE(D37:G37) -> -1765.25 | I37: =AVERAGE(E37:H37) -> -1726.3125 | J37: -1757.140625 | K37: -1701.925781 | L37: -1737.657227 | M37: -1730.759033 | N37: -1731.870667 | O37: -1725.553177 | P37: -1731.460026 | Q37: -1729.910726 | R37: -1729.698649 | S37: -1729.155644 | T37: -1730.056261 | U37: -1729.70532 | V37: -1729.653968 | W37: -1729.642798 | Y37: průměr (poslední 4 roky)
B38: Ostatní finanční výnosy | C38: mil. Kč | D38: =výsledovka!B165 -> 5656 | E38: =výsledovka!C165 -> 1503 | F38: =výsledovka!D165 -> 6642 | G38: =výsledovka!E165 -> 2287 | H38: =AVERAGE(D38:G38) -> 4022 | I38: =AVERAGE(E38:H38) -> 3613.5 | J38: 4141.125 | K38: 3515.90625 | L38: 3823.132812 | M38: 3773.416016 | N38: 3813.39502 | O38: 3731.462524 | P38: 3785.351593 | Q38: 3775.906288 | R38: 3776.528856 | S38: 3767.312315 | T38: 3776.274763 | U38: 3774.005556 | V38: 3773.530373 | W38: 3772.780752 | Y38: průměr (poslední 4 roky)
B39: EBT | C39: mil. Kč | D39: =SUM(D33:D38) -> 26895 | E39: 19328 | F39: 22753 | G39: 13517 | H39: =SUM(H33:H38) -> 16830.98533 | I39: 16511.57241 | J39: 19210.89413 | K39: 18451.38621 | L39: 20847.09707 | M39: 21011.31417 | N39: 21843.81252 | O39: 21556.47833 | P39: 23598.03068 | Q39: 24924.45486 | R39: 26655.19236 | S39: 27096.43578 | T39: 28988.69056 | U39: 30094.35789 | V39: =SUM(V33:V38) -> 30492.48047 | W39: =SUM(W33:W38) -> 31195.80355
B40: Daň | C40: mil. Kč | D40: =výsledovka!B185 -> -6348.05 | E40: =výsledovka!C185 -> -4753.32 | F40: =výsledovka!D185 -> -3794.07 | G40: =výsledovka!E185 -> -3017.23 | H40: =-H39*0.19 -> -3197.887213 | I40: -3137.198757 | J40: -3650.069884 | K40: -3505.763381 | L40: -3960.948443 | M40: -3992.149692 | N40: -4150.324379 | O40: -4095.730883 | P40: -4483.62583 | Q40: -4735.646424 | R40: -5064.486549 | S40: -5148.322798 | T40: -5507.851207 | U40: -5717.928 | V40: =-V39*0.19 -> -5793.571289 | W40: =-W39*0.19 -> -5927.202674 | Y40: 19 % z EBT
B41: EAT | C41: mil. Kč | D41: =D40+D39 -> 20546.95 | E41: 14574.68 | F41: 18958.93 | G41: 10499.77 | H41: =H40+H39 -> 13633.09812 | I41: 13374.37365 | J41: 15560.82424 | K41: 14945.62283 | L41: 16886.14862 | M41: 17019.16448 | N41: 17693.48814 | O41: 17460.74745 | P41: 19114.40485 | Q41: 20188.80844 | R41: 21590.70582 | S41: 21948.11298 | T41: 23480.83936 | U41: 24376.42989 | V41: =V40+V39 -> 24698.90918 | W41: =W40+W39 -> 25268.60087
B42: Podíly akcionářů mateřského podniku | C42: mil. Kč | D42: 20739 | E42: 14281 | F42: 18765 | G42: 10327 | H42: =H41-H43 -> 13460.32812 | I42: 13201.60365 | J42: 15388.05424 | K42: 14772.85283 | L42: 16713.37862 | M42: 16846.39448 | N42: 17520.71814 | O42: 17287.97745 | P42: 18941.63485 | Q42: 20016.03844 | R42: 21417.93582 | S42: 21775.34298 | T42: 23308.06936 | U42: 24203.65989 | V42: =V41-V43 -> 24526.13918 | W42: =W41-W43 -> 25095.83087 | Y42: EAT-173
B43: Nekontrolní podíly | C43: mil. Kč | D43: =D41-D42 -> -192.05 | E43: =E41-E42 -> 293.68 | F43: =F41-F42 -> 193.93 | G43: =G41-G42 -> 172.77 | H43: =$G$43 -> 172.77 | I43: =$G$43 -> 172.77 | J43: 172.77 | K43: 172.77 | L43: 172.77 | M43: 172.77 | N43: 172.77 | O43: 172.77 | P43: 172.77 | Q43: 172.77 | R43: 172.77 | S43: 172.77 | T43: 172.77 | U43: 172.77 | V43: 172.77 | W43: 172.77 | Y43: dle roku 2018
B45: Predikce důležitých položek výkazu CF | C45: Rok | D45: 2015 | E45: 2016 | F45: 2017 | G45: 2018 | H45: 2019 | I45: 2020 | J45: 2021 | K45: 2022 | L45: 2023 | M45: 2024 | N45: 2025 | O45: 2026 | P45: 2027 | Q45: 2028 | R45: 2029 | S45: 2030 | T45: 2031 | U45: 2032 | V45: 2033 | W45: 2034
B46: Opravné položky celkem | C46: mil. Kč | D46: =-('účetní výkazy'!T13+'účetní výkazy'!T14) -> -7684 | E46: =-('účetní výkazy'!U13+'účetní výkazy'!U14) -> -2750 | F46: =-('účetní výkazy'!V13+'účetní výkazy'!V14) -> -2585 | G46: =-('účetní výkazy'!W13+'účetní výkazy'!W14) -> 251 | H46: =AVERAGE(D46:G46)*(1+$Y$46) -> -3223.92 | I46: =AVERAGE(E46:H46)*(1+$Y$46) -> -2097.7498 | J46: -1933.056624 | K46: -1768.440922 | L46: -2278.349755 | M46: -2039.593268 | N46: -2024.908744 | O46: -2048.101404 | P46: -2118.715676 | Q46: -2078.408071 | R46: -2088.208808 | S46: -2104.192075 | T46: -2118.354969 | U46: -2118.26389 | V46: -2128.327485 | W46: -2138.457451 | Y46: 0.01
B47: Finanční investice-Pořízení dceřiných, přidružených a společných podniků, bez nakoupených peněžních prostředků | C47: mil. Kč | D47: 0 | E47: ='účetní výkazy'!U30 -> -368 | F47: ='účetní výkazy'!V30 -> -5070 | G47: ='účetní výkazy'!W30 -> -2214 | H47: =G47*(1+$Y47) -> -2236.14 | I47: =H47*(1+$Y47) -> -2258.5014 | J47: -2281.086414 | K47: -2303.897278 | L47: -2326.936251 | M47: -2350.205613 | N47: -2373.70767 | O47: -2397.444746 | P47: -2421.419194 | Q47: -2445.633386 | R47: -2470.08972 | S47: -2494.790617 | T47: =S47*(1+$Y47) -> -2519.738523 | U47: -2544.935908 | V47: -2570.385267 | W47: -2596.08912 | Y47: 0.01
B48: Prodej dceřiných a společných podniků | C48: mil. Kč | D48: ='účetní výkazy'!T31 -> 310 | E48: ='účetní výkazy'!U31 -> 900 | F48: ='účetní výkazy'!V31 -> 2037 | G48: ='účetní výkazy'!W31 -> 155 | H48: =AVERAGE(D48,G48,E48)*(1+$Y48) -> 459.55 | I48: =H48*(1+$Y48)+8200 -> 8664.1455 | J48: =H48*(1+$Y48)+30000+25000 -> 55464.1455 | K48: =H48*(1+$Y48) -> 464.1455 | L48: =K48*(1+$Y48) -> 468.786955 | M48: =L48*(1+$Y48) -> 473.4748246 | N48: =M48*(1+$Y48) -> 478.2095728 | O48: =M48*(1+$Y48) -> 478.2095728 | P48: =O48*(1+$Y48) -> 482.9916685 | Q48: =P48*(1+$Y48) -> 487.8215852 | R48: =P48*(1+$Y48) -> 487.8215852 | S48: =Q48*(1+$Y48) -> 492.6998011 | T48: 497.6267991 | U48: 502.6030671 | V48: 507.6290977 | W48: 512.7053887 | Y48: 0.01
B49: CAPEX | C49: mil. Kč | D49: 31494 | E49: 30165 | F49: 29135 | G49: 26386 | H49: 35400 | I49: 34400 | J49: 35200 | K49: 28800 | L49: 30400 | M49: =K49*(1+$Z49) -> 29088 | N49: =M49*(1+$Z49) -> 29378.88 | O49: =N49*(1+$Z49) -> 29672.6688 | P49: =O49*(1+$Z49) -> 29969.39549 | Q49: 30269.08944 | R49: 30571.78034 | S49: 30877.49814 | T49: 31186.27312 | U49: 31498.13585 | V49: =U49*(1+$Z49) -> 31813.11721 | W49: 32131.24838 | Y49: z výroční zprávy 2019-2023 | Z49: 0.01
B50: Nabytí dlouhodobého finančního majetku | C50: mil. Kč | D50: 609 | E50: 5340 | F50: 407 | G50: 316 | H50: =AVERAGE(D50:G50) -> 1668 | I50: =AVERAGE(E50:H50) -> 1932.75 | J50: =AVERAGE(F50:I50) -> 1080.9375 | K50: =AVERAGE(G50:J50) -> 1249.421875 | L50: =AVERAGE(H50:K50) -> 1482.777344 | M50: =AVERAGE(I50:L50) -> 1436.47168 | N50: =AVERAGE(J50:M50) -> 1312.4021 | O50: =AVERAGE(K50:N50) -> 1370.26825 | P50: =AVERAGE(L50:O50) -> 1400.479843 | Q50: =AVERAGE(M50:P50) -> 1379.905468 | R50: =AVERAGE(N50:Q50) -> 1365.763915 | S50: =AVERAGE(O50:R50) -> 1379.104369 | T50: =AVERAGE(P50:S50) -> 1381.313399 | U50: =AVERAGE(Q50:T50) -> 1376.521788 | V50: =AVERAGE(R50:U50) -> 1375.675868 | W50: =AVERAGE(S50:V50) -> 1378.153856 | Y50: průměr (poslední 4 roky)
B51: Změna stavu závazků z pořízení stálých aktiv | C51: mil. Kč | D51: -194 | E51: 48 | F51: 1146 | G51: -684 | H51: 79 | I51: 147.25 | J51: 172.0625 | K51: -71.421875 | L51: 81.72265625 | M51: 82.40332031 | N51: 66.19165039 | O51: 39.72393799 | P51: 67.51039124 | Q51: 63.95732498 | R51: 59.34582615 | S51: 57.63437009 | T51: 62.11197811 | U51: 60.76237483 | V51: 59.9636373 | W51: 60.11809008 | Y51: průměr (poslední 4 roky)
B52: Nabytí stálých aktiv, vč. kapitalizovaných úroků (zahrnuje CAPEX) | C52: mil. Kč | D52: =-SUM(D49:D51) -> -31909 | E52: -35553 | F52: -30688 | G52: -26018 | H52: -37147 | I52: -36480 | J52: -36453 | K52: -29978 | L52: -31964.5 | M52: -30606.875 | N52: =-SUM(N49:N51) -> -30757.47375 | O52: -31082.66099 | P52: -31437.38572 | Q52: -31712.95224 | R52: -31996.89008 | S52: -32314.23688 | T52: -32629.6985 | U52: -32935.42002 | V52: -33248.75672 | W52: -33569.52033
B53: Příjmy z prodeje stálých aktiv | C53: mil. Kč | D53: ='účetní výkazy'!T33 -> 435 | E53: ='účetní výkazy'!U33 -> 1078 | F53: ='účetní výkazy'!V33 -> 13913 | G53: ='účetní výkazy'!W33 -> 3118 | H53: =G53*(1+$Y53) -> 3149.18 | I53: 3180.6718 | J53: 3212.478518 | K53: 3244.603303 | L53: 3277.049336 | M53: 3309.81983 | N53: 3342.918028 | O53: 3376.347208 | P53: 3410.11068 | Q53: 3444.211787 | R53: 3478.653905 | S53: 3513.440444 | T53: =S53*(1+$Y53) -> 3548.574848 | U53: =T53*(1+$Y53) -> 3584.060597 | V53: =U53*(1+$Y53) -> 3619.901203 | W53: =V53*(1+$Y53) -> 3656.100215 | Y53: 0.01
B54: Poskytnuté půjčky | C54: mil. Kč | D54: ='účetní výkazy'!T34 -> -29 | E54: ='účetní výkazy'!U34 -> -5 | F54: ='účetní výkazy'!V34 -> -21 | G54: ='účetní výkazy'!W34 -> -227 | H54: =AVERAGE(D54:F54) -> -18.33333333 | I54: =H54*(1+$Y$54) -> -18.51666667 | J54: =I54*(1+$Y$54) -> -18.70183333 | K54: -18.88885167 | L54: -19.07774018 | M54: -19.26851759 | N54: -19.46120276 | O54: -19.65581479 | P54: -19.85237294 | Q54: -20.05089667 | R54: -20.25140563 | S54: -20.45391969 | T54: -20.65845889 | U54: -20.86504347 | V54: -21.07369391 | W54: -21.28443085 | Y54: 0.01
B55: Splátky poskytnutých půjček | C55: mil. Kč | D55: ='účetní výkazy'!T35 -> 123 | E55: ='účetní výkazy'!U35 -> 228 | F55: ='účetní výkazy'!V35 -> 371 | G55: ='účetní výkazy'!W35 -> 22 | H55: =AVERAGE(D55:G55) -> 186 | I55: =H55*(1+$Y$55) -> 187.86 | J55: =I55*(1+$Y$54) -> 189.7386 | K55: 191.635986 | L55: 193.5523459 | M55: 195.4878693 | N55: 197.442748 | O55: 199.4171755 | P55: 201.4113472 | Q55: 203.4254607 | R55: 205.4597153 | S55: 207.5143125 | T55: 209.5894556 | U55: 211.6853502 | V55: 213.8022037 | W55: 215.9402257 | Y55: 0.01
B56: Změna stavu finančních aktiv s omezeným disponováním | C56: mil. Kč | D56: ='účetní výkazy'!T36 -> -500 | E56: ='účetní výkazy'!U36 -> -851 | F56: ='účetní výkazy'!V36 -> -754 | G56: ='účetní výkazy'!W36 -> -737 | H56: =AVERAGE(D56:G56) -> -710.5 | I56: =AVERAGE(E56:H56) -> -763.125 | J56: -741.15625 | K56: -737.9453125 | L56: -738.1816406 | M56: -745.1020508 | N56: -740.5963135 | O56: -740.4563293 | P56: -741.0840836 | Q56: -741.8096943 | R56: -740.9866052 | S56: -741.0841781 | T56: =AVERAGE(P56:S56) -> -741.2411403 | U56: -741.2804045 | V56: -741.148082 | W56: -741.1884512 | Y56: průměr (poslední 4 roky)
B57: Investiční činnost výstavby jaderných zdrojů | C57: mil. Kč | D57: 0 | E57: 0 | F57: 0 | G57: 0 | H57: =-'finanční část'!H38 -> -300 | I57: =-'finanční část'!I38 -> -700 | J57: =-'finanční část'!J38 -> -1000 | K57: =-'finanční část'!K38 -> -4000 | L57: =-'finanční část'!L38 -> -3000 | M57: =-'finanční část'!M38 -> -3000 | N57: =-'finanční část'!N38 -> -4000 | O57: =-'finanční část'!O38 -> -3000 | P57: =-'finanční část'!P38 -> -3000 | Q57: =-'finanční část'!Q38 -> -12000 | R57: =-'finanční část'!R38 -> -13000 | S57: =-'finanční část'!S38 -> -23000 | T57: =-'finanční část'!T38 -> -23000 | U57: =-'finanční část'!U38 -> -20000 | V57: =-'finanční část'!V38 -> -15000 | W57: =-'finanční část'!W38 -> -12000
B58: Investice | C58: mil. Kč | D58: =D48+D47+D53+D54+D55+D56+D52 -> -31570 | E58: =E48+E47+E53+E54+E55+E56+E52 -> -34571 | F58: =F48+F47+F53+F54+F55+F56+F52 -> -20212 | G58: =G48+G47+G53+G54+G55+G56+G52 -> -25901 | H58: =H48+H47+H53+H54+H55+H56+H52+H57 -> -36617.24333 | I58: =I48+I47+I53+I54+I55+I56+I52+I57 -> -28187.46577 | J58: 18372.41812 | K58: -33138.34665 | L58: -34109.30699 | M58: -32742.66866 | N58: =N48+N47+N53+N54+N55+N56+N52+N57 -> -33872.66859 | O58: =O48+O47+O53+O54+O55+O56+O52+O57 -> -33186.24392 | P58: -33525.22768 | Q58: =Q48+Q47+Q53+Q54+Q55+Q56+Q52+Q57 -> -42784.98738 | R58: -44056.2826 | S58: -54356.91104 | T58: -54655.54552 | U58: -51944.15236 | V58: -47240.03126 | W58: =W48+W47+W53+W54+W55+W56+W52+W57 -> -44543.3365
C60: Rok | D60: 2019 | E60: 2020 | F60: 2021 | G60: 2022 | H60: 2023 | I60: 2024 | J60: 2025 | K60: 2026 | L60: 2027 | M60: 2028 | N60: 2029 | O60: 2030 | P60: 2031 | Q60: 2032 | R60: 2033 | S60: 2034
B61: nové emise dluhových instrumentů | C61: mil. Kč | D61: ='finanční část'!H40 -> 3150 | E61: ='finanční část'!I40 -> 15350 | F61: ='finanční část'!J40 -> 21500 | G61: ='finanční část'!K40 -> 19000 | H61: ='finanční část'!L40 -> 12500 | I61: ='finanční část'!M40 -> 10500 | J61: ='finanční část'!N40 -> 5000 | K61: ='finanční část'!O40 -> 19500 | L61: ='finanční část'!P40 -> 19500 | M61: ='finanční část'!Q40 -> 30000 | N61: ='finanční část'!R40 -> 29500 | O61: ='finanční část'!S40 -> 33500 | P61: ='finanční část'!T40 -> 31500 | Q61: ='finanční část'!U40 -> 27000 | R61: ='finanční část'!V40 -> 19500 | S61: ='finanční část'!W40 -> 13000 | Y61: sešit-finanční část
B62: Splátky včetně obligací | C62: mil. Kč | D62: =-'finanční část'!H41 -> -6743 | E62: =-'finanční část'!I41 -> -22675 | F62: =-'finanční část'!J41 -> -26058 | G62: =-'finanční část'!K41 -> -24286 | H62: =-'finanční část'!L41 -> -9910 | I62: =-'finanční část'!M41 -> -4656.4 | J62: =-'finanční část'!N41 -> -23931.04 | K62: =-'finanční část'!O41 -> -22424.244 | L62: =-'finanční část'!P41 -> -15866.6684 | M62: =-'finanční část'!Q41 -> -24772.33524 | N62: =-'finanční část'!R41 -> -8888.668764 | O62: =-'finanční část'!S41 -> -12494.53564 | P62: =-'finanční část'!T41 -> -16125.2892 | Q62: =-'finanční část'!U41 -> -16897.81812 | R62: =-'finanční část'!V41 -> -12621.59994 | S62: =-'finanční část'!W41 -> -14483.75993 | Y62: sešit-finanční část
B64: mil. Kč | C64: 2014 | D64: 2015 | E64: 2016 | F64: 2017 | G64: 2018 | H64: 2019 | I64: 2020 | J64: 2021 | K64: 2022 | L64: 2023 | M64: 2024 | N64: 2025 | O64: 2026 | P64: 2027 | Q64: 2028 | R64: 2029 | S64: 2030 | T64: 2031 | U64: 2032 | V64: 2033 | W64: 2034
B65: Oběžná aktiva | C65: ='Prognózy výkazů'!D97 -> 130354 | D65: ='Prognózy výkazů'!E97 -> 109631 | E65: ='Prognózy výkazů'!F97 -> 141587 | F65: ='Prognózy výkazů'!G97 -> 135953 | G65: ='Prognózy výkazů'!H97 -> 226996 | H65: ='Prognózy výkazů'!I97 -> 160912.9083 | I65: ='Prognózy výkazů'!J97 -> 148570.048 | J65: ='Prognózy výkazů'!K97 -> 150753.3468 | K65: ='Prognózy výkazů'!L97 -> 155713.1645 | L65: ='Prognózy výkazů'!M97 -> 154940.5557 | M65: ='Prognózy výkazů'!N97 -> 156497.3941 | N65: ='Prognózy výkazů'!O97 -> 154235.4009 | O65: ='Prognózy výkazů'!P97 -> 153147.0682 | P65: ='Prognózy výkazů'!Q97 -> 153934.1411 | Q65: ='Prognózy výkazů'!R97 -> 154488.1691 | R65: ='Prognózy výkazů'!S97 -> 154307.5662 | S65: ='Prognózy výkazů'!T97 -> 154225.3062 | T65: ='Prognózy výkazů'!U97 -> 153869.5462 | U65: ='Prognózy výkazů'!V97 -> 153831.1824 | V65: ='Prognózy výkazů'!W97 -> 153967.5117 | W65: ='Prognózy výkazů'!X97 -> 153995.0891 | Y65: Prognózy výkazů
B66: Pohledávka z titulu daně z příjmů | C66: ='Prognózy výkazů'!D91 -> 1618 | D66: ='Prognózy výkazů'!E91 -> 436 | E66: ='Prognózy výkazů'!F91 -> 1181 | F66: ='Prognózy výkazů'!G91 -> 1171 | G66: ='Prognózy výkazů'!H91 -> 352 | H66: ='Prognózy výkazů'!I91 -> 970.5 | I66: ='Prognózy výkazů'!J91 -> 954.75 | J66: ='Prognózy výkazů'!K91 -> 844.2083333 | K66: ='Prognózy výkazů'!L91 -> 912.2430556 | L66: ='Prognózy výkazů'!M91 -> 867.4502315 | M66: ='Prognózy výkazů'!N91 -> 816.8586034 | N66: ='Prognózy výkazů'!O91 -> 894.3350373 | O66: ='Prognózy výkazů'!P91 -> 881.6408768 | P66: ='Prognózy výkazů'!Q91 -> 869.456023 | Q66: ='Prognózy výkazů'!R91 -> 873.6639713 | R66: ='Prognózy výkazů'!S91 -> 867.2341239 | S66: ='Prognózy výkazů'!T91 -> 867.1981059 | T66: ='Prognózy výkazů'!U91 -> 875.588023 | U66: ='Prognózy výkazů'!V91 -> 872.4635207 | V66: ='Prognózy výkazů'!W91 -> 870.9339613 | W66: ='Prognózy výkazů'!X91 -> 871.1802843 | Y66: Prognózy výkazů
B67: Δ Oběžná aktiva | C67: x | D67: =(D65-C65)-(D66-C66) -> -19541 | E67: =(E65-D65)-(E66-D66) -> 31211 | F67: =(F65-E65)-(F66-E66) -> -5624 | G67: =(G65-F65)-(G66-F66) -> 91862 | H67: =(H65-G65)+(H66-G66) -> -65464.59167 | I67: =(I65-H65)+(I66-H66) -> -12358.61029 | J67: 2072.757049 | K67: 5027.852463 | L67: -817.4015987 | M67: 1506.246722 | N67: -2184.516769 | O67: -1101.026866 | P67: 774.888123 | Q67: 558.2359399 | R67: -187.0327757 | S67: -82.29601623 | T67: =(T65-S65)+(T66-S66) -> -347.3700796 | U67: =(U65-T65)+(U66-T66) -> -41.48827783 | V67: =(V65-U65)+(V66-U66) -> 134.7996602 | W67: =(W65-V65)+(W66-V66) -> 27.82377202
B69: Krátkodobé závazky | C69: ='Prognózy výkazů'!D116 -> 84443 | D69: ='Prognózy výkazů'!E116 -> 93699 | E69: ='Prognózy výkazů'!F116 -> 129440 | F69: ='Prognózy výkazů'!G116 -> 127981 | G69: ='Prognózy výkazů'!H116 -> 218140 | H69: ='Prognózy výkazů'!I116 -> 166099.3333 | I69: ='Prognózy výkazů'!J116 -> 162797.8889 | J69: ='Prognózy výkazů'!K116 -> 166450.8704 | K69: ='Prognózy výkazů'!L116 -> 172741.8488 | L69: ='Prognózy výkazů'!M116 -> 163392.1902 | M69: ='Prognózy výkazů'!N116 -> 163524.2553 | N69: ='Prognózy výkazů'!O116 -> 174044.0378 | O69: ='Prognózy výkazů'!P116 -> 170996.6859 | P69: ='Prognózy výkazů'!Q116 -> 165847.3691 | Q69: ='Prognózy výkazů'!R116 -> 176351.0077 | R69: ='Prognózy výkazů'!S116 -> 160987.8118 | S69: ='Prognózy výkazů'!T116 -> 164363.1708 | T69: ='Prognózy výkazů'!U116 -> 166827.3877 | U69: ='Prognózy výkazů'!V116 -> 167698.1001 | V69: ='Prognózy výkazů'!W116 -> 163793.1886 | W69: ='Prognózy výkazů'!X116 -> 165853.8299 | Y69: Prognózy výkazů
B70: Závazek z titulu daně z příjmů | C70: ='Prognózy výkazů'!D111 -> 830 | D70: ='Prognózy výkazů'!E111 -> 1606 | E70: ='Prognózy výkazů'!F111 -> 392 | F70: ='Prognózy výkazů'!G111 -> 176 | G70: ='Prognózy výkazů'!H111 -> 253 | H70: ='Prognózy výkazů'!I111 -> 829.3333333 | I70: ='Prognózy výkazů'!J111 -> 681.0555556 | J70: ='Prognózy výkazů'!K111 -> 656.2314815 | K70: ='Prognózy výkazů'!L111 -> 497.9367284 | L70: ='Prognózy výkazů'!M111 -> 515.5928498 | M70: ='Prognózy výkazů'!N111 -> 572.1916581 | N70: ='Prognózy výkazů'!O111 -> 625.3902678 | O70: ='Prognózy výkazů'!P111 -> 591.3997568 | P70: ='Prognózy výkazů'!Q111 -> 576.4571237 | Q70: ='Prognózy výkazů'!R111 -> 563.1613974 | R70: ='Prognózy výkazů'!S111 -> 574.0321756 | S70: ='Prognózy výkazů'!T111 -> 583.7720633 | T70: ='Prognózy výkazů'!U111 -> 585.7021308 | U70: ='Prognózy výkazů'!V111 -> 579.0874413 | V70: ='Prognózy výkazů'!W111 -> 577.0353887 | W70: ='Prognózy výkazů'!X111 -> 577.1317662 | Y70: Prognózy výkazů
B71: Δ Krátkodobé závazky | C71: x | D71: =(D69-C69)-(D70-C70) -> 8480 | E71: =(E69-D69)-(E70-D70) -> 36955 | F71: =(F69-E69)-(F70-E70) -> -1243 | G71: =(G69-F69)-(G70-F70) -> 90082 | H71: =H69-G69+H70-G70 -> -51464.33333 | I71: =I69-H69+I70-H70 -> -3449.722222 | J71: =J69-I69+J70-I70 -> 3628.157407 | K71: 6132.683642 | L71: =L69-K69+L70-K70 -> -9332.002418 | M71: 188.663846 | N71: 10572.98115 | O71: -3081.342432 | P71: -5164.2594 | Q71: 10490.34284 | R71: -15352.32508 | S71: 3385.098903 | T71: =T69-S69+T70-S70 -> 2466.146954 | U71: =U69-T69+U70-T70 -> 864.0976828 | V71: =V69-U69+V70-U70 -> -3906.963559 | W71: =W69-V69+W70-V70 -> 2060.737693
B73: Δ NWC | C73: x | D73: =D67-D71 -> -28021 | E73: =E67-E71 -> -5744 | F73: =F67-F71 -> -4381 | G73: =G67-G71 -> 1780 | H73: =H67-H71 -> -14000.25833 | I73: =I67-I71 -> -8908.888069 | J73: -1555.400359 | K73: =K67-K71 -> -1104.831179 | L73: =L67-L71 -> 8514.600819 | M73: 1317.582876 | N73: =N67-N71 -> -12757.49792 | O73: 1980.315566 | P73: 5939.147523 | Q73: -5492 | R73: 6946 | S73: -3467.394919 | T73: 809 | U73: =U67-U71 -> -905.5859607 | V73: =V67-V71 -> 4041.76322 | W73: =W67-W71 -> -2032.913921
C75: Rok | D75: 2015 | E75: 2016 | F75: 2017 | G75: 2018 | H75: 2019 | I75: 2020 | J75: 2021 | K75: 2022 | L75: 2023 | M75: 2024 | N75: 2025 | O75: 2026 | P75: 2027 | Q75: 2028 | R75: 2029 | S75: 2030 | T75: 2031 | U75: 2032 | V75: 2033 | W75: 2034
B76: Dlouhodobý úročený dluh | C76: mil Kč | D76: ='Prognózy výkazů'!E105 -> 145575 | E76: ='Prognózy výkazů'!F105 -> 142265 | F76: ='Prognózy výkazů'!G105 -> 132475 | G76: ='Prognózy výkazů'!H105 -> 142440 | H76: ='Prognózy výkazů'!I105 -> 147722 | I76: ='Prognózy výkazů'!J105 -> 140397 | J76: ='Prognózy výkazů'!K105 -> 135839 | K76: ='Prognózy výkazů'!L105 -> 130553 | L76: ='Prognózy výkazů'!M105 -> 133143 | M76: ='Prognózy výkazů'!N105 -> 138986.6 | N76: ='Prognózy výkazů'!O105 -> 123577.6 | O76: ='Prognózy výkazů'!P105 -> 125577.6 | P76: ='Prognózy výkazů'!Q105 -> 134077.6 | Q76: ='Prognózy výkazů'!R105 -> 140158.6 | R76: ='Prognózy výkazů'!S105 -> 166158.6 | S76: ='Prognózy výkazů'!T105 -> 188641.6 | T76: ='Prognózy výkazů'!U105 -> 211141.6 | U76: ='Prognózy výkazů'!V105 -> 230581.6 | V76: ='Prognózy výkazů'!W105 -> 248581.6 | W76: ='Prognózy výkazů'!X105 -> 258081.6
B77: ='Prognózy výkazů'!B108 -> Krátkodobé úvěry | C77: mil Kč | D77: ='Prognózy výkazů'!E108 -> 223 | E77: ='Prognózy výkazů'!F108 -> 8343 | F77: ='Prognózy výkazů'!G108 -> 11073 | G77: ='Prognózy výkazů'!H108 -> 11783 | H77: ='Prognózy výkazů'!I108+'Prognózy výkazů'!I109 -> 13700.66667 | I77: ='Prognózy výkazů'!J108+'Prognózy výkazů'!J109 -> 30339.61111 | J77: ='Prognózy výkazů'!K108+'Prognózy výkazů'!K109 -> 33732.0463 | K77: ='Prognózy výkazů'!L108+'Prognózy výkazů'!L109 -> 33201.88735 | L77: ='Prognózy výkazů'!M108+'Prognózy výkazů'!M109 -> 18921.36857 | M77: ='Prognózy výkazů'!N108+'Prognózy výkazů'!N109 -> 13324.16333 | N77: ='Prognózy výkazů'!O108+'Prognózy výkazů'!O109 -> 32079.59722 | O77: ='Prognózy výkazů'!P108+'Prognózy výkazů'!P109 -> 30771.28298 | P77: ='Prognózy výkazů'!Q108+'Prognózy výkazů'!Q109 -> 24327.44536 | Q77: ='Prognózy výkazů'!R108+'Prognózy výkazů'!R109 -> 33364.23397 | R77: ='Prognózy výkazů'!S108+'Prognózy výkazů'!S109 -> 17426.5694 | S77: ='Prognózy výkazů'!T108+'Prognózy výkazů'!T109 -> 20953.52495 | T77: ='Prognózy výkazů'!U108+'Prognózy výkazů'!U109 -> 24549.48284 | U77: ='Prognózy výkazů'!V108+'Prognózy výkazů'!V109 -> 25367.95117 | V77: ='Prognózy výkazů'!W108+'Prognózy výkazů'!W109 -> 21112.24866 | W77: ='Prognózy výkazů'!X108+'Prognózy výkazů'!X109 -> 22979.38728
B78: ='Prognózy výkazů'!B109 -> Krátkodobá část dlouhodobých dluhů | C78: mil Kč | D78: ='Prognózy výkazů'!E109 -> 11696 | E78: ='Prognózy výkazů'!F109 -> 17208 | F78: ='Prognózy výkazů'!G109 -> 10759 | G78: ='Prognózy výkazů'!H109 -> 6743
B80: Vlastní kapitál | C80: mil Kč | D80: ='účetní výkazy'!D34 -> 267893 | E80: ='účetní výkazy'!E34 -> 256812 | F80: ='účetní výkazy'!F34 -> 250018 | G80: ='účetní výkazy'!G34 -> 234721 | H80: ='Prognózy výkazů'!I104 -> 236996.09 | I80: ='Prognózy výkazů'!J104 -> 239859.4951 | J80: ='Prognózy výkazů'!K104 -> 242778.791 | K80: ='Prognózy výkazů'!L104 -> 245715.8009 | L80: ='Prognózy výkazů'!M104 -> 248571.4054 | M80: ='Prognózy výkazů'!N104 -> 251573.7422 | N80: ='Prognózy výkazů'!O104 -> 254612.4395 | O80: ='Prognózy výkazů'!P104 -> 257682.6393 | P80: ='Prognózy výkazů'!Q104 -> 260787.8132 | Q80: ='Prognózy výkazů'!R104 -> 263957.0815 | R80: ='Prognózy výkazů'!S104 -> 267169.8102 | S80: ='Prognózy výkazů'!T104 -> 270427.8001 | T80: ='Prognózy výkazů'!U104 -> 273734.5173 | U80: ='Prognózy výkazů'!V104 -> 277093.4267 | V80: ='Prognózy výkazů'!W104 -> 280501.5798 | W80: ='Prognózy výkazů'!X104 -> 283960.4501
B81: D+E | C81: mil Kč | D81: =D76+D80+D78 -> 425164 | E81: 416285 | F81: 393252 | G81: 383904 | H81: 384718.09 | I81: 380256.4951 | J81: 378617.791 | K81: 376268.8009 | L81: 381714.4054 | M81: 390560.3422 | N81: 378190.0395 | O81: 383260.2393 | P81: 394865.4132 | Q81: 404115.6815 | R81: 433328.4102 | S81: 459069.4001 | T81: 484876.1173 | U81: 507675.0267 | V81: 529083.1798 | W81: 542042.0501
B83: D | C83: % | D83: =(D76+D77+D78)/D81 -> 0.3704311748 | E83: 0.4031276649 | F83: 0.3923870699 | G83: 0.4192871134 | H83: 0.4195868894 | I83: 0.4490037996 | J83: 0.4478686695 | K83: 0.4352071896 | L83: 0.3983720981 | M83: 0.3899801052 | N83: 0.4115846028 | O83: 0.4079444382 | P83: 0.4011621176 | Q83: 0.4293890138 | R83: 0.4236628965 | S83: 0.4565652272 | T83: 0.4860851554 | U83: 0.5041602161 | V83: 0.5097380883 | W83: 0.5185224785
B84: E | C84: % | D84: =1-D83 -> 0.6295688252 | E84: 0.5968723351 | F84: 0.6076129301 | G84: 0.5807128866 | H84: 0.5804131106 | I84: 0.5509962004 | J84: 0.5521313305 | K84: 0.5647928104 | L84: 0.6016279019 | M84: 0.6100198948 | N84: 0.5884153972 | O84: 0.5920555618 | P84: 0.5988378824 | Q84: 0.5706109862 | R84: 0.5763371035 | S84: 0.5434347728 | T84: 0.5139148446 | U84: 0.4958397839 | V84: 0.4902619117 | W84: 0.4814775215
B85: D+E | C85: % | D85: =D83+D84 -> 1 | E85: 1 | F85: 1 | G85: 1 | H85: 1 | I85: 1 | J85: 1 | K85: 1 | L85: 1 | M85: 1 | N85: 1 | O85: 1 | P85: 1 | Q85: 1 | R85: 1 | S85: 1 | T85: 1 | U85: 1 | V85: 1 | W85: 1
B88: mil. Kč | C88: 2013 | D88: 2014 | E88: 2015 | F88: 2016 | G88: 2017 | H88: 2018 | I88: 2019 | J88: 2020 | K88: 2021 | L88: 2022 | M88: 2023 | N88: 2024 | O88: 2025 | P88: 2026 | Q88: 2027 | R88: 2028 | S88: 2029 | T88: 2030 | U88: 2031 | V88: 2032 | W88: 2033 | X88: 2034
B89: Peněžní prostředky a peněžní ekvivalenty, netto | C89: ='účetní výkazy'!B18 -> 25003 | D89: ='účetní výkazy'!C18 -> 20095 | E89: ='účetní výkazy'!D18 -> 13482 | F89: ='účetní výkazy'!E18 -> 11226 | G89: ='účetní výkazy'!F18 -> 12623 | H89: ='účetní výkazy'!G18 -> 7278 | I89: =AVERAGE('Prognózy výkazů'!C89:H89) -> 14951.16667 | J89: =I89*(1+$Z89) -> 14652.14333 | K89: 14359.10047 | L89: 14071.91846 | M89: 13790.48009 | N89: 13514.67049 | O89: 13244.37708 | P89: 12979.48954 | Q89: 12719.89974 | R89: 12465.50175 | S89: 12216.19171 | T89: 11971.86788 | U89: 11732.43052 | V89: 11497.78191 | W89: 11267.82627 | X89: =W89*(1+$Z89) -> 11042.46975 | Z89: -0.02
B90: Obchodní pohledávky, netto | C90: ='účetní výkazy'!B19 -> 67485 | D90: ='účetní výkazy'!C19 -> 50864 | E90: ='účetní výkazy'!D19 -> 46003 | F90: ='účetní výkazy'!E19 -> 56331 | G90: ='účetní výkazy'!F19 -> 50559 | H90: ='účetní výkazy'!G19 -> 72234 | I90: =AVERAGE('Prognózy výkazů'!C90:G90) -> 54248.4 | J90: =AVERAGE('Prognózy výkazů'!D90:I90) -> 55039.9 | K90: =AVERAGE('Prognózy výkazů'!E90:J90) -> 55735.88333 | L90: =AVERAGE('Prognózy výkazů'!F90:K90) -> 57358.03056 | M90: =AVERAGE('Prognózy výkazů'!G90:L90) -> 57529.20231 | N90: =AVERAGE('Prognózy výkazů'!H90:M90) -> 58690.9027 | O90: =AVERAGE('Prognózy výkazů'!I90:N90) -> 56433.71982 | P90: =AVERAGE('Prognózy výkazů'!J90:O90) -> 56797.93979 | Q90: =AVERAGE('Prognózy výkazů'!K90:P90) -> 57090.94642 | R90: =AVERAGE('Prognózy výkazů'!L90:Q90) -> 57316.79027 | S90: =AVERAGE('Prognózy výkazů'!M90:R90) -> 57309.91688 | T90: =AVERAGE('Prognózy výkazů'!N90:S90) -> 57273.36931 | U90: =AVERAGE('Prognózy výkazů'!O90:T90) -> 57037.11375 | V90: =AVERAGE('Prognózy výkazů'!P90:U90) -> 57137.6794 | W90: =AVERAGE('Prognózy výkazů'!Q90:V90) -> 57194.30267 | X90: =AVERAGE('Prognózy výkazů'!R90:W90) -> 57211.52871 | Z90: průměr (posledních 6 let)
B91: Pohledávka z titulu daně z příjmů | C91: ='účetní výkazy'!B20 -> 1065 | D91: ='účetní výkazy'!C20 -> 1618 | E91: ='účetní výkazy'!D20 -> 436 | F91: ='účetní výkazy'!E20 -> 1181 | G91: ='účetní výkazy'!F20 -> 1171 | H91: ='účetní výkazy'!G20 -> 352 | I91: =AVERAGE('Prognózy výkazů'!C91:H91) -> 970.5 | J91: =AVERAGE('Prognózy výkazů'!D91:I91) -> 954.75 | K91: =AVERAGE('Prognózy výkazů'!E91:J91) -> 844.2083333 | L91: =AVERAGE('Prognózy výkazů'!F91:K91) -> 912.2430556 | M91: =AVERAGE('Prognózy výkazů'!G91:L91) -> 867.4502315 | N91: =AVERAGE('Prognózy výkazů'!H91:M91) -> 816.8586034 | O91: =AVERAGE('Prognózy výkazů'!I91:N91) -> 894.3350373 | P91: =AVERAGE('Prognózy výkazů'!J91:O91) -> 881.6408768 | Q91: =AVERAGE('Prognózy výkazů'!K91:P91) -> 869.456023 | R91: =AVERAGE('Prognózy výkazů'!L91:Q91) -> 873.6639713 | S91: =AVERAGE('Prognózy výkazů'!M91:R91) -> 867.2341239 | T91: =AVERAGE('Prognózy výkazů'!N91:S91) -> 867.1981059 | U91: =AVERAGE('Prognózy výkazů'!O91:T91) -> 875.588023 | V91: =AVERAGE('Prognózy výkazů'!P91:U91) -> 872.4635207 | W91: =AVERAGE('Prognózy výkazů'!Q91:V91) -> 870.9339613 | X91: =AVERAGE('Prognózy výkazů'!R91:W91) -> 871.1802843 | Z91: průměr (posledních 6 let)
B92: Zásoby materiálu, netto | C92: ='účetní výkazy'!B21 -> 8054 | D92: ='účetní výkazy'!C21 -> 8462 | E92: ='účetní výkazy'!D21 -> 8577 | F92: ='účetní výkazy'!E21 -> 7520 | G92: ='účetní výkazy'!F21 -> 8325 | H92: ='účetní výkazy'!G21 -> 8737 | I92: =AVERAGE('Prognózy výkazů'!C92:H92) -> 8279.166667 | J92: =I92*(1+$Z92) -> 8361.958333 | K92: 8445.577917 | L92: 8530.033696 | M92: 8615.334033 | N92: 8701.487373 | O92: 8788.502247 | P92: 8876.387269 | Q92: 8965.151142 | R92: 9054.802653 | S92: 9145.35068 | T92: 9236.804187 | U92: 9329.172229 | V92: 9422.463951 | W92: 9516.68859 | X92: =W92*(1+$Z92) -> 9611.855476 | Z92: 0.01
B93: Zásoby fosilních paliv | C93: ='účetní výkazy'!B22 -> 2552 | D93: ='účetní výkazy'!C22 -> 1481 | E93: ='účetní výkazy'!D22 -> 1554 | F93: ='účetní výkazy'!E22 -> 996 | G93: ='účetní výkazy'!F22 -> 1021 | H93: ='účetní výkazy'!G22 -> 1066 | I93: =AVERAGE('Prognózy výkazů'!C93:H93) -> 1445 | J93: 1459.45 | K93: 1474.0445 | L93: 1488.784945 | M93: 1503.672794 | N93: 1518.709522 | O93: 1533.896618 | P93: 1549.235584 | Q93: 1564.72794 | R93: 1580.375219 | S93: 1596.178971 | T93: 1612.140761 | U93: 1628.262169 | V93: 1644.54479 | W93: 1660.990238 | X93: =W93*(1+$Z93) -> 1677.600141 | Z93: 0.01
B94: Emisní povolenky | C94: ='účetní výkazy'!B23 -> 8505 | D94: ='účetní výkazy'!C23 -> 5097 | E94: ='účetní výkazy'!D23 -> 3456 | F94: ='účetní výkazy'!E23 -> 3958 | G94: ='účetní výkazy'!F23 -> 9370 | H94: ='účetní výkazy'!G23 -> 16655 | I94: ='Prognózy výkazů'!H94*(1+$Z94) -> 16738.275 | J94: 16821.96637 | K94: 16906.07621 | L94: 16990.60659 | M94: 17075.55962 | N94: 17160.93742 | O94: 17246.74211 | P94: 17332.97582 | Q94: 17419.6407 | R94: 17506.7389 | S94: 17594.27259 | T94: 17682.24396 | U94: 17770.65518 | V94: 17859.50845 | W94: 17948.80599 | X94: =W94*(1+$Z94) -> 18038.55002 | Z94: 0.005
B95: Ostatní krátkodobá finanční aktiva, netto | C95: ='účetní výkazy'!B24 -> 38400 | D95: ='účetní výkazy'!C24 -> 39438 | E95: ='účetní výkazy'!D24 -> 32728 | F95: ='účetní výkazy'!E24 -> 56501 | G95: ='účetní výkazy'!F24 -> 43098 | H95: ='účetní výkazy'!G24 -> 93303 | I95: =AVERAGEIF('Prognózy výkazů'!C95:H95,"<>93303") -> 42033 | J95: =AVERAGEIF('Prognózy výkazů'!D95:I95,"<>93303") -> 42759.6 | K95: =AVERAGEIF('Prognózy výkazů'!E95:J95,"<>93303") -> 43423.92 | L95: =AVERAGEIF('Prognózy výkazů'!F95:K95,"<>93303") -> 45563.104 | M95: =AVERAGEIF('Prognózy výkazů'!G95:L95,"<>93303") -> 43375.5248 | N95: =AVERAGEIF('Prognózy výkazů'!H95:M95,"<>93303") -> 43431.02976 | O95: =AVERAGEIF('Prognózy výkazů'!I95:N95,"<>93303") -> 43431.02976 | P95: =AVERAGEIF('Prognózy výkazů'!J95:O95,"<>93303") -> 43664.03472 | Q95: =AVERAGEIF('Prognózy výkazů'!K95:P95,"<>93303") -> 43814.77384 | R95: =AVERAGEIF('Prognózy výkazů'!L95:Q95,"<>93303") -> 43879.91615 | S95: =AVERAGEIF('Prognózy výkazů'!M95:R95,"<>93303") -> 43599.38484 | T95: =AVERAGEIF('Prognózy výkazů'!N95:S95,"<>93303") -> 43636.69484 | U95: =AVERAGEIF('Prognózy výkazů'!O95:T95,"<>93303") -> 43670.97236 | V95: =AVERAGEIF('Prognózy výkazů'!P95:U95,"<>93303") -> 43710.96279 | W95: =AVERAGEIF('Prognózy výkazů'!Q95:V95,"<>93303") -> 43718.78414 | X95: =AVERAGEIF('Prognózy výkazů'!R95:W95,"<>93303") -> 43702.78585 | Z95: průměr (posledních 6 let)
B96: Ostatní oběžná aktiva, netto | C96: ='účetní výkazy'!B25+'účetní výkazy'!B26 -> 3398 | D96: ='účetní výkazy'!C25+'účetní výkazy'!C26 -> 3299 | E96: ='účetní výkazy'!D25+'účetní výkazy'!D26 -> 3395 | F96: ='účetní výkazy'!E25+'účetní výkazy'!E26 -> 3874 | G96: ='účetní výkazy'!F25+'účetní výkazy'!F26 -> 9786 | H96: ='účetní výkazy'!G25+'účetní výkazy'!G26 -> 27371 | I96: =AVERAGEIF('Prognózy výkazů'!C96:H96,"<>27371")+17497 -> 22247.4 | J96: =AVERAGEIF('Prognózy výkazů'!D96:I96,"<>27371") -> 8520.28 | K96: =AVERAGEIF('Prognózy výkazů'!E96:J96,"<>27371") -> 9564.536 | L96: =AVERAGEIF('Prognózy výkazů'!F96:K96,"<>27371") -> 10798.4432 | M96: =AVERAGEIF('Prognózy výkazů'!G96:L96,"<>27371") -> 12183.33184 | N96: =AVERAGEIF('Prognózy výkazů'!H96:M96,"<>27371") -> 12662.79821 | O96: =AVERAGEIF('Prognózy výkazů'!I96:N96,"<>27371") -> 12662.79821 | P96: =AVERAGEIF('Prognózy výkazů'!J96:O96,"<>27371") -> 11065.36458 | Q96: =AVERAGEIF('Prognózy výkazů'!K96:P96,"<>27371") -> 11489.54534 | R96: =AVERAGEIF('Prognózy výkazů'!L96:Q96,"<>27371") -> 11810.38023 | S96: =AVERAGEIF('Prognózy výkazů'!M96:R96,"<>27371") -> 11979.0364 | T96: =AVERAGEIF('Prognózy výkazů'!N96:S96,"<>27371") -> 11944.98716 | U96: =AVERAGEIF('Prognózy výkazů'!O96:T96,"<>27371") -> 11825.35199 | V96: =AVERAGEIF('Prognózy výkazů'!P96:U96,"<>27371") -> 11685.77761 | W96: =AVERAGEIF('Prognózy výkazů'!Q96:V96,"<>27371") -> 11789.17979 | X96: =AVERAGEIF('Prognózy výkazů'!R96:W96,"<>27371") -> 11839.11886 | Z96: průměr (posledních 6 let)
B97: Oběžná aktiva celkem | C97: =SUM(C89:C96) -> 154462 | D97: 130354 | E97: 109631 | F97: 141587 | G97: 135953 | H97: 226996 | I97: =SUM(I89:I96) -> 160912.9083 | J97: 148570.048 | K97: 150753.3468 | L97: 155713.1645 | M97: 154940.5557 | N97: 156497.3941 | O97: 154235.4009 | P97: 153147.0682 | Q97: 153934.1411 | R97: 154488.1691 | S97: 154307.5662 | T97: 154225.3062 | U97: 153869.5462 | V97: 153831.1824 | W97: 153967.5117 | X97: 153995.0891
B100: Rok | C100: 2013 | D100: 2014 | E100: 2015 | F100: 2016 | G100: 2017 | H100: 2018 | I100: 2019 | J100: 2020 | K100: 2021 | L100: 2022 | M100: 2023 | N100: 2024 | O100: 2025 | P100: 2026 | Q100: 2027 | R100: 2028 | S100: 2029 | T100: 2030 | U100: 2031 | V100: 2032 | W100: 2033 | X100: 2034
B101: Základní kapitál | C101: ='účetní výkazy'!B31 -> 53799 | D101: ='účetní výkazy'!C31 -> 53799 | E101: ='účetní výkazy'!D31 -> 53799 | F101: ='účetní výkazy'!E31 -> 53799 | G101: ='účetní výkazy'!F31 -> 53799 | H101: ='účetní výkazy'!G31 -> 53799 | I101: ='účetní výkazy'!G31 -> 53799 | J101: =I101 -> 53799 | K101: 53799 | L101: 53799 | M101: 53799 | N101: 53799 | O101: 53799 | P101: 53799 | Q101: 53799 | R101: 53799 | S101: 53799 | T101: 53799 | U101: 53799 | V101: 53799 | W101: 53799 | X101: 53799 | Z101: konstantní
B102: Vlastní akcie | C102: ='účetní výkazy'!B32 -> -4382 | D102: ='účetní výkazy'!C32 -> -4382 | E102: ='účetní výkazy'!D32 -> -4246 | F102: ='účetní výkazy'!E32 -> -4246 | G102: ='účetní výkazy'!F32 -> -4077 | H102: ='účetní výkazy'!G32 -> -3534 | I102: =AVERAGE(E102:H102) -> -4025.75 | J102: =AVERAGE(F102:I102) -> -3970.6875 | K102: -3901.859375 | L102: -3858.074219 | M102: -3939.092773 | N102: -3917.428467 | O102: -3904.113708 | P102: -3904.677292 | Q102: -3916.32806 | R102: -3910.636882 | S102: -3908.938986 | T102: -3910.145305 | U102: -3911.512308 | V102: -3910.30837 | W102: -3910.226242 | X102: -3910.548056 | Z102: průměr
B103: Nerozdělené zisky a kapitálové fondy | C103: ='účetní výkazy'!B33 -> 208659 | D103: ='účetní výkazy'!C33 -> 211891 | E103: ='účetní výkazy'!D33 -> 218340 | F103: ='účetní výkazy'!E33 -> 207259 | G103: ='účetní výkazy'!F33 -> 200296 | H103: ='účetní výkazy'!G33 -> 184456 | I103: ='účetní výkazy'!G33*(1+$Z103) -> 187222.84 | J103: =I103*(1+$Z103) -> 190031.1826 | K103: 192881.6503 | L103: 195774.8751 | M103: 198711.4982 | N103: 201692.1707 | O103: 204717.5533 | P103: 207788.3166 | Q103: 210905.1413 | R103: 214068.7184 | S103: 217279.7492 | T103: 220538.9454 | U103: 223847.0296 | V103: 227204.7351 | W103: 230612.8061 | X103: 234071.9982 | Z103: 0.015
B104: Vlastní kapitál přiřaditelný akcionářům mateřského podniku celkem | C104: ='účetní výkazy'!B34 -> 258076 | D104: ='účetní výkazy'!C34 -> 261308 | E104: ='účetní výkazy'!D34 -> 267893 | F104: ='účetní výkazy'!E34 -> 256812 | G104: ='účetní výkazy'!F34 -> 250018 | H104: ='účetní výkazy'!G34 -> 234721 | I104: =SUM(I101:I103) -> 236996.09 | J104: 239859.4951 | K104: 242778.791 | L104: 245715.8009 | M104: 248571.4054 | N104: 251573.7422 | O104: 254612.4395 | P104: 257682.6393 | Q104: 260787.8132 | R104: 263957.0815 | S104: 267169.8102 | T104: 270427.8001 | U104: 273734.5173 | V104: 277093.4267 | W104: 280501.5798 | X104: 283960.4501
B105: Dlouhodobé dluhy bez krátkodobé části | C105: ='účetní výkazy'!B37 -> 168196 | D105: ='účetní výkazy'!C37 -> 160852 | E105: ='účetní výkazy'!D37 -> 145575 | F105: ='účetní výkazy'!E37 -> 142265 | G105: ='účetní výkazy'!F37 -> 132475 | H105: ='účetní výkazy'!G37 -> 142440 | I105: ='finanční část'!H37 -> 147722 | J105: ='finanční část'!I37 -> 140397 | K105: ='finanční část'!J37 -> 135839 | L105: ='finanční část'!K37 -> 130553 | M105: ='finanční část'!L37 -> 133143 | N105: ='finanční část'!M37 -> 138986.6 | O105: ='finanční část'!N37 -> 123577.6 | P105: ='finanční část'!O37 -> 125577.6 | Q105: ='finanční část'!P37 -> 134077.6 | R105: ='finanční část'!Q37 -> 140158.6 | S105: ='finanční část'!R37 -> 166158.6 | T105: ='finanční část'!S37 -> 188641.6 | U105: ='finanční část'!T37 -> 211141.6 | V105: ='finanční část'!U37 -> 230581.6 | W105: ='finanční část'!V37 -> 248581.6 | X105: ='finanční část'!W37 -> 258081.6 | Z105: viz fin. Plán
C107: 2013 | D107: 2014 | E107: 2015 | F107: 2016 | G107: 2017 | H107: 2018 | I107: 2019 | J107: 2020 | K107: 2021 | L107: 2022 | M107: 2023 | N107: 2024 | O107: 2025 | P107: 2026 | Q107: 2027 | R107: 2028 | S107: 2029 | T107: 2030 | U107: 2031 | V107: 2032 | W107: 2033 | X107: 2034
B108: Krátkodobé úvěry | C108: ='účetní výkazy'!B43 -> 2716 | D108: ='účetní výkazy'!C43 -> 7608 | E108: ='účetní výkazy'!D43 -> 223 | F108: ='účetní výkazy'!E43 -> 8343 | G108: ='účetní výkazy'!F43 -> 11073 | H108: ='účetní výkazy'!G43 -> 11783 | I108: =AVERAGEIF(C108:H108,"<>0") -> 6957.666667 | J108: 7664.611111 | K108: 7674.046296 | L108: 8915.887346 | M108: 9011.36857 | N108: 8667.763332 | O108: 8148.55722 | P108: 8347.038979 | Q108: 8460.776957 | R108: 8591.898734 | S108: 8537.900632 | T108: 8458.989309 | U108: 8424.193639 | V108: 8470.133042 | W108: 8490.648719 | X108: 8495.627346 | Z108: průměr (poslední 4 roky)
B109: Krátkodobá část dlouhodobých dluhů | C109: ='účetní výkazy'!B44 -> 28104 | D109: ='účetní výkazy'!C44 -> 15674 | E109: ='účetní výkazy'!D44 -> 11696 | F109: ='účetní výkazy'!E44 -> 17208 | G109: ='účetní výkazy'!F44 -> 10759 | H109: ='účetní výkazy'!G44 -> 6743 | I109: ='finanční část'!H41 -> 6743 | J109: ='finanční část'!I41 -> 22675 | K109: ='finanční část'!J41 -> 26058 | L109: ='finanční část'!K41 -> 24286 | M109: ='finanční část'!L41 -> 9910 | N109: ='finanční část'!M35+'finanční část'!M36 -> 4656.4 | O109: ='finanční část'!N35+'finanční část'!N36 -> 23931.04 | P109: ='finanční část'!O35+'finanční část'!O36 -> 22424.244 | Q109: ='finanční část'!P35+'finanční část'!P36 -> 15866.6684 | R109: ='finanční část'!Q35+'finanční část'!Q36 -> 24772.33524 | S109: ='finanční část'!R35+'finanční část'!R36 -> 8888.668764 | T109: ='finanční část'!S35+'finanční část'!S36 -> 12494.53564 | U109: ='finanční část'!T35+'finanční část'!T36 -> 16125.2892 | V109: ='finanční část'!U35+'finanční část'!U36 -> 16897.81812 | W109: ='finanční část'!V35+'finanční část'!V36 -> 12621.59994 | X109: ='finanční část'!W35+'finanční část'!W36 -> 14483.75993 | Z109: sešit-finanční část
B110: Obchodní závazky | C110: ='účetní výkazy'!B45 -> 63297 | D110: ='účetní výkazy'!C45 -> 60331 | E110: ='účetní výkazy'!D45 -> 58010 | F110: ='účetní výkazy'!E45 -> 80516 | G110: ='účetní výkazy'!F45 -> 48087 | H110: ='účetní výkazy'!G45 -> 63093 | I110: =AVERAGE(C110:H110) -> 62222.33333 | J110: 62043.22222 | K110: 62328.59259 | L110: 63048.35802 | M110: 60137.08436 | N110: 62145.43176 | O110: 61987.50372 | P110: 61948.36545 | Q110: 61932.55598 | R110: 61866.54988 | S110: 61669.58186 | T110: 61924.99811 | U110: 61888.25916 | V110: 61871.71841 | W110: 61858.9439 | X110: =AVERAGE(R110:W110) -> 61846.67522 | Z110: průměr (posledních 6 let)
B111: Závazek z titulu daně z příjmů | C111: ='účetní výkazy'!B46 -> 1719 | D111: ='účetní výkazy'!C46 -> 830 | E111: ='účetní výkazy'!D46 -> 1606 | F111: ='účetní výkazy'!E46 -> 392 | G111: ='účetní výkazy'!F46 -> 176 | H111: ='účetní výkazy'!G46 -> 253 | I111: 829.3333333 | J111: 681.0555556 | K111: 656.2314815 | L111: 497.9367284 | M111: 515.5928498 | N111: 572.1916581 | O111: 625.3902678 | P111: 591.3997568 | Q111: 576.4571237 | R111: 563.1613974 | S111: 574.0321756 | T111: 583.7720633 | U111: 585.7021308 | V111: 579.0874413 | W111: 577.0353887 | X111: =AVERAGE(R111:W111) -> 577.1317662 | Z111: průměr (posledních 6 let)
B112: Rezervy | C112: 0 | D112: 0 | E112: ='účetní výkazy'!D47 -> 8219 | F112: ='účetní výkazy'!E47 -> 8160 | G112: ='účetní výkazy'!F47 -> 9226 | H112: ='účetní výkazy'!G47 -> 12323 | I112: =AVERAGEIF(C112:H112,"<>0") -> 9482 | J112: =AVERAGEIF(D112:I112,"<>0") -> 9482 | K112: 9482 | L112: 9692.5 | M112: 9947.916667 | N112: 10068.23611 | O112: 9692.44213 | P112: 9727.515818 | Q112: 9768.435121 | R112: 9816.174308 | S112: 9836.786692 | T112: 9818.26503 | U112: 9776.603183 | V112: 9790.630025 | W112: 9801.14906 | X112: =AVERAGEIF(R112:W112,"<>0") -> 9806.601383 | Z112: průměr (posledních 6 let)
B113: Ostatní krátkodobé finanční závazky | C113: ='účetní výkazy'!B48 -> 0 | D113: ='účetní výkazy'!C48 -> 0 | E113: ='účetní výkazy'!D48 -> 13945 | F113: ='účetní výkazy'!E48 -> 14251 | G113: ='účetní výkazy'!F48 -> 42864 | H113: ='účetní výkazy'!G48 -> 110287 | I113: 69853 | J113: =AVERAGEIF(D113:I113,"<>0") -> 50240 | K113: 50240 | L113: 56289.16667 | M113: 63295.52778 | N113: 66700.78241 | O113: 59436.41281 | P113: 57700.31494 | Q113: 58943.70077 | R113: 60394.31756 | S113: 61078.50938 | T113: 60709.00631 | U113: 59710.37696 | V113: 59756.03765 | W113: 60098.65811 | X113: =AVERAGEIF(R113:W113,"<>0") -> 60291.151 | Z113: průměr (posledních 6 let)
B114: Ostatní krátkodobé závazky | C114: ='účetní výkazy'!B49 -> 0 | D114: ='účetní výkazy'!C49 -> 0 | E114: ='účetní výkazy'!D49 -> 0 | F114: ='účetní výkazy'!E49 -> 0 | G114: ='účetní výkazy'!F49 -> 5796 | H114: ='účetní výkazy'!G49 -> 7461 | I114: =AVERAGEIF(C114:H114,"<>0") -> 6628.5 | J114: 6628.5 | K114: 6628.5 | L114: 6628.5 | M114: 6628.5 | N114: 6767.25 | O114: 6651.625 | P114: 6655.479167 | Q114: 6659.975694 | R114: 6665.221644 | S114: 6671.341917 | T114: 6678.482237 | U114: 6663.68761 | V114: 6665.698045 | W114: 6667.401191 | X114: =AVERAGEIF(R114:W114,"<>0") -> 6668.638774 | Z114: průměr (posledních 6 let)
B115: Závazky související s aktivy klasifikovanými jako držená k prodeji | C115: ='účetní výkazy'!B50 -> 0 | D115: ='účetní výkazy'!C50 -> 0 | E115: ='účetní výkazy'!D50 -> 0 | F115: ='účetní výkazy'!E50 -> 570 | G115: ='účetní výkazy'!F50 -> 0 | H115: ='účetní výkazy'!G50 -> 6197 | I115: =AVERAGEIF(C115:H115,"<>0") -> 3383.5 | J115: 3383.5 | K115: 3383.5 | L115: 3383.5 | M115: 3946.2 | N115: 3946.2 | O115: 3571.066667 | P115: 3602.327778 | Q115: 3638.799074 | R115: 3681.34892 | S115: 3730.990406 | T115: 3695.122141 | U115: 3653.275831 | V115: 3666.977358 | W115: 3677.752288 | X115: =AVERAGEIF(R115:W115,"<>0") -> 3684.244491 | Z115: průměr (posledních 6 let)
B116: Krátkodobé závazky celkem | C116: =SUM(C108:C115) -> 95836 | D116: 84443 | E116: 93699 | F116: 129440 | G116: 127981 | H116: 218140 | I116: 166099.3333 | J116: 162797.8889 | K116: 166450.8704 | L116: 172741.8488 | M116: 163392.1902 | N116: 163524.2553 | O116: 174044.0378 | P116: 170996.6859 | Q116: 165847.3691 | R116: 176351.0077 | S116: 160987.8118 | T116: 164363.1708 | U116: 166827.3877 | V116: 167698.1001 | W116: 163793.1886 | X116: =SUM(X108:X115) -> 165853.8299

Sheet instalovaný výkon 2
A1: Výroba elektřiny týmů Provoz a Rozvoj podle zdroje energie
A2: ČR+zahraničí | B2: Rok | C2: 2015 | D2: 2016 | E2: 2017 | F2: 2018 | G2: 2019 | H2: 2020 | I2: 2021 | J2: 2022 | K2: 2023 | L2: 2024 | M2: 2025 | N2: 2026 | O2: 2027 | P2: 2028 | Q2: 2029 | R2: 2030 | S2: 2031 | T2: 2032 | U2: 2033 | V2: 2034
A3: Jádro | B3: GWh | C3: =C17+C27 -> 26840 | D3: 24104 | E3: 28339 | F3: 29920 | G3: =G17+G27 -> 30518.4 | H3: 30518.4 | I3: 30518.4 | J3: 30518.4 | K3: 30518.4 | L3: 30518.4 | M3: 30518.4 | N3: =N17+N27 -> 30518.4 | O3: 30518.4 | P3: 30518.4 | Q3: 30518.4 | R3: 30518.4 | S3: 30518.4 | T3: 30518.4 | U3: 30518.4 | V3: 30518.4
A4: Uhlí | B4: GWh | C4: =C18+C28 -> 29090 | D4: 30689 | E4: 28175 | F4: 26973 | G4: 24216.35484 | H4: 21459.70968 | I4: 17721.29032 | J4: 16539.87097 | K4: 15358.45161 | L4: 14177.03226 | M4: 12995.6129 | N4: =N18+N28 -> 12916.85161 | O4: 12838.09032 | P4: 12759.32903 | Q4: 12680.56774 | R4: 12601.80645 | S4: 12050.47742 | T4: 11499.14839 | U4: 10947.81935 | V4: 10396.49032
A5: Voda | B5: GWh | C5: =C19+C29 -> 2214 | D5: 2346 | E5: 2155 | F5: 1974 | G5: =G19+G29 -> 2011.7 | H5: =H19+H29 -> 2011.7 | I5: 2011.7 | J5: 2011.7 | K5: 2011.7 | L5: 2011.7 | M5: 2011.7 | N5: =N19+N29 -> 2011.7 | O5: 2011.7 | P5: 2011.7 | Q5: 2011.7 | R5: 2147.88022 | S5: 2147.88022 | T5: 2245.922136 | U5: 2294.943093 | V5: 2294.943093
A6: Ostatní | B6: GWh | C6: =C20+C30 -> 794 | D6: 881 | E6: 812 | F6: 793 | G6: =G20+G30 -> 899.0010373 | H6: 957.2738589 | I6: 1073.819502 | J6: 1132.092324 | K6: 1248.637967 | L6: 1365.18361 | M6: 1365.18361 | N6: =N20+N30 -> 1540.002075 | O6: 1598.274896 | P6: 1656.547718 | Q6: 1656.547718 | R6: 1831.366183 | S6: 1947.911826 | T6: 2181.003112 | U6: 2355.821577 | V6: 2530.640041
A7: Fotovoltaika | B7: GWh | C7: =C21+C31 -> 141 | D7: 132 | E7: 138 | F7: 146 | G7: 146 | H7: 151.3674121 | I7: 162.5495208 | J7: 184.913738 | K7: 196.0958466 | L7: 218.4600639 | M7: 240.8242812 | N7: =N21+N31 -> 274.370607 | O7: 307.9169329 | P7: 352.6453674 | Q7: 386.1916933 | R7: 419.7380192 | S7: 464.4664537 | T7: 509.1948882 | U7: 542.7412141 | V7: 587.4696486
A8: Vítr | B8: GWh | C8: =C22+C32 -> 1295 | D8: 1165 | E8: 1571 | F8: 1380 | G8: 1380 | H8: 1380.878049 | I8: 14.26829268 | J8: 16.46341463 | K8: 21.95121951 | L8: 29.63414634 | M8: 43.90243902 | N8: =N22+N32 -> 49.3902439 | O8: 65.85365854 | P8: 82.31707317 | Q8: 98.7804878 | R8: 115.2439024 | S8: 126.2195122 | T8: 131.7073171 | U8: 137.195122 | V8: 142.6829268
A9: Zemní plyn | B9: GWh | C9: =C23+C33 -> 542 | D9: 1813 | E9: 1698 | F9: 1895 | G9: 2720.282578 | H9: 3261.315157 | I9: 3493.186262 | J9: 3725.057367 | K9: 3956.928472 | L9: 4188.799577 | M9: 4420.670682 | N9: =N23+N33 -> 4436.128756 | O9: 4451.586829 | P9: 4467.044903 | Q9: 4482.502977 | R9: 4497.96105 | S9: 4606.167566 | T9: 4714.374082 | U9: 4822.580598 | V9: 4930.787113
A10: Vyrobená eleltřina | B10: GWh | C10: =C24+C34 -> 60916 | D10: 61130 | E10: 62888 | F10: =SUM(F3:F9) -> 63081 | G10: =G24+G34 -> 61891.73845 | H10: 59740.64415 | I10: 54995.2139 | J10: 54128.49781 | K10: 53312.16512 | L10: 52509.20966 | M10: 51596.29392 | N10: =N24+N34 -> 51746.84329 | O10: 51791.82264 | P10: 51847.98409 | Q10: 51834.69062 | R10: 52132.39583 | S10: 51861.523 | T10: 51799.74992 | U10: 51619.50096 | V10: 51401.41315
A11: Vlastní a ostatní spotřeba včetně přečerpávání | B11: GWh | C11: -6617 | D11: -6476 | E11: -6269 | F11: -6151 | G11: =F11*(1+G46/F46-1) -> -5979.689906 | H11: =G11*(1+H46/G46-1) -> -5809.155734 | I11: -5139.003096 | J11: -5076.829209 | K11: -5015.948527 | L11: -4960.240665 | M11: -4898.497846 | N11: -4921.452749 | O11: -4940.096968 | P11: -4963.05187 | Q11: -4977.385406 | R11: -5064.52638 | S11: -5059.249395 | T11: -5103.545266 | U11: -5117.666355 | V11: -5114.544711
A12: Ztráty v sítích | B12: GWh | C12: -4812 | D12: -4316 | E12: -4175 | F12: -3965 | G12: =AVERAGE(C12:F12) -> -4317 | H12: =AVERAGE(D12:G12) -> -4193.25 | I12: -4162.5625 | J12: -4159.453125 | K12: -4208.066406 | L12: -4180.833008 | M12: -4177.72876 | N12: =AVERAGE(J12:M12) -> -4181.520325 | O12: -4187.037125 | P12: -4181.779804 | Q12: -4182.016503 | R12: -4183.088439 | S12: -4183.480468 | T12: -4182.591304 | U12: -4182.794179 | V12: -4182.988597
A13: ztráty a vlastní spotřeba | B13: GWh | C13: =C11+C12 -> -11429 | D13: -10792 | E13: -10444 | F13: -10116 | G13: =G11+G12 -> -10296.68991 | H13: -10002.40573 | I13: -9301.565596 | J13: -9236.282334 | K13: -9224.014933 | L13: =L11+L12 -> -9141.073673 | M13: =M11+M12 -> -9076.226606 | N13: -9102.973073 | O13: =O11+O12 -> -9127.134092 | P13: -9144.831674 | Q13: =Q11+Q12 -> -9159.401909 | R13: -9247.61482 | S13: -9242.729863 | T13: =T11+T12 -> -9286.13657 | U13: =U11+U12 -> -9300.460533 | V13: =V11+V12 -> -9297.533308
A14: Vyrobená elektřina netto | B14: GWh | C14: =C10+C13 -> 49487 | D14: 50338 | E14: 52444 | F14: 52965 | G14: =G10+G13 -> 51595.04855 | H14: 49738.23842 | I14: 45693.6483 | J14: 44892.21548 | K14: 44088.15018 | L14: =L10+L13 -> 43368.13598 | M14: =M10+M13 -> 42520.06731 | N14: 42643.87022 | O14: =O10+O13 -> 42664.68855 | P14: 42703.15242 | Q14: =Q10+Q13 -> 42675.28871 | R14: 42884.78101 | S14: 42618.79313 | T14: =T10+T13 -> 42513.61335 | U14: =U10+U13 -> 42319.04043 | V14: =V10+V13 -> 42103.87984
A16: ČR | B16: Rok | C16: 2015 | D16: 2016 | E16: 2017 | F16: 2018 | G16: 2019 | H16: 2020 | I16: 2021 | J16: 2022 | K16: 2023 | L16: 2024 | M16: 2025 | N16: 2026 | O16: 2027 | P16: 2028 | Q16: 2029 | R16: 2030 | S16: 2031 | T16: 2032 | U16: 2033 | V16: 2034 | X16: Nárůst doby využítí maxima, z důvodu klesajícího výkonu uhelných elektráren v ČR
A17: Jádro | B17: GWh | C17: 26840 | D17: 24104 | E17: 28339 | F17: 29920 | G17: =(G49*$E$73)/1000*(1+$X17) -> 30518.4 | H17: =(H49*$E$73)/1000*(1+$X17) -> 30518.4 | I17: 30518.4 | J17: 30518.4 | K17: 30518.4 | L17: 30518.4 | M17: 30518.4 | N17: 30518.4 | O17: 30518.4 | P17: 30518.4 | Q17: 30518.4 | R17: 30518.4 | S17: 30518.4 | T17: 30518.4 | U17: =(U49*$E$73)/1000*(1+$X17) -> 30518.4 | V17: 30518.4 | X17: 0.02
A18: Uhlí | B18: GWh | C18: 26579 | D18: 28149 | E18: 25609 | F18: =24352+64 -> 24416 | G18: =($E$75*G51)/1000*(1+$X$18) -> 21659.35484 | H18: =($E$75*H51)/1000*(1+$X$18) -> 18902.70968 | I18: 17721.29032 | J18: 16539.87097 | K18: 15358.45161 | L18: 14177.03226 | M18: 12995.6129 | N18: 12916.85161 | O18: 12838.09032 | P18: 12759.32903 | Q18: 12680.56774 | R18: 12601.80645 | S18: 12050.47742 | T18: 11499.14839 | U18: 10947.81935 | V18: 10396.49032 | X18: 0
A19: Voda | B19: GWh | C19: 2153 | D19: 2243 | E19: =1860+215 -> 2075 | F19: =1715+170 -> 1885 | G19: =G53*$E$76/1000*(1+$X$19) -> 1922.7 | H19: =H53*$E$76/1000*(1+$X$19) -> 1922.7 | I19: 1922.7 | J19: 1922.7 | K19: 1922.7 | L19: 1922.7 | M19: 1922.7 | N19: 1922.7 | O19: 1922.7 | P19: 1922.7 | Q19: 1922.7 | R19: 2058.88022 | S19: 2058.88022 | T19: 2156.922136 | U19: 2205.943093 | V19: 2205.943093 | X19: 0.02
A20: Ostatní | B20: GWh | C20: =369+3 -> 372 | D20: =500+2 -> 502 | E20: =573+4 -> 577 | F20: =531+4 -> 535 | G20: =G54*$E$77/1000*(1+$X$20) -> 641.0010373 | H20: =H54*$E$77/1000*(1+$X$20) -> 699.2738589 | I20: 815.8195021 | J20: 874.0923237 | K20: 990.6379668 | L20: 1107.18361 | M20: 1107.18361 | N20: 1282.002075 | O20: 1340.274896 | P20: 1398.547718 | Q20: 1398.547718 | R20: 1573.366183 | S20: 1689.911826 | T20: 1923.003112 | U20: 2097.821577 | V20: 2272.640041 | X20: 0.05
A21: Fotovoltaika | B21: GWh | C21: 135 | D21: 126 | E21: 132 | F21: 140 | G21: =G55*$E$78/1000*(1+$X$21) -> 140 | H21: =H55*$E$78/1000*(1+$X$21) -> 145.3674121 | I21: 156.5495208 | J21: 178.913738 | K21: 190.0958466 | L21: 212.4600639 | M21: 234.8242812 | N21: 268.370607 | O21: 301.9169329 | P21: 346.6453674 | Q21: 380.1916933 | R21: 413.7380192 | S21: 458.4664537 | T21: 503.1948882 | U21: 536.7412141 | V21: 581.4696486 | X21: 0
A22: Vítr | B22: GWh | C22: 9 | D22: 6 | E22: 8 | F22: 9 | G22: =G56*$E$79/1000*(1+$X$22) -> 9 | H22: =H56*$E$79/1000*(1+$X$22) -> 9.87804878 | I22: 14.26829268 | J22: 16.46341463 | K22: =K56*$E$79/1000*(1+$X$22) -> 21.95121951 | L22: 29.63414634 | M22: 43.90243902 | N22: 49.3902439 | O22: 65.85365854 | P22: 82.31707317 | Q22: 98.7804878 | R22: 115.2439024 | S22: 126.2195122 | T22: 131.7073171 | U22: 137.195122 | V22: 142.6829268 | X22: 0
A23: Zemní plyn | B23: GWh | C23: 542 | D23: 1813 | E23: 1698 | F23: =1759+136 -> 1895 | G23: =G50*$E$74/1000*(1+$X23) -> 2720.282578 | H23: =H50*$E$74/1000*(1+$X23) -> 3261.315157 | I23: 3493.186262 | J23: 3725.057367 | K23: 3956.928472 | L23: 4188.799577 | M23: 4420.670682 | N23: 4436.128756 | O23: 4451.586829 | P23: 4467.044903 | Q23: 4482.502977 | R23: 4497.96105 | S23: 4606.167566 | T23: 4714.374082 | U23: 4822.580598 | V23: 4930.787113 | X23: 0.15
A24: Vyrobená eleltřina | B24: GWh | C24: =SUM(C17:C23) -> 56630 | D24: =SUM(D17:D23) -> 56943 | E24: =SUM(E17:E23) -> 58438 | F24: =SUM(F17:F23) -> 58800 | G24: =SUM(G17:G23) -> 57610.73845 | H24: =SUM(H17:H23) -> 55459.64415 | I24: 54642.2139 | J24: 53775.49781 | K24: 52959.16512 | L24: 52156.20966 | M24: 51243.29392 | N24: =SUM(N17:N23) -> 51393.84329 | O24: 51438.82264 | P24: 51494.98409 | Q24: 51481.69062 | R24: 51779.39583 | S24: 51508.523 | T24: 51446.74992 | U24: 51266.50096 | V24: 51048.41315
A26: Zahraničí | B26: Rok | C26: 2015 | D26: 2016 | E26: 2017 | F26: 2018 | G26: 2019 | H26: 2020 | I26: 2021 | J26: 2022 | K26: 2023 | L26: 2024 | M26: 2025 | N26: 2026 | O26: 2027 | P26: 2028 | Q26: 2029 | R26: 2030 | S26: 2031 | T26: 2032 | U26: 2033 | V26: 2034
A27: Jádro | B27: GWh | C27: 0 | D27: 0 | E27: 0 | F27: 0 | G27: =G62*$L$73/1000 -> 0 | H27: 0 | I27: 0 | J27: 0 | K27: 0 | L27: 0 | M27: 0 | N27: 0 | O27: 0 | P27: 0 | Q27: 0 | R27: 0 | S27: 0 | T27: 0 | U27: 0 | V27: 0
A28: Uhlí | B28: GWh | C28: 2511 | D28: 2540 | E28: 2566 | F28: 2557 | G28: =G64*$L$75/1000 -> 2557 | H28: 2557 | I28: 0 | J28: 0 | K28: 0 | L28: 0 | M28: 0 | N28: 0 | O28: 0 | P28: 0 | Q28: 0 | R28: 0 | S28: 0 | T28: 0 | U28: 0 | V28: 0
A29: Voda | B29: GWh | C29: =11+50 -> 61 | D29: =11+92 -> 103 | E29: =10+70 -> 80 | F29: =6+83 -> 89 | G29: =$L$76*G66/1000 -> 89 | H29: 89 | I29: 89 | J29: 89 | K29: 89 | L29: 89 | M29: 89 | N29: 89 | O29: 89 | P29: 89 | Q29: 89 | R29: 89 | S29: 89 | T29: 89 | U29: 89 | V29: 89
A30: Ostatní | B30: GWh | C30: 422 | D30: 379 | E30: =235 -> 235 | F30: 258 | G30: =F30 -> 258 | H30: =G30 -> 258 | I30: 258 | J30: 258 | K30: 258 | L30: 258 | M30: 258 | N30: 258 | O30: 258 | P30: 258 | Q30: 258 | R30: 258 | S30: 258 | T30: 258 | U30: 258 | V30: 258
A31: Fotovoltaika | B31: GWh | C31: 6 | D31: 6 | E31: 6 | F31: 6 | G31: =G68*$L$78/1000 -> 6 | H31: 6 | I31: 6 | J31: 6 | K31: 6 | L31: 6 | M31: 6 | N31: 6 | O31: 6 | P31: 6 | Q31: 6 | R31: 6 | S31: 6 | T31: 6 | U31: 6 | V31: 6
A32: Vítr | B32: GWh | C32: 1286 | D32: 1159 | E32: =240+1323 -> 1563 | F32: 1371 | G32: =G69*$L$79/1000 -> 1371 | H32: 1371 | I32: 0 | J32: 0 | K32: 0 | L32: 0 | M32: 0 | N32: 0 | O32: 0 | P32: 0 | Q32: 0 | R32: 0 | S32: 0 | T32: 0 | U32: 0 | V32: 0
A33: Zemní plyn | B33: GWh | C33: 0 | D33: 0 | E33: 0 | F33: 0 | G33: =F63*$L$74/1000 -> 0 | H33: 0 | I33: 0 | J33: 0 | K33: 0 | L33: 0 | M33: 0 | N33: 0 | O33: 0 | P33: 0 | Q33: 0 | R33: 0 | S33: 0 | T33: 0 | U33: 0 | V33: 0
A34: Vyrobená eleltřina | B34: GWh | C34: =SUM(C27:C33) -> 4286 | D34: =SUM(D27:D33) -> 4187 | E34: =SUM(E27:E33) -> 4450 | F34: =SUM(F27:F33) -> 4281 | G34: =SUM(G27:G33) -> 4281 | H34: =SUM(H27:H33) -> 4281 | I34: 353 | J34: 353 | K34: 353 | L34: 353 | M34: 353 | N34: =SUM(N27:N33) -> 353 | O34: 353 | P34: 353 | Q34: 353 | R34: 353 | S34: 353 | T34: 353 | U34: 353 | V34: 353
A37: ČR+zahraničí | B37: Rok | C37: 2015 | D37: 2016 | E37: 2017 | F37: 2018 | G37: 2019 | H37: 2020 | I37: 2021 | J37: 2022 | K37: 2023 | L37: 2024 | M37: 2025 | N37: 2026 | O37: 2027 | P37: 2028 | Q37: 2029 | R37: 2030 | S37: 2031 | T37: 2032 | U37: 2033 | V37: 2034 | Z37: Pokles instalovaného uhelného výkonu [GW]
A38: Jaderné elektrárny | B38: MW | C38: =C49+C62 -> 4290 | D38: =D49+D62 -> 4290 | E38: 4290 | F38: =F49+F62 -> 4290 | G38: 4290 | H38: =H49+H62 -> 4290 | I38: 4290 | J38: 4290 | K38: 4290 | L38: 4290 | M38: 4290 | N38: =N49+N62 -> 4290 | O38: 4290 | P38: 4290 | Q38: 4290 | R38: 4290 | S38: 4290 | T38: 4290 | U38: 4290 | V38: 4290 | Z38: Původní hodnota | AB38: Nová hodnota
A39: Paroplynové elektrárny | B39: MW | C39: =C50+C63 -> 844.9 | D39: 844.9 | E39: 844.9 | F39: 844.9 | G39: =G50+G63 -> 1054.659516 | H39: =H50+H63 -> 1264.419032 | I39: 1354.315968 | J39: 1444.212903 | K39: 1534.109839 | L39: 1624.006774 | M39: 1713.90371 | N39: =N50+N63 -> 1719.896839 | O39: 1725.889968 | P39: 1731.883097 | Q39: 1737.876226 | R39: 1743.869355 | S39: 1785.821258 | T39: 1827.773161 | U39: 1869.725065 | V39: 1911.676968 | Y39: 2018-2020 | Z39: 6.2 | AB39: 4.8 | AD39: =AB39/Z39 -> 0.7741935484
A40: Uhelné elektrárny | B40: MW | C40: =C51+C64 -> 5923 | D40: 5623 | E40: 6178 | F40: 6178.4 | G40: 5557.432258 | H40: 4936.464516 | I40: 3991.935484 | J40: 3725.806452 | K40: 3459.677419 | L40: 3193.548387 | M40: 2927.419355 | N40: =N51+N64 -> 2909.677419 | O40: 2891.935484 | P40: 2874.193548 | Q40: 2856.451613 | R40: 2838.709677 | S40: 2714.516129 | T40: 2590.322581 | U40: 2466.129032 | V40: 2341.935484 | Y40: 2020-2025 | Z40: 4.8 | AB40: 3.3 | AD40: =AB40/Z40 -> 0.6875
A41: Teplárny | B41: MW | C41: =C52+C65 -> 876.7 | D41: 876.7 | E41: 692.9 | F41: 692.9 | G41: 614.6693548 | H41: 536.4387097 | I41: 502.9112903 | J41: 469.383871 | K41: 435.8564516 | L41: 402.3290323 | M41: 368.8016129 | N41: =N52+N65 -> 366.5664516 | O41: 364.3312903 | P41: 362.096129 | Q41: 359.8609677 | R41: 357.6258065 | S41: 341.9796774 | T41: 326.3335484 | U41: 310.6874194 | V41: 295.0412903 | Y41: 2025-2030 | Z41: 3.3 | AB41: 3.2 | AD41: =AB41/Z41 -> 0.9696969697
A42: Vodní elektrárny | B42: MW | C42: =C53+C66 -> 1984.2 | D42: 1984.2 | E42: 1985.1 | F42: 1985.1 | G42: 1985.1 | H42: 1985.1 | I42: 1985.1 | J42: 1985.1 | K42: 1985.1 | L42: 1985.1 | M42: 1985.1 | N42: =N53+N66 -> 1985.1 | O42: 1985.1 | P42: 1985.1 | Q42: 1985.1 | R42: 2124 | S42: 2124 | T42: 2224 | U42: 2274 | V42: 2274 | Y42: 2030-2035 | Z42: 3.2 | AB42: 2.5 | AD42: =AB42/Z42 -> 0.78125
A43: Kogenerační jednotky, kotelny, bioplynové stanice,biomasa | B43: MW | C43: =C54+C67 -> 2.5 | D43: 2.5 | E43: 2.5 | F43: 98.4 | G43: 112.2 | H43: 122.2 | I43: 142.2 | J43: 152.2 | K43: 172.2 | L43: 192.2 | M43: 192.2 | N43: =N54+N67 -> 222.2 | O43: 232.2 | P43: 242.2 | Q43: 242.2 | R43: 272.2 | S43: 292.2 | T43: 332.2 | U43: 362.2 | V43: 392.2 | Y43: 2035-2040 | Z43: 2.5 | AB43: 0.7 | AD43: =AB43/Z43 -> 0.28
A44: Fotovoltaické elektrárny | B44: MW | C44: =C55+C68 -> 130.2 | D44: 130.2 | E44: 130.2 | F44: 130.2 | G44: 130.2 | H44: 135 | I44: 145 | J44: 165 | K44: 175 | L44: 195 | M44: 215 | N44: =N55+N68 -> 245 | O44: 275 | P44: 315 | Q44: 345 | R44: 375 | S44: 415 | T44: 455 | U44: 485 | V44: 525
A45: Větrné elektrárny | B45: MW | C45: =C56+C69 -> 742.2 | D45: 742.2 | E45: 742.2 | F45: 742.2 | G45: 742.2 | H45: 743 | I45: 13 | J45: 15 | K45: 20 | L45: 27 | M45: 40 | N45: =N56+N69 -> 45 | O45: 60 | P45: 75 | Q45: 90 | R45: 105 | S45: 115 | T45: 120 | U45: 125 | V45: 130 | Z45: 2018 | AA45: 2019 | AB45: 2020 | AC45: 2021 | AD45: 2022 | AE45: 2023 | AF45: 2024 | AG45: 2025 | AH45: 2026 | AI45: 2027 | AJ45: 2028 | AK45: 2029 | AL45: 2030 | AM45: 2031 | AN45: 2032 | AO45: 2033 | AP45: 2034 | AQ45: 2035
A46: instalovaný výkon elektráren | C46: =C57+C70 -> 13917 | D46: 13617 | E46: 14172.9 | F46: 14269.2 | G46: =G57+G70 -> 13871.79177 | H46: 13476.18355 | I46: 11921.55145 | J46: 11777.31935 | K46: 11636.08726 | L46: 11506.85516 | M46: 11363.62306 | N46: =N57+N70 -> 11416.87426 | O46: 11460.12545 | P46: 11513.37665 | Q46: 11546.62784 | R46: 11748.77903 | S46: 11736.53739 | T46: 11839.29574 | U46: 11872.0541 | V46: 11864.81245 | Z46: 5500 | AA46: =(Z46+AB46)/2 -> 4879.032258 | AB46: =Z46*$AD$39 -> 4258.064516 | AC46: 3991.935484 | AD46: 3725.806452 | AE46: 3459.677419 | AF46: 3193.548387 | AG46: =AB46*$AD$40 -> 2927.419355 | AH46: 2909.677419 | AI46: 2891.935484 | AJ46: 2874.193548 | AK46: 2856.451613 | AL46: =AG46*$AD$41 -> 2838.709677 | AM46: 2714.516129 | AN46: 2590.322581 | AO46: 2466.129032 | AP46: 2341.935484 | AQ46: =$AD$42*AL46 -> 2217.741935
Z47: 692.9 | AA47: =(Z47+AB47)/2 -> 614.6693548 | AB47: =Z47*$AD$39 -> 536.4387097 | AC47: 502.9112903 | AD47: 469.383871 | AE47: 435.8564516 | AF47: 402.3290323 | AG47: =AB47*$AD$40 -> 368.8016129 | AH47: 366.5664516 | AI47: 364.3312903 | AJ47: 362.096129 | AK47: 359.8609677 | AL47: =AG47*$AD$41 -> 357.6258065 | AM47: 341.9796774 | AN47: 326.3335484 | AO47: 310.6874194 | AP47: 295.0412903 | AQ47: =$AD$42*AL47 -> 279.3951613
A48: ČR | B48: Rok | C48: 2015 | D48: 2016 | E48: 2017 | F48: 2018 | G48: 2019 | H48: 2020 | I48: 2021 | J48: 2022 | K48: 2023 | L48: 2024 | M48: 2025 | N48: 2026 | O48: 2027 | P48: 2028 | Q48: 2029 | R48: 2030 | S48: 2031 | T48: 2032 | U48: 2033 | V48: 2034
A49: Jaderné elektrárny | B49: MW | C49: 4290 | D49: 4290 | E49: 4290 | F49: =4290 -> 4290 | G49: =4290 -> 4290 | H49: =4290 -> 4290 | I49: =4290 -> 4290 | J49: =4290 -> 4290 | K49: =4290 -> 4290 | L49: =4290 -> 4290 | M49: =4290 -> 4290 | N49: =4290 -> 4290 | O49: =4290 -> 4290 | P49: =4290 -> 4290 | Q49: =4290 -> 4290 | R49: =4290 -> 4290 | S49: =4290 -> 4290 | T49: =4290 -> 4290 | U49: =4290 -> 4290 | V49: =4290 -> 4290 | Z49: =Z46+Z47 -> 6192.9 | AA49: =AA46+AA47 -> 5493.701613 | AB49: =AB46+AB47 -> 4794.503226 | AC49: 4494.846774 | AD49: 4195.190323 | AE49: 3895.533871 | AF49: 3595.877419 | AG49: 3296.220968 | AH49: =AH46+AH47 -> 3276.243871 | AI49: =AI46+AI47 -> 3256.266774 | AJ49: 3236.289677 | AK49: 3216.312581 | AL49: =AL46+AL47 -> 3196.335484 | AM49: 3056.495806 | AN49: 2916.656129 | AO49: 2776.816452 | AP49: 2636.976774 | AQ49: 2497.137097
A50: Paroplynové elektrárny | B50: MW | C50: 844.9 | D50: 844.9 | E50: 844.9 | F50: =844.9 -> 844.9 | G50: =F50+0.3*G58 -> 1054.659516 | H50: =G50+0.3*H58 -> 1264.419032 | I50: 1354.315968 | J50: 1444.212903 | K50: 1534.109839 | L50: 1624.006774 | M50: 1713.90371 | N50: 1719.896839 | O50: 1725.889968 | P50: 1731.883097 | Q50: 1737.876226 | R50: 1743.869355 | S50: 1785.821258 | T50: 1827.773161 | U50: 1869.725065 | V50: 1911.676968
A51: Uhelné elektrárny | B51: MW | C51: 5245 | D51: 4945 | E51: 5500 | F51: =5500 -> 5500 | G51: =AA46 -> 4879.032258 | H51: 4258.064516 | I51: 3991.935484 | J51: 3725.806452 | K51: 3459.677419 | L51: 3193.548387 | M51: 2927.419355 | N51: 2909.677419 | O51: 2891.935484 | P51: 2874.193548 | Q51: 2856.451613 | R51: 2838.709677 | S51: 2714.516129 | T51: 2590.322581 | U51: 2466.129032 | V51: 2341.935484
A52: Teplárny | B52: MW | C52: 876.7 | D52: 876.7 | E52: 692.9 | F52: =613.9+79 -> 692.9 | G52: 614.6693548 | H52: 536.4387097 | I52: 502.9112903 | J52: 469.383871 | K52: 435.8564516 | L52: 402.3290323 | M52: 368.8016129 | N52: 366.5664516 | O52: 364.3312903 | P52: 362.096129 | Q52: 359.8609677 | R52: 357.6258065 | S52: 341.9796774 | T52: 326.3335484 | U52: 310.6874194 | V52: 295.0412903
A53: Vodní elektrárny | B53: MW | C53: 1960.2 | D53: 1960.2 | E53: 1961.1 | F53: =1892.8+68.3 -> 1961.1 | G53: =1892.8+68.3 -> 1961.1 | H53: =1892.8+68.3 -> 1961.1 | I53: 1961.1 | J53: 1961.1 | K53: 1961.1 | L53: 1961.1 | M53: 1961.1 | N53: 1961.1 | O53: 1961.1 | P53: 1961.1 | Q53: 1961.1 | R53: 2100 | S53: 2100 | T53: 2200 | U53: 2250 | V53: 2250
A54: Kogenerační jednotky, kotelny, bioplynové stanice,biomasa | B54: MW | C54: 0.5 | D54: 0.5 | E54: 0.5 | F54: =0.4+95.5+0.5 -> 96.4 | G54: 110 | H54: 120 | I54: 140 | J54: 150 | K54: 170 | L54: 190 | M54: 190 | N54: 220 | O54: 230 | P54: 240 | Q54: 240 | R54: 270 | S54: 290 | T54: 330 | U54: 360 | V54: 390
A55: Fotovoltaické elektrárny | B55: MW | C55: 125.2 | D55: 125.2 | E55: 125.2 | F55: =125.2 -> 125.2 | G55: =125.2 -> 125.2 | H55: 130 | I55: 140 | J55: 160 | K55: 170 | L55: 190 | M55: 210 | N55: 240 | O55: 270 | P55: 310 | Q55: 340 | R55: 370 | S55: 410 | T55: 450 | U55: 480 | V55: 520
A56: Větrné elektrárny | B56: MW | C56: 8.2 | D56: 8.2 | E56: 8.2 | F56: =8.2 -> 8.2 | G56: =8.2 -> 8.2 | H56: 9 | I56: 13 | J56: 15 | K56: 20 | L56: 27 | M56: 40 | N56: 45 | O56: 60 | P56: 75 | Q56: 90 | R56: 105 | S56: 115 | T56: 120 | U56: 125 | V56: 130
A57: instalovaný výkon elektráren | B57: MW | C57: =SUM(C49:C56)-C52 -> 12474 | D57: =SUM(D49:D56)-D52 -> 12174 | E57: =SUM(E49:E56)-E52 -> 12729.9 | F57: 12825.8 | G57: =SUM(G49:G56)-G52 -> 12428.19177 | H57: 12032.58355 | I57: 11890.35145 | J57: 11746.11935 | K57: 11604.88726 | L57: 11475.65516 | M57: 11332.42306 | N57: =SUM(N49:N56)-N52 -> 11385.67426 | O57: 11428.92545 | P57: 11482.17665 | Q57: 11515.42784 | R57: 11717.57903 | S57: 11705.33739 | T57: 11808.09574 | U57: 11840.8541 | V57: 11833.61245
A58: Odstavený výkon uhelných výrobních zdrojů | B58: MW | G58: =-(G51-F51)-(G52-F52) -> 699.1983871 | H58: =-(H51-G51)-(H52-G52) -> 699.1983871 | I58: 299.6564516 | J58: 299.6564516 | K58: 299.6564516 | L58: 299.6564516 | M58: 299.6564516 | N58: 19.97709677 | O58: 19.97709677 | P58: 19.97709677 | Q58: 19.97709677 | R58: 19.97709677 | S58: 139.8396774 | T58: 139.8396774 | U58: 139.8396774 | V58: 139.8396774
A61: Zahraničí | B61: Rok | C61: 2015 | D61: 2016 | E61: 2017 | F61: 2018 | G61: 2019 | H61: 2020 | I61: 2021 | J61: 2022 | K61: 2023 | L61: 2024 | M61: 2025 | N61: 2026 | O61: 2027 | P61: 2028 | Q61: 2029 | R61: 2030 | S61: 2031 | T61: 2032 | U61: 2033 | V61: 2034
A62: Jaderné elektrárny | B62: MW | C62: 0 | D62: 0 | E62: 0 | F62: 0 | G62: 0 | H62: 0 | I62: 0 | J62: 0 | K62: 0 | L62: 0 | M62: 0 | N62: 0 | O62: 0 | P62: 0 | Q62: 0 | R62: 0 | S62: 0 | T62: 0 | U62: 0 | V62: 0
A63: Paroplynové elektrárny | B63: MW | C63: 0 | D63: 0 | E63: 0 | F63: 0 | G63: 0 | H63: 0 | I63: 0 | J63: 0 | K63: 0 | L63: 0 | M63: 0 | N63: 0 | O63: 0 | P63: 0 | Q63: 0 | R63: 0 | S63: 0 | T63: 0 | U63: 0 | V63: 0
A64: Uhelné elektrárny | B64: MW | C64: 678 | D64: 678 | E64: 678 | F64: 678.4 | G64: 678.4 | H64: 678.4 | I64: 0 | J64: 0 | K64: 0 | L64: 0 | M64: 0 | N64: 0 | O64: 0 | P64: 0 | Q64: 0 | R64: 0 | S64: 0 | T64: 0 | U64: 0 | V64: 0
A65: Teplárny | B65: MW | C65: 0 | D65: 0 | E65: 0 | F65: 0 | G65: 0 | H65: 0 | I65: 0 | J65: 0 | K65: 0 | L65: 0 | M65: 0 | N65: 0 | O65: 0 | P65: 0 | Q65: 0 | R65: 0 | S65: 0 | T65: 0 | U65: 0 | V65: 0
A66: Vodní elektrárny | B66: MW | C66: =2+22 -> 24 | D66: =2+22 -> 24 | E66: =2+22 -> 24 | F66: =2+22 -> 24 | G66: =2+22 -> 24 | H66: 24 | I66: 24 | J66: 24 | K66: 24 | L66: 24 | M66: 24 | N66: 24 | O66: 24 | P66: 24 | Q66: 24 | R66: 24 | S66: 24 | T66: 24 | U66: 24 | V66: 24
A67: Kogenerační jednotky, kotelny, bioplynové stanice,biomasa | B67: MW | C67: 2 | D67: 2 | E67: 2 | F67: 2 | G67: 2.2 | H67: 2.2 | I67: 2.2 | J67: 2.2 | K67: 2.2 | L67: 2.2 | M67: 2.2 | N67: 2.2 | O67: 2.2 | P67: 2.2 | Q67: 2.2 | R67: 2.2 | S67: 2.2 | T67: 2.2 | U67: 2.2 | V67: 2.2
A68: Fotovoltaické elektrárny | B68: MW | C68: 5 | D68: 5 | E68: 5 | F68: 5 | G68: 5 | H68: 5 | I68: 5 | J68: 5 | K68: 5 | L68: 5 | M68: 5 | N68: 5 | O68: 5 | P68: 5 | Q68: 5 | R68: 5 | S68: 5 | T68: 5 | U68: 5 | V68: 5
A69: Větrné elektrárny | B69: MW | C69: =134+600 -> 734 | D69: =134+600 -> 734 | E69: =134+600 -> 734 | F69: =134+600 -> 734 | G69: =134+600 -> 734 | H69: 734 | I69: 0 | J69: 0 | K69: 0 | L69: 0 | M69: 0 | N69: 0 | O69: 0 | P69: 0 | Q69: 0 | R69: 0 | S69: 0 | T69: 0 | U69: 0 | V69: 0
A70: instalovaný výkon elektráren | B70: MW | C70: =SUM(C62:C69) -> 1443 | D70: 1443 | E70: =SUM(E62:E69) -> 1443 | F70: =SUM(F62:F69) -> 1443.4 | G70: =SUM(G62:G69) -> 1443.6 | H70: 1443.6 | I70: 31.2 | J70: 31.2 | K70: 31.2 | L70: 31.2 | M70: 31.2 | N70: 31.2 | O70: 31.2 | P70: 31.2 | Q70: 31.2 | R70: 31.2 | S70: 31.2 | T70: 31.2 | U70: 31.2 | V70: 31.2
A72: Vztažný rok 2018 | B72: palivo | C72: jednotka | D72: Pins | E72: Tm | G72: Vztažný rok 2018-zahraničí | I72: palivo | J72: jednotka | K72: Pins | L72: Tm | O72: Teplárny
A73: Jaderné elektrárny | B73: uran | C73: MW | D73: =F49 -> 4290 | E73: =F17/D73*1000 -> 6974.358974 | G73: Jaderné elektrárny | I73: uran | J73: MW | K73: =F62 -> 0 | L73: =IF(K73=0,0,F27/K73)*1000 -> 0 | O73: ČR | P73: 693 | Q73: MW
A74: Paroplynové elektrárny | B74: plyn | C74: MW | D74: =F50 -> 844.9 | E74: =F23/D74*1000 -> 2242.868979 | G74: Paroplynové elektrárny | I74: plyn | J74: MW | K74: =F63 -> 0 | L74: =IF(K74=0,0,F33/K74)*1000 -> 0 | O74: Zahraničí | P74: 0 | Q74: MW
A75: Uhelné elektrárny | B75: hnědé uhlí | C75: MW | D75: =F51 -> 5500 | E75: =F18/D75*1000 -> 4439.272727 | G75: Uhelné elektrárny | I75: hnědé uhlí | J75: MW | K75: =F64 -> 678.4 | L75: =IF(K75=0,0,F28/K75)*1000 -> 3769.162736
A76: Vodní elektrárny | B76: voda | C76: MW | D76: =F53 -> 1961.1 | E76: =F19/D76*1000 -> 961.1952476 | G76: Vodní elektrárny | I76: voda | J76: MW | K76: =F66 -> 24 | L76: =IF(K76=0,0,F29/K76)*1000 -> 3708.333333 | O76: Elektrárny spoluvlastněný v Turecku
A77: Ostatní (Kogenerační jednotky, kotelny, bioplynové stanice,biomasa) | B77: ostatní | C77: MW | D77: =F54 -> 96.4 | E77: =F20/D77*1000 -> 5549.792531 | G77: Ostatní | I77: ostatní | J77: MW | K77: =F67 -> 2 | O77: Vodní elektrárny | Q77: MW | R77: 289 | T77: Turecké společnosti jsou konsolidovány ekvivalenční metodou, a proto nejsou ani jejich výroba, ani instalovaný výkon zahrnuty v souhrnných číslech za Skupinu ČEZ.
A78: Fotovoltaické elektrárny | B78: slunce | C78: MW | D78: =F55 -> 125.2 | E78: =F21/D78*1000 -> 1118.210863 | G78: Fotovoltaické elektrárny | I78: slunce | J78: MW | K78: =F68 -> 5 | L78: =IF(K78=0,0,F31/K78)*1000 -> 1200 | O78: Paroplynové elektrárny | Q78: MW | R78: 904
A79: Větrné elektrárny | B79: vítr | C79: MW | D79: =F56 -> 8.2 | E79: =F22/D79*1000 -> 1097.560976 | G79: Větrné elektrárny | I79: vítr | J79: MW | K79: =F69 -> 734 | L79: =IF(K79=0,0,F32/K79)*1000 -> 1867.847411 | O79: Větrné elektrárny | Q79: MW | R79: 28
B83: Rok | C83: 2015 | D83: 2016 | E83: 2017 | F83: 2018 | G83: 2019 | H83: 2020 | I83: 2021 | J83: 2022 | K83: 2023 | L83: 2024 | M83: 2025 | N83: 2026 | O83: 2027 | P83: 2028 | Q83: 2029 | R83: 2030 | S83: 2031 | T83: 2032 | U83: 2033 | V83: 2034
A84: Prodej silové elektřiny koncovým zákazníkům | B84: mil. Kč | C84: =výsledovka!B3 -> 54742 | D84: =výsledovka!C3 -> 50159 | E84: =výsledovka!D3 -> 48504 | F84: =výsledovka!E3 -> 45941 | G84: =$B$103*$R$104*'citl. analýza a ceny komodit'!R30*eskalace!B12 -> 44482.80967 | H84: =$B$103*$R$104*'citl. analýza a ceny komodit'!S30*eskalace!C12 -> 46701.95613 | I84: =$B$103*$R$104*'citl. analýza a ceny komodit'!T30*eskalace!D12 -> 51131.61297 | J84: =$B$103*$R$104*'citl. analýza a ceny komodit'!U30*eskalace!E12 -> 54741.17262 | K84: =$B$103*$R$104*'citl. analýza a ceny komodit'!V30*eskalace!F12 -> 59454.07695 | L84: =$B$103*$R$104*'citl. analýza a ceny komodit'!W30*eskalace!G12 -> 62050.77545 | M84: =$B$103*$R$104*'citl. analýza a ceny komodit'!X30*eskalace!H12 -> 65982.97752 | N84: =$B$103*$R$104*'citl. analýza a ceny komodit'!Y30*eskalace!I12 -> 68986.29891 | O84: =$B$103*$R$104*'citl. analýza a ceny komodit'!Z30*eskalace!J12 -> 73492.07672 | P84: =$B$103*$R$104*'citl. analýza a ceny komodit'!AA30*eskalace!K12 -> 77075.3927 | Q84: =$B$103*$R$104*'citl. analýza a ceny komodit'!AB30*eskalace!L12 -> 80798.13866 | R84: =$B$103*$R$104*'citl. analýza a ceny komodit'!AC30*eskalace!M12 -> 82985.00923 | S84: =$B$103*$R$104*'citl. analýza a ceny komodit'!AD30*eskalace!N12 -> 86823.65729 | T84: =$B$103*$R$104*'citl. analýza a ceny komodit'!AE30*eskalace!O12 -> 90547.40119 | U84: =$B$103*$R$104*'citl. analýza a ceny komodit'!AF30*eskalace!P12 -> 93175.39847 | V84: =$B$103*$R$104*'citl. analýza a ceny komodit'!AG30*eskalace!Q12 -> 96341.21999
A85: Prodej prostřednictvím energetické burzy | B85: mil. Kč | C85: =výsledovka!B4 -> 4920 | D85: =výsledovka!C4 -> 4766 | E85: =výsledovka!D4 -> 3669 | F85: =výsledovka!E4 -> 4134 | G85: =$B$104/$F$14*G14*'citl. analýza a ceny komodit'!R30 -> 3866.758091 | H85: =$B$104/$F$14*H14*'citl. analýza a ceny komodit'!S30 -> 3880.949159 | I85: =$B$104/$F$14*I14*'citl. analýza a ceny komodit'!T30 -> 3871.003153 | J85: =$B$104/$F$14*J14*'citl. analýza a ceny komodit'!U30 -> 4037.653515 | K85: =$B$104/$F$14*K14*'citl. analýza a ceny komodit'!V30 -> 4270.838474 | L85: =$B$104/$F$14*L14*'citl. analýza a ceny komodit'!W30 -> 4348.037817 | M85: =$B$104/$F$14*M14*'citl. analýza a ceny komodit'!X30 -> 4495.385202 | N85: =$B$104/$F$14*N14*'citl. analýza a ceny komodit'!Y30 -> 4674.403871 | O85: =$B$104/$F$14*O14*'citl. analýza a ceny komodit'!Z30 -> 4940.621556 | P85: =$B$104/$F$14*P14*'citl. analýza a ceny komodit'!AA30 -> 5142.968775 | Q85: =$B$104/$F$14*Q14*'citl. analýza a ceny komodit'!AB30 -> 5342.957802 | R85: =$B$104/$F$14*R14*'citl. analýza a ceny komodit'!AC30 -> 5468.553671 | S85: =$B$104/$F$14*S14*'citl. analýza a ceny komodit'!AD30 -> 5638.642676 | T85: =$B$104/$F$14*T14*'citl. analýza a ceny komodit'!AE30 -> 5817.080512 | U85: =$B$104/$F$14*U14*'citl. analýza a ceny komodit'!AF30 -> 5908.862063 | V85: =$B$104/$F$14*V14*'citl. analýza a ceny komodit'!AG30 -> 6027.909953
A86: Prodej obchodníkům | B86: mil. Kč | C86: =výsledovka!B5 -> 35672 | D86: =výsledovka!C5 -> 37138 | E86: =výsledovka!D5 -> 35524 | F86: =výsledovka!E5 -> 36830 | G86: =$B$105/$F$14*G14*'citl. analýza a ceny komodit'!R30 -> 34449.12929 | H86: =$B$105/$F$14*H14*'citl. analýza a ceny komodit'!S30 -> 34575.55818 | I86: =$B$105/$F$14*I14*'citl. analýza a ceny komodit'!T30 -> 34486.94875 | J86: =$B$105/$F$14*J14*'citl. analýza a ceny komodit'!U30 -> 35971.64464 | K86: =$B$105/$F$14*K14*'citl. analýza a ceny komodit'!V30 -> 38049.10039 | L86: =$B$105/$F$14*L14*'citl. analýza a ceny komodit'!W30 -> 38736.87296 | M86: =$B$105/$F$14*M14*'citl. analýza a ceny komodit'!X30 -> 40049.59772 | N86: =$B$105/$F$14*N14*'citl. analýza a ceny komodit'!Y30 -> 41644.48345 | O86: =$B$105/$F$14*O14*'citl. analýza a ceny komodit'!Z30 -> 44016.2293 | P86: =$B$105/$F$14*P14*'citl. analýza a ceny komodit'!AA30 -> 45818.95017 | Q86: =$B$105/$F$14*Q14*'citl. analýza a ceny komodit'!AB30 -> 47600.66179 | R86: =$B$105/$F$14*R14*'citl. analýza a ceny komodit'!AC30 -> 48719.60128 | S86: =$B$105/$F$14*S14*'citl. analýza a ceny komodit'!AD30 -> 50234.93221 | T86: =$B$105/$F$14*T14*'citl. analýza a ceny komodit'!AE30 -> 51824.64327 | U86: =$B$105/$F$14*U14*'citl. analýza a ceny komodit'!AF30 -> 52642.32941 | V86: =$B$105/$F$14*V14*'citl. analýza a ceny komodit'!AG30 -> 53702.93265
A87: Prodej distribučním a přenosovým společnostem | B87: mil. Kč | C87: =výsledovka!B6 -> 344 | D87: =výsledovka!C6 -> 324 | E87: =výsledovka!D6 -> 239 | F87: =výsledovka!E6 -> 177 | G87: =$B$106/$F$14*G14*'citl. analýza a ceny komodit'!R30 -> 165.5578573 | H87: =$B$106/$F$14*H14*'citl. analýza a ceny komodit'!S30 -> 166.1654574 | I87: =$B$106/$F$14*I14*'citl. analýza a ceny komodit'!T30 -> 165.7396125 | J87: =$B$106/$F$14*J14*'citl. analýza a ceny komodit'!U30 -> 172.8748602 | K87: =$B$106/$F$14*K14*'citl. analýza a ceny komodit'!V30 -> 182.8588316 | L87: =$B$106/$F$14*L14*'citl. analýza a ceny komodit'!W30 -> 186.1641736 | M87: =$B$106/$F$14*M14*'citl. analýza a ceny komodit'!X30 -> 192.4729513 | N87: =$B$106/$F$14*N14*'citl. analýza a ceny komodit'!Y30 -> 200.1377564 | O87: =$B$106/$F$14*O14*'citl. analýza a ceny komodit'!Z30 -> 211.5360463 | P87: =$B$106/$F$14*P14*'citl. analýza a ceny komodit'!AA30 -> 220.1996791 | Q87: =$B$106/$F$14*Q14*'citl. analýza a ceny komodit'!AB30 -> 228.7623442 | R87: =$B$106/$F$14*R14*'citl. analýza a ceny komodit'!AC30 -> 234.1398161 | S87: =$B$106/$F$14*S14*'citl. analýza a ceny komodit'!AD30 -> 241.4222916 | T87: =$B$106/$F$14*T14*'citl. analýza a ceny komodit'!AE30 -> 249.062228 | U87: =$B$106/$F$14*U14*'citl. analýza a ceny komodit'!AF30 -> 252.9919171 | V87: =$B$106/$F$14*V14*'citl. analýza a ceny komodit'!AG30 -> 258.0890328
A88: Ostatní prodej elektřiny | B88: mil. Kč | C88: =výsledovka!B7+výsledovka!B8+výsledovka!B9 -> 16969 | D88: =výsledovka!C7+výsledovka!C8+výsledovka!C9 -> 16685 | E88: =výsledovka!D7+výsledovka!D8+výsledovka!D9 -> 16137 | F88: =výsledovka!E7+výsledovka!E8+výsledovka!E9 -> 16015 | G88: =$B$107*'citl. analýza a ceny komodit'!R30 -> 15377.45359 | H88: =$B$107*'citl. analýza a ceny komodit'!S30 -> 16010.06153 | I88: =$B$107*'citl. analýza a ceny komodit'!T30 -> 17382.53601 | J88: =$B$107*'citl. analýza a ceny komodit'!U30 -> 18454.54986 | K88: =$B$107*'citl. analýza a ceny komodit'!V30 -> 19876.3537 | L88: =$B$107*'citl. analýza a ceny komodit'!W30 -> 20571.59682 | M88: =$B$107*'citl. analýza a ceny komodit'!X30 -> 21692.94003 | N88: =$B$107*'citl. analýza a ceny komodit'!Y30 -> 22491.32635 | O88: =$B$107*'citl. analýza a ceny komodit'!Z30 -> 23760.65763 | P88: =$B$107*'citl. analýza a ceny komodit'!AA30 -> 24711.51651 | Q88: =$B$107*'citl. analýza a ceny komodit'!AB30 -> 25689.2085 | R88: =$B$107*'citl. analýza a ceny komodit'!AC30 -> 26164.63794 | S88: =$B$107*'citl. analýza a ceny komodit'!AD30 -> 27146.81442 | T88: =$B$107*'citl. analýza a ceny komodit'!AE30 -> 28075.17705 | U88: =$B$107*'citl. analýza a ceny komodit'!AF30 -> 28649.2652 | V88: =$B$107*'citl. analýza a ceny komodit'!AG30 -> 29375.82591
A89: Prodej plynu | B89: mil. Kč | C89: =výsledovka!B12 -> 8294 | D89: =výsledovka!C12 -> 9214 | E89: =výsledovka!D12 -> 7345 | F89: =výsledovka!E12 -> 7072 | G89: =$B$113*'citl. analýza a ceny komodit'!R46 -> 6373.905579 | H89: =$B$113*'citl. analýza a ceny komodit'!S46 -> 5463.347639 | I89: =$B$113*'citl. analýza a ceny komodit'!T46 -> 6070.386266 | J89: =$B$113*'citl. analýza a ceny komodit'!U46 -> 6373.905579 | K89: =$B$113*'citl. analýza a ceny komodit'!V46 -> 6980.944206 | L89: =$B$113*'citl. analýza a ceny komodit'!W46 -> 6677.424893 | M89: =$B$113*'citl. analýza a ceny komodit'!X46 -> 6980.944206 | N89: =$B$113*'citl. analýza a ceny komodit'!Y46 -> 6980.944206 | O89: =$B$113*'citl. analýza a ceny komodit'!Z46 -> 7284.463519 | P89: =$B$113*'citl. analýza a ceny komodit'!AA46 -> 7587.982833 | Q89: =$B$113*'citl. analýza a ceny komodit'!AB46 -> 7891.502146 | R89: =$B$113*'citl. analýza a ceny komodit'!AC46 -> 7587.982833 | S89: =$B$113*'citl. analýza a ceny komodit'!AD46 -> 8195.021459 | T89: =$B$113*'citl. analýza a ceny komodit'!AE46 -> 8498.540773 | U89: =$B$113*'citl. analýza a ceny komodit'!AF46 -> 8195.021459 | V89: =$B$113*'citl. analýza a ceny komodit'!AG46 -> 8195.021459
A90: Prodej uhlí | B90: mil. Kč | C90: =výsledovka!B13 -> 4331 | D90: =výsledovka!C13 -> 4518 | E90: =výsledovka!D13 -> 4593 | F90: =výsledovka!E13 -> 4489 | G90: =$B$108*'citl. analýza a ceny komodit'!R55*eskalace!B18 -> 3232.08 | H90: =$B$108*'citl. analýza a ceny komodit'!S55*eskalace!C18 -> 3049.770487 | I90: =$B$108*'citl. analýza a ceny komodit'!T55*eskalace!D18 -> 3019.272783 | J90: =$B$108*'citl. analýza a ceny komodit'!U55*eskalace!E18 -> 2842.076118 | K90: =$B$108*'citl. analýza a ceny komodit'!V55*eskalace!F18 -> 2862.166656 | L90: =$B$108*'citl. analýza a ceny komodit'!W55*eskalace!G18 -> 2785.518803 | M90: =$B$108*'citl. analýza a ceny komodit'!X55*eskalace!H18 -> 2662.571766 | N90: =$B$108*'citl. analýza a ceny komodit'!Y55*eskalace!I18 -> 2541.805118 | O90: =$B$108*'citl. analýza a ceny komodit'!Z55*eskalace!J18 -> 2562.986827 | P90: =$B$108*'citl. analýza a ceny komodit'!AA55*eskalace!K18 -> 2445.089433 | Q90: =$B$108*'citl. analýza a ceny komodit'!AB55*eskalace!L18 -> 2511.98339 | R90: =$B$108*'citl. analýza a ceny komodit'!AC55*eskalace!M18 -> 2396.432154 | S90: =$B$108*'citl. analýza a ceny komodit'!AD55*eskalace!N18 -> 2327.704288 | T90: =$B$108*'citl. analýza a ceny komodit'!AE55*eskalace!O18 -> 2348.743154 | U90: =$B$108*'citl. analýza a ceny komodit'!AF55*eskalace!P18 -> 2325.255722 | V90: =$B$108*'citl. analýza a ceny komodit'!AG55*eskalace!Q18 -> 2302.003165
A91: Prodej tepla | B91: mil. Kč | C91: =výsledovka!B14 -> 6443 | D91: =výsledovka!C14 -> 6877 | E91: =výsledovka!D14 -> 6727 | F91: =výsledovka!E14 -> 6792 | G91: =$F$91*eskalace!B24*eskalace!B31 -> 6085.412903 | H91: =$F$91*eskalace!C24*eskalace!C31 -> 5364.014865 | I91: =$F$91*eskalace!D24*eskalace!D31 -> 5079.051575 | J91: =$F$91*eskalace!E24*eskalace!E31 -> 4787.852618 | K91: =$F$91*eskalace!F24*eskalace!F31 -> 4490.321777 | L91: =$F$91*eskalace!G24*eskalace!G31 -> 4186.361533 | M91: =$F$91*eskalace!H24*eskalace!H31 -> 3875.873053 | N91: =$F$91*eskalace!I24*eskalace!I31 -> 3890.906742 | O91: =$F$91*eskalace!J24*eskalace!J31 -> 3905.853518 | P91: =$F$91*eskalace!K24*eskalace!K31 -> 3920.710139 | Q91: =$F$91*eskalace!L24*eskalace!L31 -> 3935.473307 | R91: =$F$91*eskalace!M24*eskalace!M31 -> 3950.139667 | S91: =$F$91*eskalace!N24*eskalace!N31 -> 3815.094267 | T91: =$F$91*eskalace!O24*eskalace!O31 -> 3676.952945 | U91: =$F$91*eskalace!P24*eskalace!P31 -> 3535.667288 | V91: =$F$91*eskalace!Q24*eskalace!Q31 -> 3391.188221
A92: Distribuční služby a ostatní služby | B92: mil. Kč | C92: ='Prognózy výkazů'!D13 -> 69458 | D92: ='Prognózy výkazů'!E13 -> 65872 | E92: ='Prognózy výkazů'!F13+'Prognózy výkazů'!F14 -> 76262 | F92: ='Prognózy výkazů'!G13+'Prognózy výkazů'!G14 -> 59868 | G92: 71325 | H92: =G92*(1+$X$92) -> 71396.325 | I92: =H92*(1+$X$92) -> 71467.72132 | J92: 71539.18905 | K92: 71610.72824 | L92: 71682.33896 | M92: 71754.0213 | N92: 71825.77532 | O92: 71897.6011 | P92: 71969.4987 | Q92: 72041.4682 | R92: 72113.50967 | S92: 72185.62318 | T92: 72257.8088 | U92: 72330.06661 | V92: 72402.39668 | X92: 0.001
A93: Nákup elektřiny pro další prodej | B93: mil. Kč | C93: =výsledovka!B65 -> -90905 | D93: =výsledovka!C65 -> -88294 | E93: =výsledovka!D54 -> -48128 | F93: =výsledovka!E54 -> -44611 | G93: =$B$112*'citl. analýza a ceny komodit'!R30*1000*eskalace!B12 -> -43195.02453 | H93: =$B$112*'citl. analýza a ceny komodit'!S30*1000*eskalace!C12 -> -45349.92632 | I93: =$B$112*'citl. analýza a ceny komodit'!T30*1000*eskalace!D12 -> -49651.34381 | J93: =$B$112*'citl. analýza a ceny komodit'!U30*1000*eskalace!E12 -> -53156.40608 | K93: =$B$112*'citl. analýza a ceny komodit'!V30*1000*eskalace!F12 -> -57732.871 | L93: =$B$112*'citl. analýza a ceny komodit'!W30*1000*eskalace!G12 -> -60254.39463 | M93: =$B$112*'citl. analýza a ceny komodit'!X30*1000*eskalace!H12 -> -64072.75876 | N93: =$B$112*'citl. analýza a ceny komodit'!Y30*1000*eskalace!I12 -> -66989.13346 | O93: =$B$112*'citl. analýza a ceny komodit'!Z30*1000*eskalace!J12 -> -71364.46823 | P93: =$B$112*'citl. analýza a ceny komodit'!AA30*1000*eskalace!K12 -> -74844.04658 | Q93: =$B$112*'citl. analýza a ceny komodit'!AB30*1000*eskalace!L12 -> -78459.01839 | R93: =$B$112*'citl. analýza a ceny komodit'!AC30*1000*eskalace!M12 -> -80582.57867 | S93: =$B$112*'citl. analýza a ceny komodit'!AD30*1000*eskalace!N12 -> -84310.0972 | T93: =$B$112*'citl. analýza a ceny komodit'!AE30*1000*eskalace!O12 -> -87926.03806 | U93: =$B$112*'citl. analýza a ceny komodit'!AF30*1000*eskalace!P12 -> -90477.95436 | V93: =$B$112*'citl. analýza a ceny komodit'!AG30*1000*eskalace!Q12 -> -93552.12479
A94: Nákup plynu pro další prodej | B94: mil. Kč | E94: =výsledovka!D55 -> -5409 | F94: =výsledovka!E55 -> -5211 | G94: =$B$115*'citl. analýza a ceny komodit'!R46 -> -4696.609442 | H94: =$B$115*'citl. analýza a ceny komodit'!S46 -> -4025.665236 | I94: =$B$115*'citl. analýza a ceny komodit'!T46 -> -4472.961373 | J94: =$B$115*'citl. analýza a ceny komodit'!U46 -> -4696.609442 | K94: =$B$115*'citl. analýza a ceny komodit'!V46 -> -5143.905579 | L94: =$B$115*'citl. analýza a ceny komodit'!W46 -> -4920.257511 | M94: =$B$115*'citl. analýza a ceny komodit'!X46 -> -5143.905579 | N94: =$B$115*'citl. analýza a ceny komodit'!Y46 -> -5143.905579 | O94: =$B$115*'citl. analýza a ceny komodit'!Z46 -> -5367.553648 | P94: =$B$115*'citl. analýza a ceny komodit'!AA46 -> -5591.201717 | Q94: =$B$115*'citl. analýza a ceny komodit'!AB46 -> -5814.849785 | R94: =$B$115*'citl. analýza a ceny komodit'!AC46 -> -5591.201717 | S94: =$B$115*'citl. analýza a ceny komodit'!AD46 -> -6038.497854 | T94: =$B$115*'citl. analýza a ceny komodit'!AE46 -> -6262.145923 | U94: =$B$115*'citl. analýza a ceny komodit'!AF46 -> -6038.497854 | V94: =$B$115*'citl. analýza a ceny komodit'!AG46 -> -6038.497854
A95: Nákup ostatních energií | B95: mil. Kč | E95: =výsledovka!D56 -> -3816 | F95: =výsledovka!E56 -> -2346 | G95: =AVERAGE(E95:F95) -> -3081 | H95: =AVERAGE(F95:G95) -> -2713.5 | I95: =AVERAGE(G95:H95) -> -2897.25 | J95: -2805.375 | K95: -2851.3125 | L95: -2828.34375 | M95: -2839.828125 | N95: -2834.085938 | O95: -2836.957031 | P95: -2835.521484 | Q95: -2836.239258 | R95: -2835.880371 | S95: -2836.059814 | T95: -2835.970093 | U95: -2836.014954 | V95: -2835.992523
A96: Nákup služeb přenosové soustavy a distribučních služeb | B96: mil. Kč | E96: =výsledovka!D60+výsledovka!D61 -> -29517 | F96: =výsledovka!E60+výsledovka!E61 -> -5219 | G96: -11824 | H96: =G96*(1+$X$96) -> -11883.12 | I96: =H96*(1+0.01) -> -12001.9512 | J96: -12121.97071 | K96: -12243.19042 | L96: -12365.62232 | M96: -12489.27855 | N96: -12614.17133 | O96: -12740.31305 | P96: -12867.71618 | Q96: -12996.39334 | R96: -13126.35727 | S96: -13257.62084 | T96: -13390.19705 | U96: -13524.09902 | V96: =U96*(1+0.01) -> -13659.34001 | X96: 0.005
A97: Odpisy celkem | B97: mil. Kč | C97: =výsledovka!B121 -> -28619 | D97: =výsledovka!C121 -> -28978 | E97: =výsledovka!D121 -> -29305 | F97: =výsledovka!E121 -> -28139 | G97: =$B$109*G46 -> -27355.30715 | H97: =$B$109*H46 -> -26575.16391 | I97: =$B$109*I46 -> -23509.41442 | J97: -23224.98734 | K97: -22946.47628 | L97: -22691.62934 | M97: -22409.17426 | N97: -22514.18613 | O97: -22599.4779 | P97: -22704.48977 | Q97: -22770.06144 | R97: -23168.70555 | S97: -23144.5649 | T97: -23347.20537 | U97: -23411.80516 | V97: -23397.52457
A98: Spotřeba fosilního paliva a biomasy | B98: mil. Kč | C98: =výsledovka!B47 -> -9637 | D98: =výsledovka!C47 -> -9992 | E98: =výsledovka!D47 -> -7178 | F98: =výsledovka!E47 -> -7236 | G98: =$B$110*G4*'citl. analýza a ceny komodit'!R54 -> -4724.712419 | H98: =$B$110*H4*'citl. analýza a ceny komodit'!S54 -> -3990.619413 | I98: =$B$110*I4*'citl. analýza a ceny komodit'!T54 -> -3295.427862 | J98: =$B$110*J4*'citl. analýza a ceny komodit'!U54 -> -2924.46713 | K98: =$B$110*K4*'citl. analýza a ceny komodit'!V54 -> -2762.396907 | L98: =$B$110*L4*'citl. analýza a ceny komodit'!W54 -> -2506.686111 | M98: =$B$110*M4*'citl. analýza a ceny komodit'!X54 -> -2218.561271 | N98: =$B$110*N4*'citl. analýza a ceny komodit'!Y54 -> -2126.361322 | O98: =$B$110*O4*'citl. analýza a ceny komodit'!Z54 -> -2152.532662 | P98: =$B$110*P4*'citl. analýza a ceny komodit'!AA54 -> -2061.533233 | Q98: =$B$110*Q4*'citl. analýza a ceny komodit'!AB54 -> -2126.121218 | R98: =$B$110*R4*'citl. analýza a ceny komodit'!AC54 -> -2036.082205 | S98: =$B$110*S4*'citl. analýza a ceny komodit'!AD54 -> -1910.267692 | T98: =$B$110*T4*'citl. analýza a ceny komodit'!AE54 -> -1857.925012 | U98: =$B$110*U4*'citl. analýza a ceny komodit'!AF54 -> -1768.846416 | V98: =$B$110*V4*'citl. analýza a ceny komodit'!AG54 -> -1679.767819
A99: Spotřeba plynu | B99: mil. Kč | E99: =výsledovka!D48 -> -1799 | F99: =výsledovka!E48 -> -2712 | G99: =$B$111*G9*'citl. analýza a ceny komodit'!R46 -> -3508.793944 | H99: =$B$111*H9*'citl. analýza a ceny komodit'!S46 -> -3605.701942 | I99: =$B$111*I9*'citl. analýza a ceny komodit'!T46 -> -4291.175622 | J99: =$B$111*J9*'citl. analýza a ceny komodit'!U46 -> -4804.816541 | K99: =$B$111*K9*'citl. analýza a ceny komodit'!V46 -> -5589.984268 | L99: =$B$111*L9*'citl. analýza a ceny komodit'!W46 -> -5660.265618 | M99: =$B$111*M9*'citl. analýza a ceny komodit'!X46 -> -6245.11657 | N99: =$B$111*N9*'citl. analýza a ceny komodit'!Y46 -> -6266.954313 | O99: =$B$111*O9*'citl. analýza a ceny komodit'!Z46 -> -6562.217798 | P99: =$B$111*P9*'citl. analýza a ceny komodit'!AA46 -> -6859.380217 | Q99: =$B$111*Q9*'citl. analýza a ceny komodit'!AB46 -> -7158.441571 | R99: =$B$111*R9*'citl. analýza a ceny komodit'!AC46 -> -6906.853573 | S99: =$B$111*S9*'citl. analýza a ceny komodit'!AD46 -> -7638.851141 | T99: =$B$111*T9*'citl. analýza a ceny komodit'!AE46 -> -8107.867106 | U99: =$B$111*U9*'citl. analýza a ceny komodit'!AF46 -> -7997.749707 | V99: =$B$111*V9*'citl. analýza a ceny komodit'!AG46 -> -8177.198989
A100: Emisní povolenky | B100: mil. Kč | C100: =výsledovka!B50 -> -1711 | D100: =výsledovka!C50 -> -520 | E100: =výsledovka!D50 -> -3337 | F100: =výsledovka!E50 -> -5089 | G100: =$B$114*'citl. analýza a ceny komodit'!R38*(G40/F40)*(G41/F41)*((G39/F39-1)/2+1)-(H104-I104)*$I$106*'citl. analýza a ceny komodit'!R38 -> -6662.815073 | H100: =$B$114*'citl. analýza a ceny komodit'!S38*(H40/G40)*(H41/G41)-(H104-J104)*$I$106*'citl. analýza a ceny komodit'!S38 -> -8871.025704 | I100: =$B$114*'citl. analýza a ceny komodit'!T38*(I40/H40)*(I41/H41)-($H$104-$K$104)*$I$106*'citl. analýza a ceny komodit'!T38 -> -9960.367911 | J100: =$B$114*'citl. analýza a ceny komodit'!U38*(J40/I40)*(J41/I41)-($H$104-$K$104)*$I$106*'citl. analýza a ceny komodit'!U38 -> -11690.23058 | K100: =$B$114*'citl. analýza a ceny komodit'!V38*(K40/J40)*(K41/J41)-($H$104-$K$104)*$I$106*'citl. analýza a ceny komodit'!V38 -> -12565.89486 | L100: =$B$114*'citl. analýza a ceny komodit'!W38*(L40/K40)*(L41/K41)-($H$104-$K$104)*$I$106*'citl. analýza a ceny komodit'!W38 -> -13107.20771 | M100: =$B$114*'citl. analýza a ceny komodit'!X38*(M40/L40)*(M41/L41)-($H$104-$K$104)*$I$106*'citl. analýza a ceny komodit'!X38 -> -13935.4085 | N100: =$B$114*'citl. analýza a ceny komodit'!Y38*(N40/M40)*(N41/M41)-($H$104-$K$104)*$I$106*'citl. analýza a ceny komodit'!Y38 -> -15967.2575 | O100: =$B$114*'citl. analýza a ceny komodit'!Z38*(O40/N40)*(O41/N41)-($H$104-$K$104)*$I$106*'citl. analýza a ceny komodit'!Z38 -> -16985.69647 | P100: =$B$114*'citl. analýza a ceny komodit'!AA38*(P40/O40)*(P41/O41)-($H$104-$K$104)*$I$106*'citl. analýza a ceny komodit'!AA38 -> -17664.33723 | Q100: =$B$114*'citl. analýza a ceny komodit'!AB38*(Q40/P40)*(Q41/P41)-($H$104-$K$104)*$I$106*'citl. analýza a ceny komodit'!AB38 -> -18003.22391 | R100: =$B$114*'citl. analýza a ceny komodit'!AC38*(R40/Q40)*(R41/Q41)-($H$104-$K$104)*$I$106*'citl. analýza a ceny komodit'!AC38 -> -18342.0697 | S100: =$B$114*'citl. analýza a ceny komodit'!AD38*(S40/R40)*(S41/R41)-($H$104-$K$104)*$I$106*'citl. analýza a ceny komodit'!AD38 -> -17862.18096 | T100: =$B$114*'citl. analýza a ceny komodit'!AE38*(T40/S40)*(T41/S41)-($H$104-$K$104)*$I$106*'citl. analýza a ceny komodit'!AE38 -> -18143.35538 | U100: =$B$114*'citl. analýza a ceny komodit'!AF38*(U40/T40)*(U41/T41)-($H$104-$K$104)*$I$106*'citl. analýza a ceny komodit'!AF38 -> -18418.82496 | V100: =$B$114*'citl. analýza a ceny komodit'!AG38*(V40/U40)*(V41/U41)-($H$104-$K$104)*$I$106*'citl. analýza a ceny komodit'!AG38 -> -18687.75095
A102: vztažný rok 2018 (ČR+zahraničí) | G102: Zdarma přidělené povolenky
A103: Prodej silové elektřiny koncovým zákazníkům | B103: =F84/R104/('citl. analýza a ceny komodit'!Q30) -> 0.02119325093 | H103: 2018 | I103: 2019 | J103: 2020 | K103: 2021 | Q103: 2017 | R103: 2018
A104: Prodej prostřednictvím energetické burzy | B104: =F85/('citl. analýza a ceny komodit'!Q30) -> 71.77083333 | G104: mil. Tun | H104: 5.4 | I104: 2.9 | J104: 0.4 | K104: 0 | M104: Prodej koncovým zákazníkům | P104: GWh | Q104: 37036 | R104: 37634
A105: Prodej obchodníkům | B105: =F86/('citl. analýza a ceny komodit'!Q30) -> 639.4097222
A106: Prodej distribučním a přenosovým společnostem | B106: =F87/('citl. analýza a ceny komodit'!Q30) -> 3.072916667 | G106: kurz CZK/EUR 2019 | I106: 25.672
A107: Ostatní prodej elektřiny | B107: =F88/('citl. analýza a ceny komodit'!Q30) -> 278.0381944
A108: Prodej uhlí | B108: =F90/'citl. analýza a ceny komodit'!Q55 -> 51.01136364
A109: Odpisy | B109: =F97/F46 -> -1.972009643
A110: Spotřeba fosilního paliva a biomasy (vztaženo k ceně černého uhlí) | B110: =F98/F4/'citl. analýza a ceny komodit'!Q54 -> -0.003048503049
A111: Spotřeba plynu | B111: =F99/F9/'citl. analýza a ceny komodit'!Q46 -> -0.06142208432
A112: Nákup elektřiny pro další prodej | B112: =F93/'citl. analýza a ceny komodit'!Q30/1000 -> -0.7744965278
A113: Prodej plynu | B113: =F89/'citl. analýza a ceny komodit'!Q46 -> 303.5193133
A114: Emisní povolenky | B114: =F100/'citl. analýza a ceny komodit'!Q38 -> -203.56
A115: Nákup plynu pro další prodej | B115: =F94/'citl. analýza a ceny komodit'!Q46 -> -223.6480687
A117: Typ elektrárny | B117: ČR 2018 | D117: Zahraničí 2018
B118: Pins | C118: Tm | D118: Pins | E118: Tm
B119: MW | C119: h | D119: MW | E119: h
A120: Jaderné elektrárny | B120: 4290 | C120: 6974.358974 | D120: 0 | E120: 0
A121: Paroplynové elektrárny | B121: 844.9 | C121: 2242.868979 | D121: 0 | E121: 0
A122: Uhelné elektrárny | B122: 5500 | C122: 4439.272727 | D122: 678.4 | E122: 3769.162736
A123: Vodní elektrárny | B123: 1961.1 | C123: 961.1952476 | D123: 24 | E123: 3708.333333
A124: Kogenerační jednotky, kotelny, bioplynové stanice,biomasa | B124: 96.4 | C124: 5549.792531 | D124: 0 | E124: 0
A125: Fotovoltaické elektrárny | B125: 125.2 | C125: 1118.210863 | D125: 5 | E125: 1200
A126: Větrné elektrárny | B126: 8.2 | C126: 1097.560976 | D126: 734 | E126: 1867.847411

Sheet eskalace
B2: Eskalace elektřiny
B3: 2019 | C3: 2020 | D3: 2021 | E3: 2022 | F3: 2023 | G3: 2024 | H3: 2025 | I3: 2026 | J3: 2027 | K3: 2028 | L3: 2029 | M3: 2030 | N3: 2031 | O3: 2032 | P3: 2033 | Q3: 2034
B4: =('citl. analýza a ceny komodit'!R30*1/'citl. analýza a ceny komodit'!Q31)-1 -> -0.03980932969 | C4: =('citl. analýza a ceny komodit'!S30*1/'citl. analýza a ceny komodit'!R30)-1 -> 0.04113866703 | D4: =('citl. analýza a ceny komodit'!T30*1/'citl. analýza a ceny komodit'!S30)-1 -> 0.08572574677 | E4: =('citl. analýza a ceny komodit'!U30*1/'citl. analýza a ceny komodit'!T30)-1 -> 0.06167189013 | F4: =('citl. analýza a ceny komodit'!V30*1/'citl. analýza a ceny komodit'!U30)-1 -> 0.0770435393 | G4: =('citl. analýza a ceny komodit'!W30*1/'citl. analýza a ceny komodit'!V30)-1 -> 0.03497840369 | H4: =('citl. analýza a ceny komodit'!X30*1/'citl. analýza a ceny komodit'!W30)-1 -> 0.05450929346 | I4: =('citl. analýza a ceny komodit'!Y30*1/'citl. analýza a ceny komodit'!X30)-1 -> 0.03680397049 | J4: =('citl. analýza a ceny komodit'!Z30*1/'citl. analýza a ceny komodit'!Y30)-1 -> 0.05643647952 | K4: =('citl. analýza a ceny komodit'!AA30*1/'citl. analýza a ceny komodit'!Z30)-1 -> 0.04001820563 | L4: =('citl. analýza a ceny komodit'!AB30*1/'citl. analýza a ceny komodit'!AA30)-1 -> 0.03956422447 | M4: =('citl. analýza a ceny komodit'!AC30*1/'citl. analýza a ceny komodit'!AB30)-1 -> 0.01850697118 | N4: =('citl. analýza a ceny komodit'!AD30*1/'citl. analýza a ceny komodit'!AC30)-1 -> 0.037538317 | O4: =('citl. analýza a ceny komodit'!AE30*1/'citl. analýza a ceny komodit'!AD30)-1 -> 0.03419784786 | P4: =('citl. analýza a ceny komodit'!AF30*1/'citl. analýza a ceny komodit'!AE30)-1 -> 0.02044824703 | Q4: =('citl. analýza a ceny komodit'!AG30*1/'citl. analýza a ceny komodit'!AF30)-1 -> 0.02536053573
B5: =1+B4 -> 0.9601906703 | C5: 1.041138667 | D5: 1.085725747 | E5: 1.06167189 | F5: 1.077043539 | G5: 1.034978404 | H5: 1.054509293 | I5: 1.03680397 | J5: 1.05643648 | K5: 1.040018206 | L5: 1.039564224 | M5: 1.018506971 | N5: 1.037538317 | O5: 1.034197848 | P5: 1.020448247 | Q5: 1.025360536
B6: =B5 -> 0.9601906703 | C6: =B6*C5 -> 0.9996916346 | D6: 1.085390947 | E6: 1.152329058 | F6: 1.241108567 | G6: 1.284520563 | H6: 1.354538872 | I6: 1.40439128 | J6: 1.48365018 | K6: 1.543023198 | L6: 1.604071714 | M6: 1.633758223 | N6: 1.695086757 | O6: 1.753055076 | P6: 1.788901979 | Q6: 1.834269492
B8: Nárůst spotřeby elektrické energie | S8: Predikce spotřeby
B9: 2019 | C9: 2020 | D9: 2021 | E9: 2022 | F9: 2023 | G9: 2024 | H9: 2025 | I9: 2026 | J9: 2027 | K9: 2028 | L9: 2029 | M9: 2030 | N9: 2031 | O9: 2032 | P9: 2033 | Q9: 2034 | S9: Rok 2018 | T9: 63 | U9: TWh | V9: za 16 let nárůst | W9: =T10/T9-1 -> 0.1428571429
B10: =$W$10 -> 0.008403361345 | C10: 0.008403361345 | D10: 0.008403361345 | E10: 0.008403361345 | F10: 0.008403361345 | G10: 0.008403361345 | H10: 0.008403361345 | I10: 0.008403361345 | J10: 0.008403361345 | K10: 0.008403361345 | L10: 0.008403361345 | M10: 0.008403361345 | N10: 0.008403361345 | O10: 0.008403361345 | P10: 0.008403361345 | Q10: 0.008403361345 | S10: Rok 2034 | T10: 72 | U10: TWh | V10: roční nárůst | W10: =W9/17 -> 0.008403361345
B11: =1+B10 -> 1.008403361 | C11: =1+C10 -> 1.008403361 | D11: 1.008403361 | E11: 1.008403361 | F11: 1.008403361 | G11: 1.008403361 | H11: 1.008403361 | I11: 1.008403361 | J11: 1.008403361 | K11: 1.008403361 | L11: 1.008403361 | M11: 1.008403361 | N11: 1.008403361 | O11: 1.008403361 | P11: 1.008403361 | Q11: 1.008403361 | S11: zdroj výstavba NJZ a EDU
B12: =B11 -> 1.008403361 | C12: =B12*C11 -> 1.016877339 | D12: 1.025422527 | E12: 1.034039523 | F12: 1.042728931 | G12: 1.051491359 | H12: 1.060327421 | I12: 1.069237735 | J12: 1.078222926 | K12: 1.087283623 | L12: 1.09642046 | M12: 1.105634077 | N12: 1.11492512 | O12: 1.124294239 | P12: 1.133742089 | Q12: 1.143269334 | S12: https://oenergetice.cz/energetika-v-cr/nova-zprava-mpo-a-ote-ukazuje-mozny-vyvoj-ceske-energetiky-do-roku-2050
B14: Těžba uhlí | G14: ostatní vliv (úpadek těžby) | H14: -0.01
B15: 2019 | C15: 2020 | D15: 2021 | E15: 2022 | F15: 2023 | G15: 2024 | H15: 2025 | I15: 2026 | J15: 2027 | K15: 2028 | L15: 2029 | M15: 2030 | N15: 2031 | O15: 2032 | P15: 2033 | Q15: 2034
B16: =$H$14 -> -0.01 | C16: -0.01 | D16: -0.01 | E16: -0.01 | F16: -0.01 | G16: -0.01 | H16: -0.01 | I16: -0.01 | J16: -0.01 | K16: -0.01 | L16: -0.01 | M16: -0.01 | N16: -0.01 | O16: -0.01 | P16: -0.01 | Q16: -0.01
B17: =1+B16 -> 0.99 | C17: 0.99 | D17: 0.99 | E17: 0.99 | F17: 0.99 | G17: 0.99 | H17: 0.99 | I17: 0.99 | J17: 0.99 | K17: 0.99 | L17: 0.99 | M17: 0.99 | N17: 0.99 | O17: 0.99 | P17: 0.99 | Q17: 0.99
B18: =B17 -> 0.99 | C18: =B18*C17 -> 0.9801 | D18: 0.970299 | E18: 0.96059601 | F18: 0.9509900499 | G18: 0.9414801494 | H18: 0.9320653479 | I18: 0.9227446944 | J18: 0.9135172475 | K18: 0.904382075 | L18: 0.8953382543 | M18: 0.8863848717 | N18: 0.877521023 | O18: 0.8687458128 | P18: 0.8600583546 | Q18: 0.8514577711
B20: Eskalace tepla
B21: 2019 | C21: 2020 | D21: 2021 | E21: 2022 | F21: 2023 | G21: 2024 | H21: 2025 | I21: 2026 | J21: 2027 | K21: 2028 | L21: 2029 | M21: 2030 | N21: 2031 | O21: 2032 | P21: 2033 | Q21: 2034 | S21: Uhelná
B22: 0.01 | C22: 0.01 | D22: 0.01 | E22: 0.01 | F22: 0.01 | G22: 0.01 | H22: 0.01 | I22: 0.01 | J22: 0.01 | K22: 0.01 | L22: 0.01 | M22: 0.01 | N22: 0.01 | O22: 0.01 | P22: 0.01 | Q22: 0.01 | S22: Teplárna
B23: =1+B22 -> 1.01 | C23: =1+C22 -> 1.01 | D23: 1.01 | E23: 1.01 | F23: 1.01 | G23: 1.01 | H23: 1.01 | I23: 1.01 | J23: 1.01 | K23: 1.01 | L23: 1.01 | M23: 1.01 | N23: 1.01 | O23: 1.01 | P23: 1.01 | Q23: 1.01
B24: =B23 -> 1.01 | C24: =B24*C23 -> 1.0201 | D24: 1.030301 | E24: =D24*E23 -> 1.04060401 | F24: 1.05101005 | G24: 1.061520151 | H24: 1.072135352 | I24: 1.082856706 | J24: 1.093685273 | K24: 1.104622125 | L24: 1.115668347 | M24: 1.12682503 | N24: 1.13809328 | O24: 1.149474213 | P24: 1.160968955 | Q24: 1.172578645 | S24: celkem
B27: Ukončování tepláren | G27: ostatní vliv | H27: 0.002
B28: 2019 | C28: 2020 | D28: 2021 | E28: 2022 | F28: 2023 | G28: 2024 | H28: 2025 | I28: 2026 | J28: 2027 | K28: 2028 | L28: 2029 | M28: 2030 | N28: 2031 | O28: 2032 | P28: 2033 | Q28: 2034
B29: ='instalovaný výkon 2'!G52/'instalovaný výkon 2'!F52-1 -> -0.1129032258 | C29: ='instalovaný výkon 2'!H52/'instalovaný výkon 2'!G52-1 -> -0.1272727273 | D29: ='instalovaný výkon 2'!I52/'instalovaný výkon 2'!H52-1 -> -0.0625 | E29: ='instalovaný výkon 2'!J52/'instalovaný výkon 2'!I52-1 -> -0.06666666667 | F29: ='instalovaný výkon 2'!K52/'instalovaný výkon 2'!J52-1 -> -0.07142857143 | G29: ='instalovaný výkon 2'!L52/'instalovaný výkon 2'!K52-1 -> -0.07692307692 | H29: ='instalovaný výkon 2'!M52/'instalovaný výkon 2'!L52-1 -> -0.08333333333 | I29: ='instalovaný výkon 2'!N52/'instalovaný výkon 2'!M52-1 -> -0.006060606061 | J29: ='instalovaný výkon 2'!O52/'instalovaný výkon 2'!N52-1 -> -0.006097560976 | K29: ='instalovaný výkon 2'!P52/'instalovaný výkon 2'!O52-1 -> -0.006134969325 | L29: ='instalovaný výkon 2'!Q52/'instalovaný výkon 2'!P52-1 -> -0.006172839506 | M29: ='instalovaný výkon 2'!R52/'instalovaný výkon 2'!Q52-1 -> -0.006211180124 | N29: ='instalovaný výkon 2'!S52/'instalovaný výkon 2'!R52-1 -> -0.04375 | O29: ='instalovaný výkon 2'!T52/'instalovaný výkon 2'!S52-1 -> -0.04575163399 | P29: ='instalovaný výkon 2'!U52/'instalovaný výkon 2'!T52-1 -> -0.04794520548 | Q29: ='instalovaný výkon 2'!V52/'instalovaný výkon 2'!U52-1 -> -0.05035971223
B30: =1+B29 -> 0.8870967742 | C30: 0.8727272727 | D30: 0.9375 | E30: 0.9333333333 | F30: 0.9285714286 | G30: 0.9230769231 | H30: 0.9166666667 | I30: 0.9939393939 | J30: 0.993902439 | K30: 0.9938650307 | L30: 0.9938271605 | M30: 0.9937888199 | N30: 0.95625 | O30: 0.954248366 | P30: 0.9520547945 | Q30: 0.9496402878
B31: =B30 -> 0.8870967742 | C31: =B31*C30 -> 0.7741935484 | D31: 0.7258064516 | E31: 0.6774193548 | F31: 0.6290322581 | G31: 0.5806451613 | H31: 0.5322580645 | I31: 0.5290322581 | J31: 0.5258064516 | K31: 0.5225806452 | L31: 0.5193548387 | M31: 0.5161290323 | N31: 0.4935483871 | O31: 0.4709677419 | P31: 0.4483870968 | Q31: 0.4258064516

Sheet FCFF
C1: -3 | D1: -2 | E1: -1 | F1: 0 | G1: 1 | H1: 2 | I1: 3 | J1: 4 | K1: 5 | L1: 6 | M1: 7 | N1: 8 | O1: 9 | P1: 10 | Q1: 11 | R1: 12 | S1: 13 | T1: 14 | U1: 15 | V1: 16
B2: Rok | C2: 2015 | D2: 2016 | E2: 2017 | F2: 2018 | G2: 2019 | H2: 2020 | I2: 2021 | J2: 2022 | K2: 2023 | L2: 2024 | M2: 2025 | N2: 2026 | O2: 2027 | P2: 2028 | Q2: 2029 | R2: 2030 | S2: 2031 | T2: 2032 | U2: 2033 | V2: 2034 | W2: Pokračující hodnota
A3: EBIT | B3: mil. Kč | C3: ='Prognózy výkazů'!D33 -> 28961 | D3: ='Prognózy výkazů'!E33 -> 26114 | E3: ='Prognózy výkazů'!F33 -> 25620 | F3: ='Prognózy výkazů'!G33 -> 19759 | G3: ='Prognózy výkazů'!H33 -> 21808.81867 | H3: ='Prognózy výkazů'!I33 -> 21729.78074 | I3: ='Prognózy výkazů'!J33 -> 24037.15454 | J3: ='Prognózy výkazů'!K33 -> 23767.46173 | K3: ='Prognózy výkazů'!L33 -> 25931.69147 | L3: ='Prognózy výkazů'!M33 -> 26122.59883 | M3: ='Prognózy výkazů'!N33 -> 26928.36627 | N3: ='Prognózy výkazů'!O33 -> 26705.60541 | O3: ='Prognózy výkazů'!P33 -> 28705.42066 | P3: ='Prognózy výkazů'!Q33 -> 30037.54373 | Q3: ='Prognózy výkazů'!R33 -> 31768.73229 | R3: ='Prognózy výkazů'!S33 -> 32217.22224 | S3: ='Prognózy výkazů'!T33 -> 34102.39187 | T3: ='Prognózy výkazů'!U33 -> 35209.63703 | U3: ='Prognózy výkazů'!V33 -> 35608.30718 | V3: ='Prognózy výkazů'!W33 -> 36312.20195 | W3: =H15/($L$16-$L$15) -> 984247.461
A4: daňová sazba | B4: mil. Kč | C4: 0.19 | D4: 0.19 | E4: 0.19 | F4: 0.19 | G4: 0.19 | H4: 0.19 | I4: 0.19 | J4: 0.19 | K4: 0.19 | L4: 0.19 | M4: 0.19 | N4: 0.19 | O4: 0.19 | P4: 0.19 | Q4: 0.19 | R4: 0.19 | S4: 0.19 | T4: 0.19 | U4: 0.19 | V4: 0.19 | W4: 0.19
A5: +odpisy | B5: mil. Kč | C5: =-'Prognózy výkazů'!D22 -> 28619 | D5: =-'Prognózy výkazů'!E22 -> 28978 | E5: =-'Prognózy výkazů'!F22 -> 29305 | F5: =-'Prognózy výkazů'!G22 -> 28139 | G5: =-'Prognózy výkazů'!H22 -> 27355.30715 | H5: =-'Prognózy výkazů'!I22 -> 26575.16391 | I5: =-'Prognózy výkazů'!J22 -> 23509.41442 | J5: =-'Prognózy výkazů'!K22 -> 23224.98734 | K5: =-'Prognózy výkazů'!L22 -> 22946.47628 | L5: =-'Prognózy výkazů'!M22 -> 22691.62934 | M5: =-'Prognózy výkazů'!N22 -> 22409.17426 | N5: =-'Prognózy výkazů'!O22 -> 22514.18613 | O5: =-'Prognózy výkazů'!P22 -> 22599.4779 | P5: =-'Prognózy výkazů'!Q22 -> 22704.48977 | Q5: =-'Prognózy výkazů'!R22 -> 22770.06144 | R5: =-'Prognózy výkazů'!S22 -> 23168.70555 | S5: =-'Prognózy výkazů'!T22 -> 23144.5649 | T5: =-'Prognózy výkazů'!U22 -> 23347.20537 | U5: =-'Prognózy výkazů'!V22 -> 23411.80516 | V5: =-'Prognózy výkazů'!W22 -> 23397.52457 | W5: =H17/($L$16-$L$15) -> 667987.3651
A6: +amortizace jaderného paliva | B6: mil. Kč | C6: =-'Prognózy výkazů'!D26 -> 3416 | D6: =-'Prognózy výkazů'!E26 -> 3158 | E6: =-'Prognózy výkazů'!F26 -> 3725 | F6: =-'Prognózy výkazů'!G26 -> 4027 | G6: =-'Prognózy výkazů'!H26 -> 4067.27 | H6: =-'Prognózy výkazů'!I26 -> 4107.9427 | I6: =-'Prognózy výkazů'!J26 -> 4149.022127 | J6: =-'Prognózy výkazů'!K26 -> 4190.512348 | K6: =-'Prognózy výkazů'!L26 -> 4232.417472 | L6: =-'Prognózy výkazů'!M26 -> 4274.741646 | M6: =-'Prognózy výkazů'!N26 -> 4317.489063 | N6: =-'Prognózy výkazů'!O26 -> 4360.663954 | O6: =-'Prognózy výkazů'!P26 -> 4404.270593 | P6: =-'Prognózy výkazů'!Q26 -> 4448.313299 | Q6: =-'Prognózy výkazů'!R26 -> 4492.796432 | R6: =-'Prognózy výkazů'!S26 -> 4537.724396 | S6: =-'Prognózy výkazů'!T26 -> 4583.10164 | T6: =-'Prognózy výkazů'!U26 -> 4628.932657 | U6: =-'Prognózy výkazů'!V26 -> 4675.221983 | V6: =-'Prognózy výkazů'!W26 -> 4721.974203 | W6: =H18/($L$16-$L$15) -> 132902.0691
A7: +opravné položky | B7: mil. Kč | C7: =-'Prognózy výkazů'!D46 -> 7684 | D7: =-'Prognózy výkazů'!E46 -> 2750 | E7: =-'Prognózy výkazů'!F46 -> 2585 | F7: =-'Prognózy výkazů'!G46 -> -251 | G7: =-'Prognózy výkazů'!H46 -> 3223.92 | H7: =-'Prognózy výkazů'!I46 -> 2097.7498 | I7: =-'Prognózy výkazů'!J46 -> 1933.056624 | J7: =-'Prognózy výkazů'!K46 -> 1768.440922 | K7: =-'Prognózy výkazů'!L46 -> 2278.349755 | L7: =-'Prognózy výkazů'!M46 -> 2039.593268 | M7: =-'Prognózy výkazů'!N46 -> 2024.908744 | N7: =-'Prognózy výkazů'!O46 -> 2048.101404 | O7: =-'Prognózy výkazů'!P46 -> 2118.715676 | P7: =-'Prognózy výkazů'!Q46 -> 2078.408071 | Q7: =-'Prognózy výkazů'!R46 -> 2088.208808 | R7: =-'Prognózy výkazů'!S46 -> 2104.192075 | S7: =-'Prognózy výkazů'!T46 -> 2118.354969 | T7: =-'Prognózy výkazů'!U46 -> 2118.26389 | U7: =-'Prognózy výkazů'!V46 -> 2128.327485 | V7: =-'Prognózy výkazů'!W46 -> 2138.457451 | W7: =H19/($L$16-$L$15) -> 60783.69841
A8: -změna prac. Kapitálu | B8: mil. Kč | C8: ='Prognózy výkazů'!D73 -> -28021 | D8: ='Prognózy výkazů'!E73 -> -5744 | E8: ='Prognózy výkazů'!F73 -> -4381 | F8: ='Prognózy výkazů'!G73 -> 1780 | G8: ='Prognózy výkazů'!H73 -> -14000.25833 | H8: ='Prognózy výkazů'!I73 -> -8908.888069 | I8: ='Prognózy výkazů'!J73 -> -1555.400359 | J8: ='Prognózy výkazů'!K73 -> -1104.831179 | K8: ='Prognózy výkazů'!L73 -> 8514.600819 | L8: ='Prognózy výkazů'!M73 -> 1317.582876 | M8: ='Prognózy výkazů'!N73 -> -12757.49792 | N8: ='Prognózy výkazů'!O73 -> 1980.315566 | O8: ='Prognózy výkazů'!P73 -> 5939.147523 | P8: ='Prognózy výkazů'!Q73 -> -5492 | Q8: ='Prognózy výkazů'!R73 -> 6946 | R8: ='Prognózy výkazů'!S73 -> -3467.394919 | S8: ='Prognózy výkazů'!T73 -> 809 | T8: ='Prognózy výkazů'!U73 -> -905.5859607 | U8: ='Prognózy výkazů'!V73 -> 4041.76322 | V8: ='Prognózy výkazů'!W73 -> -2032.913921 | W8: =H20/($L$16-$L$15) -> 3429.082892
A9: -investice | B9: mil. Kč | C9: =-'Prognózy výkazů'!D58 -> 31570 | D9: =-'Prognózy výkazů'!E58 -> 34571 | E9: =-'Prognózy výkazů'!F58 -> 20212 | F9: =-'Prognózy výkazů'!G58 -> 25901 | G9: =-'Prognózy výkazů'!H58 -> 36617.24333 | H9: =-'Prognózy výkazů'!I58 -> 28187.46577 | I9: =-'Prognózy výkazů'!J58 -> -18372.41812 | J9: =-'Prognózy výkazů'!K58 -> 33138.34665 | K9: =-'Prognózy výkazů'!L58 -> 34109.30699 | L9: =-'Prognózy výkazů'!M58 -> 32742.66866 | M9: =-'Prognózy výkazů'!N58 -> 33872.66859 | N9: =-'Prognózy výkazů'!O58 -> 33186.24392 | O9: =-'Prognózy výkazů'!P58 -> 33525.22768 | P9: =-'Prognózy výkazů'!Q58 -> 42784.98738 | Q9: =-'Prognózy výkazů'!R58 -> 44056.2826 | R9: =-'Prognózy výkazů'!S58 -> 54356.91104 | S9: =-'Prognózy výkazů'!T58 -> 54655.54552 | T9: =-'Prognózy výkazů'!U58 -> 51944.15236 | U9: =-'Prognózy výkazů'!V58 -> 47240.03126 | V9: =-'Prognózy výkazů'!W58 -> 44543.3365 | W9: =H21/($L$16-$L$15) -> 871462.3842
A10: FCFF | B10: mil. Kč | C10: =C3*(1-C4)+C5+C6+C7-C8-C9 -> 59628.41 | D10: =D3*(1-D4)+D5+D6+D7-D8-D9 -> 27211.34 | E10: 40536.2 | F10: 20238.79 | G10: 29694.65527 | H10: 31103.40111 | I10: 68989.40683 | J10: 16402.06914 | K10: 7838.005783 | L10: =L3*(1-L4)+L5+L6+L7-L8-L9 -> 16105.01778 | M10: =M3*(1-M4)+M5+M6+M7-M8-M9 -> 29448.37809 | N10: 15387.93239 | O10: =O3*(1-O4)+O5+O6+O7-O8-O9 -> 12909.47971 | P10: 16268.63418 | Q10: =Q3*(1-Q4)+Q5+Q6+Q7-Q8-Q9 -> 4081.457232 | R10: 5017.055916 | S10: 2004.41341 | T10: =T3*(1-T4)+T5+T6+T7-T8-T9 -> 7575.641519 | U10: =U3*(1-U4)+U5+U6+U7-U8-U9 -> 7776.288968 | V10: =V3*(1-V4)+V5+V6+V7-V8-V9 -> 17160.41722 | W10: =W3*(1-W4)+W5+W6+W7-W8-W9 -> 784022.1089
A11: DFCFF | B11: mil. Kč | C11: x | D11: x | E11: x | F11: x | G11: =G10/(1+'CAPM a WACC'!$G$14)^G1 -> 28151.04616 | H11: =H10/(1+'CAPM a WACC'!$G$14)^H1 -> 27953.76972 | I11: =I10/(1+'CAPM a WACC'!$G$14)^I1 -> 58780.21416 | J11: =J10/(1+'CAPM a WACC'!$G$14)^J1 -> 13248.40642 | K11: =K10/(1+'CAPM a WACC'!$G$14)^K1 -> 6001.87346 | L11: =L10/(1+'CAPM a WACC'!$G$14)^L1 -> 11691.1899 | M11: =M10/(1+'CAPM a WACC'!$G$14)^M1 -> 20266.33129 | N11: =N10/(1+'CAPM a WACC'!$G$14)^N1 -> 10039.45825 | O11: =O10/(1+'CAPM a WACC'!$G$14)^O1 -> 7984.633722 | P11: =P10/(1+'CAPM a WACC'!$G$14)^P1 -> 9539.236238 | Q11: =Q10/(1+'CAPM a WACC'!$G$14)^Q1 -> 2268.788497 | R11: =R10/(1+'CAPM a WACC'!$G$14)^R1 -> 2643.89348 | S11: =S10/(1+'CAPM a WACC'!$G$14)^S1 -> 1001.379193 | T11: =T10/(1+'CAPM a WACC'!$G$14)^T1 -> 3587.954527 | U11: =U10/(1+'CAPM a WACC'!$G$14)^U1 -> 3491.533043 | V11: =V10/(1+'CAPM a WACC'!$G$14)^V1 -> 7304.4557
A12: Hodnota firmy 2019 | B12: =SUM(G11:V11)+W10 -> 997976.2727 | C12: mil. Kč
G13: Hodnoty pro pokračující hodnotu
G14: Gordonův model
A15: FCFF = EBIT * (1-t)+ O+N- I- ΔWC | G15: EBIT | H15: =AVERAGE(R3:U3) -> 34284.38958 | J15: růst | K15: g | L15: =FCFE!O16 -> 0.02
A16: EBIT-hospodářský výsledek před zdaněním a úroky | G16: daňová sazba | H16: 0.19 | K16: WACC | L16: ='CAPM a WACC'!B33 -> 0.05483309934
A17: t -daňová sazba | G17: +odpisy | H17: =AVERAGE(R5:U5) -> 23268.07025 | K17: re | L17: =FCFE!O18 -> 0.0762523233
A18: O-Odpisy | G18: +amortizace jaderného paliva | H18: =AVERAGE(R6:V6) -> 4629.390976
A19: N- ostatní náklady,které nejsou výdaji | G19: +opravné položky | H19: =AVERAGE(R7:U7) -> 2117.284605
A20: I-investiční výdaje | G20: -změna prac. Kapitálu | H20: =AVERAGE(R8:U8) -> 119.445585
A21: ΔWC-změna v pracovním kapitálu | G21: -investice | H21: =-AVERAGE(('Prognózy výkazů'!O58-'Prognózy výkazů'!O57),('Prognózy výkazů'!P58-'Prognózy výkazů'!P57)) -> 30355.7358
G23: vliv | H23: =W10/B12 -> 0.7856119733
A25: FCFF = NOPAT + D&A – CAPEX – Δ Net WC
A27: NOPAT = Net Operating Profit
A28: NOPAT=EBIT * (1-t)
A29: D&A = Depreciation and Amortisation expense
A30: CAPEX = Capital Expenditure
A31: Δ Net WC = Changes in Net Working Capital

Sheet FCFE
C1: 1 | D1: 2 | E1: 3 | F1: 4 | G1: 5 | H1: 6 | I1: 7 | J1: 8 | K1: 9 | L1: 10 | M1: 11 | N1: 12 | O1: 13 | P1: 14 | Q1: 15 | R1: 16 | S1: 0
A2: FCFE= | B2: Rok | C2: 2019 | D2: 2020 | E2: 2021 | F2: 2022 | G2: 2023 | H2: 2024 | I2: 2025 | J2: 2026 | K2: 2027 | L2: 2028 | M2: 2029 | N2: 2030 | O2: 2031 | P2: 2032 | Q2: 2033 | R2: 2034 | S2: Pokračující hodnota
A3: +čistý zisk | B3: mil. Kč | C3: ='Prognózy výkazů'!H42 -> 13460.32812 | D3: ='Prognózy výkazů'!I42 -> 13201.60365 | E3: ='Prognózy výkazů'!J42 -> 15388.05424 | F3: ='Prognózy výkazů'!K42 -> 14772.85283 | G3: ='Prognózy výkazů'!L42 -> 16713.37862 | H3: ='Prognózy výkazů'!M42 -> 16846.39448 | I3: ='Prognózy výkazů'!N42 -> 17520.71814 | J3: ='Prognózy výkazů'!O42 -> 17287.97745 | K3: ='Prognózy výkazů'!P42 -> 18941.63485 | L3: ='Prognózy výkazů'!Q42 -> 20016.03844 | M3: ='Prognózy výkazů'!R42 -> 21417.93582 | N3: ='Prognózy výkazů'!S42 -> 21775.34298 | O3: ='Prognózy výkazů'!T42 -> 23308.06936 | P3: ='Prognózy výkazů'!U42 -> 24203.65989 | Q3: ='Prognózy výkazů'!V42 -> 24526.13918 | R3: ='Prognózy výkazů'!W42 -> 25095.83087 | S3: =I16/($O$18-$O$16) -> 422770.2441
A4: +odpisy | B4: mil. Kč | C4: =-'Prognózy výkazů'!H22 -> 27355.30715 | D4: =-'Prognózy výkazů'!I22 -> 26575.16391 | E4: =-'Prognózy výkazů'!J22 -> 23509.41442 | F4: =-'Prognózy výkazů'!K22 -> 23224.98734 | G4: =-'Prognózy výkazů'!L22 -> 22946.47628 | H4: =-'Prognózy výkazů'!M22 -> 22691.62934 | I4: =-'Prognózy výkazů'!N22 -> 22409.17426 | J4: =-'Prognózy výkazů'!O22 -> 22514.18613 | K4: =-'Prognózy výkazů'!P22 -> 22599.4779 | L4: =-'Prognózy výkazů'!Q22 -> 22704.48977 | M4: =-'Prognózy výkazů'!R22 -> 22770.06144 | N4: =-'Prognózy výkazů'!S22 -> 23168.70555 | O4: =-'Prognózy výkazů'!T22 -> 23144.5649 | P4: =-'Prognózy výkazů'!U22 -> 23347.20537 | Q4: =-'Prognózy výkazů'!V22 -> 23411.80516 | R4: =-'Prognózy výkazů'!W22 -> 23397.52457 | S4: =I17/($O$18-$O$16) -> 414097.7606
A5: +amortizace jaderného paliva | B5: mil. Kč | C5: =-'Prognózy výkazů'!H26 -> 4067.27 | D5: =-'Prognózy výkazů'!I26 -> 4107.9427 | E5: =-'Prognózy výkazů'!J26 -> 4149.022127 | F5: =-'Prognózy výkazů'!K26 -> 4190.512348 | G5: =-'Prognózy výkazů'!L26 -> 4232.417472 | H5: =-'Prognózy výkazů'!M26 -> 4274.741646 | I5: =-'Prognózy výkazů'!N26 -> 4317.489063 | J5: =-'Prognózy výkazů'!O26 -> 4360.663954 | K5: =-'Prognózy výkazů'!P26 -> 4404.270593 | L5: =-'Prognózy výkazů'!Q26 -> 4448.313299 | M5: =-'Prognózy výkazů'!R26 -> 4492.796432 | N5: =-'Prognózy výkazů'!S26 -> 4537.724396 | O5: =-'Prognózy výkazů'!T26 -> 4583.10164 | P5: =-'Prognózy výkazů'!U26 -> 4628.932657 | Q5: =-'Prognózy výkazů'!V26 -> 4675.221983 | R5: =-'Prognózy výkazů'!W26 -> 4721.974203 | S5: =I18/($O$18-$O$16) -> 82296.88489
A6: +opravné položky | B6: mil. Kč | C6: =-'Prognózy výkazů'!H46 -> 3223.92 | D6: =-'Prognózy výkazů'!I46 -> 2097.7498 | E6: =-'Prognózy výkazů'!J46 -> 1933.056624 | F6: =-'Prognózy výkazů'!K46 -> 1768.440922 | G6: =-'Prognózy výkazů'!L46 -> 2278.349755 | H6: =-'Prognózy výkazů'!M46 -> 2039.593268 | I6: =-'Prognózy výkazů'!N46 -> 2024.908744 | J6: =-'Prognózy výkazů'!O46 -> 2048.101404 | K6: =-'Prognózy výkazů'!P46 -> 2118.715676 | L6: =-'Prognózy výkazů'!Q46 -> 2078.408071 | M6: =-'Prognózy výkazů'!R46 -> 2088.208808 | N6: =-'Prognózy výkazů'!S46 -> 2104.192075 | O6: =-'Prognózy výkazů'!T46 -> 2118.354969 | P6: =-'Prognózy výkazů'!U46 -> 2118.26389 | Q6: =-'Prognózy výkazů'!V46 -> 2128.327485 | R6: =-'Prognózy výkazů'!W46 -> 2138.457451 | S6: =I19/($O$18-$O$16) -> 37714.3387
A7: -změna prac. Kapitálu | B7: mil. Kč | C7: ='Prognózy výkazů'!H73 -> -14000.25833 | D7: ='Prognózy výkazů'!I73 -> -8908.888069 | E7: ='Prognózy výkazů'!J73 -> -1555.400359 | F7: ='Prognózy výkazů'!K73 -> -1104.831179 | G7: ='Prognózy výkazů'!L73 -> 8514.600819 | H7: ='Prognózy výkazů'!M73 -> 1317.582876 | I7: ='Prognózy výkazů'!N73 -> -12757.49792 | J7: ='Prognózy výkazů'!O73 -> 1980.315566 | K7: ='Prognózy výkazů'!P73 -> 5939.147523 | L7: ='Prognózy výkazů'!Q73 -> -5492 | M7: ='Prognózy výkazů'!R73 -> 6946 | N7: ='Prognózy výkazů'!S73 -> -3467.394919 | O7: ='Prognózy výkazů'!T73 -> 809 | P7: ='Prognózy výkazů'!U73 -> -905.5859607 | Q7: ='Prognózy výkazů'!V73 -> 4041.76322 | R7: ='Prognózy výkazů'!W73 -> -2032.913921 | S7: =I20/($O$17-$O$16) -> 3429.082892
A8: -investice | B8: mil. Kč | C8: =-'Prognózy výkazů'!H58 -> 36617.24333 | D8: =-'Prognózy výkazů'!I58 -> 28187.46577 | E8: =-'Prognózy výkazů'!J58 -> -18372.41812 | F8: =-'Prognózy výkazů'!K58 -> 33138.34665 | G8: =-'Prognózy výkazů'!L58 -> 34109.30699 | H8: =-'Prognózy výkazů'!M58 -> 32742.66866 | I8: =-'Prognózy výkazů'!N58 -> 33872.66859 | J8: =-'Prognózy výkazů'!O58 -> 33186.24392 | K8: =-'Prognózy výkazů'!P58 -> 33525.22768 | L8: =-'Prognózy výkazů'!Q58 -> 42784.98738 | M8: =-'Prognózy výkazů'!R58 -> 44056.2826 | N8: =-'Prognózy výkazů'!S58 -> 54356.91104 | O8: =-'Prognózy výkazů'!T58 -> 54655.54552 | P8: =-'Prognózy výkazů'!U58 -> 51944.15236 | Q8: =-'Prognózy výkazů'!V58 -> 47240.03126 | R8: =-'Prognózy výkazů'!W58 -> 44543.3365 | S8: =I21/($O$18-$O$16) -> 539635.2367
A9: -splátky včetně obligací | B9: mil. Kč | C9: =-'Prognózy výkazů'!D62 -> 6743 | D9: =-'Prognózy výkazů'!E62 -> 22675 | E9: =-'Prognózy výkazů'!F62 -> 26058 | F9: =-'Prognózy výkazů'!G62 -> 24286 | G9: =-'Prognózy výkazů'!H62 -> 9910 | H9: =-'Prognózy výkazů'!I62 -> 4656.4 | I9: =-'Prognózy výkazů'!J62 -> 23931.04 | J9: =-'Prognózy výkazů'!K62 -> 22424.244 | K9: =-'Prognózy výkazů'!L62 -> 15866.6684 | L9: =-'Prognózy výkazů'!M62 -> 24772.33524 | M9: =-'Prognózy výkazů'!N62 -> 8888.668764 | N9: =-'Prognózy výkazů'!O62 -> 12494.53564 | O9: =-'Prognózy výkazů'!P62 -> 16125.2892 | P9: =-'Prognózy výkazů'!Q62 -> 16897.81812 | Q9: =-'Prognózy výkazů'!R62 -> 12621.59994 | R9: =-'Prognózy výkazů'!S62 -> 14483.75993 | S9: ='finanční část'!W37 -> 258081.6
A10: +nové emise dluhových instrumentů | B10: mil. Kč | C10: ='Prognózy výkazů'!D61 -> 3150 | D10: ='Prognózy výkazů'!E61 -> 15350 | E10: ='Prognózy výkazů'!F61 -> 21500 | F10: ='Prognózy výkazů'!G61 -> 19000 | G10: ='Prognózy výkazů'!H61 -> 12500 | H10: ='Prognózy výkazů'!I61 -> 10500 | I10: ='Prognózy výkazů'!J61 -> 5000 | J10: ='Prognózy výkazů'!K61 -> 19500 | K10: ='Prognózy výkazů'!L61 -> 19500 | L10: ='Prognózy výkazů'!M61 -> 30000 | M10: ='Prognózy výkazů'!N61 -> 29500 | N10: ='Prognózy výkazů'!O61 -> 33500 | O10: ='Prognózy výkazů'!P61 -> 31500 | P10: ='Prognózy výkazů'!Q61 -> 27000 | Q10: ='Prognózy výkazů'!R61 -> 19500 | R10: ='Prognózy výkazů'!S61 -> 13000 | S10: =I23 -> 0
A11: FCFE | B11: mil. Kč | C11: =C3+C4+C5+C6-C8-C7-C9+C10 -> 21896.84027 | D11: 19378.88236 | E11: 60349.3659 | F11: 6637.277968 | G11: 6136.714318 | H11: 17635.7072 | I11: 6226.07955 | J11: 8120.125448 | K11: 12233.05542 | L11: 17181.92696 | M11: 20378.05113 | N11: 21701.91324 | O11: 13064.25615 | P11: 13361.67729 | Q11: 10338.0994 | R11: 11359.60458 | S11: =S3+S4+S5+S6-S8-S7-S9+S10 -> 155733.3088
A12: DFCFE | B12: mil. Kč | C12: =C11/($O$18+1)^C1 -> 20345.45226 | D12: 16730.17649 | E12: 48409.47863 | F12: 4946.905319 | G12: 4249.769704 | H12: 11347.71103 | I12: 3722.339248 | J12: 4510.762102 | K12: 6314.050131 | L12: 8240.069007 | M12: 9080.453231 | N12: 8985.22174 | O12: 5025.755553 | P12: 4775.991563 | Q12: 3433.437719 | R12: 3505.400003
A13: Hodnota firmy 2019 | B13: =SUM(C12:R12)+S11 -> 319356.2826 | C13: mil. Kč
H14: Hodnoty pro pokračující hodnotu
A15: cena akcie | B15: =B13/D22*1000000 -> 597.078588 | H15: Gordonův model
A16: podíl pokračující hodnoty | B16: =S11/B13 -> 0.4876475502 | H16: +čistý zisk | I16: =AVERAGE(N3:R3) -> 23781.80846 | J16: průměr 2030-2034 | M16: růst | N16: g | O16: ='citl. analýza a ceny komodit'!B4 -> 0.02
H17: +odpisy | I17: =AVERAGE(N4:R4) -> 23293.96111 | J17: průměr 2030-2034 | N17: WACC | O17: ='CAPM a WACC'!G14 -> 0.05483309934
H18: +amortizace jaderného paliva | I18: =AVERAGE(N5:R5) -> 4629.390976 | J18: průměr 2030-2034 | N18: re | O18: ='citl. analýza a ceny komodit'!B5 -> 0.0762523233
D19: 537990000 | H19: +opravné položky | I19: =AVERAGE(N6:R6) -> 2121.519174 | J19: průměr 2030-2034
H20: -změna prac. Kapitálu | I20: =AVERAGE(N7:Q7) -> 119.445585 | J20: průměr 2030-2034
H21: -investice | I21: =-AVERAGE(('Prognózy výkazů'!O58-'Prognózy výkazů'!O57),('Prognózy výkazů'!P58-'Prognózy výkazů'!P57)) -> 30355.7358 | J21: Průměr CAPEX - před vyššími náklady na výstavbu jaderného zdroje (2026-2027)
C22: Počet | D22: 534864738 | H22: -splátky | I22: ='finanční část'!W37 -> 258081.6 | J22: výše dluhu v roce 2034
C23: cena akcie | D23: 595 | H23: +nové emise dluhových instrumentů | I23: 0 | J23: nečekám nové půjčky, jelikož by se to zde promítlo ve zvýšení splátek o stejnou hodnotu. Zanedbávám zde časovou hodnotu peněz
C24: hodnota | D24: =D22*D23/1000000 -> 318244.5191 | E24: mil Kč

Sheet některé tabulky do práce (hidden)
B1: Rok | C1: 2019 | D1: 2020 | E1: 2021 | F1: ........... | G1: 2034 | H1: Pokračující hodnota
A2: EBIT | B2: mil. Kč | C2: =FCFF!G3 -> 21808.81867 | D2: =FCFF!H3 -> 21729.78074 | E2: =FCFF!I3 -> 24037.15454 | F2: …........ | G2: =FCFF!V3 -> 36312.20195 | H2: =FCFF!W3 -> 984247.461 | L2: 0 | M2: %
A3: daňová sazba | B3: mil. Kč | C3: =FCFF!G4 -> 0.19 | D3: =FCFF!H4 -> 0.19 | E3: =FCFF!I4 -> 0.19 | F3: …........ | G3: =FCFF!V4 -> 0.19 | H3: =FCFF!W4 -> 0.19 | L3: 100 | N3: 286
A4: +odpisy | B4: mil. Kč | C4: =FCFF!G5 -> 27355.30715 | D4: =FCFF!H5 -> 26575.16391 | E4: =FCFF!I5 -> 23509.41442 | F4: …........ | G4: =FCFF!V5 -> 23397.52457 | H4: =FCFF!W5 -> 667987.3651
A5: +amortizace jaderného paliva | B5: mil. Kč | C5: =FCFF!G6 -> 4067.27 | D5: =FCFF!H6 -> 4107.9427 | E5: =FCFF!I6 -> 4149.022127 | F5: …........ | G5: =FCFF!V6 -> 4721.974203 | H5: =FCFF!W6 -> 132902.0691 | K5: cena elektřiny | M5: 2019 | N5: 2020 | O5: 2021 | P5: ….. | Q5: 2034 | R5: Hodnota firm
A6: +opravné položky | B6: mil. Kč | C6: =FCFF!G7 -> 3223.92 | D6: =FCFF!H7 -> 2097.7498 | E6: =FCFF!I7 -> 1933.056624 | F6: …........ | G6: =FCFF!V7 -> 2138.457451 | H6: =FCFF!W7 -> 60783.69841 | K6: scénář - elektřina | L6: EUR/MWh | M6: ='citl. analýza a ceny komodit'!R30 -> 55.30698261 | N6: ='citl. analýza a ceny komodit'!S30 -> 57.58223815 | O6: ='citl. analýza a ceny komodit'!T30 -> 62.51851852 | P6: ….. | Q6: ='citl. analýza a ceny komodit'!AG30 -> 105.6539227 | R6: =FCFE!B13 -> 319356.2826 | S6: mil. Kč
A7: -změna prac. Kapitálu | B7: mil. Kč | C7: =FCFF!G8 -> -14000.25833 | D7: =FCFF!H8 -> -8908.888069 | E7: =FCFF!I8 -> -1555.400359 | F7: …........ | G7: =FCFF!V8 -> -2032.913921 | H7: =FCFF!W8 -> 3429.082892 | K7: predikce dle změny komodit | L7: EUR/MWh | M7: ='citl. analýza a ceny komodit'!R31 -> 55.30698261 | N7: ='citl. analýza a ceny komodit'!S31 -> 57.58223815 | O7: ='citl. analýza a ceny komodit'!T31 -> 62.51851852 | P7: ….. | Q7: ='citl. analýza a ceny komodit'!AG31 -> 105.6539227
A8: -investice | B8: mil. Kč | C8: =FCFF!G9 -> 36617.24333 | D8: =FCFF!H9 -> 28187.46577 | E8: =FCFF!I9 -> -18372.41812 | F8: …........ | G8: =FCFF!V9 -> 44543.3365 | H8: =FCFF!W9 -> 871462.3842 | K8: původní predikce | L8: EUR/MWh | M8: ='citl. analýza a ceny komodit'!R32 -> 55.30698261 | N8: ='citl. analýza a ceny komodit'!S32 -> 57.58223815 | O8: ='citl. analýza a ceny komodit'!T32 -> 62.51851852 | P8: ….. | Q8: ='citl. analýza a ceny komodit'!AG32 -> 105.6539227
A9: FCFF | B9: mil. Kč | C9: =FCFF!G10 -> 29694.65527 | D9: =FCFF!H10 -> 31103.40111 | E9: =FCFF!I10 -> 68989.40683 | F9: …........ | G9: =FCFF!V10 -> 17160.41722 | H9: =FCFF!W10 -> 784022.1089
A10: DFCFF | B10: mil. Kč | C10: =FCFF!G11 -> 28151.04616 | D10: =FCFF!H11 -> 27953.76972 | E10: =FCFF!I11 -> 58780.21416 | F10: …........ | G10: =FCFF!V11 -> 7304.4557 | L10: 0 | M10: %
A11: Hodnota firmy 2019 | B11: =FCFF!B12 -> 997976.2727 | C11: mil. Kč | L11: 100
K13: cena emisních povolenek | M13: 2019 | N13: 2020 | O13: 2021 | P13: ….. | Q13: 2034
B14: Rok | C14: 2019 | D14: 2020 | E14: 2021 | F14: ........... | G14: 2034 | H14: Pokračující hodnota | K14: scénář - emisní povolenky | L14: EUR/t | M14: ='citl. analýza a ceny komodit'!R38 -> 27 | N14: ='citl. analýza a ceny komodit'!S38 -> 31 | O14: ='citl. analýza a ceny komodit'!T38 -> 34 | P14: ….. | Q14: ='citl. analýza a ceny komodit'!AG38 -> 58
A15: +čistý zisk | B15: mil. Kč | C15: =FCFE!C3 -> 13460.32812 | D15: =FCFE!D3 -> 13201.60365 | E15: =FCFE!E3 -> 15388.05424 | F15: …........ | G15: =FCFE!R3 -> 25095.83087 | H15: =FCFE!S3 -> 422770.2441 | K15: původní predikce | L15: EUR/t | M15: ='citl. analýza a ceny komodit'!R39 -> 27 | N15: ='citl. analýza a ceny komodit'!S39 -> 31 | O15: ='citl. analýza a ceny komodit'!T39 -> 34 | P15: ….. | Q15: ='citl. analýza a ceny komodit'!AG39 -> 58
A16: +odpisy | B16: mil. Kč | C16: =FCFE!C4 -> 27355.30715 | D16: =FCFE!D4 -> 26575.16391 | E16: =FCFE!E4 -> 23509.41442 | F16: …........ | G16: =FCFE!R4 -> 23397.52457 | H16: =FCFE!S4 -> 414097.7606
A17: +amortizace jaderného paliva | B17: mil. Kč | C17: =FCFE!C5 -> 4067.27 | D17: =FCFE!D5 -> 4107.9427 | E17: =FCFE!E5 -> 4149.022127 | F17: …........ | G17: =FCFE!R5 -> 4721.974203 | H17: =FCFE!S5 -> 82296.88489
A18: +opravné položky | B18: mil. Kč | C18: =FCFE!C6 -> 3223.92 | D18: =FCFE!D6 -> 2097.7498 | E18: =FCFE!E6 -> 1933.056624 | F18: …........ | G18: =FCFE!R6 -> 2138.457451 | H18: =FCFE!S6 -> 37714.3387 | L18: 0 | M18: %
A19: -změna prac. Kapitálu | B19: mil. Kč | C19: =FCFE!C7 -> -14000.25833 | D19: =FCFE!D7 -> -8908.888069 | E19: =FCFE!E7 -> -1555.400359 | F19: …........ | G19: =FCFE!R7 -> -2032.913921 | H19: =FCFE!S7 -> 3429.082892 | L19: 100
A20: -investice | B20: mil. Kč | C20: =FCFE!C8 -> 36617.24333 | D20: =FCFE!D8 -> 28187.46577 | E20: =FCFE!E8 -> -18372.41812 | F20: …........ | G20: =FCFE!R8 -> 44543.3365 | H20: =FCFE!S8 -> 539635.2367
A21: -splátky včetně obligací | B21: mil. Kč | C21: =FCFE!C9 -> 6743 | D21: =FCFE!D9 -> 22675 | E21: =FCFE!E9 -> 26058 | F21: …........ | G21: =FCFE!R9 -> 14483.75993 | H21: =FCFE!S9 -> 258081.6 | K21: Cena plynu | M21: 2019 | N21: 2020 | O21: 2021 | P21: ….. | Q21: 2034
A22: +nové emise dluhových instrumentů | B22: mil. Kč | C22: =FCFE!C10 -> 3150 | D22: =FCFE!D10 -> 15350 | E22: =FCFE!E10 -> 21500 | F22: …........ | G22: =FCFE!R10 -> 13000 | H22: =FCFE!S10 -> 0 | K22: scénář - zemní plyn | L22: EUR/MWh | M22: ='citl. analýza a ceny komodit'!R46 -> 21 | N22: ='citl. analýza a ceny komodit'!S46 -> 18 | O22: ='citl. analýza a ceny komodit'!T46 -> 20 | P22: ….. | Q22: ='citl. analýza a ceny komodit'!AG46 -> 27
A23: FCFE | B23: mil. Kč | C23: =FCFE!C11 -> 21896.84027 | D23: =FCFE!D11 -> 19378.88236 | E23: =FCFE!E11 -> 60349.3659 | F23: …........ | G23: =FCFE!R11 -> 11359.60458 | H23: =FCFE!S11 -> 155733.3088 | K23: původní predikce | L23: EUR/MWh | M23: ='citl. analýza a ceny komodit'!R47 -> 21 | N23: ='citl. analýza a ceny komodit'!S47 -> 18 | O23: ='citl. analýza a ceny komodit'!T47 -> 20 | P23: ….. | Q23: ='citl. analýza a ceny komodit'!AG47 -> 27
A24: DFCFE | B24: mil. Kč | C24: =FCFE!C12 -> 20345.45226 | D24: =FCFE!D12 -> 16730.17649 | E24: =FCFE!E12 -> 48409.47863 | F24: …........ | G24: =FCFE!R12 -> 3505.400003 | H24: =FCFE!S12 -> 0
A25: Hodnota firmy 2019 | B25: =FCFE!B13 -> 319356.2826 | C25: mil. Kč
L26: 0 | M26: %
L27: 100
K29: Cena černého uhlí | M29: 2019 | N29: 2020 | O29: 2021 | P29: ….. | Q29: 2034
K30: scénář - černé uhlí | L30: USD/t | M30: ='citl. analýza a ceny komodit'!R54 -> 64 | N30: ='citl. analýza a ceny komodit'!S54 -> 61 | O30: ='citl. analýza a ceny komodit'!T54 -> 61 | P30: ….. | Q30: ='citl. analýza a ceny komodit'!AG54 -> 53
K31: původní predikce | L31: USD/t | M31: ='citl. analýza a ceny komodit'!R55 -> 64 | N31: ='citl. analýza a ceny komodit'!S55 -> 61 | O31: ='citl. analýza a ceny komodit'!T55 -> 61 | P31: ….. | Q31: ='citl. analýza a ceny komodit'!AG55 -> 53
W36: 0.06 | X36: 0.07 | Y36: 0.0762523233 | Z36: 0.08 | AA36: 0.09 | AB36: 0.1
V37: -0.02 | W37: 212970.3861 | X37: 170461.5521 | Y37: 147793.2907 | Z37: 135380.2559 | AA37: 105844.3298 | AB37: 80577.86452
V38: -0.01 | W38: 254636.5908 | X38: 202813.8902 | Y38: 175818.5747 | Z38: 161212.8872 | AA38: 126935.3563 | AB38: 98112.68744
V39: 0 | W39: 310183.7974 | X39: 244390.2968 | Y39: 211169.3047 | Z39: 193475.4272 | AA39: 152678.1896 | AB39: 119113.916
V40: 0.01 | W40: 387934.3976 | X40: 299787.6171 | Y40: 257143.1211 | Z40: 234901.9476 | AA40: 184790.8434 | AB40: 144706.8631
V41: 0.02 | W41: 504524.262 | X41: 377259.2417 | Y41: 319356.2826 | Z41: 290020.2922 | AA41: 225938.3881 | AB41: 176540.5411
V42: 0.03 | W42: 698734.6096 | X42: 493233.1095 | Y42: 408185.8163 | Z42: 366875.9202 | AA42: 280440.7361 | AB42: 217072.0892
V43: 0.04 | W43: 1086674.304 | X43: 685581.6051 | Y43: 544921.5556 | Z43: 480987.9361 | AA43: 355434.5121 | AB43: 269712.5853

Sheet CAPM a WACC
B2: Rok | C2: ='Prognózy výkazů'!D75 -> 2015 | D2: ='Prognózy výkazů'!E75 -> 2016 | E2: ='Prognózy výkazů'!F75 -> 2017 | F2: ='Prognózy výkazů'!G75 -> 2018 | G2: ='Prognózy výkazů'!H75 -> 2019 | H2: ='Prognózy výkazů'!I75 -> 2020 | I2: ='Prognózy výkazů'!J75 -> 2021 | J2: ='Prognózy výkazů'!K75 -> 2022 | K2: 2023 | L2: 2024 | M2: 2025 | N2: 2026 | O2: 2027 | P2: 2028 | Q2: 2029 | R2: 2030 | S2: 2031 | T2: 2032 | U2: 2033 | V2: 2034
A3: Dlouhodobý úročený dluh | B3: mil Kč | C3: ='Prognózy výkazů'!D76 -> 145575 | D3: ='Prognózy výkazů'!E76 -> 142265 | E3: ='Prognózy výkazů'!F76 -> 132475 | F3: ='Prognózy výkazů'!G76 -> 142440 | G3: ='Prognózy výkazů'!H76 -> 147722 | H3: ='Prognózy výkazů'!I76 -> 140397 | I3: ='Prognózy výkazů'!J76 -> 135839 | J3: ='Prognózy výkazů'!K76 -> 130553 | K3: ='Prognózy výkazů'!L76 -> 133143 | L3: ='Prognózy výkazů'!M76 -> 138986.6 | M3: ='Prognózy výkazů'!N76 -> 123577.6 | N3: ='Prognózy výkazů'!O76 -> 125577.6 | O3: ='Prognózy výkazů'!P76 -> 134077.6 | P3: ='Prognózy výkazů'!Q76 -> 140158.6 | Q3: ='Prognózy výkazů'!R76 -> 166158.6 | R3: ='Prognózy výkazů'!S76 -> 188641.6 | S3: ='Prognózy výkazů'!T76 -> 211141.6 | T3: ='Prognózy výkazů'!U76 -> 230581.6 | U3: ='Prognózy výkazů'!V76 -> 248581.6 | V3: ='Prognózy výkazů'!W76 -> 258081.6
A4: Krátkodobé úvěry | B4: mil Kč | C4: ='Prognózy výkazů'!D77 -> 223 | D4: ='Prognózy výkazů'!E77 -> 8343 | E4: ='Prognózy výkazů'!F77 -> 11073 | F4: ='Prognózy výkazů'!G77 -> 11783 | G4: ='Prognózy výkazů'!I108+'Prognózy výkazů'!I109 -> 13700.66667 | H4: ='Prognózy výkazů'!J108+'Prognózy výkazů'!J109 -> 30339.61111 | I4: ='Prognózy výkazů'!K108+'Prognózy výkazů'!K109 -> 33732.0463 | J4: ='Prognózy výkazů'!L108+'Prognózy výkazů'!L109 -> 33201.88735 | K4: ='Prognózy výkazů'!M108+'Prognózy výkazů'!M109 -> 18921.36857 | L4: ='Prognózy výkazů'!N108+'Prognózy výkazů'!N109 -> 13324.16333 | M4: ='Prognózy výkazů'!O108+'Prognózy výkazů'!O109 -> 32079.59722 | N4: ='Prognózy výkazů'!P108+'Prognózy výkazů'!P109 -> 30771.28298 | O4: ='Prognózy výkazů'!Q108+'Prognózy výkazů'!Q109 -> 24327.44536 | P4: ='Prognózy výkazů'!R108+'Prognózy výkazů'!R109 -> 33364.23397 | Q4: ='Prognózy výkazů'!S108+'Prognózy výkazů'!S109 -> 17426.5694 | R4: ='Prognózy výkazů'!T108+'Prognózy výkazů'!T109 -> 20953.52495 | S4: ='Prognózy výkazů'!U108+'Prognózy výkazů'!U109 -> 24549.48284 | T4: ='Prognózy výkazů'!V108+'Prognózy výkazů'!V109 -> 25367.95117 | U4: ='Prognózy výkazů'!W108+'Prognózy výkazů'!W109 -> 21112.24866 | V4: ='Prognózy výkazů'!X108+'Prognózy výkazů'!X109 -> 22979.38728
A5: Krátkodobá část dlouhodobých dluhů | B5: mil Kč | C5: ='Prognózy výkazů'!D78 -> 11696 | D5: ='Prognózy výkazů'!E78 -> 17208 | E5: ='Prognózy výkazů'!F78 -> 10759 | F5: ='Prognózy výkazů'!G78 -> 6743
A7: Vlastní kapitál | B7: mil Kč | C7: ='Prognózy výkazů'!D80 -> 267893 | D7: ='Prognózy výkazů'!E80 -> 256812 | E7: ='Prognózy výkazů'!F80 -> 250018 | F7: ='Prognózy výkazů'!G80 -> 234721 | G7: ='Prognózy výkazů'!H80 -> 236996.09 | H7: ='Prognózy výkazů'!I80 -> 239859.4951 | I7: ='Prognózy výkazů'!J80 -> 242778.791 | J7: ='Prognózy výkazů'!K80 -> 245715.8009 | K7: ='Prognózy výkazů'!L80 -> 248571.4054 | L7: ='Prognózy výkazů'!M80 -> 251573.7422 | M7: ='Prognózy výkazů'!N80 -> 254612.4395 | N7: ='Prognózy výkazů'!O80 -> 257682.6393 | O7: ='Prognózy výkazů'!P80 -> 260787.8132 | P7: ='Prognózy výkazů'!Q80 -> 263957.0815 | Q7: ='Prognózy výkazů'!R80 -> 267169.8102 | R7: ='Prognózy výkazů'!S80 -> 270427.8001 | S7: ='Prognózy výkazů'!T80 -> 273734.5173 | T7: ='Prognózy výkazů'!U80 -> 277093.4267 | U7: ='Prognózy výkazů'!V80 -> 280501.5798 | V7: ='Prognózy výkazů'!W80 -> 283960.4501
A8: D+E | B8: mil Kč | C8: ='Prognózy výkazů'!D81 -> 425164 | D8: ='Prognózy výkazů'!E81 -> 416285 | E8: ='Prognózy výkazů'!F81 -> 393252 | F8: ='Prognózy výkazů'!G81 -> 383904 | G8: ='Prognózy výkazů'!H81 -> 384718.09 | H8: ='Prognózy výkazů'!I81 -> 380256.4951 | I8: ='Prognózy výkazů'!J81 -> 378617.791 | J8: ='Prognózy výkazů'!K81 -> 376268.8009 | K8: ='Prognózy výkazů'!L81 -> 381714.4054 | L8: ='Prognózy výkazů'!M81 -> 390560.3422 | M8: ='Prognózy výkazů'!N81 -> 378190.0395 | N8: ='Prognózy výkazů'!O81 -> 383260.2393 | O8: ='Prognózy výkazů'!P81 -> 394865.4132 | P8: ='Prognózy výkazů'!Q81 -> 404115.6815 | Q8: ='Prognózy výkazů'!R81 -> 433328.4102 | R8: ='Prognózy výkazů'!S81 -> 459069.4001 | S8: ='Prognózy výkazů'!T81 -> 484876.1173 | T8: ='Prognózy výkazů'!U81 -> 507675.0267 | U8: ='Prognózy výkazů'!V81 -> 529083.1798 | V8: ='Prognózy výkazů'!W81 -> 542042.0501
A10: D | B10: % | C10: ='Prognózy výkazů'!D83 -> 0.3704311748 | D10: ='Prognózy výkazů'!E83 -> 0.4031276649 | E10: ='Prognózy výkazů'!F83 -> 0.3923870699 | F10: ='Prognózy výkazů'!G83 -> 0.4192871134 | G10: ='Prognózy výkazů'!H83 -> 0.4195868894 | H10: ='Prognózy výkazů'!I83 -> 0.4490037996 | I10: ='Prognózy výkazů'!J83 -> 0.4478686695 | J10: ='Prognózy výkazů'!K83 -> 0.4352071896 | K10: ='Prognózy výkazů'!L83 -> 0.3983720981 | L10: ='Prognózy výkazů'!M83 -> 0.3899801052 | M10: ='Prognózy výkazů'!N83 -> 0.4115846028 | N10: ='Prognózy výkazů'!O83 -> 0.4079444382 | O10: ='Prognózy výkazů'!P83 -> 0.4011621176 | P10: ='Prognózy výkazů'!Q83 -> 0.4293890138 | Q10: ='Prognózy výkazů'!R83 -> 0.4236628965 | R10: ='Prognózy výkazů'!S83 -> 0.4565652272 | S10: ='Prognózy výkazů'!T83 -> 0.4860851554 | T10: ='Prognózy výkazů'!U83 -> 0.5041602161 | U10: ='Prognózy výkazů'!V83 -> 0.5097380883 | V10: ='Prognózy výkazů'!W83 -> 0.5185224785
A11: E | B11: % | C11: ='Prognózy výkazů'!D84 -> 0.6295688252 | D11: ='Prognózy výkazů'!E84 -> 0.5968723351 | E11: ='Prognózy výkazů'!F84 -> 0.6076129301 | F11: ='Prognózy výkazů'!G84 -> 0.5807128866 | G11: ='Prognózy výkazů'!H84 -> 0.5804131106 | H11: ='Prognózy výkazů'!I84 -> 0.5509962004 | I11: ='Prognózy výkazů'!J84 -> 0.5521313305 | J11: ='Prognózy výkazů'!K84 -> 0.5647928104 | K11: ='Prognózy výkazů'!L84 -> 0.6016279019 | L11: ='Prognózy výkazů'!M84 -> 0.6100198948 | M11: ='Prognózy výkazů'!N84 -> 0.5884153972 | N11: ='Prognózy výkazů'!O84 -> 0.5920555618 | O11: ='Prognózy výkazů'!P84 -> 0.5988378824 | P11: ='Prognózy výkazů'!Q84 -> 0.5706109862 | Q11: ='Prognózy výkazů'!R84 -> 0.5763371035 | R11: ='Prognózy výkazů'!S84 -> 0.5434347728 | S11: ='Prognózy výkazů'!T84 -> 0.5139148446 | T11: ='Prognózy výkazů'!U84 -> 0.4958397839 | U11: ='Prognózy výkazů'!V84 -> 0.4902619117 | V11: ='Prognózy výkazů'!W84 -> 0.4814775215
A12: D+E | B12: % | C12: ='Prognózy výkazů'!D85 -> 1 | D12: ='Prognózy výkazů'!E85 -> 1 | E12: ='Prognózy výkazů'!F85 -> 1 | F12: ='Prognózy výkazů'!G85 -> 1 | G12: ='Prognózy výkazů'!H85 -> 1 | H12: ='Prognózy výkazů'!I85 -> 1 | I12: ='Prognózy výkazů'!J85 -> 1 | J12: ='Prognózy výkazů'!K85 -> 1 | K12: ='Prognózy výkazů'!L85 -> 1 | L12: ='Prognózy výkazů'!M85 -> 1 | M12: ='Prognózy výkazů'!N85 -> 1 | N12: ='Prognózy výkazů'!O85 -> 1 | O12: ='Prognózy výkazů'!P85 -> 1 | P12: ='Prognózy výkazů'!Q85 -> 1 | Q12: ='Prognózy výkazů'!R85 -> 1 | R12: ='Prognózy výkazů'!S85 -> 1 | S12: ='Prognózy výkazů'!T85 -> 1 | T12: ='Prognózy výkazů'!U85 -> 1 | U12: ='Prognózy výkazů'!V85 -> 1 | V12: ='Prognózy výkazů'!W85 -> 1
A14: WACC | G14: =$C$29*G11/G12+$C$18*G10/G12*(1-$C$27) -> 0.05483309934
A17: Vstupní údaje pro CAPM model a WACC
A18: rd | B18: rf + RPčez | C18: =C19+C22 -> 0.031116
A19: bezriziková výnosová míra | B19: rf | C19: =AVERAGE('koeficient Beta'!P44:P48) -> 0.018916
A20: risk premium ČR | B20: MRP | C20: 0.063
A21: Rating skupiny ČEZ | B21: A-
A22: riziková přirážka odvětví A- | B22: Rp | C22: 0.0122
A23: beta | B23: Beta | C23: ='koeficient Beta'!K8 -> 0.9101003699
A24: Dluh | B24: D | C24: =G10 -> 0.4195868894
A25: Vlastní kapitál | B25: E | C25: =G11 -> 0.5804131106
A26: Kapitál | B26: D+E | C26: =G12 -> 1
A27: Daň | B27: t | C27: 0.19
A29: CAPM model (výpočet) | B29: re | C29: =C19+C20*C23 -> 0.0762523233
B31: 2019
A32: re | B32: ='citl. analýza a ceny komodit'!B5 -> 0.0762523233
A33: WACC2019 | B33: =G14 -> 0.05483309934
A36: http://pages.stern.nyu.edu/~adamodar/
A38: For developed market firms with market cap > $5 billion
A39: Rating is | B39: Spread is
A40: Aaa/AAA | B40: 0.63%
A41: Aa2/AA | B41: 0.78%
A42: A1/A+ | B42: 0.98%
A43: A2/A | B43: 1.08%
A44: A3/A- | B44: 1.22%
A45: Baa2/BBB | B45: 1.56%
A47: https://www.febmat.com/clanek-beta-nezadluzene-firmy-tzv-unlevered-beta/
A48: https://www.statista.com/statistics/664876/average-market-risk-premium-czech-republic-europe/

Sheet finanční část
H1: Vydání nových obligací
A2: Přehled dlouhodobých dluhů k 31. 12. 2018 a 2017 (v mil. Kč): | B2: 2018 | E2: Termín splacení emitovaných obligací | F2: Splatnost obligací vydané k roku 2018 | G2: Obligace | H2: 2019 | I2: 2020 | J2: 2021 | K2: 2022 | L2: 2023 | M2: 2024 | N2: 2025 | O2: 2026 | P2: 2027 | Q2: 2028 | R2: 2029 | S2: 2030 | T2: 2031 | U2: 2032 | V2: 2033 | W2: 2034
A3: 3,005% euroobligace splatné v roce 2038 (12 000 mil. JPY) | B3: 2468 | D3: 2019 | E3: obligace splatné 2019 | F3: =B6 -> 1287 | G3: =F3+SUM(H3:AF3) -> 1287 | H3: 0 | I3: 0 | J3: 0 | K3: 0 | L3: 0 | M3: 0 | N3: 0 | O3: 0 | P3: 0 | Q3: 0 | R3: 0 | S3: 0 | T3: 0 | U3: 0 | V3: 0 | W3: 0
A4: 2,845% euroobligace splatné v roce 2039 (8 000 mil. JPY) | B4: 1647 | D4: 2020 | E4: obligace splatné 2020 | F4: =B8 -> 19693 | G4: =F4+SUM(H4:AF4) -> 19693 | I4: 0 | J4: 0 | K4: 0 | L4: 0 | M4: 0 | N4: 0 | O4: 0 | P4: 0 | Q4: 0 | R4: 0 | S4: 0 | T4: 0 | U4: 0 | V4: 0 | W4: 0
A5: 5,000% euroobligace splatné v roce 2021 (750 mil. EUR) | B5: 19457 | D5: 2021 | E5: obligace splatné 2021 | F5: =B5+B12+B11 -> 23379 | G5: 23379 | J5: 0 | K5: 0 | L5: 0 | M5: 0 | N5: 0 | O5: 0 | P5: 0 | Q5: 0 | R5: 0 | S5: 0 | T5: 0 | U5: 0 | V5: 0 | W5: 0
A6: 6M Euribor + 1,25% euroobligace splatné v roce 2019 (50 mil. EUR) | B6: 1287 | D6: 2022 | E6: obligace splatné 2022 | F6: =B18+B19 -> 19349 | G6: 19349 | K6: 0 | L6: 0 | M6: 0 | N6: 0 | O6: 0 | P6: 0 | Q6: 0 | R6: 0 | S6: 0 | T6: 0 | U6: 0 | V6: 0 | W6: 0
A7: 4,875% euroobligace splatné v roce 2025 (750 mil. EUR) | B7: 19909 | D7: 2023 | E7: obligace splatné 2023 | F7: =B9+B10+B22 -> 4725 | G7: =F7+SUM(H7:AF7) -> 8725 | I7: 4000 | L7: 0 | M7: 0 | N7: 0 | O7: 0 | P7: 0 | Q7: 0 | R7: 0 | S7: 0 | T7: 0 | U7: 0 | V7: 0 | W7: 0
A8: 4,500% euroobligace splatné v roce 2020 (750 mil. EUR) | B8: 19693 | D8: 2024 | E8: obligace splatné 2024 | F8: 0 | G8: 1000 | K8: 1000 | M8: 0 | N8: 0 | O8: 0 | P8: 0 | Q8: 0 | R8: 0 | S8: 0 | T8: 0 | U8: 0 | V8: 0 | W8: 0
A9: 2,160% euroobligace splatné v roce 2023 (11 500 mil. JPY) | B9: 2370 | D9: 2025 | E9: obligace splatné 2025 | F9: =B7 -> 19909 | G9: 19909 | N9: 0 | O9: 0 | P9: 0 | Q9: 0 | R9: 0 | S9: 0 | T9: 0 | U9: 0 | V9: 0 | W9: 0
A10: 4,600% euroobligace splatné v roce 2023 (1 250 mil. Kč) | B10: 1287 | D10: 2026 | E10: obligace splatné 2026 | F10: 0 | G10: 18000 | H10: 1000 | J10: 10000 | K10: 7000 | O10: 0 | P10: 0 | Q10: 0 | R10: 0 | S10: 0 | T10: 0 | U10: 0 | V10: 0 | W10: 0
A11: 2,150%*IR CPI euroobligace splatné v roce 2021 (100 mil. EUR) | B11: 2634 | D11: 2027 | E11: obligace splatné 2027 | F11: 0 | G11: 11000 | I11: 3000 | K11: 6000 | M11: 2000 | P11: 0 | Q11: 0 | R11: 0 | S11: 0 | T11: 0 | U11: 0 | V11: 0 | W11: 0
A12: 4,102% euroobligace splatné v roce 2021 (50 mil. EUR) | B12: 1288 | D12: 2028 | E12: obligace splatné 2028 | F12: =B16 -> 19419 | G12: 19419 | Q12: 0 | R12: 0 | S12: 0 | T12: 0 | U12: 0 | V12: 0 | W12: 0
A13: 4,375% euroobligace splatné v roce 2042 (50 mil. EUR) | B13: 1286 | D13: 2029 | E13: obligace splatné 2029 | F13: 0 | G13: 3000 | I13: 3000 | R13: 0 | S13: 0 | T13: 0 | U13: 0 | V13: 0 | W13: 0
A14: 4,500% euroobligace splatné v roce 2047 (50 mil. EUR) | B14: 1284 | D14: 2030 | E14: obligace splatné 2030 | F14: =B21 -> 1017 | G14: 6017 | L14: 5000 | S14: 0 | T14: 0 | U14: 0 | V14: 0 | W14: 0
A15: 4,383% euroobligace splatné v roce 2047 (80 mil. EUR) | B15: 2087 | D15: 2031 | E15: obligace splatné 2031 | F15: 0 | G15: =F15+SUM(H15:AF15) -> 9000 | J15: 9000 | T15: 0 | U15: 0 | V15: 0 | W15: 0
A16: 3,000% euroobligace splatné v roce 2028 (725 mil. EUR) | B16: 19419 | D16: 2032 | E16: obligace splatné 2032 | F16: =B23 -> 1060 | G16: 9060 | M16: 5000 | Q16: 3000 | U16: 0 | V16: 0 | W16: 0
A17: 3M Euribor + 0,55% euroobligace splatné v roce 2018 (200 mil. EUR) | B17: 0 | D17: 2033 | E17: obligace splatné 2033 | F17: 0 | G17: 4000 | O17: 4000 | V17: 0 | W17: 0
A18: 0,875% euroobligace splatné v roce 2022 (500 mil. EUR) | B18: 12824 | D18: 2034 | E18: obligace splatné 2034 | F18: 0 | G18: 5000 | P18: 5000 | W18: 0
A19: 4,250% U.S. obligace splatné v roce 2022 (289 mil. USD) | B19: 6525 | D19: 2035 | E19: obligace splatné 2035 | F19: 0 | G19: 0
A20: 5,625% U.S. obligace splatné v roce 2042 (300 mil. USD) | B20: 6768 | D20: 2036 | E20: obligace splatné 2036 | F20: 0 | G20: 0
A21: 4,500% registrované obligace splatné v roce 2030 (40 mil. EUR) | B21: 1017 | D21: 2037 | E21: obligace splatné 2037 | F21: 0 | G21: 1000 | K21: 1000
A22: 4,750% registrované obligace splatné v roce 2023 (40 mil. EUR) | B22: 1068 | D22: 2038 | E22: obligace splatné 2038 | F22: =B25+B3 -> 3258 | G22: 6258 | O22: 3000
A23: 4,700% registrované obligace splatné v roce 2032 (40 mil. EUR) | B23: 1060 | D23: 2039 | E23: obligace splatné 2039 | F23: =B4 -> 1647 | G23: 12647 | P23: 11000
A24: 4,270% registrované obligace splatné v roce 2047 (61 mil. EUR) | B24: 1549 | D24: 2040 | E24: obligace splatné 2040 | F24: 0 | G24: 7000 | I24: 3000 | L24: 4000
A25: 3,550% registrované obligace splatné v roce 2038 (30 mil. EUR) | B25: 790 | D25: 2041 | E25: obligace splatné 2041 | F25: 0 | G25: 0
A26: Dluhopisy celkem | B26: =SUM(B3:B25) -> 127717 | D26: 2042 | E26: obligace splatné 2042 | F26: =B20+B13 -> 8054 | G26: 28054 | N26: 1000 | Q26: 19000
A27: Krátkodobá část | B27: -3419 | D27: další roky | E27: obligace splatné v dalších letech | F27: =B24+B15+B14 -> 4920 | G27: =F27+SUM(H27:AF27) -> 102920 | O27: 9000 | R27: 21000 | S27: 20000 | T27: 18000 | U27: 15000 | V27: 10000 | W27: 5000
A28: Dluhopisy bez krátkodobé části | B28: =B26+B27 -> 124298 | E28: Vydané obligace | F28: =SUM(F3:F27) -> 127717
A29: Dlouhodobé bankovní úvěry a závazky z leasingů:
A30: méně než 2,00 % p. a. | B30: 13726 | H30: 2019 | I30: 2020 | J30: 2021 | K30: 2022 | L30: 2023 | M30: 2024 | N30: 2025 | O30: 2026 | P30: 2027 | Q30: 2028 | R30: 2029 | S30: 2030 | T30: 2031 | U30: 2032 | V30: 2033 | W30: 2034
A31: od 2,00 % do 2,99 % p. a. | B31: 4041 | G31: Vydané obligace celkem | H31: =SUM($F$4:$F$27)+SUM($H$4:$H$27) -> 127430 | I31: =SUM($F$5:$F$27)+SUM($H$5:$I$27) -> 120737 | J31: =SUM($F$6:$F$27)+SUM($H$6:$J$27) -> 116358 | K31: =SUM($F$7:$F$27)+SUM($H$7:$K$27) -> 112009 | L31: =SUM($F$8:$F$27)+SUM($H$8:$L$27) -> 112284 | M31: =SUM($F$9:$F$27)+SUM($H$9:$M$27) -> 118284 | N31: =SUM($F$10:$F$27)+SUM($H$10:$N$27) -> 99375 | O31: =SUM($F$11:$F$27)+SUM($H$11:$O$27) -> 97375 | P31: =SUM($F$12:$F$27)+SUM($H$12:$P$27) -> 102375 | Q31: =SUM($F$13:$F$27)+SUM($H$13:$Q$27) -> 104956 | R31: =SUM($F$14:$F$27)+SUM($H$14:$R$27) -> 122956 | S31: =SUM($F$15:$F$27)+SUM($H$15:$S$27) -> 136939 | T31: =SUM($F$16:$F$27)+SUM($H$16:$T$27) -> 145939 | U31: =SUM($F$17:$F$27)+SUM($H$17:$U$27) -> 151879 | V31: =SUM($F$18:$F$27)+SUM($H$18:$V$27) -> 157879 | W31: =SUM($F$19:$F$27)+SUM($H$19:$W$27) -> 157879
A32: od 3,00 % do 3,99 % p. a. | B32: 919 | G32: Splatné obligace k roku | H32: =F3+SUM(H3:W3) -> 1287 | I32: =F4+SUM(H4:W4) -> 19693 | J32: =F5+SUM(H5:W5) -> 23379 | K32: =F6+SUM(H6:W6) -> 19349 | L32: =F7+SUM(H7:W7) -> 8725 | M32: =F8+SUM(H8:W8) -> 1000 | N32: =F9+SUM(H9:W9) -> 19909 | O32: =F10+SUM(H10:W10) -> 18000 | P32: =F11+SUM(H11:W11) -> 11000 | Q32: =F12+SUM(H12:W12) -> 19419 | R32: =F13+SUM(H13:W13) -> 3000 | S32: =F14+SUM(H14:W14) -> 6017 | T32: =F15+SUM(H15:W15) -> 9000 | U32: =F16+SUM(H16:W16) -> 9060 | V32: =F17+SUM(H17:W17) -> 4000 | W32: =F18+SUM(H18:W18) -> 5000
A33: od 4,00 % p. a. | B33: 2780 | G33: Nové bankovní úvěry,leasing | H33: =2000+H38*$N$46 -> 2150 | I33: 2350 | J33: 2500 | K33: 4000 | L33: 3500 | M33: 3500 | N33: 4000 | O33: 3500 | P33: 3500 | Q33: 8000 | R33: 8500 | S33: 13500 | T33: 13500 | U33: 12000 | V33: 9500 | W33: 8000
A34: Dlouhodobé bankovní úvěry a závazky z leasingů celkem | B34: =B30+B31+B32+B33 -> 21466 | G34: Bankovní úvěry,závazky z leasingu | H34: =B36+H33 -> 20292 | I34: =H34-(I35-I32)+I33 -> 19660 | J34: =I34-(J35-J32)+J33 -> 19481 | K34: =J34-(K35-K32)+K33 -> 18544 | L34: =K34-(L35-L32)+L33 -> 20859 | M34: =L34+M33-M35 -> 20702.6 | N34: =M34+M33 -> 24202.6 | O34: =N34+N33 -> 28202.6 | P34: =O34+O33 -> 31702.6 | Q34: =P34+P33 -> 35202.6 | R34: 43202.6 | S34: 51702.6 | T34: 65202.6 | U34: 78702.6 | V34: 90702.6 | W34: =V34+V33 -> 100202.6
A35: Krátkodobá část (splátky) | B35: -3324 | G35: Splátky úvěrů (úmor) | H35: =B42+SUM(H3:AE3) -> 6743 | I35: =B43+SUM(H4:AE4) -> 22675 | J35: =B44+SUM(H5:AE5) -> 26058 | K35: =B45+SUM(H6:AE6) -> 24286 | L35: =B46+SUM(H7:AE7) -> 9910 | M35: =-B35*(1+$X$35) -> 3656.4 | N35: =M35*(1+$X$35) -> 4022.04 | O35: =N35*(1+$X$35) -> 4424.244 | P35: 4866.6684 | Q35: 5353.33524 | R35: 5888.668764 | S35: 6477.53564 | T35: 7125.289204 | U35: 7837.818125 | V35: 8621.599937 | W35: =V35*(1+$X$35) -> 9483.759931 | X35: 0.1
A36: Dlouhodobé bankovní úvěry a závazky z leasingů bez krátkodobé části | B36: =B34+B35 -> 18142 | G36: Splátky obligací | M36: =M32 -> 1000 | N36: =N32 -> 19909 | O36: 18000 | P36: 11000 | Q36: 19419 | R36: 3000 | S36: 6017 | T36: 9000 | U36: 9060 | V36: 4000 | W36: 5000
A37: Dlouhodobé dluhy bez krátkodobé části | B37: =B28+B36 -> 142440 | G37: Dlouhodobý dluh | H37: =H31+H34 -> 147722 | I37: =I31+I34 -> 140397 | J37: 135839 | K37: 130553 | L37: 133143 | M37: 138986.6 | N37: 123577.6 | O37: =O31+O34 -> 125577.6 | P37: 134077.6 | Q37: 140158.6 | R37: 166158.6 | S37: 188641.6 | T37: 211141.6 | U37: 230581.6 | V37: 248581.6 | W37: 258081.6
A38: Krátkodobá část | B38: =B27+B35 -> -6743 | G38: Investiční činnost výstavby jaderných zdrojů | H38: 300 | I38: 700 | J38: 1000 | K38: 4000 | L38: 3000 | M38: 3000 | N38: 4000 | O38: 3000 | P38: 3000 | Q38: 12000 | R38: 13000 | S38: 23000 | T38: 23000 | U38: 20000 | V38: 15000 | W38: 12000
A39: Dlouhodobé dluhy celkem | B39: =B28+B36-B38 -> 149183
G40: nové emise dluhových instrumentů | H40: =H33+SUM(H3:H27) -> 3150 | I40: 15350 | J40: 21500 | K40: 19000 | L40: 12500 | M40: 10500 | N40: 5000 | O40: 19500 | P40: 19500 | Q40: 30000 | R40: 29500 | S40: 33500 | T40: 31500 | U40: 27000 | V40: 19500 | W40: 13000
G41: Splátky celkem | H41: =H35+H36 -> 6743 | I41: 22675 | J41: 26058 | K41: 24286 | L41: 9910 | M41: 4656.4 | N41: 23931.04 | O41: 22424.244 | P41: 15866.6684 | Q41: 24772.33524 | R41: 8888.668764 | S41: 12494.53564 | T41: 16125.2892 | U41: 16897.81812 | V41: 12621.59994 | W41: 14483.75993
A42: Splátky během jednoho roku | B42: 6743
A43: Splátky od 1 do 2 let | B43: 22675
A44: Splátky od 2 do 3 let | B44: 26058
A45: Splátky od 3 do 4 let | B45: 24286 | G45: Předpoklady
A46: Splátky od 4 do 5 let | B46: 5910 | G46: Na výstavbu jaderného zdroje si ČEZ půjčí 50%, zbytek dluhopisy a zisky z prodeje zahraničí | N46: 0.5
A47: V dalších letech | B47: 63511 | G47: Výstavba jaderného zdroje | H47: =SUM(H38:W38) -> 140000 | I47: mld. Kč
G48: každý rok si půjčí 2 mld. Kč na běžnou činnost
G55: Obligace vyplatí dráž o 3,62 %, což je průměrný výnos všech obligací ČEZu v roce 2018. Udávané hodnoty obligací v historických cenách
S56: Studie
S57: Analýza vhodného investorského modelu pro výstavbu nového jaderného zdroje a návrh možných modelů financování pro zajištění návratnosti investic
G58: Splatnost obligací vydané k roku 2018 | H58: Splatnost nových obligací | J58: Vydané obligace
F59: 2019 | G59: =F3 -> 1287 | H59: =G3-G59 -> 0
F60: 2020 | G60: 19693 | H60: 0
F61: 2021 | G61: 23379 | H61: 0
F62: 2022 | G62: 19349 | H62: 0
F63: 2023 | G63: 4725 | H63: 4000
F64: 2024 | G64: 0 | H64: 1000
F65: 2025 | G65: 19909 | H65: 0
F66: 2026 | G66: 0 | H66: 18000
F67: 2027 | G67: 0 | H67: 11000
F68: 2028 | G68: 19419 | H68: 0
F69: 2029 | G69: 0 | H69: 3000
F70: 2030 | G70: 1017 | H70: 5000
F71: 2031 | G71: 0 | H71: 9000
F72: 2032 | G72: 1060 | H72: 8000
F73: 2033 | G73: 0 | H73: 4000
A74: https://www.euribor-rates.eu/en/current-euribor-rates/2/euribor-rate-3-months/ | F74: 2034 | G74: 0 | H74: 5000
F75: 2035 | G75: 0 | H75: 0
F76: 2036 | G76: 0 | H76: 0
F77: 2037 | G77: 0 | H77: 1000
F78: 2038 | G78: 3258 | H78: 3000
F79: 2039 | G79: 1647 | H79: 11000
F80: 2040 | G80: 0 | H80: 7000
F81: 2041 | G81: 0 | H81: 0
F82: 2042 | G82: 8054 | H82: 20000

Sheet koeficient Beta
A1: http://ftp.pse.cz/Info.bas/Cz/PX.csv | F1: https://www.pse.cz/detail/CZ0005112300?tab=detail-history | M1: https://www.mfcr.cz/cs/verejny-sektor/rizeni-statniho-dluhu/emise-statnich-dluhopisu/vysledky-aukci-sdd/2019/vysledky-aukci-sdd-za-rok-2019-33945
A2: PX | F2: ČEZ | M2: Výsledky aukcí SDD - 2019
A3: Datum | B3: Závěrečný kurz | C3: změna | F3: Datum | G3: Závěrečný kurz | H3: změna | M3: Oficiální název | N3: Datum vydání | O3: Datum splatnosti | P3: Průměrný výnos v %
A4: 2013-06-03 | B4: 955 | C4: -0.003 | F4: 2013-06-03 | G4: 556 | H4: 0.0107 | M4: Dluhopis České republiky 2007-2057, 4,85 % | N4: 2019-03-08 | O4: 2057-11-26 | P4: 0.02896
A5: 2013-06-04 | B5: 967.88 | C5: =B5/B4-1 -> 0.01348691099 | F5: 2013-06-04 | G5: 563.6 | H5: =G5/G4-1 -> 0.01366906475 | M5: Dluhopis České republiky 2007-2057, 4,85 % | N5: 2019-04-12 | O5: 2057-11-26 | P5: 0.02859
A6: 2013-06-05 | B6: 963.34 | C6: =B6/B5-1 -> -0.004690664132 | F6: 2013-06-05 | G6: 562.6 | H6: =G6/G5-1 -> -0.00177430802 | J6: Kovariance | K6: =_xlfn.COVARIANCE.P(C4:C1595,H4:H1595) -> 6.092840963e-05 | M6: Dluhopis České republiky 2007-2057, 4,85 % | N6: 2019-05-17 | O6: 2057-11-26 | P6: 0.02827
A7: 2013-06-06 | B7: 956.73 | C7: -0.006861544211 | F7: 2013-06-06 | G7: 561.8 | H7: -0.001421969428 | J7: Varaince | K7: =_xlfn.VAR.P(C4:C1595) -> 6.694691228e-05 | M7: Dluhopis České republiky 2007-2057, 4,85 % | N7: 2019-05-31 | O7: 2057-11-26 | P7: 0.02768
A8: 2013-06-07 | B8: 957.45 | C8: 0.0007525634191 | F8: 2013-06-07 | G8: 559 | H8: -0.004983980064 | J8: Beta | K8: =K6/K7 -> 0.9101003699 | M8: Dluhopis České republiky 2007-2057, 4,85 % | N8: 2019-06-28 | O8: 2057-11-26 | P8: 0.02574
A9: 2013-06-10 | B9: 949.78 | C9: -0.008010862186 | F9: 2013-06-10 | G9: 548.4 | H9: -0.01896243292 | M9: Dluhopis České republiky 2007-2057, 4,85 % | N9: 2019-07-26 | O9: 2057-11-26 | P9: 0.02483
A10: 2013-06-11 | B10: 943.43 | C10: -0.006685758807 | F10: 2013-06-11 | G10: 540 | H10: -0.01531728665 | M10: Dluhopis České republiky, 2006-2036, 4,20 % | N10: 2019-01-11 | O10: 2036-12-04 | P10: 0.02379
A11: 2013-06-12 | B11: 934.76 | C11: -0.009189871003 | F11: 2013-06-12 | G11: 536 | H11: -0.007407407407 | M11: Dluhopis České republiky, 2006-2036, 4,20 % | N11: 2019-03-01 | O11: 2036-12-04 | P11: 0.02592
A12: 2013-06-13 | B12: 927.98 | C12: -0.007253198682 | F12: 2013-06-13 | G12: 524 | H12: -0.0223880597 | M12: Dluhopis České republiky, 2006-2036, 4,20 % | N12: 2019-04-26 | O12: 2036-12-04 | P12: 0.02474
A13: 2013-06-14 | B13: 927.42 | C13: -0.0006034612815 | F13: 2013-06-14 | G13: 515 | H13: -0.01717557252 | M13: Státní dluhopis České republiky, 2015-2023, 0,45 % | N13: 2019-08-30 | O13: 2023-10-25 | P13: 0.00925
A14: 2013-06-17 | B14: 924.41 | C14: -0.00324556296 | F14: 2013-06-17 | G14: 500.1 | H14: -0.02893203883 | M14: Státní dluhopis České republiky, 2015-2023, 0,45 % | N14: 2019-09-27 | O14: 2023-10-25 | P14: 0.01236
A15: 2013-06-18 | B15: 924.79 | C15: 0.0004110730087 | F15: 2013-06-18 | G15: 520.8 | H15: 0.04139172166 | M15: Státní dluhopis České republiky, 2015-2026, 1,00 % | N15: 2019-03-08 | O15: 2026-06-26 | P15: 0.01889
A16: 2013-06-19 | B16: 925.32 | C16: 0.0005731030829 | F16: 2013-06-19 | G16: 521 | H16: 0.0003840245776 | M16: Státní dluhopis České republiky, 2015-2026, 1,00 % | N16: 2019-04-05 | O16: 2026-06-26 | P16: 0.01795
A17: 2013-06-20 | B17: 898.23 | C17: -0.02927635845 | F17: 2013-06-20 | G17: 514.9 | H17: -0.01170825336 | M17: Státní dluhopis České republiky, 2015-2026, 1,00 % | N17: 2019-04-26 | O17: 2026-06-26 | P17: 0.01767
A18: 2013-06-21 | B18: 877.53 | C18: -0.02304532247 | F18: 2013-06-21 | G18: 474 | H18: -0.07943289959 | M18: Státní dluhopis České republiky, 2015-2026, 1,00 % | N18: 2019-05-31 | O18: 2026-06-26 | P18: 0.01693
A19: 2013-06-24 | B19: 855.1 | C19: -0.0255603797 | F19: 2013-06-24 | G19: 471 | H19: -0.006329113924 | M19: Státní dluhopis České republiky, 2015-2026, 1,00 % | N19: 2019-06-14 | O19: 2026-06-26 | P19: 0.01546
A20: 2013-06-25 | B20: 852.9 | C20: -0.002572798503 | F20: 2013-06-25 | G20: 460.9 | H20: -0.02144373673 | M20: Státní dluhopis České republiky, 2015-2026, 1,00 % | N20: 2019-09-13 | O20: 2026-06-26 | P20: 0.01264
A21: 2013-06-26 | B21: 861.78 | C21: 0.01041153711 | F21: 2013-06-26 | G21: 465 | H21: 0.008895638967 | M21: Státní dluhopis České republiky, 2015-2030, 0,95 % | N21: 2019-02-08 | O21: 2030-05-15 | P21: 0.02008
A22: 2013-06-27 | B22: 871.97 | C22: 0.01182436353 | F22: 2013-06-27 | G22: 470 | H22: 0.01075268817 | M22: Státní dluhopis České republiky, 2015-2030, 0,95 % | N22: 2019-03-01 | O22: 2030-05-15 | P22: 0.0207
A23: 2013-06-28 | B23: 878.27 | C23: 0.007225019209 | F23: 2013-06-28 | G23: 479 | H23: 0.01914893617 | M23: Státní dluhopis České republiky, 2015-2030, 0,95 % | N23: 2019-03-22 | O23: 2030-05-15 | P23: 0.02064
A24: 2013-07-01 | B24: 876.05 | C24: -0.002527696494 | F24: 2013-07-01 | G24: 484.4 | H24: 0.01127348643 | M24: Státní dluhopis České republiky, 2015-2030, 0,95 % | N24: 2019-04-12 | O24: 2030-05-15 | P24: 0.02021
A25: 2013-07-02 | B25: 880.93 | C25: 0.005570458307 | F25: 2013-07-02 | G25: 502 | H25: 0.03633360859 | M25: Státní dluhopis České republiky, 2017-2027, 0,25 % | N25: 2019-02-08 | O25: 2027-02-10 | P25: 0.0174
A26: 2013-07-03 | B26: 866.91 | C26: -0.01591499892 | F26: 2013-07-03 | G26: 496 | H26: -0.01195219124 | M26: Státní dluhopis České republiky, 2017-2027, 0,25 % | N26: 2019-03-22 | O26: 2027-02-10 | P26: 0.01957
A27: 2013-07-04 | B27: 873.39 | C27: 0.007474824376 | F27: 2013-07-04 | G27: 496 | H27: 0 | M27: Státní dluhopis České republiky, 2017-2027, 0,25 % | N27: 2019-05-17 | O27: 2027-02-10 | P27: 0.01755
A28: 2013-07-08 | B28: 875.72 | C28: 0.002667765832 | F28: 2013-07-08 | G28: 484.5 | H28: -0.02318548387 | M28: Státní dluhopis České republiky, 2017-2027, 0,25 % | N28: 2019-07-12 | O28: 2027-02-10 | P28: 0.0141
A29: 2013-07-09 | B29: 868.2 | C29: -0.008587219659 | F29: 2013-07-09 | G29: 470 | H29: -0.02992776058 | M29: Státní dluhopis České republiky, 2017-2027, 0,25 % | N29: 2019-09-27 | O29: 2027-02-10 | P29: 0.01273
A30: 2013-07-10 | B30: 870.98 | C30: 0.003202027183 | F30: 2013-07-10 | G30: 475 | H30: 0.01063829787 | M30: Státní dluhopis České republiky, 2017-2027, 0,25 % | N30: 2019-10-11 | O30: 2027-02-10 | P30: 0.01201
A31: 2013-07-11 | B31: 885.5 | C31: 0.01667087648 | F31: 2013-07-11 | G31: 480 | H31: 0.01052631579 | M31: Státní dluhopis České republiky, 2017-2027, 0,25 % | N31: 2019-01-11 | O31: 2027-02-10 | P31: 0.01806
A32: 2013-07-12 | B32: 899.41 | C32: 0.01570863919 | F32: 2013-07-12 | G32: 483.1 | H32: 0.006458333333 | M32: Státní dluhopis České republiky, 2017-2033, 2,00 % | N32: 2019-01-25 | O32: 2033-10-13 | P32: 0.02321
A33: 2013-07-15 | B33: 896.34 | C33: -0.003413348751 | F33: 2013-07-15 | G33: 470.1 | H33: -0.02690954254 | M33: Státní dluhopis České republiky, 2017-2033, 2,00 % | N33: 2019-03-08 | O33: 2033-10-13 | P33: 0.02429
A34: 2013-07-16 | B34: 888.3 | C34: -0.008969810563 | F34: 2013-07-16 | G34: 468 | H34: -0.004467134652 | M34: Státní dluhopis České republiky, 2017-2033, 2,00 % | N34: 2019-04-05 | O34: 2033-10-13 | P34: 0.023
A35: 2013-07-17 | B35: 886.19 | C35: -0.002375323652 | F35: 2013-07-17 | G35: 460.7 | H35: -0.0155982906 | M35: Státní dluhopis České republiky, 2017-2033, 2,00 % | N35: 2019-04-26 | O35: 2033-10-13 | P35: 0.02238
A36: 2013-07-18 | B36: 891.69 | C36: 0.006206344012 | F36: 2013-07-18 | G36: 464 | H36: 0.007163012807 | M36: Státní dluhopis České republiky, 2017-2033, 2,00 % | N36: 2019-05-17 | O36: 2033-10-13 | P36: 0.02194
A37: 2013-07-19 | B37: 884.06 | C37: -0.00855678543 | F37: 2013-07-19 | G37: 462.9 | H37: -0.002370689655 | M37: Státní dluhopis České republiky, 2017-2033, 2,00 % | N37: 2019-06-14 | O37: 2033-10-13 | P37: 0.01884
A38: 2013-07-22 | B38: 881.51 | C38: -0.00288441961 | F38: 2013-07-22 | G38: 461.6 | H38: -0.00280838194 | M38: Státní dluhopis České republiky, 2017-2033, 2,00 % | N38: 2019-06-28 | O38: 2033-10-13 | P38: 0.01755
A39: 2013-07-23 | B39: 894.92 | C39: 0.01521253304 | F39: 2013-07-23 | G39: 470 | H39: 0.01819757366 | M39: Státní dluhopis České republiky, 2017-2033, 2,00 % | N39: 2019-07-12 | O39: 2033-10-13 | P39: 0.01702
A40: 2013-07-24 | B40: 904.77 | C40: 0.01100657042 | F40: 2013-07-24 | G40: 466.8 | H40: -0.006808510638 | M40: Státní dluhopis České republiky, 2017-2033, 2,00 % | N40: 2019-07-26 | O40: 2033-10-13 | P40: 0.0162
A41: 2013-07-25 | B41: 906.43 | C41: 0.001834720426 | F41: 2013-07-25 | G41: 463.5 | H41: -0.00706940874 | M41: Státní dluhopis České republiky, 2017-2033, 2,00 % | N41: 2019-08-30 | O41: 2033-10-13 | P41: 0.01142
A42: 2013-07-26 | B42: 912.45 | C42: 0.006641439493 | F42: 2013-07-26 | G42: 464 | H42: 0.001078748652 | M42: Státní dluhopis České republiky, 2017-2033, 2,00 % | N42: 2019-09-27 | O42: 2033-10-13 | P42: 0.01392
A43: 2013-07-29 | B43: 910.23 | C43: -0.002433010028 | F43: 2013-07-29 | G43: 460.3 | H43: -0.007974137931 | M43: Státní dluhopis České republiky, 2017-2033, 2,00 % | N43: 2019-10-11 | O43: 2033-10-13 | P43: 0.01247
A44: 2013-07-30 | B44: 916.9 | C44: 0.007327818244 | F44: 2013-07-30 | G44: 467 | H44: 0.01455572453 | M44: Státní dluhopis České republiky, 2018-2029, 2,75 % | N44: 2019-01-25 | O44: 2029-07-23 | P44: 0.0198
A45: 2013-07-31 | B45: 919.41 | C45: 0.002737485004 | F45: 2013-07-31 | G45: 464 | H45: -0.006423982869 | M45: Státní dluhopis České republiky, 2018-2029, 2,75 % | N45: 2019-02-08 | O45: 2029-07-23 | P45: 0.01866
A46: 2013-08-01 | B46: 935.42 | C46: 0.01741334116 | F46: 2013-08-01 | G46: 464.8 | H46: 0.001724137931 | M46: Státní dluhopis České republiky, 2018-2029, 2,75 % | N46: 2019-03-01 | O46: 2029-07-23 | P46: 0.0192
A47: 2013-08-02 | B47: 948.07 | C47: 0.01352333711 | F47: 2013-08-02 | G47: 465.2 | H47: 0.0008605851979 | M47: Státní dluhopis České republiky, 2018-2029, 2,75 % | N47: 2019-03-22 | O47: 2029-07-23 | P47: 0.01967
A48: 2013-08-05 | B48: 948.01 | C48: -6.328646619e-05 | F48: 2013-08-05 | G48: 468 | H48: 0.006018916595 | M48: Státní dluhopis České republiky, 2018-2029, 2,75 % | N48: 2019-05-31 | O48: 2029-07-23 | P48: 0.01725
A49: 2013-08-06 | B49: 949.94 | C49: 0.002035843504 | F49: 2013-08-06 | G49: 462.9 | H49: -0.0108974359 | M49: Státní eurodluhopis České republiky, 2019-2021, 0,00 % | N49: 2019-02-22 | O49: 2021-08-20 | P49: -0.0003
A50: 2013-08-07 | B50: 955.51 | C50: 0.005863528223 | F50: 2013-08-07 | G50: 455 | H50: -0.01706632102 | M50: Státní eurodluhopis České republiky, 2019-2021, 0,00 % | N50: 2019-04-12 | O50: 2021-08-20 | P50: -0.00118
A51: 2013-08-08 | B51: 970.94 | C51: 0.01614844429 | F51: 2013-08-08 | G51: 459 | H51: 0.008791208791 | M51: Státní eurodluhopis České republiky, 2019-2021, 0,00 % | N51: 2019-06-21 | O51: 2021-08-20 | P51: -0.00309
A52: 2013-08-09 | B52: 972.29 | C52: 0.001390405174 | F52: 2013-08-09 | G52: 443.9 | H52: -0.03289760349 | M52: Státní eurodluhopis České republiky, 2019-2021, 0,00 % | N52: 2019-07-19 | O52: 2021-08-20 | P52: -0.00357
A53: 2013-08-12 | B53: 970.28 | C53: -0.002067284452 | F53: 2013-08-12 | G53: 441.7 | H53: -0.004956071187 | M53: Státní eurodluhopis České republiky, 2019-2021, 0,00 % | N53: 2019-09-13 | O53: 2021-08-20 | P53: -0.00447
A54: 2013-08-13 | B54: 983.04 | C54: 0.01315084306 | F54: 2013-08-13 | G54: 444 | H54: 0.005207154177
A55: 2013-08-14 | B55: 982.55 | C55: -0.000498453776 | F55: 2013-08-14 | G55: 451 | H55: 0.01576576577
A56: 2013-08-15 | B56: 971.14 | C56: -0.01161264058 | F56: 2013-08-15 | G56: 447.4 | H56: -0.007982261641
A57: 2013-08-16 | B57: 981.95 | C57: 0.01113124781 | F57: 2013-08-16 | G57: 445.5 | H57: -0.004246759052 | M57: Oficiální název | N57: Datum vydání | O57: Datum splatnosti | P57: Průměrný výnos v %
A58: 2013-08-19 | B58: 976.24 | C58: -0.005814960029 | F58: 2013-08-19 | G58: 450 | H58: 0.0101010101 | M58: Státní dluhopis České republiky, 2018-2029, 2,75 % | N58: 2019-01-25 | O58: 2029-07-23 | P58: 0.0198
A59: 2013-08-20 | B59: 960.62 | C59: -0.01600016389 | F59: 2013-08-20 | G59: 446.6 | H59: -0.007555555556 | M59: Státní dluhopis České republiky, 2018-2029, 2,75 % | N59: 2019-02-08 | O59: 2029-07-23 | P59: 0.01866
A60: 2013-08-21 | B60: 957.69 | C60: -0.003050113468 | F60: 2013-08-21 | G60: 447.9 | H60: 0.002910882221 | M60: Státní dluhopis České republiky, 2018-2029, 2,75 % | N60: 2019-03-01 | O60: 2029-07-23 | P60: 0.0192
A61: 2013-08-22 | B61: 962.27 | C61: 0.004782340841 | F61: 2013-08-22 | G61: 445.5 | H61: -0.005358338915 | M61: Státní dluhopis České republiky, 2018-2029, 2,75 % | N61: 2019-03-22 | O61: 2029-07-23 | P61: 0.01967
A62: 2013-08-23 | B62: 967.96 | C62: 0.005913101313 | F62: 2013-08-23 | G62: 450 | H62: 0.0101010101 | M62: Státní dluhopis České republiky, 2018-2029, 2,75 % | N62: 2019-05-31 | O62: 2029-07-23 | P62: 0.01725
A63: 2013-08-26 | B63: 963.81 | C63: -0.004287367247 | F63: 2013-08-26 | G63: 450 | H63: 0 | O63: průměr | P63: =AVERAGE(P58:P62) -> 0.018916
A64: 2013-08-27 | B64: 951.7 | C64: -0.01256471711 | F64: 2013-08-27 | G64: 454 | H64: 0.008888888889
A65: 2013-08-28 | B65: 945.04 | C65: -0.006998003573 | F65: 2013-08-28 | G65: 450.2 | H65: -0.008370044053
A66: 2013-08-29 | B66: 950.31 | C66: 0.005576483535 | F66: 2013-08-29 | G66: 448.2 | H66: -0.004442470013
A67: 2013-08-30 | B67: 945.21 | C67: -0.005366669824 | F67: 2013-08-30 | G67: 450.6 | H67: 0.005354752343
A68: 2013-09-02 | B68: 943.5 | C68: -0.001809121782 | F68: 2013-09-02 | G68: 441.5 | H68: -0.02019529516
A69: 2013-09-03 | B69: 943.66 | C69: 0.0001695813461 | F69: 2013-09-03 | G69: 433.6 | H69: -0.01789354473
A70: 2013-09-04 | B70: 937.4 | C70: =B70/B69-1 -> -0.006633745205 | F70: 2013-09-04 | G70: 427.9 | H70: =G70/G69-1 -> -0.01314575646
A71: 2013-09-05 | B71: 949.52 | C71: 0.01292937913 | F71: 2013-09-05 | G71: 448 | H71: 0.04697359196
A72: 2013-09-06 | B72: 947.37 | C72: -0.002264301963 | F72: 2013-09-06 | G72: 460.9 | H72: 0.02879464286
A73: 2013-09-09 | B73: 952.33 | C73: 0.00523554683 | F73: 2013-09-09 | G73: 457.9 | H73: -0.006509004122
A74: 2013-09-10 | B74: 972.15 | C74: 0.02081211345 | F74: 2013-09-10 | G74: 475 | H74: 0.03734439834
A75: 2013-09-11 | B75: 977.71 | C75: 0.005719282004 | F75: 2013-09-11 | G75: 497 | H75: 0.04631578947
A76: 2013-09-12 | B76: 977.42 | C76: -0.0002966114697 | F76: 2013-09-12 | G76: 514 | H76: 0.03420523139
A77: 2013-09-13 | B77: 967.96 | C77: -0.009678541466 | F77: 2013-09-13 | G77: 512 | H77: -0.003891050584
A78: 2013-09-16 | B78: 981.05 | C78: 0.01352328609 | F78: 2013-09-16 | G78: 514.5 | H78: 0.0048828125
A79: 2013-09-17 | B79: 977.9 | C79: -0.003210845523 | F79: 2013-09-17 | G79: 516 | H79: 0.002915451895
A80: 2013-09-18 | B80: 975.47 | C80: -0.002484916658 | F80: 2013-09-18 | G80: 511.8 | H80: -0.008139534884
A81: 2013-09-19 | B81: 973.67 | C81: -0.001845264334 | F81: 2013-09-19 | G81: 502.5 | H81: -0.01817116061
A82: 2013-09-20 | B82: 951.76 | C82: -0.02250249058 | F82: 2013-09-20 | G82: 488 | H82: -0.02885572139
A83: 2013-09-23 | B83: 957.13 | C83: 0.005642178701 | F83: 2013-09-23 | G83: 492.7 | H83: 0.009631147541
A84: 2013-09-24 | B84: 962.02 | C84: 0.005109023853 | F84: 2013-09-24 | G84: 497 | H84: 0.008727420337
A85: 2013-09-25 | B85: 960.25 | C85: -0.001839878589 | F85: 2013-09-25 | G85: 497 | H85: 0
A86: 2013-09-26 | B86: 956.6 | C86: -0.003801093465 | F86: 2013-09-26 | G86: 499.5 | H86: 0.005030181087
A87: 2013-09-27 | B87: 959.8 | C87: 0.003345180849 | F87: 2013-09-27 | G87: 501.5 | H87: 0.004004004004
A88: 2013-09-30 | B88: 957.62 | C88: -0.002271306522 | F88: 2013-09-30 | G88: 491 | H88: -0.02093718843
A89: 2013-10-01 | B89: 967.38 | C89: 0.01019193417 | F89: 2013-10-01 | G89: 496 | H89: 0.01018329939
A90: 2013-10-02 | B90: 969.37 | C90: 0.00205710269 | F90: 2013-10-02 | G90: 495.8 | H90: -0.0004032258065
A91: 2013-10-03 | B91: 961.35 | C91: -0.008273414692 | F91: 2013-10-03 | G91: 485 | H91: -0.02178297701
A92: 2013-10-04 | B92: 961.99 | C92: 0.0006657304832 | F92: 2013-10-04 | G92: 483.4 | H92: -0.003298969072
A93: 2013-10-07 | B93: 963.54 | C93: 0.00161124336 | F93: 2013-10-07 | G93: 488 | H93: 0.009515928837
A94: 2013-10-08 | B94: 962.24 | C94: -0.001349191523 | F94: 2013-10-08 | G94: 489 | H94: 0.002049180328
A95: 2013-10-09 | B95: 961.47 | C95: -0.0008002161623 | F95: 2013-10-09 | G95: 491 | H95: 0.00408997955
A96: 2013-10-10 | B96: 965.98 | C96: 0.00469073398 | F96: 2013-10-10 | G96: 493 | H96: 0.004073319756
A97: 2013-10-11 | B97: 963.1 | C97: -0.002981428187 | F97: 2013-10-11 | G97: 482.9 | H97: -0.02048681542
A98: 2013-10-14 | B98: 966.5 | C98: 0.003530266847 | F98: 2013-10-14 | G98: 472 | H98: -0.02257196107
A99: 2013-10-15 | B99: 976.26 | C99: 0.01009829281 | F99: 2013-10-15 | G99: 469 | H99: -0.006355932203
A100: 2013-10-16 | B100: 981.77 | C100: 0.005643988282 | F100: 2013-10-16 | G100: 474.9 | H100: 0.01257995736
A101: 2013-10-17 | B101: 979.27 | C101: -0.00254642126 | F101: 2013-10-17 | G101: 485 | H101: 0.02126763529
A102: 2013-10-18 | B102: 989.08 | C102: 0.01001766622 | F102: 2013-10-18 | G102: 499 | H102: 0.02886597938
A103: 2013-10-21 | B103: 996.79 | C103: 0.00779512274 | F103: 2013-10-21 | G103: 509.8 | H103: 0.02164328657
A104: 2013-10-22 | B104: 998 | C104: 0.001213896608 | F104: 2013-10-22 | G104: 514 | H104: 0.008238524912
A105: 2013-10-23 | B105: 989.61 | C105: -0.008406813627 | F105: 2013-10-23 | G105: 510.9 | H105: -0.006031128405
A106: 2013-10-24 | B106: 990.8 | C106: 0.001202493912 | F106: 2013-10-24 | G106: 514 | H106: 0.006067723625
A107: 2013-10-25 | B107: 990.78 | C107: -2.018570852e-05 | F107: 2013-10-25 | G107: 511.9 | H107: -0.004085603113
A108: 2013-10-29 | B108: 1017.29 | C108: 0.02675669674 | F108: 2013-10-29 | G108: 545 | H108: 0.06466106661
A109: 2013-10-30 | B109: 1017.1 | C109: -0.000186770734 | F109: 2013-10-30 | G109: 555 | H109: 0.01834862385
A110: 2013-10-31 | B110: 1015.12 | C110: -0.001946711238 | F110: 2013-10-31 | G110: 547 | H110: -0.01441441441
A111: 2013-11-01 | B111: 1014.44 | C111: -0.0006698715423 | F111: 2013-11-01 | G111: 541.2 | H111: -0.01060329068
A112: 2013-11-04 | B112: 1026.29 | C112: 0.01168132171 | F112: 2013-11-04 | G112: 549 | H112: 0.01441241685
A113: 2013-11-05 | B113: 1013.01 | C113: -0.01293981233 | F113: 2013-11-05 | G113: 542.3 | H113: -0.01220400729
A114: 2013-11-06 | B114: 1028.19 | C114: 0.01498504457 | F114: 2013-11-06 | G114: 563.5 | H114: 0.03909275309
A115: 2013-11-07 | B115: 1041.39 | C115: 0.01283809413 | F115: 2013-11-07 | G115: 566 | H115: 0.004436557232
A116: 2013-11-08 | B116: 1018.99 | C116: -0.02150971298 | F116: 2013-11-08 | G116: 567.2 | H116: 0.002120141343
A117: 2013-11-11 | B117: 1023.44 | C117: 0.004367069353 | F117: 2013-11-11 | G117: 563.5 | H117: -0.006523272214
A118: 2013-11-12 | B118: 1016.72 | C118: -0.006566090831 | F118: 2013-11-12 | G118: 568 | H118: 0.007985803017
A119: 2013-11-13 | B119: 998.84 | C119: -0.0175859627 | F119: 2013-11-13 | G119: 558 | H119: -0.0176056338
A120: 2013-11-14 | B120: 1001.65 | C120: 0.002813263386 | F120: 2013-11-14 | G120: 548.9 | H120: -0.01630824373
A121: 2013-11-15 | B121: 1009.24 | C121: 0.00757749713 | F121: 2013-11-15 | G121: 550.4 | H121: 0.002732738204
A122: 2013-11-18 | B122: 1021.88 | C122: 0.01252427569 | F122: 2013-11-18 | G122: 559.7 | H122: 0.01689680233
A123: 2013-11-19 | B123: 1017.39 | C123: -0.004393862293 | F123: 2013-11-19 | G123: 558.5 | H123: -0.002144005717
A124: 2013-11-20 | B124: 1014.48 | C124: -0.002860260077 | F124: 2013-11-20 | G124: 559 | H124: 0.0008952551477
A125: 2013-11-21 | B125: 1012.45 | C125: -0.002001025156 | F125: 2013-11-21 | G125: 556.1 | H125: -0.00518783542
A126: 2013-11-22 | B126: 1018.87 | C126: 0.006341053879 | F126: 2013-11-22 | G126: 560.6 | H126: 0.008092069772
A127: 2013-11-25 | B127: 1020.78 | C127: 0.001874625811 | F127: 2013-11-25 | G127: 550.3 | H127: -0.0183731716
A128: 2013-11-26 | B128: 1013.07 | C128: -0.007553047669 | F128: 2013-11-26 | G128: 540.1 | H128: -0.01853534436
A129: 2013-11-27 | B129: 1026.05 | C129: 0.0128125401 | F129: 2013-11-27 | G129: 553 | H129: 0.02388446584
A130: 2013-11-28 | B130: 1027.2 | C130: 0.00112080308 | F130: 2013-11-28 | G130: 555 | H130: 0.003616636528
A131: 2013-11-29 | B131: 1032.26 | C131: 0.004926012461 | F131: 2013-11-29 | G131: 559 | H131: 0.007207207207
A132: 2013-12-02 | B132: 1021.46 | C132: -0.01046248038 | F132: 2013-12-02 | G132: 560 | H132: 0.001788908766
A133: 2013-12-03 | B133: 1009.62 | C133: -0.01159125174 | F133: 2013-12-03 | G133: 545 | H133: -0.02678571429
A134: 2013-12-04 | B134: 998.06 | C134: =B134/B133-1 -> -0.01144985242 | F134: 2013-12-04 | G134: 540.8 | H134: =G134/G133-1 -> -0.007706422018
A135: 2013-12-05 | B135: 982.89 | C135: -0.015199487 | F135: 2013-12-05 | G135: 530 | H135: -0.0199704142
A136: 2013-12-06 | B136: 975.32 | C136: -0.007701777412 | F136: 2013-12-06 | G136: 525.5 | H136: -0.008490566038
A137: 2013-12-09 | B137: 972.47 | C137: -0.002922117869 | F137: 2013-12-09 | G137: 533 | H137: 0.01427212179
A138: 2013-12-10 | B138: 971.79 | C138: -0.0006992503625 | F138: 2013-12-10 | G138: 533.7 | H138: 0.001313320826
A139: 2013-12-11 | B139: 977.97 | C139: 0.006359398636 | F139: 2013-12-11 | G139: 532.9 | H139: -0.001498969458
A140: 2013-12-12 | B140: 966.43 | C140: -0.01179995296 | F140: 2013-12-12 | G140: 520 | H140: -0.02420716832
A141: 2013-12-13 | B141: 955.78 | C141: -0.01101993936 | F141: 2013-12-13 | G141: 514.4 | H141: -0.01076923077
A142: 2013-12-16 | B142: 966.26 | C142: 0.01096486639 | F142: 2013-12-16 | G142: 513.9 | H142: -0.0009720062208
A143: 2013-12-17 | B143: 962.28 | C143: -0.004118974189 | F143: 2013-12-17 | G143: 514.8 | H143: 0.001751313485
A144: 2013-12-18 | B144: 974.17 | C144: 0.012356071 | F144: 2013-12-18 | G144: 517.8 | H144: 0.005827505828
A145: 2013-12-19 | B145: 975.41 | C145: 0.00127287845 | F145: 2013-12-19 | G145: 518.5 | H145: 0.00135187331
A146: 2013-12-20 | B146: 977.78 | C146: 0.002429747491 | F146: 2013-12-20 | G146: 514 | H146: -0.008678881389
A147: 2013-12-23 | B147: 982.96 | C147: 0.005297715232 | F147: 2013-12-23 | G147: 515 | H147: 0.001945525292
A148: 2013-12-27 | B148: 986.91 | C148: 0.004018474811 | F148: 2013-12-27 | G148: 515.6 | H148: 0.001165048544
A149: 2013-12-30 | B149: 989.04 | C149: 0.002158251512 | F149: 2013-12-30 | G149: 517 | H149: 0.002715283165
A150: 2014-01-02 | B150: 993.85 | C150: 0.004863301788 | F150: 2014-01-02 | G150: 525 | H150: 0.01547388781
A151: 2014-01-03 | B151: 993.33 | C151: -0.0005232177894 | F151: 2014-01-03 | G151: 521 | H151: -0.007619047619
A152: 2014-01-06 | B152: 989.59 | C152: -0.003765113306 | F152: 2014-01-06 | G152: 519 | H152: -0.003838771593
A153: 2014-01-07 | B153: 988.15 | C153: -0.001455148092 | F153: 2014-01-07 | G153: 507 | H153: -0.02312138728
A154: 2014-01-08 | B154: 996.34 | C154: 0.008288215352 | F154: 2014-01-08 | G154: 494 | H154: -0.02564102564
A155: 2014-01-09 | B155: 998.94 | C155: 0.002609550957 | F155: 2014-01-09 | G155: 490 | H155: -0.008097165992
A156: 2014-01-10 | B156: 1009.36 | C156: 0.01043105692 | F156: 2014-01-10 | G156: 495.6 | H156: 0.01142857143
A157: 2014-01-13 | B157: 1027.87 | C157: 0.01833835302 | F157: 2014-01-13 | G157: 517.9 | H157: 0.04499596449
A158: 2014-01-14 | B158: 1022.99 | C158: -0.0047476821 | F158: 2014-01-14 | G158: 514 | H158: -0.007530411276
A159: 2014-01-15 | B159: 1035.72 | C159: 0.01244391441 | F159: 2014-01-15 | G159: 515 | H159: 0.001945525292
A160: 2014-01-16 | B160: 1025.75 | C160: -0.009626153787 | F160: 2014-01-16 | G160: 517.9 | H160: 0.005631067961
A161: 2014-01-17 | B161: 1027.1 | C161: 0.001316110163 | F161: 2014-01-17 | G161: 522.5 | H161: 0.008882023557
A162: 2014-01-20 | B162: 1025.96 | C162: -0.001109921137 | F162: 2014-01-20 | G162: 521.8 | H162: -0.001339712919
A163: 2014-01-21 | B163: 1025.5 | C163: -0.0004483605599 | F163: 2014-01-21 | G163: 523 | H163: 0.002299731698
A164: 2014-01-22 | B164: 1029.6 | C164: 0.003998049732 | F164: 2014-01-22 | G164: 526 | H164: 0.005736137667
A165: 2014-01-23 | B165: 1026.79 | C165: -0.002729215229 | F165: 2014-01-23 | G165: 525 | H165: -0.001901140684
A166: 2014-01-24 | B166: 1015.43 | C166: -0.011063606 | F166: 2014-01-24 | G166: 522.9 | H166: -0.004
A167: 2014-01-27 | B167: 999.03 | C167: -0.01615079326 | F167: 2014-01-27 | G167: 514.5 | H167: -0.01606425703
A168: 2014-01-28 | B168: 1003.75 | C168: 0.004724582845 | F168: 2014-01-28 | G168: 500 | H168: -0.02818270165
A169: 2014-01-29 | B169: 990.63 | C169: -0.01307098381 | F169: 2014-01-29 | G169: 492 | H169: -0.016
A170: 2014-01-30 | B170: 994.43 | C170: 0.003835942784 | F170: 2014-01-30 | G170: 506.8 | H170: 0.03008130081
A171: 2014-01-31 | B171: 990.61 | C171: -0.003841396579 | F171: 2014-01-31 | G171: 515 | H171: 0.01617995264
A172: 2014-02-03 | B172: 986.81 | C172: -0.00383602023 | F172: 2014-02-03 | G172: 510 | H172: -0.009708737864
A173: 2014-02-04 | B173: 981 | C173: -0.005887658212 | F173: 2014-02-04 | G173: 502.4 | H173: -0.01490196078
A174: 2014-02-05 | B174: 985.24 | C174: 0.004322120285 | F174: 2014-02-05 | G174: 500 | H174: -0.004777070064
A175: 2014-02-06 | B175: 1005.34 | C175: 0.02040112054 | F175: 2014-02-06 | G175: 513 | H175: 0.026
A176: 2014-02-07 | B176: 1001.22 | C176: -0.00409811606 | F176: 2014-02-07 | G176: 508 | H176: -0.009746588694
A177: 2014-02-10 | B177: 1005.92 | C177: 0.004694272987 | F177: 2014-02-10 | G177: 507 | H177: -0.001968503937
A178: 2014-02-11 | B178: 1002.07 | C178: -0.003827342135 | F178: 2014-02-11 | G178: 505.9 | H178: -0.002169625247
A179: 2014-02-12 | B179: 1018.09 | C179: 0.0159869071 | F179: 2014-02-12 | G179: 525.5 | H179: 0.03874283455
A180: 2014-02-13 | B180: 1016.82 | C180: -0.00124743392 | F180: 2014-02-13 | G180: 534 | H180: 0.01617507136
A181: 2014-02-14 | B181: 1027.14 | C181: 0.01014928896 | F181: 2014-02-14 | G181: 541.3 | H181: 0.01367041199
A182: 2014-02-17 | B182: 1033.3 | C182: 0.005997235041 | F182: 2014-02-17 | G182: 545 | H182: 0.006835396268
A183: 2014-02-18 | B183: 1036.87 | C183: 0.00345495016 | F183: 2014-02-18 | G183: 544.3 | H183: -0.00128440367
A184: 2014-02-19 | B184: 1038.36 | C184: 0.001437017177 | F184: 2014-02-19 | G184: 555 | H184: 0.01965827669
A185: 2014-02-20 | B185: 1036.05 | C185: -0.002224661967 | F185: 2014-02-20 | G185: 563 | H185: 0.01441441441
A186: 2014-02-21 | B186: 1046.06 | C186: 0.009661695864 | F186: 2014-02-21 | G186: 564 | H186: 0.001776198934
A187: 2014-02-24 | B187: 1039.29 | C187: -0.006471904097 | F187: 2014-02-24 | G187: 555.2 | H187: -0.01560283688
A188: 2014-02-25 | B188: 1029.56 | C188: -0.009362160706 | F188: 2014-02-25 | G188: 530.2 | H188: -0.04502881844
A189: 2014-02-26 | B189: 1019.77 | C189: -0.00950891643 | F189: 2014-02-26 | G189: 521 | H189: -0.01735194266
A190: 2014-02-27 | B190: 1014.43 | C190: -0.005236474891 | F190: 2014-02-27 | G190: 517.4 | H190: -0.006909788868
A191: 2014-02-28 | B191: 1015.11 | C191: 0.0006703271788 | F191: 2014-02-28 | G191: 534 | H191: 0.0320834944
A192: 2014-03-03 | B192: 991.44 | C192: -0.02331767001 | F192: 2014-03-03 | G192: 518 | H192: -0.02996254682
A193: 2014-03-04 | B193: 1001.7 | C193: 0.01034858388 | F193: 2014-03-04 | G193: 524.6 | H193: 0.01274131274
A194: 2014-03-05 | B194: 1004.73 | C194: 0.003024857742 | F194: 2014-03-05 | G194: 525.2 | H194: 0.001143728555
A195: 2014-03-06 | B195: 1008.95 | C195: 0.004200133369 | F195: 2014-03-06 | G195: 532 | H195: 0.01294744859
A196: 2014-03-07 | B196: 1002.02 | C196: -0.006868526686 | F196: 2014-03-07 | G196: 529 | H196: -0.005639097744
A197: 2014-03-10 | B197: 991.49 | C197: -0.01050877228 | F197: 2014-03-10 | G197: 528.1 | H197: -0.001701323251
A198: 2014-03-11 | B198: 984.54 | C198: =B198/B197-1 -> -0.00700965214 | F198: 2014-03-11 | G198: 527.4 | H198: =G198/G197-1 -> -0.001325506533
A199: 2014-03-12 | B199: 967.76 | C199: -0.01704349239 | F199: 2014-03-12 | G199: 521 | H199: -0.0121350019
A200: 2014-03-13 | B200: 970.18 | C200: 0.002500619988 | F200: 2014-03-13 | G200: 527.8 | H200: 0.01305182342
... 1395 more rows

Sheet citl. analýza a ceny komodit
M1: =FCFE!B13 -> 319356.2826 | N1: ='citl. analýza a ceny komodit'!B10 -> 0.06 | O1: ='citl. analýza a ceny komodit'!C10 -> 0.065 | P1: ='citl. analýza a ceny komodit'!D10 -> 0.07 | Q1: ='citl. analýza a ceny komodit'!E10 -> 0.0762523233 | R1: ='citl. analýza a ceny komodit'!F10 -> 0.08 | S1: ='citl. analýza a ceny komodit'!G10 -> 0.085 | T1: ='citl. analýza a ceny komodit'!H10 -> 0.09 | U1: ='citl. analýza a ceny komodit'!I10 -> 0.095 | V1: ='citl. analýza a ceny komodit'!J10 -> 0.1
M2: -0.05 | N2: 133412.5763 | O2: 119059.8006 | P2: 105721.2574 | Q2: 90307.03122 | R2: 81673.31083 | S2: 70792.55968 | T2: 60578.48344 | U2: 50970.76419 | V2: 41916.39637
A3: Citlivost na | M3: -0.04 | N3: 154629.6514 | O3: 138377.2887 | P3: 123382.1289 | Q3: 106178.3968 | R3: 96598.64104 | S3: 84581.12052 | T3: 73354.45981 | U3: 62840.88262 | V3: 52972.88966
A4: g | B4: 0.02 | M4: -0.03 | N4: 180560.0059 | O4: 161758.5849 | P4: 144570.8785 | Q4: 125031.5382 | R4: 114231.1871 | S4: 100760.2616 | T4: 88251.46459 | U4: 76601.11803 | V4: 65720.5406
A5: re | B5: 0.0762523233 | M5: -0.02 | N5: 212970.3861 | O5: 190636.6164 | P5: 170461.5521 | Q5: 147793.2907 | R5: 135380.2559 | S5: 120009.7433 | T5: 105844.3298 | U5: 92740.57824 | V5: 80577.86452
A6: cena elektřiny | M6: -0.01 | N6: 254636.5908 | O6: 227207.5881 | P6: 202813.8902 | Q6: 175818.5747 | R6: 161212.8872 | S6: 143293.3165 | T6: 126935.3563 | U6: 111932.0178 | V6: 98112.68744
A7: cena emisních povolenek | M7: 0 | N7: 310183.7974 | O7: 275017.1209 | P7: 244390.2968 | Q7: 211169.3047 | R7: 193475.4272 | S7: 172023.5077 | T7: 152678.1896 | U7: 135125.7929 | V7: 119113.916
M8: 0.01 | N8: 387934.3976 | O8: 340184.2314 | P8: 299787.6171 | Q8: 257143.1211 | R8: 234901.9476 | S8: 208354.7951 | T8: 184790.8434 | U8: 163706.0978 | V8: 144706.8631
A9: FCFE -na g a CAPM | M9: 0.02 | N9: 504524.262 | O9: 434251.4728 | P9: 377259.2417 | Q9: 319356.2826 | R9: 290020.2922 | S9: 255735.4659 | T9: 225938.3881 | U9: 199758.4096 | V9: 176540.5411
A10: =FCFE!B13 -> 319356.2826 | B10: 0.06 | C10: 0.065 | D10: 0.07 | E10: 0.0762523233 | F10: 0.08 | G10: 0.085 | H10: 0.09 | I10: 0.095 | J10: 0.1 | M10: 0.03 | N10: 698734.6096 | O10: 581892.4872 | P10: 493233.1095 | Q10: 408185.8163 | R10: 366875.9202 | S10: 320007.6042 | T10: 280440.7361 | U10: 246523.0838 | V10: 217072.0892
A11: -0.05 | B11: 133412.5763 | C11: 119059.8006 | D11: 105721.2574 | E11: 90307.03122 | F11: 81673.31083 | G11: 70792.55968 | H11: 60578.48344 | I11: 50970.76419 | J11: 41916.39637 | M11: 0.04 | N11: 1086674.304 | O11: 846889.1426 | P11: 685581.6051 | Q11: 544921.5556 | R11: 480987.9361 | S11: 411596.9971 | T11: 355434.5121 | U11: 308933.37 | V11: 269712.5853
A12: -0.045 | B12: 143516.0934 | C12: 128279.7889 | D12: 114168.158 | E12: 97916.00713 | F12: 88838.07509 | G12: 77422.37364 | H12: 66730.66322 | I12: 56694.72022 | J12: 47254.95101 | M12: 0.05 | N12: 2243560.063 | O12: 1456119.543 | P12: 1060102.566 | Q12: 774879.3648 | R12: 659917.6976 | S12: 543957.4255 | T12: 456127.7939 | U12: 387104.0289 | V12: 331287.6272
A13: -0.04 | B13: 154629.6514 | C13: 138377.2887 | D13: 123382.1289 | E13: 106178.3968 | F13: 96598.64104 | G13: 84581.12052 | H13: 73354.45981 | I13: 62840.88262 | J13: 52972.88966
A14: -0.035 | B14: 166912.6756 | C14: 149483.8245 | D14: 133472.6065 | E14: 115182.1058 | F14: 105032.5021 | G14: 92334.66433 | H14: 80506.18455 | I14: 69457.65707 | J14: 59112.02992 | AW14: Zdroj Kurzy.cz | AZ14: Elektrická energie | BA14: https://www.kurzy.cz/komodity/index.asp?A=5&idk=142&od=1.1.2015&do=22.11.2019&curr=EUR
A15: -0.03 | B15: 180560.0059 | C15: 161758.5849 | D15: 144570.8785 | E15: 125031.5382 | F15: 114231.1871 | G15: 100760.2616 | H15: 88251.46459 | I15: 76601.11803 | J15: 65720.5406
A16: -0.025 | B16: 195812.3077 | C16: 175396.0987 | D16: 156835.8225 | E16: 135851.6552 | F16: 124303.5844 | G16: 109949.1301 | H16: 96667.24537 | I16: 84336.5816 | J16: 72854.18509
A17: -0.02 | B17: 212970.3861 | C17: 190636.6164 | D17: 170461.5521 | E17: 147793.2907 | F17: 135380.2559 | G17: 120009.7433 | H17: 105844.3298 | I17: 92740.57824 | J17: 80577.86452 | O17: od 1.8.2017-1.8.2019
A18: -0.015 | B18: 232415.2222 | C18: 207780.3795 | D18: 185687.7545 | E18: 161040.205 | F18: 147619.1003 | G18: 131072.0994 | H18: 115890.6276 | I18: 101903.3473 | J18: 88967.54581 | S18: rozdíl | T18: procentní růst na jednotku | W18: Kurz CZK/EURO
A19: -0.01 | B19: 254636.5908 | C19: 227207.5881 | D19: 202813.8902 | E19: 175818.5747 | F19: 161212.8872 | G19: 143293.3165 | H19: 126935.3563 | I19: 111932.0178 | J19: 98112.68744 | N19: Cena černého uhlí | O19: =1.1/S19 -> 0.1774193548 | P19: Eur/t | Q19: 0.048 | S19: =62.3-56.1 -> 6.2 | T19: EUR/t | W19: 2018 | X19: 25.643
A20: -0.005 | B20: 280274.879 | C20: 249406.9102 | D20: 222219.0523 | E20: 192409.9568 | F20: 176399.4156 | G20: 156865.0568 | H20: 139134.5268 | I20: 122954.6999 | J20: 108119.3114 | N20: Plyn | O20: =1.7/S20 -> 0.5483870968 | P20: Eur/MWh | Q20: 0.074 | S20: =19.3-16.2 -> 3.1 | T20: EUR/MWh | W20: 2019 | X20: 25.672
A21: 0 | B21: 310183.7974 | C21: 275017.1209 | D21: 244390.2968 | E21: 211169.3047 | F21: 193475.4272 | G21: 172023.5077 | H21: 152678.1896 | I21: 135125.7929 | J21: 119113.916 | N21: Emisní povolenka | O21: =14.9/S21 -> 0.6131687243 | P21: Eur/t | Q21: 0.648 | S21: =29.8-5.5 -> 24.3 | T21: EUR/t
A22: 0.005 | B22: 345527.2692 | C22: 304889.5102 | D22: 269963.9785 | E22: 232550.4767 | F22: 212815.9828 | G22: 189062.9903 | H22: 167800.1115 | I22: 148632.9267 | J22: 131248.4799 | N22: Ostatní vliv | O22: 2 | P22: rok | Q22: =1-Q19-Q20-Q21 -> 0.23
A23: 0.01 | B23: 387934.3976 | C23: 340184.2314 | D23: 299787.6171 | E23: 257143.1211 | F23: 234901.9476 | G23: 208354.7951 | H23: 184790.8434 | I23: 163706.0978 | J23: 144706.8631 | Q23: =SUM(Q19:Q22) -> 1
A24: 0.015 | B24: 439757.6269 | C24: 382524.251 | D24: 335015.2295 | E24: 285727.2718 | F24: 260359.7698 | G24: 230373.6512 | H24: 204015.5395 | I24: 180629.721 | J24: 159712.9254
A25: 0.02 | B25: 504524.262 | C25: 434251.4728 | D25: 377259.2417 | E25: 319356.2826 | F25: 290020.2922 | G25: 255735.4659 | H25: 225938.3881 | I25: 199758.4096 | J25: 176540.5411
A26: 0.025 | B26: 587774.3506 | C26: 498873.8281 | D26: 428842.1837 | E26: 359486.457 | F26: 325007.6173 | G26: 285251.7085 | H26: 251155.923 | I26: 221536.9783 | J26: 195524.9499 | U26: 0 | V26: %
A27: 0.03 | B27: 698734.6096 | C27: 581892.4872 | D27: 493233.1095 | E27: 408185.8163 | F27: 366875.9202 | G27: 320007.6042 | H27: 280440.7361 | I27: 246523.0838 | J27: 217072.0892 | S27: 286 | U27: 100
A28: 0.035 | B28: 853994.9662 | C28: 692446.284 | D28: 575845.3063 | E28: 468479.3708 | F28: 417820.9705 | G28: 361469.4448 | H28: 314790.1695 | I28: 275401.4346 | J28: 241651.7324
A29: 0.04 | B29: 1086674.304 | C29: 846889.1426 | D29: 685581.6051 | E29: 544921.5556 | F29: 480987.9361 | G29: 411596.9971 | H29: 355434.5121 | I29: 308933.37 | J29: 269712.5853 | L29: cena elektřiny | N29: 2015 | O29: 2016 | P29: 2017 | Q29: 2018 | R29: 2019 | S29: 2020 | T29: 2021 | U29: 2022 | V29: 2023 | W29: 2024 | X29: 2025 | Y29: 2026 | Z29: 2027 | AA29: 2028 | AB29: 2029 | AC29: 2030 | AD29: 2031 | AE29: 2032 | AF29: 2033 | AG29: 2034 | AH29: Hodnota firmy pomocí FCFE
A30: 0.045 | B30: 1473762.044 | C30: 1077503.922 | D30: 837959.9052 | E30: 644408.4467 | F30: 560718.0764 | G30: 472699.4042 | H30: 403497.5059 | I30: 347513.1542 | J30: 301179.9622 | L30: scénář - elektřina | M30: EUR/MWh | N30: ='citl. analýza a ceny komodit'!N31 -> 26.3 | O30: ='citl. analýza a ceny komodit'!O31 -> 35.2 | P30: ='citl. analýza a ceny komodit'!P31 -> 38.3 | Q30: ='citl. analýza a ceny komodit'!Q31 -> 57.6 | R30: ='citl. analýza a ceny komodit'!R31*(1+$L33) -> 55.30698261 | S30: ='citl. analýza a ceny komodit'!S31*(1+$L33) -> 57.58223815 | T30: ='citl. analýza a ceny komodit'!T31*(1+$L33) -> 62.51851852 | U30: ='citl. analýza a ceny komodit'!U31*(1+$L33) -> 66.37415372 | V30: ='citl. analýza a ceny komodit'!V31*(1+$L33) -> 71.48785344 | W30: ='citl. analýza a ceny komodit'!W31*(1+$L33) -> 73.98838444 | X30: ='citl. analýza a ceny komodit'!X31*(1+$L33) -> 78.021439 | Y30: ='citl. analýza a ceny komodit'!Y31*(1+$L33) -> 80.89293774 | Z30: ='citl. analýza a ceny komodit'!Z31*(1+$L33) -> 85.45825037 | AA30: ='citl. analýza a ceny komodit'!AA31*(1+$L33) -> 88.8781362 | AB30: ='citl. analýza a ceny komodit'!AB31*(1+$L33) -> 92.39453073 | AC30: ='citl. analýza a ceny komodit'!AC31*(1+$L33) -> 94.10447365 | AD30: ='citl. analýza a ceny komodit'!AD31*(1+$L33) -> 97.63699721 | AE30: ='citl. analýza a ceny komodit'!AE31*(1+$L33) -> 100.9759724 | AF30: ='citl. analýza a ceny komodit'!AF31*(1+$L33) -> 103.040754 | AG30: ='citl. analýza a ceny komodit'!AG31*(1+$L33) -> 105.6539227 | AH30: =FCFE!B13 -> 319356.2826 | AI30: mil. Kč
A31: 0.05 | B31: 2243560.063 | C31: 1456119.543 | D31: 1060102.566 | E31: 774879.3648 | F31: 659917.6976 | G31: 543957.4255 | H31: 456127.7939 | I31: 387104.0289 | J31: 331287.6272 | L31: predikce dle změny komodit | M31: EUR/MWh | N31: 26.3 | O31: 35.2 | P31: 38.3 | Q31: 57.6 | R31: =Q31+(R54-Q54)*$O$19+(R46-Q46)*$O$20+(R38-Q38)*$O$21+$O$22 -> 55.30698261 | S31: 57.58223815 | T31: 62.51851852 | U31: 66.37415372 | V31: 71.48785344 | W31: 73.98838444 | X31: 78.021439 | Y31: 80.89293774 | Z31: 85.45825037 | AA31: 88.8781362 | AB31: 92.39453073 | AC31: 94.10447365 | AD31: 97.63699721 | AE31: 100.9759724 | AF31: 103.040754 | AG31: 105.6539227
L32: původní predikce | M32: EUR/MWh | N32: 26.3 | O32: 35.2 | P32: 38.3 | Q32: 57.6 | R32: =Q32+(R55-Q55)*$O$19+(R47-Q47)*$O$20+(R39-Q39)*$O$21+$O$22 -> 55.30698261 | S32: 57.58223815 | T32: 62.51851852 | U32: 66.37415372 | V32: 71.48785344 | W32: 73.98838444 | X32: 78.021439 | Y32: 80.89293774 | Z32: 85.45825037 | AA32: 88.8781362 | AB32: 92.39453073 | AC32: 94.10447365 | AD32: 97.63699721 | AE32: 100.9759724 | AF32: 103.040754 | AG32: 105.6539227 | AW32: Uhlí | AX32: https://www.theice.com/products/243/API2-Rotterdam-Coal-Futures/data?marketId=661436&span=3
A33: FCFE -na g | L33: =U26/100 -> 0
B34: =FCFE!B13 -> 319356.2826 | U34: 0 | V34: %
A35: -0.05 | B35: 90307.03122 | U35: 100
A36: -0.045 | B36: 97916.00713
A37: -0.04 | B37: 106178.3968 | L37: cena emisních povolenek | N37: 2015 | O37: 2016 | P37: 2017 | Q37: 2018 | R37: 2019 | S37: 2020 | T37: 2021 | U37: 2022 | V37: 2023 | W37: 2024 | X37: 2025 | Y37: 2026 | Z37: 2027 | AA37: 2028 | AB37: 2029 | AC37: 2030 | AD37: 2031 | AE37: 2032 | AF37: 2033 | AG37: 2034
A38: -0.035 | B38: 115182.1058 | L38: scénář - emisní povolenky | M38: EUR/t | N38: =N39 -> 8.2 | O38: =O39 -> 6.6 | P38: =P39 -> 8.2 | Q38: =Q39 -> 25 | R38: =R39*(1+$L$40) -> 27 | S38: 31 | T38: 34 | U38: 37 | V38: 40 | W38: 42 | X38: 45 | Y38: 47 | Z38: 50 | AA38: 52 | AB38: 53 | AC38: 54 | AD38: 55 | AE38: 56 | AF38: 57 | AG38: 58
A39: -0.03 | B39: 125031.5382 | L39: původní predikce | M39: EUR/t | N39: 8.2 | O39: 6.6 | P39: 8.2 | Q39: 25 | R39: 27 | S39: 31 | T39: 34 | U39: 37 | V39: 40 | W39: 42 | X39: 45 | Y39: 47 | Z39: 50 | AA39: 52 | AB39: 53 | AC39: 54 | AD39: 55 | AE39: 56 | AF39: 57 | AG39: 58
A40: -0.025 | B40: 135851.6552 | L40: =U34/100 -> 0
A41: -0.02 | B41: 147793.2907 | U41: 0 | V41: %
A42: -0.015 | B42: 161040.205 | U42: 100
A43: -0.01 | B43: 175818.5747 | BK43: ='citl. analýza a ceny komodit'!O19+'citl. analýza a ceny komodit'!O20+'citl. analýza a ceny komodit'!O21 -> 1.338975176
A44: -0.005 | B44: 192409.9568 | BK44: ='citl. analýza a ceny komodit'!N19 -> Cena černého uhlí | BL44: ='citl. analýza a ceny komodit'!O19/$BK$43 -> 0.1325038418
A45: 0 | B45: 211169.3047 | L45: Cena plynu | N45: 2015 | O45: 2016 | P45: 2017 | Q45: 2018 | R45: 2019 | S45: 2020 | T45: 2021 | U45: 2022 | V45: 2023 | W45: 2024 | X45: 2025 | Y45: 2026 | Z45: 2027 | AA45: 2028 | AB45: 2029 | AC45: 2030 | AD45: 2031 | AE45: 2032 | AF45: 2033 | AG45: 2034 | BK45: ='citl. analýza a ceny komodit'!N20 -> Plyn | BL45: ='citl. analýza a ceny komodit'!O20/$BK$43 -> 0.4095573291
A46: 0.005 | B46: 232550.4767 | L46: scénář - zemní plyn | M46: EUR/MWh | N46: =N47 -> 15.5 | O46: =O47 -> 18 | P46: =P47 -> 18.7 | Q46: =Q47 -> 23.3 | R46: =R47*(1+$L$48) -> 21 | S46: 18 | T46: 20 | U46: 21 | V46: 23 | W46: 22 | X46: 23 | Y46: 23 | Z46: 24 | AA46: 25 | AB46: 26 | AC46: 25 | AD46: 27 | AE46: 28 | AF46: 27 | AG46: 27 | BK46: ='citl. analýza a ceny komodit'!N21 -> Emisní povolenka | BL46: ='citl. analýza a ceny komodit'!O21/$BK$43 -> 0.4579388291
A47: 0.01 | B47: 257143.1211 | L47: původní predikce | M47: EUR/MWh | N47: 15.5 | O47: 18 | P47: 18.7 | Q47: 23.3 | R47: 21 | S47: 18 | T47: 20 | U47: 21 | V47: 23 | W47: 22 | X47: 23 | Y47: 23 | Z47: 24 | AA47: 25 | AB47: 26 | AC47: 25 | AD47: 27 | AE47: 28 | AF47: 27 | AG47: 27
A48: 0.015 | B48: 285727.2718 | L48: =U41/100 -> 0
A49: 0.02 | B49: 319356.2826 | U49: 0 | V49: %
A50: 0.025 | B50: 359486.457 | U50: 100
A51: 0.03 | B51: 408185.8163
A52: 0.035 | B52: 468479.3708
A53: 0.04 | B53: 544921.5556 | L53: Cena černého uhlí | N53: 2015 | O53: 2016 | P53: 2017 | Q53: 2018 | R53: 2019 | S53: 2020 | T53: 2021 | U53: 2022 | V53: 2023 | W53: 2024 | X53: 2025 | Y53: 2026 | Z53: 2027 | AA53: 2028 | AB53: 2029 | AC53: 2030 | AD53: 2031 | AE53: 2032 | AF53: 2033 | AG53: 2034 | AW53: Emisní povolenky
A54: 0.045 | B54: 644408.4467 | L54: scénář - černé uhlí | M54: USD/t | N54: =N55 -> 44.3 | O54: =O55 -> 70.3 | P54: 89.5 | Q54: 88 | R54: =R55*(1+$L$56) -> 64 | S54: 61 | T54: 61 | U54: 58 | V54: 59 | W54: 58 | X54: 56 | Y54: 54 | Z54: 55 | AA54: 53 | AB54: 55 | AC54: 53 | AD54: 52 | AE54: 53 | AF54: 53 | AG54: 53 | AW54: https://www.energyhub.eu/article/detail/245283-aby-se-prumysl-nestehoval-z-eu
A55: 0.05 | B55: 774879.3648 | L55: původní predikce | M55: USD/t | N55: 44.3 | O55: 70.3 | P55: 89.5 | Q55: 88 | R55: 64 | S55: 61 | T55: 61 | U55: 58 | V55: 59 | W55: 58 | X55: 56 | Y55: 54 | Z55: 55 | AA55: 53 | AB55: 55 | AC55: 53 | AD55: 52 | AE55: 53 | AF55: 53 | AG55: 53
L56: =U49/100 -> 0
M59: Fio banka 25.10.2019 | N59: Komerční banka 10.6.2019 | O59: Moje predikce | S59: FIO | T59: KB
L60: re2019 | M60: 0.0616 | N60: 0.086 | O60: =FCFE!O18 -> 0.0762523233 | Q60: 107.2 | R60: 1.fáze | S60: 107.2 | T60: 110.4
L61: WACC2019 | M61: 0.0582 | N61: 0.066 | O61: =FCFE!O17 -> 0.05483309934 | Q61: 436.2 | R61: pokračující hodnota | S61: 436.2 | T61: 459.9
L62: FCFE | M62: =S60+S61-S62 -> 400.2 | N62: =T60+T61-T62-T63+T66 -> 372.5 | O62: =FCFE!B13 -> 319356.2826 | Q62: 143.2 | R62: čistý dluh | S62: 143.2 | T62: 147.9
L63: cena akcie | M63: =M62/S67*1000 -> 748.4570787 | N63: =N62/S67*1000 -> 696.6523284 | O63: =FCFE!B15 -> 597.078588 | Q63: 400.2 | R63: rezervy | T63: 54.1
L64: FCFF | M64: =S60+S61 -> 543.4 | N64: =T60+T61 -> 570.3 | O64: =FCFF!B12 -> 997976.2727 | Q64: 534.7 | R64: finanční investice | T64: 5.2
T65: 3.4
T66: 4.2
R67: počet akcií [mil. Kč] | S67: 534.7
AW74: Zdroj PXE | AX74: roční kontrakt | AZ74: plyn | BA74: https://www.pxe.cz/dokument.aspx?k=Statistika

Sheet účetní výkazy
A2: Rozvaha | I2: Výsledovka | Q2: CASH FLOW
K3: Rok | L3: 2015 | M3: 2016 | N3: 2017 | O3: 2018 | Q3: V mil. Kč | R3: 2013 | S3: 2014 | T3: 2015 | U3: 2016 | V3: 2017 | W3: 2018
A4: AKTIVA [mil. Kč] | B4: 2013 | C4: 2014 | D4: 2015 | E4: 2016 | F4: 2017 | G4: 2018 | I4: Provozní výnosy | J4: Prodej silové elektřiny koncovým zákazníkům | K4: mil. Kč | L4: ='Prognózy výkazů'!D5 -> 54742 | M4: ='Prognózy výkazů'!E5 -> 50159 | N4: ='Prognózy výkazů'!F5 -> 48504 | O4: ='Prognózy výkazů'!G5 -> 45941 | Q4: PROVOZNÍ ČINNOST:
A5: Dlouhodobý hmotný majetek, brutto | B5: 665354 | C5: 701316 | D5: 719633 | E5: 775181 | F5: 833359 | G5: 830955 | J5: Prodej prostřednictvím energetické burzy | K5: mil. Kč | L5: ='Prognózy výkazů'!D6 -> 4920 | M5: ='Prognózy výkazů'!E6 -> 4766 | N5: ='Prognózy výkazů'!F6 -> 3669 | O5: ='Prognózy výkazů'!G6 -> 4134 | Q5: Zisk před zdaněním | R5: 44406 | S5: 28656 | T5: 26895 | U5: 19328 | V5: 22753 | W5: 13517
A6: Oprávky a opravné položky | B6: -340888 | C6: -371515 | D6: -399608 | E6: -418981 | F6: -437210 | G6: -445926 | J6: Prodej obchodníkům | K6: mil. Kč | L6: ='Prognózy výkazů'!D7 -> 35672 | M6: ='Prognózy výkazů'!E7 -> 37138 | N6: ='Prognózy výkazů'!F7 -> 35524 | O6: ='Prognózy výkazů'!G7 -> 36830 | Q6: Úpravy o nepeněžní operace:
A7: Dlouhodobý hmotný majetek, netto | B7: =B5+B6 -> 324466 | C7: 329801 | D7: 320025 | E7: 356200 | F7: 396149 | G7: 385029 | J7: Prodej distribučním a přenosovým společnostem | K7: mil. Kč | L7: ='Prognózy výkazů'!D8 -> 344 | M7: ='Prognózy výkazů'!E8 -> 324 | N7: ='Prognózy výkazů'!F8 -> 239 | O7: ='Prognózy výkazů'!G8 -> 177 | Q7: Odpisy | R7: 28400 | S7: 27871 | T7: 28619 | U7: 28978 | V7: 29305 | W7: 28139
A8: Jaderné palivo, netto | B8: 10688 | C8: 10953 | D8: 12997 | E8: 14892 | F8: 15218 | G8: 14427 | J8: Ostatní prodej elektřiny | K8: mil. Kč | L8: ='Prognózy výkazů'!D9 -> 16969 | M8: ='Prognózy výkazů'!E9 -> 16685 | N8: ='Prognózy výkazů'!F9 -> 16137 | O8: ='Prognózy výkazů'!G9 -> 16015 | Q8: Amortizace jaderného paliva | R8: 3065 | S8: 3356 | T8: 3416 | U8: 3158 | V8: 3725 | W8: 4027
A9: Nedokončené hmotné investice, netto | B9: 90508 | C9: 85788 | D9: 88342 | E9: 55803 | F9: 16652 | G9: 16452 | J9: Prodej plynu | K9: mil. Kč | L9: ='Prognózy výkazů'!D10 -> 8294 | M9: ='Prognózy výkazů'!E10 -> 9214 | N9: ='Prognózy výkazů'!F10 -> 7345 | O9: ='Prognózy výkazů'!G10 -> 7072 | Q9: Zisky a ztráty z prodeje stálých aktiv | R9: -5100 | S9: -326 | T9: -562 | U9: -350 | V9: -5792 | W9: -312
A10: Dlouhodobý hmotný majetek, jaderné palivo a investice celkem | B10: =SUM(B7:B9) -> 425662 | C10: 426542 | D10: 421364 | E10: 426895 | F10: 428019 | G10: 415908 | J10: Prodej uhlí | K10: mil. Kč | L10: ='Prognózy výkazů'!D11 -> 4331 | M10: ='Prognózy výkazů'!E11 -> 4518 | N10: ='Prognózy výkazů'!F11 -> 4593 | O10: ='Prognózy výkazů'!G11 -> 4489 | Q10: Zisk / ztráta z kurzových rozdílů | R10: -1070 | S10: 297 | T10: 811 | U10: 339 | V10: -959 | W10: 776
A11: Investice v přidružených a společných podnicích (do 2016 Cenné papíry v ekvivalenci) | B11: 12999 | C11: 12277 | D11: 9239 | E11: 5309 | F11: 3520 | G11: 3361 | J11: Prodej tepla | K11: mil. Kč | L11: ='Prognózy výkazů'!D12 -> 6443 | M11: ='Prognózy výkazů'!E12 -> 6877 | N11: ='Prognózy výkazů'!F12 -> 6727 | O11: ='Prognózy výkazů'!G12 -> 6792 | Q11: Nákladové a výnosové úroky, přijaté dividendy | R11: 2783 | S11: 2240 | T11: 1780 | U11: 1827 | V11: 3263 | W11: 4685
A12: Finanční aktiva s omezeným disponováním, netto | D12: 18059 | E12: 19011 | F12: 18468 | G12: 18834 | J12: Distribuční služby a ostatní služby | K12: mil. Kč | L12: ='Prognózy výkazů'!D13+'Prognózy výkazů'!D14 -> 69458 | M12: ='Prognózy výkazů'!E13+'Prognózy výkazů'!E14 -> 65872 | N12: ='Prognózy výkazů'!F13+'Prognózy výkazů'!F14 -> 76262 | O12: ='Prognózy výkazů'!G13+'Prognózy výkazů'!G14 -> 59868 | Q12: Změna stavu rezerv | R12: -241 | S12: -337 | T12: -2374 | U12: -163 | V12: 1081 | W12: 2780
A13: Ostatní dlouhodobá finanční aktiva, netto | B13: 25746 | C13: 36348 | D13: 22598 | E13: 14460 | F13: 9845 | G13: 9948 | J13: Ostatní provozní výnosy | K13: mil. Kč | L13: ='Prognózy výkazů'!D15 -> 8075 | M13: ='Prognózy výkazů'!E15 -> 7601 | N13: ='Prognózy výkazů'!F15 -> 7390 | O13: ='Prognózy výkazů'!G15 -> 6143 | Q13: Opravné položky k dlouhodobému hmotnému a nehmotnému majetku | T13: 7685 | U13: 3114 | V13: 230 | W13: 1766
A14: Dlouhodobý nehmotný majetek, netto | B14: 20701 | C14: 20611 | D14: 20164 | E14: 21983 | F14: 26804 | G14: 31127 | I14: Provozní náklady | J14: Nákup elektřiny | K14: mil. Kč | L14: ='Prognózy výkazů'!D16 -> -90905 | M14: ='Prognózy výkazů'!E16 -> -88294 | N14: ='Prognózy výkazů'!F16 -> -48128 | O14: ='Prognózy výkazů'!G16 -> -44611 | Q14: Opravné položky a ostatní nepeněžní náklady a výnosy | R14: 5290 | S14: 4264 | T14: -1 | U14: -364 | V14: 2355 | W14: -2017
A15: Odložená daňová pohledávka | B15: 824 | C15: 1738 | D15: 1631 | E15: 1596 | F15: 1297 | G15: 1269 | J15: Nákup plynu | K15: mil. Kč | N15: ='Prognózy výkazů'!F17 -> -5409 | O15: ='Prognózy výkazů'!G17 -> -5211 | Q15: Zisky a ztráty z přidružených a společných podniků | R15: 953 | S15: 1223 | T15: 1655 | U15: 2733 | V15: 2387 | W15: 308
A16: Ostatní stálá aktiva celkem | B16: =SUM(B11:B15) -> 60270 | C16: 70974 | D16: 71691 | E16: 62359 | F16: 59934 | G16: 64539 | J16: Nákup ostatních energií | K16: mil. Kč | N16: ='Prognózy výkazů'!F18 -> -3816 | O16: ='Prognózy výkazů'!G18 -> -2346 | Q16: Změna stavu aktiv a pasiv:
A17: Stálá aktiva celkem | B17: =B10+B16 -> 485932 | C17: 497516 | D17: 493055 | E17: 489254 | F17: 487953 | G17: 480447 | J17: Nákup služeb přenosové soustavy a distribučních služeb | K17: mil. Kč | N17: ='Prognózy výkazů'!F19 -> -29517 | O17: ='Prognózy výkazů'!G19 -> -5219 | Q17: Pohledávky a smluvní aktiva | R17: 1975 | S17: 2348 | T17: 3614 | U17: -10168 | V17: -1951 | W17: -27469
A18: Peněžní prostředky a peněžní ekvivalenty, netto | B18: 25003 | C18: 20095 | D18: 13482 | E18: 11226 | F18: 12623 | G18: 7278 | J18: Nákup ostatních služeb | K18: mil. Kč | N18: ='Prognózy výkazů'!F20 -> -18295 | O18: ='Prognózy výkazů'!G20 -> -20873 | Q18: Zásoby materiálu a fosilních paliv | R18: -614 | S18: -480 | T18: -169 | U18: 451 | V18: -798 | W18: 905
A19: Obchodní pohledávky, netto | B19: 67485 | C19: 50864 | D19: 46003 | E19: 56331 | F19: 50559 | G19: 72234 | J19: Mzdy | K19: mil. Kč | L19: ='Prognózy výkazů'!D21 -> -17758 | M19: ='Prognózy výkazů'!E21 -> -19158 | N19: ='Prognózy výkazů'!F21 -> -22086 | O19: ='Prognózy výkazů'!G21 -> -25620 | Q19: Pohledávky a závazky z derivátů | R19: 1519 | S19: 1061 | T19: 5833 | U19: 3244 | V19: -1269 | W19: 1527
A20: Pohledávka z titulu daně z příjmů | B20: 1065 | C20: 1618 | D20: 436 | E20: 1181 | F20: 1171 | G20: 352 | J20: Odpisy | K20: mil. Kč | L20: ='Prognózy výkazů'!D22 -> -28619 | M20: ='Prognózy výkazů'!E22 -> -28978 | N20: ='Prognózy výkazů'!F22 -> -29305 | O20: ='Prognózy výkazů'!G22 -> -28139 | Q20: Ostatní aktiva | R20: 3079 | S20: 448 | T20: 5469 | U20: 4630 | V20: -4610 | W20: -4369
A21: Zásoby materiálu, netto | B21: 8054 | C21: 8462 | D21: 8577 | E21: 7520 | F21: 8325 | G21: 8737 | J21: Opravné položky k DHM | K21: mil. Kč | L21: ='Prognózy výkazů'!D23 -> -7685 | M21: ='Prognózy výkazů'!E23 -> -3114 | N21: ='Prognózy výkazů'!F23 -> -230 | O21: ='Prognózy výkazů'!G23 -> -1766 | Q21: Obchodní závazky | R21: -565 | S21: 11387 | T21: -2574 | U21: 8 | V21: 3687 | W21: 17429
A22: Zásoby fosilních paliv | B22: 2552 | C22: 1481 | D22: 1554 | E22: 996 | F22: 1021 | G22: 1066 | J22: Spotřeba fosilního paliva a biomasy | K22: mil. Kč | L22: ='Prognózy výkazů'!D24 -> -9637 | M22: ='Prognózy výkazů'!E24 -> -9992 | N22: ='Prognózy výkazů'!F24 -> -7178 | O22: ='Prognózy výkazů'!G24 -> -7236 | Q22: Ostatní závazky | R22: -39 | S22: -1195 | T22: -1450 | U22: 414 | V22: -583 | W22: 1581
A23: Emisní povolenky | B23: 8505 | C23: 5097 | D23: 3456 | E23: 3958 | F23: 9370 | G23: 16655 | J23: Spotřeba plynu | K23: mil. Kč | N23: ='Prognózy výkazů'!F25 -> -1799 | O23: ='Prognózy výkazů'!G25 -> -2712 | Q23: Peněžní prostředky vytvořené provozní činností | R23: =SUM(R5:R22) -> 83841 | S23: =SUM(S5:S22) -> 80813 | T23: 78647 | U23: 57179 | V23: 52824 | W23: 43273
A24: Ostatní krátkodobá finanční aktiva, netto | B24: 38400 | C24: 39438 | D24: 32728 | E24: 56501 | F24: 43098 | G24: 93303 | J24: Amortizace jaderného paliva | K24: mil. Kč | L24: ='Prognózy výkazů'!D26 -> -3416 | M24: ='Prognózy výkazů'!E26 -> -3158 | N24: ='Prognózy výkazů'!F26 -> -3725 | O24: ='Prognózy výkazů'!G26 -> -4027 | Q24: Zaplacená daň z příjmů | R24: -9087 | S24: -7538 | T24: -4569 | U24: -6689 | V24: -4207 | W24: -3327
A25: Ostatní oběžná aktiva, netto | B25: 3398 | C25: 3299 | D25: 3395 | E25: 3227 | F25: 9756 | G25: 9874 | J25: Emisní povolenky | K25: mil. Kč | L25: ='Prognózy výkazů'!D27 -> -1711 | M25: ='Prognózy výkazů'!E27 -> -520 | N25: ='Prognózy výkazů'!F27 -> -3337 | O25: ='Prognózy výkazů'!G27 -> -5089 | Q25: Placené úroky s výjimkou kapitalizovaných úroků | R25: -4304 | S25: -3677 | T25: -2728 | U25: -2481 | V25: -3511 | W25: -5091
A26: Aktiva klasifikovaná jako držená k prodeji | D26: 0 | E26: 647 | F26: 30 | G26: 17497 | J26: Materiál | K26: mil. Kč | L26: ='Prognózy výkazů'!D28 -> -4062 | M26: ='Prognózy výkazů'!E28 -> -4362 | N26: ='Prognózy výkazů'!F28 -> -5922 | O26: ='Prognózy výkazů'!G28 -> -8240 | Q26: Přijaté úroky | R26: 1408 | S26: 516 | T26: 416 | U26: 298 | V26: 225 | W26: 314
A27: Oběžná aktiva celkem | B27: =SUM(B18:B26) -> 154462 | C27: 130354 | D27: 109631 | E27: 141587 | F27: 135953 | G27: 226996 | J27: Ostatní provozní náklady | K27: mil. Kč | L27: ='Prognózy výkazů'!D29 -> -16949 | M27: ='Prognózy výkazů'!E29 -> -19713 | N27: ='Prognózy výkazů'!F29 -> -4689 | O27: ='Prognózy výkazů'!G29 -> -7659 | Q27: Přijaté dividendy | R27: 344 | S27: 806 | T27: 813 | U27: 646 | V27: 481 | W27: 182
A28: Aktiva celkem | B28: =B17+'Prognózy výkazů'!C97 -> 640394 | C28: =C17+'Prognózy výkazů'!D97 -> 627870 | D28: =D17+D27 -> 602686 | E28: =E17+'Prognózy výkazů'!F97 -> 630841 | F28: =F17+'Prognózy výkazů'!G97 -> 623906 | G28: =G17+'Prognózy výkazů'!H97 -> 707443 | I28: Ostatní položky výsledovky | J28: Smluvní pokuty a úroky z prodlení | K28: mil. Kč | L28: ='Prognózy výkazů'!D30 -> 735 | M28: ='Prognózy výkazů'!E30 -> 442 | N28: ='Prognózy výkazů'!F30 -> 210 | O28: ='Prognózy výkazů'!G30 -> 334 | Q28: Čistý peněžní tok z provozní činnosti | R28: =SUM(R23:R27) -> 72202 | S28: =SUM(S23:S27) -> 70920 | T28: 72579 | U28: 48953 | V28: 45812 | W28: 35351
J29: Zisk z prodeje dlouhodobého hmotného majetku | K29: mil. Kč | L29: ='Prognózy výkazů'!D31 -> 184 | M29: ='Prognózy výkazů'!E31 -> 148 | N29: ='Prognózy výkazů'!F31 -> 1243 | O29: ='Prognózy výkazů'!G31 -> 137 | Q29: INVESTIČNÍ ČINNOST:
A30: PASIVA [mil. Kč] | B30: 2013 | C30: 2014 | D30: 2015 | E30: 2016 | F30: 2017 | G30: 2018 | J30: Derivátové obchody s komoditami | K30: mil. Kč | L30: ='Prognózy výkazů'!D32 -> -464 | M30: ='Prognózy výkazů'!E32 -> -341 | N30: ='Prognózy výkazů'!F32 -> 1213 | O30: ='Prognózy výkazů'!G32 -> 575 | Q30: Pořízení dceřiných, přidružených a společných podniků, bez nakoupených peněžních prostředků | R30: -962 | S30: -68 | T30: 0 | U30: -368 | V30: -5070 | W30: -2214
A31: Základní kapitál | B31: 53799 | C31: 53799 | D31: 53799 | E31: 53799 | F31: 53799 | G31: 53799 | J31: EBIT | K31: mil. Kč | L31: ='Prognózy výkazů'!D33 -> 28961 | M31: ='Prognózy výkazů'!E33 -> 26114 | N31: ='Prognózy výkazů'!F33 -> 25620 | O31: ='Prognózy výkazů'!G33 -> 19759 | Q31: Prodej dceřiných a společných podniků, bez pozbytých peněžních prostředků | R31: 4126 | S31: 101 | T31: 310 | U31: 900 | V31: 2037 | W31: 155
A32: Vlastní akcie | B32: -4382 | C32: -4382 | D32: -4246 | E32: -4246 | F32: -4077 | G32: -3534 | J32: Nákladové úroky z dluhů a rezerv | K32: mil. Kč | L32: ='Prognózy výkazů'!D34 -> -4534 | M32: ='Prognózy výkazů'!E34 -> -4256 | N32: ='Prognózy výkazů'!F34 -> -5379 | O32: ='Prognózy výkazů'!G34 -> -6977 | Q32: Nabytí stálých aktiv, vč. kapitalizovaných úroků | R32: -45626 | S32: -35798 | T32: -31909 | U32: -35553 | V32: -30688 | W32: -26018
A33: Nerozdělené zisky a kapitálové fondy | B33: 208659 | C33: 211891 | D33: 218340 | E33: 207259 | F33: 200296 | G33: 184456 | J33: Výnosové úroky | K33: mil. Kč | L33: ='Prognózy výkazů'!D35 -> 388 | M33: ='Prognózy výkazů'!E35 -> 303 | N33: ='Prognózy výkazů'!F35 -> 235 | O33: ='Prognózy výkazů'!G35 -> 315 | Q33: Příjmy z prodeje stálých aktiv | R33: 3456 | S33: 1381 | T33: 435 | U33: 1078 | V33: 13913 | W33: 3118
A34: Vlastní kapitál přiřaditelný akcionářům mateřského podniku celkem | B34: =SUM(B31:B33) -> 258076 | C34: 261308 | D34: 267893 | E34: 256812 | F34: 250018 | G34: 234721 | J34: Zisky a ztráty z přidružených a společných podniků | K34: mil. Kč | L34: ='Prognózy výkazů'!D36 -> -1655 | M34: ='Prognózy výkazů'!E36 -> -2733 | N34: ='Prognózy výkazů'!F36 -> -2387 | O34: ='Prognózy výkazů'!G36 -> -308 | Q34: Poskytnuté půjčky | R34: -1008 | S34: -33 | T34: -29 | U34: -5 | V34: -21 | W34: -227
A35: Nekontrolní podíly | B35: 4690 | C35: 4543 | D35: 4262 | E35: 4548 | F35: 4304 | G35: 4560 | J35: Ostatní finanční náklady | K35: mil. Kč | L35: ='Prognózy výkazů'!D37 -> -1921 | M35: ='Prognózy výkazů'!E37 -> -1603 | N35: ='Prognózy výkazů'!F37 -> -1978 | O35: ='Prognózy výkazů'!G37 -> -1559 | Q35: Splátky poskytnutých půjček | R35: 910 | S35: 362 | T35: 123 | U35: 228 | V35: 371 | W35: 22
A36: Vlastní kapitál celkem | B36: ='účetní výkazy'!B34+B35 -> 262766 | C36: ='účetní výkazy'!C34+C35 -> 265851 | D36: ='účetní výkazy'!D34+D35 -> 272155 | E36: ='účetní výkazy'!E34+E35 -> 261360 | F36: ='účetní výkazy'!F34+F35 -> 254322 | G36: ='účetní výkazy'!G34+G35 -> 239281 | J36: Ostatní finanční výnosy | K36: mil. Kč | L36: ='Prognózy výkazů'!D38 -> 5656 | M36: ='Prognózy výkazů'!E38 -> 1503 | N36: ='Prognózy výkazů'!F38 -> 6642 | O36: ='Prognózy výkazů'!G38 -> 2287 | Q36: Změna stavu finančních aktiv s omezeným disponováním | R36: -728 | S36: -625 | T36: -500 | U36: -851 | V36: -754 | W36: -737
A37: Dlouhodobé dluhy bez krátkodobé části | B37: 168196 | C37: 160852 | D37: 145575 | E37: 142265 | F37: 132475 | G37: 142440 | J37: EBT | K37: mil. Kč | L37: ='Prognózy výkazů'!D39 -> 26895 | M37: ='Prognózy výkazů'!E39 -> 19328 | N37: ='Prognózy výkazů'!F39 -> 22753 | O37: ='Prognózy výkazů'!G39 -> 13517 | Q37: Peněžní prostředky použité na investiční činnost | R37: =SUM(R30:R36) -> -39832 | S37: =SUM(S30:S36) -> -34680 | T37: -31570 | U37: -34571 | V37: -20212 | W37: -25901
A38: Rezervy | B38: 43827 | C38: 47302 | D38: 60525 | E38: 66360 | F38: 73291 | G38: 75798 | J38: Daň | K38: mil. Kč | L38: ='Prognózy výkazů'!D40 -> -6348.05 | M38: ='Prognózy výkazů'!E40 -> -4753.32 | N38: ='Prognózy výkazů'!F40 -> -3794.07 | O38: ='Prognózy výkazů'!G40 -> -3017.23 | Q38: FINANČNÍ ČINNOST:
A39: Ostatní dlouhodobé finanční závazky | F39: 12509 | G39: 15054 | J39: EAT | K39: mil. Kč | L39: ='Prognózy výkazů'!D41 -> 20546.95 | M39: ='Prognózy výkazů'!E41 -> 14574.68 | N39: ='Prognózy výkazů'!F41 -> 18958.93 | O39: ='Prognózy výkazů'!G41 -> 10499.77 | Q39: Čerpání úvěrů a půjček | R39: 69044 | S39: 80769 | T39: 88301 | U39: 97022 | V39: 150032 | W39: 125213
A40: Odložený daňový závazek | B40: 19201 | C40: 20609 | D40: 22053 | E40: 20213 | F40: 19993 | G40: 16699 | J40: Podíly akcionářů mateřského podniku | K40: mil. Kč | L40: ='Prognózy výkazů'!D42 -> 20739 | M40: ='Prognózy výkazů'!E42 -> 14281 | N40: ='Prognózy výkazů'!F42 -> 18765 | O40: ='Prognózy výkazů'!G42 -> 10327 | Q40: Splátky úvěrů a půjček | R40: -74763 | S40: -100076 | T40: -114363 | U40: -91542 | V40: -156182 | W40: -119978
A41: Ostatní dlouhodobé závazky | B41: 26840 | C41: 25917 | D41: 8679 | E41: 11203 | F41: 3335 | G41: 31 | J41: Nekontrolní podíly | K41: mil. Kč | L41: ='Prognózy výkazů'!D43 -> -192.05 | M41: ='Prognózy výkazů'!E43 -> 293.68 | N41: ='Prognózy výkazů'!F43 -> 193.93 | O41: ='Prognózy výkazů'!G43 -> 172.77 | Q41: Přírůstky ostatních dlouhodobých závazků | R41: 1796 | S41: 119 | T41: 63 | U41: 58 | V41: 70 | W41: 51
A42: Dlouhodobé závazky celkem | B42: =SUM(B37:B41) -> 258064 | C42: 254680 | D42: 236832 | E42: 240041 | F42: 241603 | G42: =SUM(G37:G41) -> 250022 | Q42: Úhrady ostatních dlouhodobých závazků | R42: -478 | S42: -368 | T42: -130 | U42: -713 | V42: -76 | W42: -583
A43: Krátkodobé úvěry | B43: 2716 | C43: 7608 | D43: 223 | E43: 8343 | F43: 11073 | G43: 11783 | Q43: Dividendy zaplacené akcionářům společnosti | R43: -21336 | S43: -21320 | T43: -21309 | U43: -21325 | V43: -17618 | W43: -17596
A44: Krátkodobá část dlouhodobých dluhů | B44: 28104 | C44: 15674 | D44: 11696 | E44: 17208 | F44: 10759 | G44: 6743 | Q44: Dividendy zaplacené akcionářům nekontrolních podílů | R44: -4 | S44: -229 | T44: -4 | U44: -8 | V44: -241 | W44: -17
A45: Obchodní závazky | B45: 63297 | C45: 60331 | D45: 58010 | E45: 80516 | F45: 48087 | G45: 63093 | Q45: Prodej vlastních akcií | R45: 0 | S45: 0 | T45: 68 | U45: 0 | V45: 68 | W45: 210
A46: Závazek z titulu daně z příjmů | B46: 1719 | C46: 830 | D46: 1606 | E46: 392 | F46: 176 | G46: 253 | Q46: Nákup a prodej nekontrolních podílů, netto | R46: 0 | S46: 0 | T46: 0 | U46: -32 | V46: -160 | W46: 5
A47: Rezervy | B47: 23728 | C47: 22896 | D47: 8219 | E47: 8160 | F47: 9226 | G47: 12323 | Q47: Čistý peněžní tok z finanční činnosti | R47: =SUM(R39:R46) -> -25741 | S47: =SUM(S39:S46) -> -41105 | T47: -47374 | U47: -16540 | V47: -24107 | W47: -12695
A48: Ostatní krátkodobé finanční závazky | D48: 13945 | E48: 14251 | F48: 42864 | G48: 110287 | Q48: Vliv kurzových rozdílů a opravných položek na výši peněžních prostředků | R48: 419 | S48: -43 | T48: -248 | U48: 6 | V48: -200 | W48: -133
A49: Ostatní krátkodobé závazky | F49: 5796 | G49: 7461 | Q49: Čistý přírůstek / úbytek peněžních prostředků a peněžních ekvivalentů | R49: =R28+R37+R47+R48 -> 7048 | S49: =S28+S37+S47+S48 -> -4908 | T49: -6613 | U49: -2152 | V49: 1293 | W49: =W28+W37+W47+W48 -> -3378
A50: Závazky související s aktivy klasifikovanými jako držená k prodeji | D50: 0 | E50: 570 | F50: 0 | G50: 6197 | Q50: Peněžní prostředky a peněžní ekvivalenty na počátku období | R50: 17955 | S50: 25003 | T50: 13482 | U50: 11330 | V50: 11330 | W50: 12623
A51: Krátkodobé závazky celkem | B51: =SUM(B43:B50) -> 119564 | C51: 107339 | D51: 93699 | E51: 129440 | F51: 127981 | G51: 218140 | Q51: Peněžní prostředky a peněžní ekvivalenty ke konci období | R51: =R50+R49 -> 25003 | S51: =S50+S49 -> 20095 | T51: 6869 | U51: 9178 | V51: 12623 | W51: =W50+W49 -> 9245
A52: Pasiva celkem | B52: =(B51+B42+B36) -> 640394 | C52: =(C51+C42+C36) -> 627870 | D52: =SUM('Prognózy výkazů'!E116+D42+D36) -> 602686 | E52: =SUM('Prognózy výkazů'!F116+E42+E36) -> 630841 | F52: =SUM('Prognózy výkazů'!G116+F42+F36) -> 623906 | G52: =SUM('Prognózy výkazů'!H116+G42+G36) -> 707443 | Q52: Dodatečné informace k výkazu o peněžních tocích:
Q53: Celkové zaplacené úroky | R53: 7917 | S53: 8165 | T53: 6680 | U53: 5568 | V53: 5090 | W53: 5344
Q55: Zjednodušený výkaz o peněžních tocích [mil. Kč] | R55: 2013 | S55: 2014 | T55: 2015 | U55: 2016 | V55: 2017 | W55: 2018
Q56: =Q23 -> Peněžní prostředky vytvořené provozní činností | R56: =R23 -> 83841 | S56: =S23 -> 80813 | T56: 78647 | U56: 57179 | V56: 52824 | W56: 43273
Q57: =Q28 -> Čistý peněžní tok z provozní činnosti | R57: =R28 -> 72202 | S57: =S28 -> 70920 | T57: 72579 | U57: 48953 | V57: 45812 | W57: 35351
Q58: =Q30 -> Pořízení dceřiných, přidružených a společných podniků, bez nakoupených peněžních prostředků | R58: -962 | S58: =S30 -> -68 | T58: 0 | U58: -368 | V58: -5070 | W58: -2214
Q59: Prodej dceřiných a společných podniků, bez pozbytých peněžních prostředků | R59: 4126 | S59: =S31 -> 101 | T59: 310 | U59: 900 | V59: 2037 | W59: 155
Q60: Nabytí stálých aktiv, vč. kapitalizovaných úroků | R60: -45626 | S60: =S32 -> -35798 | T60: -31909 | U60: -35553 | V60: -30688 | W60: -26018
Q61: Ostatní investiční činnost | R61: =SUM(R33:R36) -> 2630 | S61: =SUM(S33:S36) -> 1085 | T61: 29 | U61: 450 | V61: 13509 | W61: 2176
Q62: =Q39 -> Čerpání úvěrů a půjček | R62: =R39 -> 69044 | S62: =S39 -> 80769 | T62: 88301 | U62: 97022 | V62: 150032 | W62: 125213
Q63: =Q40 -> Splátky úvěrů a půjček | R63: =R40 -> -74763 | S63: =S40 -> -100076 | T63: -114363 | U63: -91542 | V63: -156182 | W63: -119978
Q64: =Q43 -> Dividendy zaplacené akcionářům společnosti | R64: =R43 -> -21336 | S64: =S43 -> -21320 | T64: -21309 | U64: -21325 | V64: -17618 | W64: -17596
Q65: ostatní finanční činnost | R65: =R41+R42+R44+R45+R46 -> 1314 | S65: =S41+S42+S44+S45+S46 -> -478 | T65: -3 | U65: -695 | V65: -339 | W65: -334
Q66: =Q48 -> Vliv kurzových rozdílů a opravných položek na výši peněžních prostředků | R66: =R48 -> 419 | S66: =S48 -> -43 | T66: -248 | U66: 6 | V66: -200 | W66: -133
Q67: =Q49 -> Čistý přírůstek / úbytek peněžních prostředků a peněžních ekvivalentů | R67: =SUM(R57:R66) -> 7048 | S67: =SUM(S57:S66) -> -4908 | T67: -6613 | U67: -2152 | V67: 1293 | W67: -3378

Sheet sektorové srovnání
A1: Průměrný kurz měn 2019
A2: EURO | B2: 25.672 | C2: CZK
A3: PLN | B3: 6.02 | C3: CZK | D3: Roční srovnání-přepočteno na CZK
BC4: (přepočtená)
D5: počet akcií | E5: celkové tržby | F5: EBITDA | G5: čistý zisk pro akcionáře | H5: BV | I5: EV | J5: EPS | K5: DIV | L5: MV | M5: ROE | N5: CF/akcie | O5: Tržní kapitalizace | P5: P/E | Q5: P/BV | R5: EV/EBITDA | S5: EV/Tržby | T5: Dividendový výnos | U5: Cena/tržby | V5: tržby/akcie | AF5: Tržní kapitalizace | AG5: celkové tržby | AH5: EBITDA | AI5: čistý zisk pro akcionáře | AJ5: účetní hodnota na akcii | AK5: ROE | AL5: P/E | AM5: P/BV | AN5: EV | AO5: EPS | AP5: DIV/akcie | AQ5: Cena akcie 27.12.2019 | AR5: CF/akcie | AS5: Zdroj | BB5: hotovost/akcie | BC5: hotovost/akcie
D6: [-] | E6: [mil. CZK] | F6: [mil. CZK] | G6: [mil. CZK] | H6: [CZK] | I6: [mil. CZK] | J6: [CZK] | K6: [CZK] | L6: [CZK] | M6: [%] | N6: [CZK] | O6: [mil. CZK] | P6: [-] | Q6: [-] | R6: [-] | S6: [-] | T6: [%] | U6: [-] | AE6: počet akcií | AF6: měna | AH6: měna | AI6: měna | AK6: % | AL6: x | AM6: x | AO6: EUR | BC6: [CZK]
C7: skupina ČEZ | D7: =AE7 -> 534864738 | E7: =AG7 -> 181318 | F7: =AH7 -> 52989 | G7: =AI7 -> 10327 | H7: =AJ7 -> 438.84 | I7: =AN7 -> 423368.8 | J7: =AO7 -> 19.3 | K7: =AP7 -> 24 | L7: =AQ7 -> 509 | M7: =AK7 -> 4.26 | N7: =AR7 -> 79.75 | O7: =D7*L7/1000000 -> 272246.1516 | P7: =L7/(G7*1000000/D7) -> 26.36255947 | Q7: =L7/H7 -> 1.159876037 | R7: =I7/F7 -> 7.989748816 | S7: =I7/E7 -> 2.334951853 | T7: =K7/L7*100 -> 4.715127701 | U7: =D7*L7/(E7*1000000) -> 1.501484418 | V7: =E7*1000000/D7 -> 338.9978571 | AC7: mil. CZK | AD7: skupina ČEZ | AE7: 534864738 | AF7: 271684.8 | AG7: 181318 | AH7: 52989 | AI7: 10327 | AJ7: 438.84 | AK7: 4.26 | AL7: 26.16 | AM7: 1.15 | AN7: 423368.8 | AO7: 19.3 | AP7: 24 | AQ7: 509 | AR7: 79.75 | AS7: https://www.patria.cz/akcie/CEZPbl.PR/cez/online.html | BB7: 17.35 | BC7: =BB7 -> 17.35
C8: E. ON | D8: 2607369233 | E8: =AG8*$B$2 -> 758992.68 | F8: 79788.576 | G8: 75398.664 | H8: 68.28752 | I8: =AN8*$B$2 -> 780684.2364 | J8: 34.91392 | K8: 11.03896 | L8: 245.93776 | M8: 60.15 | N8: =AR8*$B$2 -> 57.762 | O8: 641250.5487 | P8: =L8/(G8*1000000/D8) -> 8.504799882 | Q8: 3.601503759 | R8: 9.784411197 | S8: 1.028579401 | T8: =K8/L8*100 -> 4.488517745 | U8: 0.8448705311 | V8: 291.0952045 | AC8: mil. EUR | AD8: E. ON | AE8: 2607369233 | AF8: 25221.95 | AG8: 29565 | AH8: 3108 | AI8: 2937 | AJ8: 2.66 | AK8: 60.15 | AL8: 7.05 | AM8: 3.59 | AN8: 30409.95 | AO8: 1.36 | AP8: 0.43 | AQ8: 9.58 | AR8: 2.25 | AS8: https://www.patria.cz/akcie/EONGn.DE/eon/online.html | BB8: 2.17 | BC8: =BB8*$B$2 -> 55.70824
C9: RWE | D9: 614745499 | E9: 343696.736 | F9: 20537.6 | G9: -20332.224 | H9: 364.79912 | I9: 293160.3771 | J9: -33.11688 | K9: 17.9704 | L9: 699.04856 | M9: -10.22 | N9: 35.42736 | O9: 429736.9558 | P9: x | Q9: 1.916256158 | R9: 14.274325 | S9: 0.8529623543 | T9: 2.570694087 | U9: 1.250337611 | V9: 559.0878446 | AC9: mil. EUR | AD9: RWE | AE9: 614745499 | AF9: 16653.46 | AG9: 13388 | AH9: 800 | AI9: -792 | AJ9: 14.21 | AK9: -10.22 | AL9: - | AM9: 1.91 | AN9: 11419.46 | AO9: -1.29 | AP9: 0.7 | AQ9: 27.23 | AR9: 1.38 | AS9: https://www.patria.cz/akcie/RWEG.DE/rwe/online.html | BB9: 11.6 | BC9: 297.7952
C10: EVN | D10: 178068106 | E10: 56581.088 | F10: 12948.9568 | G10: 7763.2128 | H10: 619.20864 | I10: 94626.47856 | J10: 43.6424 | K10: 12.836 | L10: 435.39712 | M10: 7.44 | N10: 86.0012 | O10: 77530.34052 | P10: =L10/(G10*1000000/D10) -> 9.986888485 | Q10: 0.7031509121 | R10: 7.307652657 | S10: 1.672404719 | T10: 2.948113208 | U10: 1.37025185 | V10: 317.7497041 | AC10: mil. EUR | AD10: EVN | AE10: 178068106 | AF10: 2993.18 | AG10: 2204 | AH10: 504.4 | AI10: 302.4 | AJ10: 24.12 | AK10: 7.44 | AL10: 9.8 | AM10: 0.69 | AN10: 3685.98 | AO10: 1.7 | AP10: 0.5 | AQ10: 16.96 | AR10: 3.35 | AS10: https://www.patria.cz/akcie/EVNV.VI/evn/online.html | BB10: 2.08 | BC10: 53.39776
C11: Enel | D11: 10166679946 | E11: 1877496.048 | F11: 372115.64 | G11: 122943.208 | H11: 80.09664 | I11: 3014844.974 | J11: 12.06584 | K11: 7.18816 | L11: 183.5548 | M11: 14.4 | N11: 29.26608 | O11: 1866142.904 | P11: 15.17890199 | Q11: 2.291666667 | R11: 8.101903415 | S11: 1.605779665 | T11: 3.916083916 | U11: 0.9939530398 | V11: 184.6715012 | AC11: mil. EUR | AD11: Enel | AE11: 10166679946 | AF11: 73261.09 | AG11: 73134 | AH11: 14495 | AI11: 4789 | AJ11: 3.12 | AK11: 14.4 | AL11: 15.3 | AM11: 2.31 | AN11: 117437.09 | AO11: 0.47 | AP11: 0.28 | AQ11: 7.15 | AR11: 1.14 | AS11: https://www.patria.cz/akcie/ENEI.F/enel/online.html | BB11: 1.16 | BC11: 29.77952
C12: Ibeldrola SA | D12: 6232993193 | E12: 900467.7346 | F12: 232803.9648 | G12: 78690.32784 | H12: 147.614 | I12: 2365753.87 | J12: 11.80912 | K12: 0 | L12: 237.466 | M12: 8.32 | N12: 26.69888 | O12: 1480123.962 | P12: 18.80947763 | Q12: 1.608695652 | R12: 10.16199991 | S12: 2.627250015 | T12: 0 | U12: 1.643727926 | V12: 144.4679477 | AC12: mil. EUR | AD12: Ibeldrola SA | AE12: 6232993193 | AF12: 58022.1 | AG12: 35075.87 | AH12: 9068.4 | AI12: 3065.22 | AJ12: 5.75 | AK12: 8.32 | AL12: 19.97 | AM12: 1.59 | AN12: 92153.08 | AO12: 0.46 | AP12: 0 | AQ12: 9.25 | AR12: 1.04 | AS12: https://www.patria.cz/akcie/IBE.MC/iberdrola-sa/online.html | BB12: 0.53 | BC12: 13.60616
C13: Endesa SA | D13: 1058752117 | E13: 518446.04 | F13: 91058.584 | G13: 36377.224 | H13: 219.23888 | I13: 798891.3322 | J13: 34.40048 | K13: 36.71096 | L13: 646.9344 | M13: 15.63 | N13: 70.598 | O13: 684943.1656 | P13: 18.82890145 | Q13: 2.950819672 | R13: 8.773377502 | S13: 1.54093439 | T13: 5.674603175 | U13: 1.321146489 | V13: 489.6765085 | AC13: mil. EUR | AD13: Endesa SA | AE13: 1058752117 | AF13: 26331.17 | AG13: 20195 | AH13: 3547 | AI13: 1417 | AJ13: 8.54 | AK13: 15.63 | AL13: 18.56 | AM13: 2.91 | AN13: 31119.17 | AO13: 1.34 | AP13: 1.43 | AQ13: 25.2 | AR13: 2.75 | AS13: https://www.patria.cz/akcie/ELE.MC/endesa/ospolecnosti.html | BB13: 1.16 | BC13: 29.77952
C14: Verbund AG | D14: 347415686 | E14: 73111.80224 | F14: 22161.354 | G14: 11120.59696 | H14: 392.01144 | I14: 256270.9967 | J14: 32.09 | K14: 10.78224 | L14: 1194.77488 | M14: 8.35 | N14: 59.30232 | O14: 415083.5346 | P14: 37.32565221 | Q14: 3.047806156 | R14: 11.5638691 | S14: 3.505193264 | T14: 0.9024495058 | U14: 5.677380694 | V14: 210.4447358 | AC14: mil. EUR | AD14: Verbund AG | AE14: 347415686 | AF14: 7864.8 | AG14: 2847.92 | AH14: 863.25 | AI14: 433.18 | AJ14: 15.27 | AK14: 8.35 | AL14: 37.05 | AM14: 3.03 | AN14: 9982.51 | AO14: 1.25 | AP14: 0.42 | AQ14: 46.54 | AR14: 2.31 | AS14: https://www.patria.cz/akcie/VERB.VI/verbund-ag/online.html | BB14: 0.31 | BC14: 7.95832
C15: Energa | D15: 414067114 | E15: =AG15*$B$3 -> 62228.74 | F15: 11726.96 | G15: 4448.78 | H15: 149.6572 | I15: =AN15*$B$3 -> 43103.9224 | J15: 10.7758 | K15: 0 | L15: 42.6216 | M15: 7.5 | N15: =AR15*$B$3 -> 24.8626 | O15: 17648.20291 | P15: 3.966975869 | Q15: 0.2847948512 | R15: 3.675626283 | S15: 0.6926690529 | T15: 0 | U15: 0.2836021251 | V15: 150.2866031 | AC15: mil. PLN | AD15: Energa | AE15: 414067114 | AF15: 2741.12 | AG15: 10337 | AH15: 1948 | AI15: 739 | AJ15: 24.86 | AK15: 7.5 | AL15: 3.71 | AM15: 0.27 | AN15: 7160.12 | AO15: 1.79 | AP15: 0 | AQ15: 7.08 | AR15: 4.13 | AS15: https://www.patria.cz/akcie/3520693d-f83d-44bb-8716-18d77d4c08bd/energa/ospolecnosti.html | BB15: 6.63 | BC15: =BB15*$B$3 -> 39.9126
C16: Enea | D16: 441442578 | E16: 76290.0754 | F16: 14024.1318 | G16: 4134.1748 | H16: 192.2186 | I16: 53873.4616 | J16: 9.3912 | K16: 0 | L16: 46.2336 | M16: 5.05 | N16: =AR16*$B$3 -> 29.9796 | O16: 20409.47957 | P16: 4.936772285 | Q16: 0.240526151 | R16: 3.841482836 | S16: 0.7061660553 | T16: 0 | U16: 0.2675247005 | V16: 172.8199299 | AC16: mil. PLN | AD16: Enea | AE16: 441442578 | AF16: 3377.04 | AG16: 12672.77 | AH16: 2329.59 | AI16: 686.74 | AJ16: 31.93 | AK16: 5.05 | AL16: 4.92 | AM16: 0.24 | AN16: 8949.08 | AO16: 1.56 | AP16: 0 | AQ16: 7.68 | AR16: 4.98 | AS16: https://www.patria.cz/akcie/ENAE.WA/enea/hospodareni.html | BB16: 6.26 | BC16: =BB16*$B$3 -> 37.6852
AF17: 245108.1
D19: Tržby | E19: EBITDA | F19: =O5 -> Tržní kapitalizace | G19: Enterprice Value | H19: Book Value | I19: Market Value | J19: EPS | K19: DIV/akcie | L19: CF/akcie | O19: =D19 -> Tržby | P19: =E19 -> EBITDA | Q19: =F19 -> Tržní kapitalizace | R19: =G19 -> Enterprice Value | S19: Pořadí firem | AD19: Celková hodno
D20: [mil. Kč] | E20: [mil. Kč] | F20: [mil. Kč] | G20: [mil. Kč] | H20: [Kč] | I20: [Kč] | J20: [Kč] | K20: [Kč] | L20: [Kč] | N20: =C21 -> skupina ČEZ | O20: =D21/MAX(D$21:D$30) -> 0.09657437106 | P20: =E21/MAX(E$21:E$30) -> 0.1423992821 | Q20: =F21/MAX(F$21:F$30) -> 0.1458870867 | R20: =G21/MAX(G$21:G$30) -> 0.1404280497 | S20: =_xlfn.RANK.AVG(AD20,$AD$20:$AD$29) -> 6 | AD20: =SUM(O20:R20) -> 0.5252887896
C21: =C7 -> skupina ČEZ | D21: =E7 -> 181318 | E21: 52989 | F21: =O7 -> 272246.1516 | G21: =I7 -> 423368.8 | H21: =H7 -> 438.84 | I21: =L7 -> 509 | J21: =J7 -> 19.3 | K21: 24 | L21: =N7 -> 79.75 | N21: =C22 -> E. ON | O21: 0.4042579375 | P21: 0.2144187651 | Q21: 0.3436234959 | R21: 0.2589467263 | S21: 3 | AD21: 1.221246925
C22: E. ON | D22: 758992.68 | E22: 79788.576 | F22: 641250.5487 | G22: 780684.2364 | H22: 68.28752 | I22: =L8 -> 245.93776 | J22: 34.91392 | K22: 11.03896 | L22: 57.762 | N22: RWE | O22: 0.1830612301 | P22: 0.05519144533 | Q22: 0.2302808402 | R22: 0.09723895577 | S22: 5 | AD22: 0.5657724713
C23: RWE | D23: =E9 -> 343696.736 | E23: 20537.6 | F23: 429736.9558 | G23: 293160.3771 | H23: 364.79912 | I23: 699.04856 | J23: -33.11688 | K23: 17.9704 | L23: 35.42736 | N23: EVN | O23: 0.03013646184 | P23: 0.03479820628 | Q23: 0.0415457682 | R23: 0.0313868472 | S23: 8 | AD23: 0.1378672835
C24: EVN | D24: 56581.088 | E24: 12948.9568 | F24: 77530.34052 | G24: 94626.47856 | H24: 619.20864 | I24: 435.39712 | J24: 43.6424 | K24: 12.836 | L24: 86.0012 | N24: Enel | O24: 1 | P24: 1 | Q24: 1 | R24: 1 | S24: 1 | AD24: 4
C25: Enel | D25: 1877496.048 | E25: 372115.64 | F25: 1866142.904 | G25: 3014844.974 | H25: 80.09664 | I25: 183.5548 | J25: 12.06584 | K25: 7.18816 | L25: 29.26608 | N25: Ibeldrola SA | O25: 0.479610988 | P25: 0.6256226285 | Q25: 0.7931460974 | R25: 0.7847016645 | S25: 2 | AD25: 2.683081378
C26: Ibeldrola SA | D26: 900467.7346 | E26: 232803.9648 | F26: 1480123.962 | G26: 2365753.87 | H26: 147.614 | I26: 237.466 | J26: 11.80912 | K26: 0 | L26: 26.69888 | N26: Endesa SA | O26: 0.2761369541 | P26: 0.2447050707 | Q26: 0.3670368245 | R26: 0.2649858746 | S26: 4 | AD26: 1.152864724
C27: Endesa SA | D27: 518446.04 | E27: 91058.584 | F27: 684943.1656 | G27: 798891.3322 | H27: 219.23888 | I27: 646.9344 | J27: 34.40048 | K27: 36.71096 | L27: 70.598 | N27: Verbund AG | O27: 0.03894112178 | P27: 0.05955501897 | Q27: 0.2224285898 | R27: 0.08500304291 | S27: 7 | AD27: 0.4059277735
C28: Verbund AG | D28: 73111.80224 | E28: 22161.354 | F28: 415083.5346 | G28: 256270.9967 | H28: 392.01144 | I28: 1194.77488 | J28: 32.09 | K28: 10.78224 | L28: 59.30232 | N28: Energa | O28: 0.03314453848 | P28: 0.03151428948 | Q28: 0.009457047939 | R28: 0.01429722681 | S28: 10 | AD28: 0.08841310271
C29: Energa | D29: 62228.74 | E29: 11726.96 | F29: 17648.20291 | G29: 43103.9224 | H29: 149.6572 | I29: 42.6216 | J29: 10.7758 | K29: 0 | L29: 24.8626 | N29: Enea | O29: 0.04063394726 | P29: 0.03768756347 | Q29: 0.01093671847 | R29: 0.01786939695 | S29: 9 | AD29: 0.1071276262
C30: Enea | D30: 76290.0754 | E30: 14024.1318 | F30: 20409.47957 | G30: 53873.4616 | H30: 192.2186 | I30: 46.2336 | J30: 9.3912 | K30: 0 | L30: 29.9796
E32: EV/EBITDA | F32: Tržby/akcie | G32: P/E | H32: P/BV | I32: MV/tržby | J32: ROE | K32: Dividendový výnos
E33: [-] | F33: [-] | G33: [-] | H33: [-] | I33: [-] | J33: [%] | K33: [%]
D34: =C21 -> skupina ČEZ | E34: =R7 -> 7.989748816 | F34: =V7 -> 338.9978571 | G34: =P7 -> 26.36255947 | H34: =Q7 -> 1.159876037 | I34: =U7 -> 1.501484418 | J34: =M7 -> 4.26 | K34: =T7 -> 4.715127701
D35: E. ON | E35: 9.784411197 | F35: 291.0952045 | G35: 8.504799882 | H35: 3.601503759 | I35: 0.8448705311 | J35: 60.15 | K35: 4.488517745
D36: RWE | E36: =R9 -> 14.274325 | F36: 559.0878446 | G36: x | H36: 1.916256158 | I36: 1.250337611 | J36: -10.22 | K36: 2.570694087
D37: EVN | E37: 7.307652657 | F37: 317.7497041 | G37: 9.986888485 | H37: 0.7031509121 | I37: 1.37025185 | J37: 7.44 | K37: 2.948113208
D38: Enel | E38: 8.101903415 | F38: 184.6715012 | G38: 15.17890199 | H38: 2.291666667 | I38: 0.9939530398 | J38: 14.4 | K38: 3.916083916
D39: Ibeldrola SA | E39: 10.16199991 | F39: 144.4679477 | G39: 18.80947763 | H39: 1.608695652 | I39: 1.643727926 | J39: 8.32 | K39: 0
D40: Endesa SA | E40: 8.773377502 | F40: 489.6765085 | G40: 18.82890145 | H40: 2.950819672 | I40: 1.321146489 | J40: 15.63 | K40: 5.674603175
D41: Verbund AG | E41: 11.5638691 | F41: 210.4447358 | G41: 37.32565221 | H41: 3.047806156 | I41: 5.677380694 | J41: 8.35 | K41: 0.9024495058
D42: Energa | E42: 3.675626283 | F42: 150.2866031 | G42: 3.966975869 | H42: 0.2847948512 | I42: 0.2836021251 | J42: 7.5 | K42: 0
D43: Enea | E43: 3.841482836 | F43: 172.8199299 | G43: 4.936772285 | H43: 0.240526151 | I43: 0.2675247005 | J43: 5.05 | K43: 0

Sheet pro prezentaci (hidden)
J2: 0.2 | K2: 2015
J3: 0.3 | K3: 2016
J4: 0.4 | K4: 2017
J5: 0.4 | K5: 2018
J6: 0.45 | K6: 2019
J7: 0.5 | K7: 2020
J8: 0.6 | K8: 2021
J9: 4 | K9: 2022
J10: 2.95 | K10: 2023
J11: 2.8 | K11: 2024
J12: 3.2 | K12: 2025
J13: 2.85 | K13: 2026
J14: 3.1 | K14: 2027
J15: 2.9 | K15: 2028
J16: 22.5 | K16: 2029
J17: 23.3 | K17: 2030
J18: 22.8 | K18: 2031
J19: 19.5 | K19: 2032
J20: 10.5 | K20: 2033
J21: 8.9 | K21: 2034
J22: 8.85 | K22: 2035
J23: 8.8 | K23: 2036
J24: 3.1 | K24: 2037

Sheet výsledovka (hidden)
B1: -37930 | C1: -37477 | D1: -37036 | E1: -37634
A2: Prodej elektřiny: | B2: 2015 | C2: 2016 | D2: 2017 | E2: 2018 | I2: 2015 | J2: 2016 | K2: 2017 | L2: 2018
A3: Prodej silové elektřiny koncovým zákazníkům | B3: 54742 | C3: 50159 | D3: 48504 | E3: 45941 | H3: Tržby z prodeje elektřiny, tepla, plynu a uhlí celkem* | I3: =B16 -> 131715 | J3: =C16 -> 129681 | K3: =D16 -> 122738 | L3: =E16 -> 121450
A4: Prodej prostřednictvím energetické burzy | B4: 4920 | C4: 4766 | D4: 3669 | E4: 4134 | H4: Tržby z prodeje služeb a ostatní tržby | I4: =B19+B84 -> 74959 | J4: =C19+C84 -> 72328 | K4: =D23 -> 76262 | L4: =E23 -> 59868
A5: Prodej obchodníkům | B5: 35672 | C5: 37138 | D5: 35524 | E5: 36830 | H5: Ostatní provozní výnosy celkem | I5: =B30 -> 3493 | J5: =C30 -> 1735 | K5: =D30+D76 -> 8843 | L5: =E30+E76 -> 6614
A6: Prodej distribučním a přenosovým společnostem | B6: 344 | C6: 324 | D6: 239 | E6: 177 | H6: Provozní výnosy celkem* | I6: =I3+I4+I5 -> 210167 | J6: =J3+J4+J5 -> 203744 | K6: =K3+K4+K5 -> 207843 | L6: =L3+L4+L5 -> 187932
A7: Ostatní prodej elektřiny | B7: 16211 | C7: 15653 | D7: 17208 | E7: 20733 | H7: Zisky a ztráty z derivátových obchodů s komoditami celkem | I7: =B44 -> -464 | J7: =C44 -> -341 | K7: =D44 -> 1213 | L7: =E44 -> 575
A8: Vliv zajištění – předprodej elektřiny (bod 19.3) | B8: 4055 | C8: 2989 | D8: 326 | E8: -5596 | H8: Nákup elektřiny, plynu, ostatních energií celkem a související služby | I8: =B65 -> -90905 | J8: =C65 -> -88294 | K8: =D65 -> -105165 | L8: =E65 -> -78260
A9: Vliv zajištění – riziko změny kurzu (bod 19.3) | B9: -3297 | C9: -1957 | D9: -1397 | E9: 878 | H9: Palivo a emisní povolenky celkem | I9: =B51 -> -14764 | J9: =C51 -> -13670 | K9: =D51 -> -16039 | L9: =E51 -> -19064
A10: Tržby z prodeje elektřiny celkem | B10: =SUM(B3:B9) -> 112647 | C10: =SUM(C3:C9) -> 109072 | D10: =SUM(D3:D9) -> 104073 | E10: =SUM(E3:E9) -> 103097 | H10: Osobní náklady | I10: =B72 -> -17758 | J10: =C72 -> -19158 | K10: =D72 -> -22086 | L10: =E72 -> -25620
A11: Prodej plynu, uhlí a tepla: | H11: Materiál | I11: =B75 -> -4062 | J11: =C75 -> -4362 | K11: =D75 -> -5922 | L11: =E75 -> -8240
A12: Prodej plynu | B12: 8294 | C12: 9214 | D12: 7345 | E12: 7072 | H12: Odpisy | I12: =B121 -> -28619 | J12: =C121 -> -28978 | K12: =D121 -> -29305 | L12: =E121 -> -28139
A13: Prodej uhlí | B13: 4331 | C13: 4518 | D13: 4593 | E13: 4489 | H13: Opravné položky k dlouhodobému hmotnému a nehmotnému majetku | I13: =H121 -> -7685 | J13: =I121 -> -3114 | K13: =J121 -> -230 | L13: =K121 -> -1766 | N13: lze i z segmentů
A14: Prodej tepla | B14: 6443 | C14: 6877 | D14: 6727 | E14: 6792 | H14: Ostatní provozní náklady | I14: =SUM(B80:B82) -> -16949 | J14: =SUM(C80:C82) -> -19713 | K14: =D110+D78 -> -4689 | L14: =E110+E78 -> -7659
A15: Tržby z prodeje plynu, uhlí a tepla celkem | B15: =SUM(B12:B14) -> 19068 | C15: =SUM(C12:C14) -> 20609 | D15: 18665 | E15: =E12+E13+E14 -> 18353 | H15: EBIT | I15: =SUM(I6:I14) -> 28961 | J15: =SUM(J6:J14) -> 26114 | K15: =SUM(K6:K14) -> 25620 | L15: =SUM(L6:L14) -> 19759
A16: Tržby z prodeje elektřiny, tepla, plynu a uhlí celkem* | B16: =B10+B15 -> 131715 | C16: =C10+C15 -> 129681 | D16: =D10+D15 -> 122738 | E16: =E10+E15 -> 121450 | H16: Nákladové úroky z dluhů a rezerv | I16: =B133 -> -4534 | J16: =C133 -> -4256 | K16: =D133 -> -5379 | L16: =E133 -> -6977
H17: Výnosové úroky | I17: =B139 -> 388 | J17: =C139 -> 303 | K17: =D139 -> 235 | L17: =E139 -> 315
A18: Prodej služeb a ostatní tržby: | B18: 2015 | C18: 2016 | D18: 2017 | E18: 2018 | H18: Zisky a ztráty z přidružených a společných podniků | I18: =B145 -> -1655 | J18: =C145 -> -2733 | K18: =D145 -> -2387 | L18: =E145 -> -308
A19: Distribuční služby | B19: 69458 | C19: 65872 | D19: 62243 | E19: 39356 | H19: Ostatní finanční náklady | I19: =B156 -> -1921 | J19: =C156 -> -1603 | K19: =D156 -> -1978 | L19: =E156 -> -1559
A20: Ostatní služby | D20: 13072 | E20: 18220 | H20: Ostatní finanční výnosy | I20: =B165 -> 5656 | J20: =C165 -> 1503 | K20: =D165 -> 6642 | L20: =E165 -> 2287
A21: Tržby z prodeje zboží | D21: 178 | E21: 1132 | H21: EBT | I21: =I15+SUM(I16:I20) -> 26895 | J21: =J15+SUM(J16:J20) -> 19328 | K21: =K15+SUM(K16:K20) -> 22753 | L21: =L15+SUM(L16:L20) -> 13517
A22: Ostatní tržby | D22: 769 | E22: 1160 | H22: Daň | I22: =B185 -> -6348.05 | J22: =C185 -> -4753.32 | K22: =D185 -> -3794.07 | L22: =E185 -> -3017.23
A23: Tržby z prodeje služeb a ostatní tržby | D23: =SUM(D19:D22) -> 76262 | E23: =SUM(E19:E22) -> 59868 | H23: EAT | I23: =I21+I22 -> 20546.95 | J23: =J21+J22 -> 14574.68 | K23: =K21+K22 -> 18958.93 | L23: =L21+L22 -> 10499.77
H24: Podíly akcionářů mateřského podniku | I24: 20739 | J24: 14281 | K24: 18765 | L24: 10327
A25: Ostatní provozní výnosy: | B25: 2015 | C25: 2016 | D25: 2017 | E25: 2018 | H25: Nekontrolní podíly | I25: =I23-I24 -> -192.05 | J25: =J23-J24 -> 293.68 | K25: =K23-K24 -> 193.93 | L25: =L23-L24 -> 172.77
A26: Smluvní pokuty a úroky z prodlení | B26: 735 | C26: 442 | D26: 210 | E26: 334
A27: Zisk z prodeje dlouhodobého hmotného majetku | B27: 184 | C27: 148 | D27: 1243 | E27: 137
A28: Zisk z prodeje materiálu | B28: 147 | C28: 87 | D28: 107 | E28: 169 | G28: Provozní výnosy | H28: Prodej silové elektřiny koncovým zákazníkům | I28: mil. Kč | J28: 48504 | K28: 45941
A29: Ostatní | B29: 2427 | C29: 1058 | D29: 1831 | E29: 1533 | H29: Prodej prostřednictvím energetické burzy | I29: mil. Kč | J29: 3669 | K29: 4134
A30: Ostatní provozní výnosy celkem | B30: =SUM(B26:B29) -> 3493 | C30: =SUM(C26:C29) -> 1735 | D30: =SUM(D26:D29)+D77 -> 6092 | E30: =SUM(E26:E29)+E77 -> 3168 | H30: Prodej obchodníkům | I30: mil. Kč | J30: 35524 | K30: 36830
H31: Prodej distribučním a přenosovým společnostem | I31: mil. Kč | J31: 239 | K31: 177
A32: Obchodování s elektřinou: | B32: 2015 | C32: 2016 | D32: 2017 | E32: 2018 | H32: Ostatní prodej elektřiny | I32: mil. Kč | J32: 16137 | K32: 16015
A33: Prodej – tuzemsko | B33: 5292 | C33: 4017 | D33: 6825 | E33: 13537 | H33: Prodej plynu | I33: mil. Kč | J33: 7345 | K33: 7072
A34: Prodej – zahraničí | B34: 163456 | C34: 134083 | D34: 183258 | E34: 259360 | H34: Prodej uhlí | I34: mil. Kč | J34: 4593 | K34: 4489
A35: Nákup – tuzemsko | B35: -4864 | C35: -3418 | D35: -6640 | E35: -13311 | H35: Prodej tepla | I35: mil. Kč | J35: 6727 | K35: 6792
A36: Nákup – zahraničí | B36: -158809 | C36: -130452 | D36: -181666 | E36: -264806 | H36: Distribuční služby a ostatní služby | I36: mil. Kč | J36: 76262 | K36: 59868
A37: Změna reálných hodnot derivátů | B37: -4595 | C37: -4246 | D37: -721 | E37: 5601 | H37: Ostatní provozní výnosy | I37: mil. Kč | J37: 7390 | K37: 6143
A38: Zisk z derivátových obchodů s elektřinou celkem | B38: =SUM(B33:B37) -> 480 | C38: =SUM(C33:C37) -> -16 | D38: =SUM(D33:D37) -> 1056 | E38: =SUM(E33:E37) -> 381 | G38: Provozní náklady | H38: Nákup elektřiny | I38: mil. Kč | J38: -48128 | K38: -44611
A39: Obchodování s ostatními komoditami: | H39: Nákup plynu | I39: mil. Kč | J39: -5409 | K39: -5211
A40: Ztráta z derivátových obchodů s plynem | B40: -228 | C40: -221 | D40: -190 | E40: -409 | H40: Nákup ostatních energií | I40: mil. Kč | J40: -3816 | K40: -2346
A41: Zisk / ztráta z derivátových obchodů s ropou | B41: -714 | C41: -92 | D41: 43 | E41: -22 | H41: Nákup služeb přenosové soustavy a distribučních služeb | I41: mil. Kč | J41: -29517 | K41: -5219
A42: Zisk / ztráta z derivátových obchodů s uhlím | B42: -2 | C42: -12 | D42: 11 | E42: -84 | H42: Nákup ostatních služeb | I42: mil. Kč | J42: -18295 | K42: -20873
A43: Zisk z derivátových obchodů s emisními povolenkami | D43: 293 | E43: 709 | H43: Mzdy | I43: mil. Kč | J43: -22086 | K43: -25620
A44: Zisky a ztráty z derivátových obchodů s komoditami celkem | B44: =SUM(B40:B43)+B38 -> -464 | C44: =SUM(C40:C43)+C38 -> -341 | D44: =SUM(D40:D43)+D38 -> 1213 | E44: =SUM(E40:E43)+E38 -> 575 | H44: Odpisy | I44: mil. Kč | J44: -29305 | K44: -28139
H45: Opravné položky k DHM | I45: mil. Kč | J45: -230 | K45: -1766
B46: 2015 | C46: 2016 | D46: 2017 | E46: 2018 | H46: Spotřeba fosilního paliva a biomasy | I46: mil. Kč | J46: -7178 | K46: -7236
A47: Spotřeba fosilního paliva a biomasy | B47: =-13053-B49 -> -9637 | C47: =-13150-C49 -> -9992 | D47: -7178 | E47: -7236 | H47: Spotřeba plynu | I47: mil. Kč | J47: -1799 | K47: -2712
A48: Spotřeba plynu | D48: -1799 | E48: -2712 | H48: Amortizace jaderného paliva | I48: mil. Kč | J48: -3725 | K48: -4027
A49: Amortizace jaderného paliva | B49: -3416 | C49: -3158 | D49: -3725 | E49: -4027 | H49: Emisní povolenky | I49: mil. Kč | J49: -3337 | K49: -5089
A50: Emisní povolenky pro výrobu | B50: -1711 | C50: -520 | D50: -3337 | E50: -5089 | H50: Materiál | I50: mil. Kč | J50: -5922 | K50: -8240
A51: Palivo a emisní povolenky celkem | B51: =SUM(B47:B50) -> -14764 | C51: =SUM(C47:C50) -> -13670 | D51: =SUM(D47:D50) -> -16039 | E51: =SUM(E47:E50) -> -19064 | H51: Ostatní provozní náklady | I51: mil. Kč | J51: -4689 | K51: -7659
G52: Ostatní položky výsledovky | H52: Smluvní pokuty a úroky z prodlení | I52: mil. Kč | J52: 210 | K52: 334
B53: 2015 | C53: 2016 | D53: 2017 | E53: 2018 | H53: Zisk z prodeje dlouhodobého hmotného majetku | I53: mil. Kč | J53: 1243 | K53: 137
A54: Nákup elektřiny pro další prodej | D54: -48128 | E54: -44611 | H54: Derivátové obchody s komoditami | I54: mil. Kč | J54: 1213 | K54: 575
A55: Nákup plynu pro další prodej | D55: -5409 | E55: -5211 | H55: EBIT | I55: mil. Kč | J55: 25620 | K55: 19759
A56: Nákup ostatních energií | D56: -3816 | E56: -2346 | H56: Nákladové úroky z dluhů a rezerv | I56: mil. Kč | J56: -5379 | K56: -6977
A57: Nákup elektřiny, plynu a ostatních energií celkem | D57: =SUM(D54:D56) -> -57353 | E57: =SUM(E54:E56) -> -52168 | H57: Výnosové úroky | I57: mil. Kč | J57: 235 | K57: 315
H58: Zisky a ztráty z přidružených a společných podniků | I58: mil. Kč | J58: -2387 | K58: -308
B59: 2015 | C59: 2016 | D59: 2017 | E59: 2018 | H59: Ostatní finanční náklady | I59: mil. Kč | J59: -1978 | K59: -1559
A60: Nákup služeb přenosové soustavy pro distribuci elektřiny | D60: -4221 | E60: -4701 | H60: Ostatní finanční výnosy | I60: mil. Kč | J60: 6642 | K60: 2287
A61: Nákup ostatních distribučních služeb | D61: -25296 | E61: -518 | H61: EBT | I61: mil. Kč | J61: 22753 | K61: 13517
A62: Opravy a údržba | D62: -4714 | E62: -4584 | H62: Daň | I62: mil. Kč | J62: -3794 | K62: -3017
A63: Nákup ostatních služeb | D63: -13581 | E63: -16289 | H63: EAT | I63: mil. Kč | J63: 18959 | K63: 10500
A64: Nákup služeb celkem* | D64: =SUM(D60:D63) -> -47812 | E64: =SUM(E60:E63) -> -26092 | H64: Podíly akcionářů mateřského podniku | I64: mil. Kč | J64: 18765 | K64: 10327
A65: Nákup elektřiny, plynu, ostatních energií celkem a související služby | B65: -90905 | C65: -88294 | D65: =D57+D64 -> -105165 | E65: =E57+E64 -> -78260 | H65: Nekontrolní podíly | I65: mil. Kč | J65: 194 | K65: 173
B67: 2015 | C67: 2016 | D67: 2017 | E67: 2018
A68: Mzdové náklady včetně odměn orgánů společnosti | B68: -12547 | C68: -13591 | D68: -15294 | E68: -18386
A69: Opční smlouvy | B69: -31 | C69: -22 | D69: -28 | E69: -33
A70: Sociální zabezpečení a zdravotní pojištění | B70: -4024 | C70: -4326 | D70: -4788 | E70: -5427
A71: Ostatní osobní náklady | B71: -1156 | C71: -1219 | D71: -1976 | E71: -1774
A72: Celkem | B72: =SUM(B68:B71) -> -17758 | C72: =SUM(C68:C71) -> -19158 | D72: =SUM(D68:D71) -> -22086 | E72: =SUM(E68:E71) -> -25620
B74: 2015 | C74: 2016 | D74: 2017 | E74: 2018
A75: materiál | B75: -4062 | C75: -4362 | D75: -5922 | E75: -8240
A76: aktivace | D76: 2751 | E76: 3446
A77: Výnosy z přidělených zelených a obdobných certifikátů | D77: 2701 | E77: 995
A78: Opravné položky k obchodním a jiným pohledávkám | D78: 830 | E78: -559
A79: Opravné položky k obchodním a jiným pohledávkám | D79: 830 | E79: -559
A80: Vliv zajištění – riziko změny kurzu | B80: -76 | C80: -27
A81: Opravy a údržba | B81: -4619 | C81: -4563
A82: Ostatní provozní náklady | B82: -12254 | C82: -15123 | D82: v tabulce někde | E82: v tabulce někde
A83: Prodej podpůrných, systémových, distribučních a ostatních služeb
A84: Ostatní tržby | B84: 5501 | C84: 6456
A86: Tvorba opravných položek: | B86: 2015 | C86: 2016 | D86: 2017 | E86: 2018
A87: Goodwill | B87: -7 | D87: 0 | E87: -727
A88: Nehmotná aktiva mimo goodwill | B88: -74 | C88: -47 | D88: -423 | E88: -80
A89: Hmotný majetek,jaderné palivo a investice | B89: -7694 | C89: -3176 | D89: -1883 | E89: -923
A90: Dlouhodobá hmotná aktiva držená k prodeji | E90: -643
A91: Tvorba opravných položek | B91: =SUM(B87:B90) -> -7775 | C91: =SUM(C87:C90) -> -3223 | D91: =SUM(D87:D90) -> -2306 | E91: =SUM(E87:E90) -> -2373
A92: Zúčtování opravných položek:
A93: Nehmotná aktiva mimo goodwill | B93: 0 | C93: 0 | D93: 0 | E93: 291
A94: Hmotný majetek,jaderné palivo a investice | B94: 90 | C94: 109 | D94: 2076 | E94: 316
A95: Zúčtování opravných položek | B95: =SUM(B93:B94) -> 90 | C95: =SUM(C93:C94) -> 109 | D95: =SUM(D93:D94) -> 2076 | E95: =SUM(E93:E94) -> 607
A96: Celkem | B96: =B91+B95 -> -7685 | C96: =C91+C95 -> -3114 | D96: =D91+D95 -> -230 | E96: =E91+E95 -> -1766
A98: Opravné položky k obchodním a jiným pohledávkám
B99: 2015 | C99: 2016 | D99: 2017 | E99: 2018
A100: Změna stavu rezerv | D100: 1262 | E100: 541
A101: Daně a poplatky | D101: -3245 | E101: -3330
A102: Prodané zboží | D102: -89 | E102: -778
A103: Vyřazení záruk původu, zelených a obdobných certifikátů | D103: -825 | E103: -938
A104: Pojistné | D104: -671 | E104: -696
A105: Náklady související s obchodováním s komoditami | D105: -259 | E105: -356
A106: Poskytnuté dary | D106: -323 | E106: -336
A107: Odpis pohledávek | D107: -211 | E107: -205
A108: Ztráta z prodeje dlouhodobého hmotného a nehmotného majetku | D108: -9 | E108: -10
A109: Ostatní | D109: -1149 | E109: -992
A110: Celkem | D110: =SUM(D100:D109) -> -5519 | E110: =SUM(E100:E109) -> -7100
E112: odpisy | H112: Opravné položky k dlouhodobému hmotnému a nehmotnému majetku | P112: mil. Kč | Q112: 34. Informace o segmentech
B113: 2015 | C113: 2016 | D113: 2017 | E113: 2018 | H113: 2015 | I113: 2016 | J113: 2017 | K113: 2018
A114: tradiční energetika | B114: -16735 | C114: -17199 | D114: -17301 | E114: -15941 | H114: -3751 | I114: -415 | J114: 1389 | K114: -1249
A115: nová energetika | B115: -1696 | C115: -1589 | D115: -1736 | E115: -1788 | H115: -2482 | I115: -2703 | J115: -551 | K115: 191
A116: distribuce | B116: -5903 | C116: -6044 | D116: -6262 | E116: -6124 | H116: -1448 | I116: -5 | J116: -987 | K116: -671
A117: prodej | B117: -32 | C117: -72 | D117: -155 | E117: -471 | H117: -4 | I117: -2 | J117: 1 | K117: 1
A118: těžba | B118: -2419 | C118: -2415 | D118: -2337 | E118: -2351 | H118: 0 | I118: 0 | J118: -82 | K118: 21
A119: ostatní | B119: -1834 | C119: -1659 | D119: -1514 | E119: -1464 | H119: 0 | I119: 11 | J119: 0 | K119: -59
A120: eliminace | B120: 0 | C120: 0 | D120: 0 | E120: 0 | H120: 0 | I120: 0 | J120: 0 | K120: 0
A121: celkem | B121: =SUM(B114:B120) -> -28619 | C121: =SUM(C114:C120) -> -28978 | D121: =SUM(D114:D120) -> -29305 | E121: =SUM(E114:E120) -> -28139 | H121: =SUM(H114:H120) -> -7685 | I121: =SUM(I114:I120) -> -3114 | J121: =SUM(J114:J120) -> -230 | K121: =SUM(K114:K120) -> -1766
B124: Nákladové úroky z dluhů a rezerv | H124: Zisky a ztráty z přidružených a společných podniků
B125: 2015 | C125: 2016 | D125: 2017 | E125: 2018 | H125: 2015 | I125: 2016 | J125: 2017 | K125: 2018
A126: tradiční energetika | B126: -4172 | C126: -3784 | D126: -4993 | E126: -6544 | J126: -1818 | K126: 0
A127: nová energetika | B127: -510 | C127: -285 | D127: -280 | E127: -301 | J127: 0 | K127: 0
A128: distribuce | B128: -278 | C128: -399 | D128: -319 | E128: -377 | J128: 265 | K128: 300
A129: prodej | B129: -3 | C129: -12 | D129: -51 | E129: -170 | J129: -468 | K129: 169
A130: těžba | B130: -195 | C130: -184 | D130: -186 | E130: -196 | J130: 5 | K130: 6
A131: ostatní | B131: -297 | C131: -345 | D131: -226 | E131: -220 | J131: -371 | K131: -783
A132: eliminace | B132: 921 | C132: 753 | D132: 676 | E132: 831 | J132: 0 | K132: 0
A133: celkem | B133: =SUM(B126:B132) -> -4534 | C133: =SUM(C126:C132) -> -4256 | D133: =SUM(D126:D132) -> -5379 | E133: =SUM(E126:E132) -> -6977 | H133: 0 | I133: 161 | J133: =SUM(J126:J132) -> -2387 | K133: =SUM(K126:K132) -> -308
B134: 2015 | C134: 2016 | D134: 2017 | E134: 2018
A135: Dluhová finanční aktiva v reálné hodnotě přeceňovaná do ostatního úplného výsledku | B135: 214 | C135: 184 | D135: 173 | E135: 197
A136: Bankovní účty | B136: 95 | C136: 34 | D136: 25 | E136: 84
A137: Úvěry a pohledávky | B137: 50 | C137: 47 | D137: 23 | E137: 13
A138: Cenné papíry držené do splatnosti | B138: 29 | C138: 38 | D138: =14+0 -> 14 | E138: =8+13 -> 21
A139: Celkem | B139: =SUM(B135:B138) -> 388 | C139: =SUM(C135:C138) -> 303 | D139: =SUM(D135:D138) -> 235 | E139: =SUM(E135:E138) -> 315
B141: 2015 | C141: 2016 | D141: 2017 | E141: 2018
A142: Zisk z prodeje dceřinných a společných podniků | B142: 0 | C142: 161
A143: Opravné položky k finančním aktivům | D143: -1 | E143: -508
A144: Kurzové zisky a ztráty,netto | B144: -811 | C144: -339
A145: Zisky a ztráty z přidružených a společných podniků | B145: -1655 | C145: =-2733 -> -2733 | D145: -2387 | E145: -308
A146: Ostatní finanční náklady
B148: 2015 | C148: 2016 | D148: 2017 | E148: 2018
A149: Ztráty z derivátů | B149: -123 | C149: -1046 | D149: -927 | E149: -47
A150: Ztráta z kurzových rozdílů | B150: -811 | C150: -339 | D150: 0 | E150: -776
A151: Ztráta z prodeje dluhových finančních aktiv | D151: -147 | E151: -11
A152: Tvorba a zúčtování rezerv | D152: -157 | E152: -17
A153: Náklady na zpětný odkup dluhopisů | B153: -843 | C153: 0 | D153: -490 | E153: 0
A154: Ztráta z pozbytí dceřiných, přidružených a společných podniků (bod 8) | D154: -14 | E154: 0
A155: Ostatní | B155: =-1110-B149-B153 -> -144 | C155: =-1264-C149-C153 -> -218 | D155: =-242-1 -> -243 | E155: =-200-508 -> -708
A156: Ostatní finanční náklady | B156: =SUM(B149:B155) -> -1921 | C156: =SUM(C149:C155) -> -1603 | D156: =SUM(D149:D155) -> -1978 | E156: =SUM(E149:E155) -> -1559
B157: 2015 | C157: 2016 | D157: 2017 | E157: 2018
A158: Zisky z derivátů | B158: 423 | C158: 325 | D158: =504+4560 -> 5064 | E158: 933
A159: Zisk z prodeje ostatních realizovatelných finančních aktiv | B159: 514 | C159: 80 | D159: 89 | E159: 0
A160: Výnos z přecenění finančních aktiv | D160: 0 | E160: 128
A161: Přijaté dividendy | B161: 685 | C161: 632 | D161: 262 | E161: 177
A162: Zisk z pozbytí dceřiných, přidružených a společných podniků (bod 8) | B162: 0 | C162: 161 | D162: 0 | E162: 159
A163: Zisk z kurzových rozdílů | D163: 959 | E163: 0
A164: Ostatní | B164: =5656-B158-B159-B161-B162 -> 4034 | C164: =1342-C158-C159-C161 -> 305 | D164: 268 | E164: 890
A165: Ostatní finanční výnosy | B165: =SUM(B158:B164) -> 5656 | C165: =SUM(C158:C164) -> 1503 | D165: =SUM(D158:D164) -> 6642 | E165: =SUM(E158:E164) -> 2287
B167: 2015 | C167: 2016 | D167: 2017 | E167: 2018
A168: Splatná daň z příjmů | B168: -6564 | C168: -4795 | D168: -3937 | E168: -4191
A169: Daň z příjmů vztahující se k předchozím obdobím | B169: 21 | C169: 26 | D169: 20 | E169: -57
A170: Odložená daň z příjmů | B170: 195 | C170: 16 | D170: 123 | E170: 1231
A171: Celkem | B171: =SUM(B168:B170) -> -6348 | C171: =SUM(C168:C170) -> -4753 | D171: =SUM(D168:D170) -> -3794 | E171: =SUM(E168:E170) -> -3017
A172: nebo
A173: Zisk před zdaněním | B173: =I21 -> 26895 | C173: =J21 -> 19328 | D173: =K21 -> 22753 | E173: =L21 -> 13517
A174: Zákonná sazba daně z příjmů v ČR | B174: 0.19 | C174: 0.19 | D174: 0.19 | E174: 0.19
A175: „Předpokládaný“ náklad na daň z příjmů | B175: =B173-B173*1.19 -> -5110.05 | C175: =C173-C173*1.19 -> -3672.32 | D175: =D173-D173*1.19 -> -4323.07 | E175: =E173-E173*1.19 -> -2568.23
A176: Úpravy:
A177: Daňově neuznatelné náklady související s držbou podílů | B177: -16 | C177: -25 | D177: -22 | E177: -26
A178: Snížení hodnoty goodwillu a opravné položky ke stálým aktivům | B178: -128 | C178: -204 | D178: 0 | E178: -174
A179: Zisky a ztráty z přidružených a společných podniků | B179: -330 | C179: -545 | D179: -478 | E179: -72
A180: Ostatní | B180: =-23-82-6+726-450+151+44 -> 360 | C180: =-262-4+135+28+31 -> -72 | D180: 866 | E180: 0
A181: Daň z příjmů vztahující se k předchozím obdobím | B181: 21 | C181: 26 | D181: 19 | E181: -57
A182: Dopad rozdílné sazby daně v jiných zemích | B182: -154 | C182: 137 | D182: -110 | E182: -80
A183: Změna nezaúčtované odložené daňové pohledávky | B183: -717 | C183: -344 | D183: -58 | E183: 236
A184: Ostatní již zdaněné, osvobozené nebo daňově neuznatelné položky, netto | B184: -274 | C184: -54 | D184: 312 | E184: -276
A185: Daň z příjmů | B185: =SUM(B177:B184)+B175 -> -6348.05 | C185: =SUM(C177:C184)+C175 -> -4753.32 | D185: =SUM(D177:D184)+D175 -> -3794.07 | E185: =SUM(E177:E184)+E175 -> -3017.23
A186: Efektivní daňová sazba | B186: 0.22 | C186: 0.22 | D186: 0.22 | E186: 0.22

Sheet elektřina schovat (hidden)
A1: Časová osa | B1: Hodnoty | C1: Prognóza | D1: Dolní hranice spolehlivosti | E1: Horní hranice spolehlivosti
A2: 1 | B2: 31.95
A3: 2 | B3: 31.65
A4: 3 | B4: 31.2
A5: 4 | B5: 31.2
A6: 5 | B6: 31.15
A7: 6 | B7: 31.45
A8: 7 | B8: 31.25
A9: 8 | B9: 31.6
A10: 9 | B10: 31.7
A11: 10 | B11: 31.6
A12: 11 | B12: 31.2
A13: 12 | B13: 31.2
A14: 13 | B14: 31.3
A15: 14 | B15: 31.6
A16: 15 | B16: 31.45
A17: 16 | B17: 31.4
A18: 17 | B18: 31.2
A19: 18 | B19: 31.35
A20: 19 | B20: 31.55
A21: 20 | B21: 32
A22: 21 | B22: 31.8
A23: 22 | B23: 32.05
A24: 23 | B24: 32.15
A25: 24 | B25: 31.8
A26: 25 | B26: 32.3
A27: 26 | B27: 32.3
A28: 27 | B28: 32.25
A29: 28 | B29: 32.5
A30: 29 | B30: 32.35
A31: 30 | B31: 32.8
A32: 31 | B32: 33.2
A33: 32 | B33: 33.65
A34: 33 | B34: 33
A35: 34 | B35: 32.85
A36: 35 | B36: 32.3
A37: 36 | B37: 32.4
A38: 37 | B38: 32.5
A39: 38 | B39: 32.65
A40: 39 | B40: 32.7
A41: 40 | B41: 32.5
A42: 41 | B42: 32.65
A43: 42 | B43: 32.6
A44: 43 | B44: 32.3
A45: 44 | B45: 32.4
A46: 45 | B46: 32.2
A47: 46 | B47: 31.9
A48: 47 | B48: 31.84
A49: 48 | B49: 31.8
A50: 49 | B50: 31.93
A51: 50 | B51: 31.83
A52: 51 | B52: 31.83
A53: 52 | B53: 31.6
A54: 53 | B54: 31.68
A55: 54 | B55: 31.8
A56: 55 | B56: 31.88
A57: 56 | B57: 31.75
A58: 57 | B58: 31.95
A59: 58 | B59: 31.85
A60: 59 | B60: 31.7
A61: 60 | B61: 31.95
A62: 61 | B62: 32.2
A63: 62 | B63: 32
A64: 63 | B64: 31.8
A65: 64 | B65: 31.85
A66: 65 | B66: 31.75
A67: 66 | B67: 31.55
A68: 67 | B68: 31.55
A69: 68 | B69: 31.6
A70: 69 | B70: 31.55
A71: 70 | B71: 31.55
A72: 71 | B72: 31.5
A73: 72 | B73: 31.6
A74: 73 | B74: 31.7
A75: 74 | B75: 31.55
A76: 75 | B76: 31.65
A77: 76 | B77: 31.7
A78: 77 | B78: 31.65
A79: 78 | B79: 31.65
A80: 79 | B80: 31.73
A81: 80 | B81: 31.78
A82: 81 | B82: 31.73
A83: 82 | B83: 31.75
A84: 83 | B84: 31.73
A85: 84 | B85: 31.7
A86: 85 | B86: 31.68
A87: 86 | B87: 31.6
A88: 87 | B88: 31.3
A89: 88 | B89: 31.3
A90: 89 | B90: 31.3
A91: 90 | B91: 31.4
A92: 91 | B92: 31.4
A93: 92 | B93: 31.4
A94: 93 | B94: 31.33
A95: 94 | B95: 31.25
A96: 95 | B96: 31.1
A97: 96 | B97: 30.9
A98: 97 | B98: 30.85
A99: 98 | B99: 30.9
A100: 99 | B100: 31
A101: 100 | B101: 30.95
A102: 101 | B102: 31.05
A103: 102 | B103: 31.2
A104: 103 | B104: 31.15
A105: 104 | B105: 31.35
A106: 105 | B106: 31.3
A107: 106 | B107: 31.15
A108: 107 | B108: 31.15
A109: 108 | B109: 31.08
A110: 109 | B110: 31.1
A111: 110 | B111: 31.15
A112: 111 | B112: 31.15
A113: 112 | B113: 31.25
A114: 113 | B114: 31.27
A115: 114 | B115: 31.1
A116: 115 | B116: 31.13
A117: 116 | B117: 31.18
A118: 117 | B118: 31.25
A119: 118 | B119: 31.45
A120: 119 | B120: 31.5
A121: 120 | B121: 31.5
A122: 121 | B122: 31.79
A123: 122 | B123: 31.85
A124: 123 | B124: 31.8
A125: 124 | B125: 31.75
A126: 125 | B126: 31.85
A127: 126 | B127: 31.8
A128: 127 | B128: 31.68
A129: 128 | B129: 31.45
A130: 129 | B130: 31.35
A131: 130 | B131: 31.53
A132: 131 | B132: 31.52
A133: 132 | B133: 31.75
A134: 133 | B134: 31.65
A135: 134 | B135: 31.65
A136: 135 | B136: 31.7
A137: 136 | B137: 31.78
A138: 137 | B138: 31.95
A139: 138 | B139: 31.95
A140: 139 | B140: 31.9
A141: 140 | B141: 31.75
A142: 141 | B142: 31.75
A143: 142 | B143: 31.6
A144: 143 | B144: 31.45
A145: 144 | B145: 31.48
A146: 145 | B146: 31.55
A147: 146 | B147: 31.2
A148: 147 | B148: 31
A149: 148 | B149: 31.05
A150: 149 | B150: 31.05
A151: 150 | B151: 31
A152: 151 | B152: 30.7
A153: 152 | B153: 30.75
A154: 153 | B154: 30.67
A155: 154 | B155: 30.68
A156: 155 | B156: 30.7
A157: 156 | B157: 30.82
A158: 157 | B158: 30.75
A159: 158 | B159: 30.65
A160: 159 | B160: 30.65
A161: 160 | B161: 30.45
A162: 161 | B162: 30.18
A163: 162 | B163: 29.65
A164: 163 | B164: 29.77
A165: 164 | B165: 29.72
A166: 165 | B166: 30
A167: 166 | B167: 30.15
A168: 167 | B168: 30.09
A169: 168 | B169: 29.95
A170: 169 | B170: 30
A171: 170 | B171: 30.27
A172: 171 | B172: 30.15
A173: 172 | B173: 29.8
A174: 173 | B174: 29.86
A175: 174 | B175: 30.08
A176: 175 | B176: 29.97
A177: 176 | B177: 30.03
A178: 177 | B178: 30
A179: 178 | B179: 29.65
A180: 179 | B180: 29.71
A181: 180 | B181: 29.8
A182: 181 | B182: 29.55
A183: 182 | B183: 29.47
A184: 183 | B184: 29.5
A185: 184 | B185: 29.6
A186: 185 | B186: 29.4
A187: 186 | B187: 29.35
A188: 187 | B188: 29.03
A189: 188 | B189: 29.15
A190: 189 | B190: 29.2
A191: 190 | B191: 28.85
A192: 191 | B192: 29.2
A193: 192 | B193: 29.4
A194: 193 | B194: 29.45
A195: 194 | B195: 29.3
A196: 195 | B196: 29.38
A197: 196 | B197: 29.2
A198: 197 | B198: 28.97
A199: 198 | B199: 28.95
A200: 199 | B200: 29.1
... 2267 more rows

Sheet elektřina (hidden)
B1: Elektřina
B2: Datum a čas | C2: Obchodní | D2: Měna | E2: Počet | F2: Kurz | I2: Kurz
C3: jednotka
A4: 1233 | B4: 2019-11-22 | C4: MWh | D4: EUR | E4: 1 | F4: 49.44 | H4: 1 | I4: 49.44
A5: 1232 | B5: 2019-11-21 | C5: MWh | D5: EUR | E5: 1 | F5: 48.6 | H5: 2 | I5: 48.6
A6: 1231 | B6: 2019-11-20 | C6: MWh | D6: EUR | E6: 1 | F6: 48.21 | H6: 3 | I6: 48.21
A7: 1230 | B7: 2019-11-19 | C7: MWh | D7: EUR | E7: 1 | F7: 48.06 | H7: 4 | I7: 48.06
A8: 1229 | B8: 2019-11-18 | C8: MWh | D8: EUR | E8: 1 | F8: 48.08 | H8: 5 | I8: 48.08
A9: 1228 | B9: 2019-11-15 | C9: MWh | D9: EUR | E9: 1 | F9: 48.49 | H9: 6 | I9: 48.49
A10: 1227 | B10: 2019-11-14 | C10: MWh | D10: EUR | E10: 1 | F10: 48.3 | H10: 7 | I10: 48.3
A11: 1226 | B11: 2019-11-13 | C11: MWh | D11: EUR | E11: 1 | F11: 48.46 | H11: 8 | I11: 48.46
A12: 1225 | B12: 2019-11-12 | C12: MWh | D12: EUR | E12: 1 | F12: 48.3 | H12: 9 | I12: 48.3
A13: 1224 | B13: 2019-11-11 | C13: MWh | D13: EUR | E13: 1 | F13: 49.09 | H13: 10 | I13: 49.09
A14: 1223 | B14: 2019-11-08 | C14: MWh | D14: EUR | E14: 1 | F14: 49.05 | H14: 11 | I14: 49.05
A15: 1222 | B15: 2019-11-07 | C15: MWh | D15: EUR | E15: 1 | F15: 49.26 | H15: 12 | I15: 49.26
A16: 1221 | B16: 2019-11-06 | C16: MWh | D16: EUR | E16: 1 | F16: 49.67 | H16: 13 | I16: 49.67
A17: 1220 | B17: 2019-11-05 | C17: MWh | D17: EUR | E17: 1 | F17: 50 | H17: 14 | I17: 50
A18: 1219 | B18: 2019-11-04 | C18: MWh | D18: EUR | E18: 1 | F18: 49.55 | H18: 15 | I18: 49.55
A19: 1218 | B19: 2019-11-01 | C19: MWh | D19: EUR | E19: 1 | F19: 49.7 | H19: 16 | I19: 49.7
A20: 1217 | B20: 2019-10-31 | C20: MWh | D20: EUR | E20: 1 | F20: 49.46 | H20: 17 | I20: 49.46
A21: 1216 | B21: 2019-10-30 | C21: MWh | D21: EUR | E21: 1 | F21: 49.8 | H21: 18 | I21: 49.8
A22: 1215 | B22: 2019-10-29 | C22: MWh | D22: EUR | E22: 1 | F22: 49.84 | H22: 19 | I22: 49.84
A23: 1214 | B23: 2019-10-28 | C23: MWh | D23: EUR | E23: 1 | F23: 49.57 | H23: 20 | I23: 49.57
A24: 1213 | B24: 2019-10-25 | C24: MWh | D24: EUR | E24: 1 | F24: 49.9 | H24: 21 | I24: 49.9
A25: 1212 | B25: 2019-10-24 | C25: MWh | D25: EUR | E25: 1 | F25: 50.15 | H25: 22 | I25: 50.15
A26: 1211 | B26: 2019-10-23 | C26: MWh | D26: EUR | E26: 1 | F26: 50.09 | H26: 23 | I26: 50.09
A27: 1210 | B27: 2019-10-22 | C27: MWh | D27: EUR | E27: 1 | F27: 50.55 | H27: 24 | I27: 50.55
A28: 1209 | B28: 2019-10-21 | C28: MWh | D28: EUR | E28: 1 | F28: 51.61 | H28: 25 | I28: 51.61
A29: 1208 | B29: 2019-10-18 | C29: MWh | D29: EUR | E29: 1 | F29: 51.34 | H29: 26 | I29: 51.34
A30: 1207 | B30: 2019-10-17 | C30: MWh | D30: EUR | E30: 1 | F30: 51.18 | H30: 27 | I30: 51.18
A31: 1206 | B31: 2019-10-16 | C31: MWh | D31: EUR | E31: 1 | F31: 51.82 | H31: 28 | I31: 51.82
A32: 1205 | B32: 2019-10-15 | C32: MWh | D32: EUR | E32: 1 | F32: 51.3 | H32: 29 | I32: 51.3
A33: 1204 | B33: 2019-10-14 | C33: MWh | D33: EUR | E33: 1 | F33: 51.05 | H33: 30 | I33: 51.05
A34: 1203 | B34: 2019-10-11 | C34: MWh | D34: EUR | E34: 1 | F34: 51.2 | H34: 31 | I34: 51.2
A35: 1202 | B35: 2019-10-10 | C35: MWh | D35: EUR | E35: 1 | F35: 49.94 | H35: 32 | I35: 49.94
A36: 1201 | B36: 2019-10-09 | C36: MWh | D36: EUR | E36: 1 | F36: 49.81 | H36: 33 | I36: 49.81
A37: 1200 | B37: 2019-10-08 | C37: MWh | D37: EUR | E37: 1 | F37: 49.6 | H37: 34 | I37: 49.6
A38: 1199 | B38: 2019-10-07 | C38: MWh | D38: EUR | E38: 1 | F38: 49.65 | H38: 35 | I38: 49.65
A39: 1198 | B39: 2019-10-04 | C39: MWh | D39: EUR | E39: 1 | F39: 49.77 | H39: 36 | I39: 49.77
A40: 1197 | B40: 2019-10-03 | C40: MWh | D40: EUR | E40: 1 | F40: 49.62 | H40: 37 | I40: 49.62
A41: 1196 | B41: 2019-10-02 | C41: MWh | D41: EUR | E41: 1 | F41: 50.25 | H41: 38 | I41: 50.25
A42: 1195 | B42: 2019-10-01 | C42: MWh | D42: EUR | E42: 1 | F42: 50.71 | H42: 39 | I42: 50.71
A43: 1194 | B43: 2019-09-30 | C43: MWh | D43: EUR | E43: 1 | F43: 50.96 | H43: 40 | I43: 50.96
A44: 1193 | B44: 2019-09-27 | C44: MWh | D44: EUR | E44: 1 | F44: 50.81 | H44: 41 | I44: 50.81
A45: 1192 | B45: 2019-09-26 | C45: MWh | D45: EUR | E45: 1 | F45: 51.29 | H45: 42 | I45: 51.29
A46: 1191 | B46: 2019-09-25 | C46: MWh | D46: EUR | E46: 1 | F46: 51.09 | H46: 43 | I46: 51.09
A47: 1190 | B47: 2019-09-24 | C47: MWh | D47: EUR | E47: 1 | F47: 51.93 | H47: 44 | I47: 51.93
A48: 1189 | B48: 2019-09-23 | C48: MWh | D48: EUR | E48: 1 | F48: 52.21 | H48: 45 | I48: 52.21
A49: 1188 | B49: 2019-09-20 | C49: MWh | D49: EUR | E49: 1 | F49: 53.15 | H49: 46 | I49: 53.15
A50: 1187 | B50: 2019-09-19 | C50: MWh | D50: EUR | E50: 1 | F50: 52.6 | H50: 47 | I50: 52.6
A51: 1186 | B51: 2019-09-18 | C51: MWh | D51: EUR | E51: 1 | F51: 52.12 | H51: 48 | I51: 52.12
A52: 1185 | B52: 2019-09-17 | C52: MWh | D52: EUR | E52: 1 | F52: 53.41 | H52: 49 | I52: 53.41
A53: 1184 | B53: 2019-09-16 | C53: MWh | D53: EUR | E53: 1 | F53: 54.28 | H53: 50 | I53: 54.28
A54: 1183 | B54: 2019-09-13 | C54: MWh | D54: EUR | E54: 1 | F54: 53.09 | H54: 51 | I54: 53.09
A55: 1182 | B55: 2019-09-12 | C55: MWh | D55: EUR | E55: 1 | F55: 52.64 | H55: 52 | I55: 52.64
A56: 1181 | B56: 2019-09-11 | C56: MWh | D56: EUR | E56: 1 | F56: 53.41 | H56: 53 | I56: 53.41
A57: 1180 | B57: 2019-09-10 | C57: MWh | D57: EUR | E57: 1 | F57: 52.53 | H57: 54 | I57: 52.53
A58: 1179 | B58: 2019-09-09 | C58: MWh | D58: EUR | E58: 1 | F58: 50.65 | H58: 55 | I58: 50.65
A59: 1178 | B59: 2019-09-06 | C59: MWh | D59: EUR | E59: 1 | F59: 50.59 | H59: 56 | I59: 50.59
A60: 1177 | B60: 2019-09-05 | C60: MWh | D60: EUR | E60: 1 | F60: 50.34 | H60: 57 | I60: 50.34
A61: 1176 | B61: 2019-09-04 | C61: MWh | D61: EUR | E61: 1 | F61: 50.67 | H61: 58 | I61: 50.67
A62: 1175 | B62: 2019-09-03 | C62: MWh | D62: EUR | E62: 1 | F62: 50 | H62: 59 | I62: 50
A63: 1174 | B63: 2019-09-02 | C63: MWh | D63: EUR | E63: 1 | F63: 49.8 | H63: 60 | I63: 49.8
A64: 1173 | B64: 2019-08-30 | C64: MWh | D64: EUR | E64: 1 | F64: 51.24 | H64: 61 | I64: 51.24
A65: 1172 | B65: 2019-08-29 | C65: MWh | D65: EUR | E65: 1 | F65: 50.31 | H65: 62 | I65: 50.31
A66: 1171 | B66: 2019-08-28 | C66: MWh | D66: EUR | E66: 1 | F66: 50.12 | H66: 63 | I66: 50.12
A67: 1170 | B67: 2019-08-27 | C67: MWh | D67: EUR | E67: 1 | F67: 49.58 | H67: 64 | I67: 49.58
A68: 1169 | B68: 2019-08-26 | C68: MWh | D68: EUR | E68: 1 | F68: 50.22 | H68: 65 | I68: 50.22
A69: 1168 | B69: 2019-08-23 | C69: MWh | D69: EUR | E69: 1 | F69: 49.8 | H69: 66 | I69: 49.8
A70: 1167 | B70: 2019-08-22 | C70: MWh | D70: EUR | E70: 1 | F70: 50.74 | H70: 67 | I70: 50.74
A71: 1166 | B71: 2019-08-21 | C71: MWh | D71: EUR | E71: 1 | F71: 50.79 | H71: 68 | I71: 50.79
A72: 1165 | B72: 2019-08-20 | C72: MWh | D72: EUR | E72: 1 | F72: 51.19 | H72: 69 | I72: 51.19
A73: 1164 | B73: 2019-08-19 | C73: MWh | D73: EUR | E73: 1 | F73: 51.19 | H73: 70 | I73: 51.19
A74: 1163 | B74: 2019-08-16 | C74: MWh | D74: EUR | E74: 1 | F74: 50.91 | H74: 71 | I74: 50.91
A75: 1162 | B75: 2019-08-15 | C75: MWh | D75: EUR | E75: 1 | F75: 51.06 | H75: 72 | I75: 51.06
A76: 1161 | B76: 2019-08-14 | C76: MWh | D76: EUR | E76: 1 | F76: 51.36 | H76: 73 | I76: 51.36
A77: 1160 | B77: 2019-08-13 | C77: MWh | D77: EUR | E77: 1 | F77: 51.8 | H77: 74 | I77: 51.8
A78: 1159 | B78: 2019-08-12 | C78: MWh | D78: EUR | E78: 1 | F78: 51.61 | H78: 75 | I78: 51.61
A79: 1158 | B79: 2019-08-09 | C79: MWh | D79: EUR | E79: 1 | F79: 52.65 | H79: 76 | I79: 52.65
A80: 1157 | B80: 2019-08-08 | C80: MWh | D80: EUR | E80: 1 | F80: 52.76 | H80: 77 | I80: 52.76
A81: 1156 | B81: 2019-08-07 | C81: MWh | D81: EUR | E81: 1 | F81: 52.54 | H81: 78 | I81: 52.54
A82: 1155 | B82: 2019-08-06 | C82: MWh | D82: EUR | E82: 1 | F82: 52.91 | H82: 79 | I82: 52.91
A83: 1154 | B83: 2019-08-05 | C83: MWh | D83: EUR | E83: 1 | F83: 53.35 | H83: 80 | I83: 53.35
A84: 1153 | B84: 2019-08-02 | C84: MWh | D84: EUR | E84: 1 | F84: 54.7 | H84: 81 | I84: 54.7
A85: 1152 | B85: 2019-08-01 | C85: MWh | D85: EUR | E85: 1 | F85: 54.5 | H85: 82 | I85: 54.5
A86: 1151 | B86: 2019-07-31 | C86: MWh | D86: EUR | E86: 1 | F86: 53.55 | H86: 83 | I86: 53.55
A87: 1150 | B87: 2019-07-30 | C87: MWh | D87: EUR | E87: 1 | F87: 53.34 | H87: 84 | I87: 53.34
A88: 1149 | B88: 2019-07-29 | C88: MWh | D88: EUR | E88: 1 | F88: 54.15 | H88: 85 | I88: 54.15
A89: 1148 | B89: 2019-07-26 | C89: MWh | D89: EUR | E89: 1 | F89: 54.02 | H89: 86 | I89: 54.02
A90: 1147 | B90: 2019-07-25 | C90: MWh | D90: EUR | E90: 1 | F90: 54.89 | H90: 87 | I90: 54.89
A91: 1146 | B91: 2019-07-24 | C91: MWh | D91: EUR | E91: 1 | F91: 55.08 | H91: 88 | I91: 55.08
A92: 1145 | B92: 2019-07-23 | C92: MWh | D92: EUR | E92: 1 | F92: 55.77 | H92: 89 | I92: 55.77
A93: 1144 | B93: 2019-07-22 | C93: MWh | D93: EUR | E93: 1 | F93: 55.01 | H93: 90 | I93: 55.01
A94: 1143 | B94: 2019-07-19 | C94: MWh | D94: EUR | E94: 1 | F94: 54.95 | H94: 91 | I94: 54.95
A95: 1142 | B95: 2019-07-18 | C95: MWh | D95: EUR | E95: 1 | F95: 53.82 | H95: 92 | I95: 53.82
A96: 1141 | B96: 2019-07-17 | C96: MWh | D96: EUR | E96: 1 | F96: 54.08 | H96: 93 | I96: 54.08
A97: 1140 | B97: 2019-07-16 | C97: MWh | D97: EUR | E97: 1 | F97: 54.39 | H97: 94 | I97: 54.39
A98: 1139 | B98: 2019-07-15 | C98: MWh | D98: EUR | E98: 1 | F98: 55.45 | H98: 95 | I98: 55.45
A99: 1138 | B99: 2019-07-12 | C99: MWh | D99: EUR | E99: 1 | F99: 54.63 | H99: 96 | I99: 54.63
A100: 1137 | B100: 2019-07-11 | C100: MWh | D100: EUR | E100: 1 | F100: 54.24 | H100: 97 | I100: 54.24
A101: 1136 | B101: 2019-07-10 | C101: MWh | D101: EUR | E101: 1 | F101: 53.2 | H101: 98 | I101: 53.2
A102: 1135 | B102: 2019-07-09 | C102: MWh | D102: EUR | E102: 1 | F102: 52.44 | H102: 99 | I102: 52.44
A103: 1134 | B103: 2019-07-08 | C103: MWh | D103: EUR | E103: 1 | F103: 52.87 | H103: 100 | I103: 52.87
A104: 1133 | B104: 2019-07-04 | C104: MWh | D104: EUR | E104: 1 | F104: 50.8 | H104: 101 | I104: 50.8
A105: 1132 | B105: 2019-07-03 | C105: MWh | D105: EUR | E105: 1 | F105: 50.91 | H105: 102 | I105: 50.91
A106: 1131 | B106: 2019-07-02 | C106: MWh | D106: EUR | E106: 1 | F106: 51.9 | H106: 103 | I106: 51.9
A107: 1130 | B107: 2019-07-01 | C107: MWh | D107: EUR | E107: 1 | F107: 51.95 | H107: 104 | I107: 51.95
A108: 1129 | B108: 2019-06-28 | C108: MWh | D108: EUR | E108: 1 | F108: 51.6 | H108: 105 | I108: 51.6
A109: 1128 | B109: 2019-06-27 | C109: MWh | D109: EUR | E109: 1 | F109: 51.9 | H109: 106 | I109: 51.9
A110: 1127 | B110: 2019-06-26 | C110: MWh | D110: EUR | E110: 1 | F110: 51.88 | H110: 107 | I110: 51.88
A111: 1126 | B111: 2019-06-25 | C111: MWh | D111: EUR | E111: 1 | F111: 51.52 | H111: 108 | I111: 51.52
A112: 1125 | B112: 2019-06-24 | C112: MWh | D112: EUR | E112: 1 | F112: 51.45 | H112: 109 | I112: 51.45
A113: 1124 | B113: 2019-06-21 | C113: MWh | D113: EUR | E113: 1 | F113: 50.01 | H113: 110 | I113: 50.01
A114: 1123 | B114: 2019-06-20 | C114: MWh | D114: EUR | E114: 1 | F114: 49.38 | H114: 111 | I114: 49.38
A115: 1122 | B115: 2019-06-19 | C115: MWh | D115: EUR | E115: 1 | F115: 49.44 | H115: 112 | I115: 49.44
A116: 1121 | B116: 2019-06-18 | C116: MWh | D116: EUR | E116: 1 | F116: 50.13 | H116: 113 | I116: 50.13
A117: 1120 | B117: 2019-06-17 | C117: MWh | D117: EUR | E117: 1 | F117: 50.08 | H117: 114 | I117: 50.08
A118: 1119 | B118: 2019-06-14 | C118: MWh | D118: EUR | E118: 1 | F118: 50.03 | H118: 115 | I118: 50.03
A119: 1118 | B119: 2019-06-13 | C119: MWh | D119: EUR | E119: 1 | F119: 50.3 | H119: 116 | I119: 50.3
A120: 1117 | B120: 2019-06-12 | C120: MWh | D120: EUR | E120: 1 | F120: 49.7 | H120: 117 | I120: 49.7
A121: 1116 | B121: 2019-06-11 | C121: MWh | D121: EUR | E121: 1 | F121: 50.33 | H121: 118 | I121: 50.33
A122: 1115 | B122: 2019-06-10 | C122: MWh | D122: EUR | E122: 1 | F122: 50.54 | H122: 119 | I122: 50.54
A123: 1114 | B123: 2019-06-07 | C123: MWh | D123: EUR | E123: 1 | F123: 50.15 | H123: 120 | I123: 50.15
A124: 1113 | B124: 2019-06-06 | C124: MWh | D124: EUR | E124: 1 | F124: 49.62 | H124: 121 | I124: 49.62
A125: 1112 | B125: 2019-06-05 | C125: MWh | D125: EUR | E125: 1 | F125: 49.86 | H125: 122 | I125: 49.86
A126: 1111 | B126: 2019-06-04 | C126: MWh | D126: EUR | E126: 1 | F126: 49.34 | H126: 123 | I126: 49.34
A127: 1110 | B127: 2019-06-03 | C127: MWh | D127: EUR | E127: 1 | F127: 48.93 | H127: 124 | I127: 48.93
A128: 1109 | B128: 2019-05-31 | C128: MWh | D128: EUR | E128: 1 | F128: 49.69 | H128: 125 | I128: 49.69
A129: 1108 | B129: 2019-05-30 | C129: MWh | D129: EUR | E129: 1 | F129: 50.63 | H129: 126 | I129: 50.63
A130: 1107 | B130: 2019-05-29 | C130: MWh | D130: EUR | E130: 1 | F130: 51.11 | H130: 127 | I130: 51.11
A131: 1106 | B131: 2019-05-28 | C131: MWh | D131: EUR | E131: 1 | F131: 51.01 | H131: 128 | I131: 51.01
A132: 1105 | B132: 2019-05-27 | C132: MWh | D132: EUR | E132: 1 | F132: 51.08 | H132: 129 | I132: 51.08
A133: 1104 | B133: 2019-05-24 | C133: MWh | D133: EUR | E133: 1 | F133: 50.77 | H133: 130 | I133: 50.77
A134: 1103 | B134: 2019-05-23 | C134: MWh | D134: EUR | E134: 1 | F134: 50.88 | H134: 131 | I134: 50.88
A135: 1102 | B135: 2019-05-22 | C135: MWh | D135: EUR | E135: 1 | F135: 51.4 | H135: 132 | I135: 51.4
A136: 1101 | B136: 2019-05-21 | C136: MWh | D136: EUR | E136: 1 | F136: 50.31 | H136: 133 | I136: 50.31
A137: 1100 | B137: 2019-05-20 | C137: MWh | D137: EUR | E137: 1 | F137: 50.5 | H137: 134 | I137: 50.5
A138: 1099 | B138: 2019-05-17 | C138: MWh | D138: EUR | E138: 1 | F138: 50.61 | H138: 135 | I138: 50.61
A139: 1098 | B139: 2019-05-16 | C139: MWh | D139: EUR | E139: 1 | F139: 51.72 | H139: 136 | I139: 51.72
A140: 1097 | B140: 2019-05-15 | C140: MWh | D140: EUR | E140: 1 | F140: 51.35 | H140: 137 | I140: 51.35
A141: 1096 | B141: 2019-05-14 | C141: MWh | D141: EUR | E141: 1 | F141: 50.87 | H141: 138 | I141: 50.87
A142: 1095 | B142: 2019-05-13 | C142: MWh | D142: EUR | E142: 1 | F142: 51.37 | H142: 139 | I142: 51.37
A143: 1094 | B143: 2019-05-10 | C143: MWh | D143: EUR | E143: 1 | F143: 51.39 | H143: 140 | I143: 51.39
A144: 1093 | B144: 2019-05-09 | C144: MWh | D144: EUR | E144: 1 | F144: 52.24 | H144: 141 | I144: 52.24
A145: 1092 | B145: 2019-05-07 | C145: MWh | D145: EUR | E145: 1 | F145: 51.85 | H145: 142 | I145: 51.85
A146: 1091 | B146: 2019-05-06 | C146: MWh | D146: EUR | E146: 1 | F146: 51.1 | H146: 143 | I146: 51.1
A147: 1090 | B147: 2019-05-03 | C147: MWh | D147: EUR | E147: 1 | F147: 50.76 | H147: 144 | I147: 50.76
A148: 1089 | B148: 2019-05-02 | C148: MWh | D148: EUR | E148: 1 | F148: 50.71 | H148: 145 | I148: 50.71
A149: 1088 | B149: 2019-04-30 | C149: MWh | D149: EUR | E149: 1 | F149: 51.84 | H149: 146 | I149: 51.84
A150: 1087 | B150: 2019-04-29 | C150: MWh | D150: EUR | E150: 1 | F150: 51.88 | H150: 147 | I150: 51.88
A151: 1086 | B151: 2019-04-26 | C151: MWh | D151: EUR | E151: 1 | F151: 51.74 | H151: 148 | I151: 51.74
A152: 1085 | B152: 2019-04-25 | C152: MWh | D152: EUR | E152: 1 | F152: 52.6 | H152: 149 | I152: 52.6
A153: 1084 | B153: 2019-04-24 | C153: MWh | D153: EUR | E153: 1 | F153: 52.43 | H153: 150 | I153: 52.43
A154: 1083 | B154: 2019-04-23 | C154: MWh | D154: EUR | E154: 1 | F154: 52.86 | H154: 151 | I154: 52.86
A155: 1082 | B155: 2019-04-18 | C155: MWh | D155: EUR | E155: 1 | F155: 52.73 | H155: 152 | I155: 52.73
A156: 1081 | B156: 2019-04-17 | C156: MWh | D156: EUR | E156: 1 | F156: 53.08 | H156: 153 | I156: 53.08
A157: 1080 | B157: 2019-04-16 | C157: MWh | D157: EUR | E157: 1 | F157: 52.32 | H157: 154 | I157: 52.32
A158: 1079 | B158: 2019-04-15 | C158: MWh | D158: EUR | E158: 1 | F158: 53 | H158: 155 | I158: 53
A159: 1078 | B159: 2019-04-12 | C159: MWh | D159: EUR | E159: 1 | F159: 52.95 | H159: 156 | I159: 52.95
A160: 1077 | B160: 2019-04-11 | C160: MWh | D160: EUR | E160: 1 | F160: 52.74 | H160: 157 | I160: 52.74
A161: 1076 | B161: 2019-04-10 | C161: MWh | D161: EUR | E161: 1 | F161: 53.45 | H161: 158 | I161: 53.45
A162: 1075 | B162: 2019-04-09 | C162: MWh | D162: EUR | E162: 1 | F162: 51.52 | H162: 159 | I162: 51.52
A163: 1074 | B163: 2019-04-08 | C163: MWh | D163: EUR | E163: 1 | F163: 51.35 | H163: 160 | I163: 51.35
A164: 1073 | B164: 2019-04-05 | C164: MWh | D164: EUR | E164: 1 | F164: 51.27 | H164: 161 | I164: 51.27
A165: 1072 | B165: 2019-04-04 | C165: MWh | D165: EUR | E165: 1 | F165: 50.61 | H165: 162 | I165: 50.61
A166: 1071 | B166: 2019-04-03 | C166: MWh | D166: EUR | E166: 1 | F166: 48.9 | H166: 163 | I166: 48.9
A167: 1070 | B167: 2019-04-02 | C167: MWh | D167: EUR | E167: 1 | F167: 47.79 | H167: 164 | I167: 47.79
A168: 1069 | B168: 2019-04-01 | C168: MWh | D168: EUR | E168: 1 | F168: 48 | H168: 165 | I168: 48
A169: 1068 | B169: 2019-03-29 | C169: MWh | D169: EUR | E169: 1 | F169: 48.42 | H169: 166 | I169: 48.42
A170: 1067 | B170: 2019-03-28 | C170: MWh | D170: EUR | E170: 1 | F170: 49.51 | H170: 167 | I170: 49.51
A171: 1066 | B171: 2019-03-27 | C171: MWh | D171: EUR | E171: 1 | F171: 49.45 | H171: 168 | I171: 49.45
A172: 1065 | B172: 2019-03-26 | C172: MWh | D172: EUR | E172: 1 | F172: 48.38 | H172: 169 | I172: 48.38
A173: 1064 | B173: 2019-03-25 | C173: MWh | D173: EUR | E173: 1 | F173: 47.31 | H173: 170 | I173: 47.31
A174: 1063 | B174: 2019-03-22 | C174: MWh | D174: EUR | E174: 1 | F174: 47.61 | H174: 171 | I174: 47.61
A175: 1062 | B175: 2019-03-21 | C175: MWh | D175: EUR | E175: 1 | F175: 47.96 | H175: 172 | I175: 47.96
A176: 1061 | B176: 2019-03-20 | C176: MWh | D176: EUR | E176: 1 | F176: 47.99 | H176: 173 | I176: 47.99
A177: 1060 | B177: 2019-03-19 | C177: MWh | D177: EUR | E177: 1 | F177: 48.1 | H177: 174 | I177: 48.1
A178: 1059 | B178: 2019-03-18 | C178: MWh | D178: EUR | E178: 1 | F178: 47.91 | H178: 175 | I178: 47.91
A179: 1058 | B179: 2019-03-15 | C179: MWh | D179: EUR | E179: 1 | F179: 48.56 | H179: 176 | I179: 48.56
A180: 1057 | B180: 2019-03-14 | C180: MWh | D180: EUR | E180: 1 | F180: 49.24 | H180: 177 | I180: 49.24
A181: 1056 | B181: 2019-03-13 | C181: MWh | D181: EUR | E181: 1 | F181: 48.73 | H181: 178 | I181: 48.73
A182: 1055 | B182: 2019-03-12 | C182: MWh | D182: EUR | E182: 1 | F182: 50.36 | H182: 179 | I182: 50.36
A183: 1054 | B183: 2019-03-11 | C183: MWh | D183: EUR | E183: 1 | F183: 49.82 | H183: 180 | I183: 49.82
A184: 1053 | B184: 2019-03-08 | C184: MWh | D184: EUR | E184: 1 | F184: 50.09 | H184: 181 | I184: 50.09
A185: 1052 | B185: 2019-03-07 | C185: MWh | D185: EUR | E185: 1 | F185: 49.99 | H185: 182 | I185: 49.99
A186: 1051 | B186: 2019-03-06 | C186: MWh | D186: EUR | E186: 1 | F186: 50.07 | H186: 183 | I186: 50.07
A187: 1050 | B187: 2019-03-05 | C187: MWh | D187: EUR | E187: 1 | F187: 50.67 | H187: 184 | I187: 50.67
A188: 1049 | B188: 2019-03-04 | C188: MWh | D188: EUR | E188: 1 | F188: 51.41 | H188: 185 | I188: 51.41
A189: 1048 | B189: 2019-03-01 | C189: MWh | D189: EUR | E189: 1 | F189: 50.73 | H189: 186 | I189: 50.73
A190: 1047 | B190: 2019-02-28 | C190: MWh | D190: EUR | E190: 1 | F190: 49.98 | H190: 187 | I190: 49.98
A191: 1046 | B191: 2019-02-27 | C191: MWh | D191: EUR | E191: 1 | F191: 49.05 | H191: 188 | I191: 49.05
A192: 1045 | B192: 2019-02-26 | C192: MWh | D192: EUR | E192: 1 | F192: 47.96 | H192: 189 | I192: 47.96
A193: 1044 | B193: 2019-02-25 | C193: MWh | D193: EUR | E193: 1 | F193: 47.67 | H193: 190 | I193: 47.67
A194: 1043 | B194: 2019-02-22 | C194: MWh | D194: EUR | E194: 1 | F194: 47.99 | H194: 191 | I194: 47.99
A195: 1042 | B195: 2019-02-21 | C195: MWh | D195: EUR | E195: 1 | F195: 48.13 | H195: 192 | I195: 48.13
A196: 1041 | B196: 2019-02-20 | C196: MWh | D196: EUR | E196: 1 | F196: 48.73 | H196: 193 | I196: 48.73
A197: 1040 | B197: 2019-02-19 | C197: MWh | D197: EUR | E197: 1 | F197: 48.06 | H197: 194 | I197: 48.06
A198: 1039 | B198: 2019-02-18 | C198: MWh | D198: EUR | E198: 1 | F198: 47.76 | H198: 195 | I198: 47.76
A199: 1038 | B199: 2019-02-15 | C199: MWh | D199: EUR | E199: 1 | F199: 48.12 | H199: 196 | I199: 48.12
A200: 1037 | B200: 2019-02-14 | C200: MWh | D200: EUR | E200: 1 | F200: 47.49 | H200: 197 | I200: 47.49
... 1036 more rows

Sheet plyn skrýt (hidden)
A1: Časová osa | B1: Hodnoty | C1: Prognóza | D1: Dolní hranice spolehlivosti | E1: Horní hranice spolehlivosti
A2: 1 | B2: 26.7
A3: 2 | B3: 26.75
A4: 3 | B4: 26.38
A5: 4 | B5: 26.33
A6: 5 | B6: 26.3
A7: 6 | B7: 26.35
A8: 7 | B8: 26.47
A9: 8 | B9: 26.5
A10: 9 | B10: 26.55
A11: 10 | B11: 26.55
A12: 11 | B12: 26.5
A13: 12 | B13: 26.65
A14: 13 | B14: 26.75
A15: 14 | B15: 26.65
A16: 15 | B16: 26.75
A17: 16 | B17: 26.65
A18: 17 | B18: 26.5
A19: 18 | B19: 26.4
A20: 19 | B20: 26.45
A21: 20 | B21: 26.5
A22: 21 | B22: 26.3
A23: 22 | B23: 26.08
A24: 23 | B24: 26
A25: 24 | B25: 26.05
A26: 25 | B26: 26.55
A27: 26 | B27: 26.6
A28: 27 | B28: 26.4
A29: 28 | B29: 26.5
A30: 29 | B30: 26.5
A31: 30 | B31: 26.45
A32: 31 | B32: 26.3
A33: 32 | B33: 26.25
A34: 33 | B34: 26.15
A35: 34 | B35: 26.1
A36: 35 | B36: 26.05
A37: 36 | B37: 26
A38: 37 | B38: 25.85
A39: 38 | B39: 25.9
A40: 39 | B40: 25.5
A41: 40 | B41: 25.75
A42: 41 | B42: 25.7
A43: 42 | B43: 25.9
A44: 43 | B44: 26.15
A45: 44 | B45: 26.2
A46: 45 | B46: 26.25
A47: 46 | B47: 25.85
A48: 47 | B48: 25.9
A49: 48 | B49: 25.9
A50: 49 | B50: 25.85
A51: 50 | B51: 25.75
A52: 51 | B52: 25.75
A53: 52 | B53: 25.45
A54: 53 | B54: 25.55
A55: 54 | B55: 25.25
A56: 55 | B56: 25.75
A57: 56 | B57: 25.6
A58: 57 | B58: 26.15
A59: 58 | B59: 25.9
A60: 59 | B60: 25.6
A61: 60 | B61: 25.85
A62: 61 | B62: 25.65
A63: 62 | B63: 25.5
A64: 63 | B64: 25.3
A65: 64 | B65: 25.15
A66: 65 | B66: 25.25
A67: 66 | B67: 25.4
A68: 67 | B68: 25.3
A69: 68 | B69: 25.2
A70: 69 | B70: 25.05
A71: 70 | B71: 25.05
A72: 71 | B72: 25.2
A73: 72 | B73: 25.05
A74: 73 | B74: 24.85
A75: 74 | B75: 24.9
A76: 75 | B76: 24.9
A77: 76 | B77: 24.95
A78: 77 | B78: 24.55
A79: 78 | B79: 24.5
A80: 79 | B80: 23.7
A81: 80 | B81: 23.8
A82: 81 | B82: 23.85
A83: 82 | B83: 24.55
A84: 83 | B84: 24.7
A85: 84 | B85: 24.75
A86: 85 | B86: 24.45
A87: 86 | B87: 24.95
A88: 87 | B88: 25.5
A89: 88 | B89: 25.2
A90: 89 | B90: 25.5
A91: 90 | B91: 25.25
A92: 91 | B92: 24.8
A93: 92 | B93: 24.7
A94: 93 | B94: 24.85
A95: 94 | B95: 25.4
A96: 95 | B96: 25.35
A97: 96 | B97: 24.95
A98: 97 | B98: 24.75
A99: 98 | B99: 25.2
A100: 99 | B100: 25.2
A101: 100 | B101: 25.1
A102: 101 | B102: 24.6
A103: 102 | B103: 24.7
A104: 103 | B104: 24.9
A105: 104 | B105: 25.05
A106: 105 | B106: 24.95
A107: 106 | B107: 24.85
A108: 107 | B108: 24.8
A109: 108 | B109: 24.75
A110: 109 | B110: 24.95
A111: 110 | B111: 25.2
A112: 111 | B112: 25.15
A113: 112 | B113: 25.15
A114: 113 | B114: 25.15
A115: 114 | B115: 24.9
A116: 115 | B116: 24.95
A117: 116 | B117: 24.85
A118: 117 | B118: 24.8
A119: 118 | B119: 24.75
A120: 119 | B120: 24.55
A121: 120 | B121: 24.5
A122: 121 | B122: 24.5
A123: 122 | B123: 24.4
A124: 123 | B124: 24.4
A125: 124 | B125: 24.35
A126: 125 | B126: 24.4
A127: 126 | B127: 24.6
A128: 127 | B128: 24.85
A129: 128 | B129: 25.3
A130: 129 | B130: 24.7
A131: 130 | B131: 24.8
A132: 131 | B132: 24.9
A133: 132 | B133: 24.93
A134: 133 | B134: 24.85
A135: 134 | B135: 24.55
A136: 135 | B136: 24.5
A137: 136 | B137: 24.2
A138: 137 | B138: 24.3
A139: 138 | B139: 24.2
A140: 139 | B140: 24.1
A141: 140 | B141: 24
A142: 141 | B142: 23.9
A143: 142 | B143: 23.85
A144: 143 | B144: 23.85
A145: 144 | B145: 23.9
A146: 145 | B146: 23.8
A147: 146 | B147: 23.65
A148: 147 | B148: 23.75
A149: 148 | B149: 23.95
A150: 149 | B150: 24
A151: 150 | B151: 24.5
A152: 151 | B152: 24.8
A153: 152 | B153: 25
A154: 153 | B154: 24.7
A155: 154 | B155: 24.6
A156: 155 | B156: 24.7
A157: 156 | B157: 24.95
A158: 157 | B158: 25.25
A159: 158 | B159: 25.2
A160: 159 | B160: 25.1
A161: 160 | B161: 24.9
A162: 161 | B162: 25
A163: 162 | B163: 24.75
A164: 163 | B164: 24.55
A165: 164 | B165: 24.6
A166: 165 | B166: 25.15
A167: 166 | B167: 25.45
A168: 167 | B168: 25.5
A169: 168 | B169: 25.3
A170: 169 | B170: 25.25
A171: 170 | B171: 25.2
A172: 171 | B172: 25.4
A173: 172 | B173: 25.45
A174: 173 | B174: 25.3
A175: 174 | B175: 24.95
A176: 175 | B176: 24.75
A177: 176 | B177: 24.65
A178: 177 | B178: 24.75
A179: 178 | B179: 24.75
A180: 179 | B180: 24.8
A181: 180 | B181: 24.5
A182: 181 | B182: 24.95
A183: 182 | B183: 25
A184: 183 | B184: 25.35
A185: 184 | B185: 25.1
A186: 185 | B186: 24.8
A187: 186 | B187: 25.1
A188: 187 | B188: 25.1
A189: 188 | B189: 25.07
A190: 189 | B190: 24.9
A191: 190 | B191: 24.75
A192: 191 | B192: 25.13
A193: 192 | B193: 25.23
A194: 193 | B194: 25.36
A195: 194 | B195: 25.28
A196: 195 | B196: 25.24
A197: 196 | B197: 25.41
A198: 197 | B198: 25.44
A199: 198 | B199: 25.23
A200: 199 | B200: 24.93
... 2767 more rows

Sheet plyn (hidden)
A1: Date/Datum | C1: roční kontrakt
A2: 2013-12-09 | B2: 1 | C2: 26.7
A3: 2013-12-10 | B3: 2 | C3: 26.75
A4: 2013-12-11 | B4: 3 | C4: 26.38
A5: 2013-12-12 | B5: 4 | C5: 26.33
A6: 2013-12-13 | B6: 5 | C6: 26.3
A7: 2013-12-16 | B7: 6 | C7: 26.35
A8: 2013-12-17 | B8: 7 | C8: 26.47
A9: 2013-12-18 | B9: 8 | C9: 26.5
A10: 2013-12-19 | B10: 9 | C10: 26.55
A11: 2013-12-20 | B11: 10 | C11: 26.55
A12: 2013-12-23 | B12: 11 | C12: 26.5
A13: 2013-12-27 | B13: 12 | C13: 26.65
A14: 2013-12-30 | B14: 13 | C14: 26.75
A15: 2013-12-31 | B15: 14 | C15: 26.65
A16: 2014-01-02 | B16: 15 | C16: 26.75
A17: 2014-01-03 | B17: 16 | C17: 26.65
A18: 2014-01-06 | B18: 17 | C18: 26.5
A19: 2014-01-07 | B19: 18 | C19: 26.4
A20: 2014-01-08 | B20: 19 | C20: 26.45
A21: 2014-01-09 | B21: 20 | C21: 26.5
A22: 2014-01-10 | B22: 21 | C22: 26.3
A23: 2014-01-13 | B23: 22 | C23: 26.08
A24: 2014-01-14 | B24: 23 | C24: 26
A25: 2014-01-15 | B25: 24 | C25: 26.05
A26: 2014-01-16 | B26: 25 | C26: 26.55
A27: 2014-01-17 | B27: 26 | C27: 26.6
A28: 2014-01-20 | B28: 27 | C28: 26.4
A29: 2014-01-21 | B29: 28 | C29: 26.5
A30: 2014-01-22 | B30: 29 | C30: 26.5
A31: 2014-01-23 | B31: 30 | C31: 26.45
A32: 2014-01-24 | B32: 31 | C32: 26.3
A33: 2014-01-27 | B33: 32 | C33: 26.25
A34: 2014-01-28 | B34: 33 | C34: 26.15
A35: 2014-01-29 | B35: 34 | C35: 26.1
A36: 2014-01-30 | B36: 35 | C36: 26.05
A37: 2014-01-31 | B37: 36 | C37: 26
A38: 2014-02-03 | B38: 37 | C38: 25.85
A39: 2014-02-04 | B39: 38 | C39: 25.9
A40: 2014-02-05 | B40: 39 | C40: 25.5
A41: 2014-02-06 | B41: 40 | C41: 25.75
A42: 2014-02-07 | B42: 41 | C42: 25.7
A43: 2014-02-10 | B43: 42 | C43: 25.9
A44: 2014-02-11 | B44: 43 | C44: 26.15
A45: 2014-02-12 | B45: 44 | C45: 26.2
A46: 2014-02-13 | B46: 45 | C46: 26.25
A47: 2014-02-14 | B47: 46 | C47: 25.85
A48: 2014-02-17 | B48: 47 | C48: 25.9
A49: 2014-02-18 | B49: 48 | C49: 25.9
A50: 2014-02-19 | B50: 49 | C50: 25.85
A51: 2014-02-20 | B51: 50 | C51: 25.75
A52: 2014-02-21 | B52: 51 | C52: 25.75
A53: 2014-02-24 | B53: 52 | C53: 25.45
A54: 2014-02-25 | B54: 53 | C54: 25.55
A55: 2014-02-26 | B55: 54 | C55: 25.25
A56: 2014-02-27 | B56: 55 | C56: 25.75
